Workbook

Sheet Arrendamiento Infraestructura (hidden)
A1: Arrendamiento de Infraestructura
A3: Concepto | B3: Valor | C3: Descripción
A4: Metros cuadrados | C4: Se refiere al numero de metros cuadrados de espacio en piso contratados por mes
A5: Metros lineales | C5: Se refiere al numero de metros lineales de espacio en torre contratados por mes

Sheet Parametros tecnologicos
A1: Parámetros tecnológicos | D1: Parámetros de entrada
D2: Parámetros de salida
A3: Componente | B3: Parametro | C3: Incluir | D3: Valor | E3: Descripción | F3: Referencia
A4: General | B4: Tecnología | C4: TMC 4G | E4: Tipologia de tecnologia presentada | F4: NA
B5: Dificultad de acceso | C5: 2 | E5: =+IF(TipoEspecifico=1,"Acceso Facil",IF(TipoEspecifico=2,"Acceso Dificil","Complejo")) -> Acceso Dificil | F5: NA
B6: Tipo de red | C6: Móvil | E6: Servicio móvil o fija
A7: Obra civil | B7: Altura de torre | D7: 50 | E7: mts | F7: =+IF(ArrendamientoInfraestructura="S",IF(AND(D7>=12,D7<=18),"12-18",IF(AND(D7>=19,D7<=35),"19-35",IF(AND(D7>=36,D7<=45),"36-45",IF(AND(D7>=46,D7<=60),"46-60",IF(D7>60,90,"Verificar"))))),IF(C7="N","",IF(D7="","",IF(AND(D7>=12,D7<=18),"12-18",IF(AND(D7>=19,D7<=35),"19-35",IF(AND(D7>=36,D7<=45),"36-45",IF(AND(D7>=46,D7<=60),"46-60",IF(D7>60,90,"Verificar")))))))) -> 46-60
B8: Tipo de torre | D8: Convencional | E8: Monopolo o convencional | F8: NA
B9: Eventos mantenimiento <= 2 años | D9: 0 | E9: Eventos mantenimiento correctivo o emergencia por año (En los primeros dos años)
B10: Eventos mantenimiento > 2 años | D10: 2 | E10: Eventos mantenimiento correctivo o emergencia por año (Despues de los primeros dos años)
A11: Red de energia | B11: Topología de terreno | C11: S | D11: Plano | E11: Plano u ondulado | F11: =+"Terreno "&Tipo_Terreno -> Terreno Plano
B12: Distancia red de MT | D12: 300 | E12: mts lineales (100,300,500,1000,1200,1500,2500) | F12: =+IF(D12="","",IF(D12<=99,100,IF(AND(D12>99,D12<=299),300,IF(AND(D12>299,D12<=499),500,IF(AND(D12>499,D12<=999),1000,IF(AND(D12>999,D12<=1199),1200,IF(AND(D12>1199,D12<=1499),1500,IF(D12>1499,2500,"Verificar")))))))) -> 500
B13: KW - energía | D13: 25 | E13: 15 o 25 KW | F13: NA
B14: Eventos mantenimiento <= 2 años | D14: 1 | E14: Eventos mantenimiento correctivo o emergencia por año (En los primeros dos años)
B15: Eventos mantenimiento > 2 años | D15: 2 | E15: Eventos mantenimiento correctivo o emergencia por año (Después de los primeros dos años)
B16: Planta eléctrica | C16: S | D16: 25 | E16: Tipo de planta BT (KW)
B17: Energía solar - Estación base | C17: N | E17: Sistema de energía solar (Consumo 1500-3000 W . Autonomia 25-36 horas) | F17: =C17 -> N
A18: 4G / 5G / FWA / FTTH | B18: BW (MHz) | C18: S | D18: 20 | E18: Tecnología de acceso | F18: =+TmcBw*IF(TipoRed="Fija",1,SectorEnodeb)*D26*IF(C6="Fija",1,0.5) -> 0
B19: Sectores | D19: 3 | E19: Número de sectores
B20: Eventos mantenimiento <= 2 años | D20: 1 | E20: Eventos mantenimiento correctivo o emergencia por año (En los primeros dos años)
B21: Eventos mantenimiento > 2 años | D21: 2 | E21: Eventos mantenimiento correctivo o emergencia por año (Despues de los primeros dos años)
B22: Relacion contención / Porcentaje de uso | D22: 0.1 | E22: Promedio red fija / Promedio red móvil (Sugerido 10%)
A23: Red de transmisión - MW | B23: Diámetro de antena | C23: S | D23: 1.8 | E23: mts | F23: NA
B24: Microondas | D24: 28/30 MHz < 10 GHz | E24: Equipos terminales enlace MW - HTSB
A27: Satelital | B27: Solución satelital | C27: N | E27: Mbps. Solucion Satelital SCPC para el rango entre: 55-80 Mbps
A29: =+IF(Tipologia_Campo<>"FTTH","","FTTH") -> 
A30: =+IF(Tipologia_Campo<>"FTTH","","Longitud Backhaul (Km)") ->  | E30: Distancia en fibra óptica troncal (Nodo ISP - OLT - distribución - Ej: 1 - 10 Kms)
A31: =+IF(Tipologia_Campo<>"FTTH","","Cantidad Postes") ->  | E31: Número de postes para paso fibra troncal (Ej: 70 - 200 postes)
A32: =+IF(Tipologia_Campo<>"FTTH","","Splitters") ->  | E32: Numero de splitters en el proyecto (Ej: 30 - 110 splitters)
A33: =+IF(Tipologia_Campo<>"FTTH","","Longitud Acometida (Metros / Hogar)") ->  | E33: Longitud de la fibra de acceso de abonado de SPLITTER - ONT (Ej: 30 a 60 mts)
A34: Velocidad de transporte Mbps | D34: 1000
A35: Parametros Energía Solar - Repetidora | B35: Consumo | C35: =+IF(Tipologia_Campo="Repetidora","S","N") -> N | D35: 300 | E35: Potencia (W) (Rango 0-500 W)
B36: Autonomía | D36: 25 | E36: (Horas) (25 - 36)
B37: Dias autonomía | E37: Días de disponibilidad de energía DC (Recomendado de 2-6 días)
A49: 4G - BW (MHz) | D49: 4G - Enlace De Transmision Mw Htsb (Diametro de antena Mts) | G49: Tipo de planta | I49: Energia - Kw | K49: Tipologia | L49: movil | M49: fija
K50: TMC 4G | L50: 1.7 | M50: 13
A51: 10 | D51: 1.2 | G51: A | I51: 15
A52: 20 | D52: 1.8 | G52: B | I52: 25
A53: 30 | D53: 2.4
D54: 3.7
K55: Repetidora | L55: 1 | M55: 1
A56: Mto 4G | D56: WiFi LTE - Velocidad (Mbps) / Capacidad (Gb) | G56: Red de Energia - Tipo de terreno | I56: Equipos | K56: Clase torre
A57: 1 | D57: 5 Mbps / 10 GB | G57: Ondulado | I57: 5G (1+0+0) 10 MHz | K57: Monopolo
A58: 2 | D58: 5 Mbps / 25 GB | G58: Plano | I58: 5G (1+1+0) 10 MHz | K58: Convencional
D59: 5 Mbps / 50 GB | I59: 5G (1+1+1) 10 MHz
D60: 5 Mbps / 100 GB | I60: 5G (1+1+0) 20 MHz
D61: 5 Mbps / 150 GB | I61: 5G (1+1+1) 20 MHz
A62: Sector enodeb | D62: 5 Mbps / 200 GB | I62: 5G (1+1+1) 30 MHz
A63: 1 | D63: 5 Mbps / 250 GB
A64: 2 | D64: 10 Mbps / 50 GB
A65: 3 | D65: 10 Mbps / 100 GB
D66: 10 Mbps / 150 GB
D67: 10 Mbps / 200 GB
D68: 10 Mbps / 250 GB
D69: 20 Mbps / 50 GB
D70: 20 Mbps / 100 GB
A71: Equipos terminales enlace MW - HTSB | D71: 20 Mbps / 150 GB
A72: 28/30 MHz < 10 GHz | D72: 20 Mbps / 200 GB
A73: 28/30 MHz >10 GHz | D73: 20 Mbps / 250 GB
A74: 56 MHz < 10 GHz | D74: Planta electrica | G74: Incluir | I74: Arriendo
A75: 56 MHz > 10 GHz | D75: 5 | G75: S | I75: S
D76: 15 | G76: N | I76: N
D77: 25
A78: Tipo dificultad acceso
A79: 1
A80: 2 | D80: Tipo de red
A81: 3 | D81: Fija
D82: Móvil

Sheet Modelo
A1: Modelo Financiero
A2: Valores en COP corrientes. No se indexa ningún valor a través del modelo (V3.11)
A3: Parámetros | B3: Valor | D3: Concepto | E3: =+YEAR(B7) -> 2020 | F3: =+E3+1 -> 2021 | G3: 2022 | H3: 2023 | I3: 2024 | J3: 2025 | K3: 2026 | L3: 2027 | M3: 2028 | N3: 2029 | O3: 2030 | P3: =+O3+1 -> 2031 | Q3: 2032 | R3: 2033 | S3: 2034 | T3: 2035 | U3: 2036 | V3: 2037 | W3: 2038 | X3: 2039 | Y3: 2040
A4: TRM | B4: 3800 | D4: IPC | E4: 0.03 | F4: 0.03 | G4: 0.03 | H4: 0.03 | I4: 0.03 | J4: 0.03 | K4: 0.03 | L4: 0.03 | M4: 0.03 | N4: 0.03 | O4: 0.03 | P4: 0.03 | Q4: 0.03 | R4: 0.03 | S4: 0.03 | T4: 0.03 | U4: 0.03 | V4: 0.03 | W4: 0.03 | X4: 0.03 | Y4: 0.03
A5: Valor del proyecto | B5: =+SUM(F9:IL10) -> 1346755538 | D5: Acumulado | E5: 1 | F5: =(1+E4)*E5 -> 1.03 | G5: 1.0609 | H5: 1.092727 | I5: 1.12550881 | J5: 1.159274074 | K5: 1.194052297 | L5: 1.229873865 | M5: 1.266770081 | N5: 1.304773184 | O5: 1.343916379 | P5: =(1+O4)*O5 -> 1.384233871 | Q5: 1.425760887 | R5: 1.468533713 | S5: 1.512589725 | T5: 1.557967417 | U5: 1.604706439 | V5: 1.652847632 | W5: 1.702433061 | X5: 1.753506053 | Y5: 1.806111235
D6: Pagos anuales CAPEX | E6: =+SUMIF($F$8:$DW$8,E3,$F$9:$DV$9) -> 564119635.6 | F6: =+SUMIF($F$8:$DV$8,F3,$F$9:$DV$9) -> 70363374.29 | G6: 0 | H6: 0 | I6: 0 | J6: 0 | K6: 0 | L6: 0 | M6: 0 | N6: 0 | O6: 0 | P6: =+SUMIF($F$8:$DV$8,P3,$F$9:$DV$9) -> 0 | Q6: 0 | R6: 0 | S6: 0 | T6: 0 | U6: 0 | V6: 0 | W6: 0 | X6: 0 | Y6: 0
A7: Fecha inicio obra | B7: 2020-11-15 | D7: Pagos anuales OPEX | E7: =+SUMIF($F$8:$IL$8,E3,$F$10:$IL$10) -> 0 | F7: =+SUMIF($F$8:$IL$8,F3,$F$10:$IL$10) -> 57877763.44 | G7: 121490839.8 | H7: 146512323.1 | I7: 150907692.8 | J7: 155434923.6 | K7: 80048985.67 | L7: 0 | M7: 0 | N7: 0 | O7: 0 | P7: =+SUMIF($F$8:$IL$8,P3,$F$10:$IL$10) -> 0 | Q7: 0 | R7: 0 | S7: 0 | T7: 0 | U7: 0 | V7: 0 | W7: 0 | X7: 0 | Y7: 0
A8: Fecha inicio funcionamiento | B8: =+InicioObra+240 -> 2021-07-13 | F8: =+YEAR(F18) -> 2020 | G8: 2020 | H8: 2021 | I8: 2021 | J8: 2021 | K8: 2021 | L8: 2021 | M8: 2021 | N8: 2021 | O8: 2021 | P8: 2021 | Q8: 2021 | R8: 2021 | S8: 2021 | T8: 2022 | U8: 2022 | V8: 2022 | W8: 2022 | X8: 2022 | Y8: 2022 | Z8: 2022 | AA8: 2022 | AB8: 2022 | AC8: 2022 | AD8: 2022 | AE8: 2022 | AF8: 2023 | AG8: 2023 | AH8: 2023 | AI8: 2023 | AJ8: 2023 | AK8: 2023 | AL8: =+YEAR(AL18) -> 2023 | AM8: 2023 | AN8: 2023 | AO8: 2023 | AP8: 2023 | AQ8: 2023 | AR8: 2024 | AS8: 2024 | AT8: 2024 | AU8: 2024 | AV8: 2024 | AW8: 2024 | AX8: 2024 | AY8: 2024 | AZ8: 2024 | BA8: 2024 | BB8: 2024 | BC8: 2024 | BD8: 2025 | BE8: 2025 | BF8: 2025 | BG8: 2025 | BH8: 2025 | BI8: 2025 | BJ8: 2025 | BK8: 2025 | BL8: 2025 | BM8: 2025 | BN8: 2025 | BO8: 2025 | BP8: 2026 | BQ8: 2026 | BR8: =+YEAR(BR18) -> 2026 | BS8: 2026 | BT8: 2026 | BU8: 2026 | BV8: 2026 | BW8: 2026 | BX8: 2026 | BY8: 2026 | BZ8: 2026 | CA8: 2026 | CB8: 2027 | CC8: 2027 | CD8: 2027 | CE8: 2027 | CF8: 2027 | CG8: 2027 | CH8: 2027 | CI8: 2027 | CJ8: 2027 | CK8: 2027 | CL8: 2027 | CM8: 2027 | CN8: 2028 | CO8: 2028 | CP8: 2028 | CQ8: 2028 | CR8: 2028 | CS8: 2028 | CT8: 2028 | CU8: 2028 | CV8: 2028 | CW8: 2028 | CX8: =+YEAR(CX18) -> 2028 | CY8: 2028 | CZ8: 2029 | DA8: 2029 | DB8: 2029 | DC8: 2029 | DD8: 2029 | DE8: 2029 | DF8: 2029 | DG8: 2029 | DH8: 2029 | DI8: 2029 | DJ8: 2029 | DK8: 2029 | DL8: 2030 | DM8: 2030 | DN8: 2030 | DO8: 2030 | DP8: 2030 | DQ8: 2030 | DR8: 2030 | DS8: 2030 | DT8: 2030 | DU8: 2030 | DV8: 2030 | DW8: 2030 | DX8: 2031 | DY8: 2031 | DZ8: 2031 | EA8: 2031 | EB8: 2031 | EC8: 2031 | ED8: 2031 | EE8: 2031 | EF8: 2031 | EG8: 2031 | EH8: 2031 | EI8: 2031 | EJ8: 2032 | EK8: 2032 | EL8: 2032 | EM8: 2032 | EN8: 2032 | EO8: 2032 | EP8: 2032 | EQ8: 2032 | ER8: 2032 | ES8: 2032 | ET8: 2032 | EU8: 2032 | EV8: 2033 | EW8: 2033 | EX8: 2033 | EY8: 2033 | EZ8: 2033 | FA8: 2033 | FB8: 2033 | FC8: 2033 | FD8: 2033 | FE8: 2033 | FF8: 2033 | FG8: 2033 | FH8: 2034 | FI8: 2034 | FJ8: =+YEAR(FJ18) -> 2034 | FK8: 2034 | FL8: 2034 | FM8: 2034 | FN8: 2034 | FO8: 2034 | FP8: 2034 | FQ8: 2034 | FR8: 2034 | FS8: 2034 | FT8: 2035 | FU8: 2035 | FV8: 2035 | FW8: 2035 | FX8: 2035 | FY8: 2035 | FZ8: 2035 | GA8: 2035 | GB8: 2035 | GC8: 2035 | GD8: 2035 | GE8: 2035 | GF8: 2036 | GG8: 2036 | GH8: 2036 | GI8: 2036 | GJ8: 2036 | GK8: 2036 | GL8: 2036 | GM8: 2036 | GN8: 2036 | GO8: 2036 | GP8: 2036 | GQ8: 2036 | GR8: 2037 | GS8: 2037 | GT8: 2037 | GU8: 2037 | GV8: 2037 | GW8: 2037 | GX8: 2037 | GY8: 2037 | GZ8: 2037 | HA8: 2037 | HB8: 2037 | HC8: 2037 | HD8: 2038 | HE8: 2038 | HF8: 2038 | HG8: 2038 | HH8: 2038 | HI8: 2038 | HJ8: 2038 | HK8: 2038 | HL8: 2038 | HM8: 2038 | HN8: 2038 | HO8: 2038 | HP8: 2039 | HQ8: 2039 | HR8: 2039 | HS8: 2039 | HT8: 2039 | HU8: 2039 | HV8: =+YEAR(HV18) -> 2039 | HW8: 2039 | HX8: 2039 | HY8: 2039 | HZ8: 2039 | IA8: 2039 | IB8: 2040 | IC8: 2040 | ID8: 2040 | IE8: 2040 | IF8: 2040 | IG8: 2040 | IH8: 2040 | II8: 2040 | IJ8: 2040 | IK8: 2040 | IL8: 2040
A9: Tiempo reconocimiento OPEX (meses) | B9: 60 | E9: Flujo de Caja CAPEX | F9: =SUMIF($IM$20:$IM$96,"=CAPEX",F$20:F$96) -> 564119635.6 | G9: =SUMIF($IM$20:$IM$96,"=CAPEX",G$20:G$96) -> 0 | H9: 0 | I9: 0 | J9: 0 | K9: 0 | L9: 0 | M9: 0 | N9: 0 | O9: 0 | P9: 70363374.29 | Q9: 0 | R9: 0 | S9: 0 | T9: 0 | U9: 0 | V9: 0 | W9: 0 | X9: 0 | Y9: 0 | Z9: 0 | AA9: 0 | AB9: 0 | AC9: 0 | AD9: 0 | AE9: 0 | AF9: 0 | AG9: 0 | AH9: 0 | AI9: 0 | AJ9: 0 | AK9: 0 | AL9: 0 | AM9: 0 | AN9: 0 | AO9: 0 | AP9: 0 | AQ9: 0 | AR9: 0 | AS9: 0 | AT9: 0 | AU9: 0 | AV9: 0 | AW9: 0 | AX9: 0 | AY9: 0 | AZ9: 0 | BA9: 0 | BB9: 0 | BC9: 0 | BD9: 0 | BE9: 0 | BF9: 0 | BG9: 0 | BH9: 0 | BI9: 0 | BJ9: 0 | BK9: 0 | BL9: 0 | BM9: 0 | BN9: 0 | BO9: 0 | BP9: 0 | BQ9: 0 | BR9: 0 | BS9: =SUMIF($IM$20:$IM$96,"=CAPEX",BS$20:BS$96) -> 0 | BT9: 0 | BU9: 0 | BV9: 0 | BW9: 0 | BX9: 0 | BY9: 0 | BZ9: 0 | CA9: 0 | CB9: 0 | CC9: 0 | CD9: 0 | CE9: 0 | CF9: 0 | CG9: 0 | CH9: 0 | CI9: 0 | CJ9: 0 | CK9: 0 | CL9: 0 | CM9: 0 | CN9: 0 | CO9: 0 | CP9: 0 | CQ9: 0 | CR9: 0 | CS9: 0 | CT9: 0 | CU9: 0 | CV9: 0 | CW9: 0 | CX9: 0 | CY9: 0 | CZ9: 0 | DA9: 0 | DB9: 0 | DC9: 0 | DD9: 0 | DE9: 0 | DF9: 0 | DG9: 0 | DH9: 0 | DI9: 0 | DJ9: 0 | DK9: 0 | DL9: 0 | DM9: 0 | DN9: 0 | DO9: 0 | DP9: 0 | DQ9: 0 | DR9: 0 | DS9: 0 | DT9: 0 | DU9: 0 | DV9: 0 | DW9: 0 | DX9: 0 | DY9: 0 | DZ9: 0 | EA9: 0 | EB9: 0 | EC9: 0 | ED9: 0 | EE9: =SUMIF($IM$20:$IM$96,"=CAPEX",EE$20:EE$96) -> 0 | EF9: 0 | EG9: 0 | EH9: 0 | EI9: 0 | EJ9: 0 | EK9: 0 | EL9: 0 | EM9: 0 | EN9: 0 | EO9: 0 | EP9: 0 | EQ9: 0 | ER9: 0 | ES9: 0 | ET9: 0 | EU9: 0 | EV9: 0 | EW9: 0 | EX9: 0 | EY9: 0 | EZ9: 0 | FA9: 0 | FB9: 0 | FC9: 0 | FD9: 0 | FE9: 0 | FF9: 0 | FG9: 0 | FH9: 0 | FI9: 0 | FJ9: 0 | FK9: 0 | FL9: 0 | FM9: 0 | FN9: 0 | FO9: 0 | FP9: 0 | FQ9: 0 | FR9: 0 | FS9: 0 | FT9: 0 | FU9: 0 | FV9: 0 | FW9: 0 | FX9: 0 | FY9: 0 | FZ9: 0 | GA9: 0 | GB9: 0 | GC9: 0 | GD9: 0 | GE9: 0 | GF9: 0 | GG9: 0 | GH9: 0 | GI9: 0 | GJ9: 0 | GK9: 0 | GL9: 0 | GM9: 0 | GN9: 0 | GO9: 0 | GP9: 0 | GQ9: =SUMIF($IM$20:$IM$96,"=CAPEX",GQ$20:GQ$96) -> 0 | GR9: 0 | GS9: 0 | GT9: 0 | GU9: 0 | GV9: 0 | GW9: 0 | GX9: 0 | GY9: 0 | GZ9: 0 | HA9: 0 | HB9: 0 | HC9: 0 | HD9: 0 | HE9: 0 | HF9: 0 | HG9: 0 | HH9: 0 | HI9: 0 | HJ9: 0 | HK9: 0 | HL9: 0 | HM9: 0 | HN9: 0 | HO9: 0 | HP9: 0 | HQ9: 0 | HR9: 0 | HS9: 0 | HT9: 0 | HU9: 0 | HV9: 0 | HW9: 0 | HX9: 0 | HY9: 0 | HZ9: 0 | IA9: 0 | IB9: 0 | IC9: 0 | ID9: 0 | IE9: 0 | IF9: 0 | IG9: 0 | IH9: 0 | II9: 0 | IJ9: 0 | IK9: 0 | IL9: 0
A10: Tiempo reconocimiento OPEX (Recomendado) | B10: =IFERROR(IF(IF((F9/(B11*B12-AVERAGEIF(G10:DV10,">0")))>120,120,(F9/(B11*B12-AVERAGEIF(G10:DV10,">0"))))<0,120,IF((F9/(B11*B12-AVERAGEIF(G10:DV10,">0")))>120,120,(F9/(B11*B12-AVERAGEIF(G10:DV10,">0"))))),0) -> 120 | E10: Flujo de Caja OPEX | F10: =SUMIF($IM$20:$IM$96,"=OPEX",F$20:F$96)+F11+F12 -> 0 | G10: =SUMIF($IM$20:$IM$96,"=OPEX",G$20:G$96)+G11+G12 -> 0 | H10: 0 | I10: 0 | J10: 0 | K10: 0 | L10: 0 | M10: 0 | N10: 11142368.91 | O10: 11142368.91 | P10: 11142368.91 | Q10: 8150218.906 | R10: 8150218.906 | S10: 8150218.906 | T10: 8394725.473 | U10: 8394725.473 | V10: 8394725.473 | W10: 8394725.473 | X10: 8394725.473 | Y10: 8394725.473 | Z10: 11853747.83 | AA10: 11853747.83 | AB10: 11853747.83 | AC10: 11853747.83 | AD10: 11853747.83 | AE10: 11853747.83 | AF10: 12209360.26 | AG10: 12209360.26 | AH10: 12209360.26 | AI10: 12209360.26 | AJ10: 12209360.26 | AK10: 12209360.26 | AL10: 12209360.26 | AM10: 12209360.26 | AN10: 12209360.26 | AO10: 12209360.26 | AP10: 12209360.26 | AQ10: 12209360.26 | AR10: 12575641.07 | AS10: 12575641.07 | AT10: 12575641.07 | AU10: 12575641.07 | AV10: 12575641.07 | AW10: 12575641.07 | AX10: 12575641.07 | AY10: 12575641.07 | AZ10: 12575641.07 | BA10: 12575641.07 | BB10: 12575641.07 | BC10: 12575641.07 | BD10: 12952910.3 | BE10: 12952910.3 | BF10: 12952910.3 | BG10: 12952910.3 | BH10: 12952910.3 | BI10: 12952910.3 | BJ10: 12952910.3 | BK10: 12952910.3 | BL10: 12952910.3 | BM10: 12952910.3 | BN10: 12952910.3 | BO10: 12952910.3 | BP10: 13341497.61 | BQ10: 13341497.61 | BR10: 13341497.61 | BS10: =SUMIF($IM$20:$IM$96,"=OPEX",BS$20:BS$96)+BS11+BS12 -> 13341497.61 | BT10: 13341497.61 | BU10: 13341497.61 | BV10: 0 | BW10: 0 | BX10: 0 | BY10: 0 | BZ10: 0 | CA10: 0 | CB10: 0 | CC10: 0 | CD10: 0 | CE10: 0 | CF10: 0 | CG10: 0 | CH10: 0 | CI10: 0 | CJ10: 0 | CK10: 0 | CL10: 0 | CM10: 0 | CN10: 0 | CO10: 0 | CP10: 0 | CQ10: 0 | CR10: 0 | CS10: 0 | CT10: 0 | CU10: 0 | CV10: 0 | CW10: 0 | CX10: 0 | CY10: 0 | CZ10: 0 | DA10: 0 | DB10: 0 | DC10: 0 | DD10: 0 | DE10: 0 | DF10: 0 | DG10: 0 | DH10: 0 | DI10: 0 | DJ10: 0 | DK10: 0 | DL10: 0 | DM10: 0 | DN10: 0 | DO10: 0 | DP10: 0 | DQ10: 0 | DR10: 0 | DS10: 0 | DT10: 0 | DU10: 0 | DV10: 0 | DW10: 0 | DX10: 0 | DY10: 0 | DZ10: 0 | EA10: 0 | EB10: 0 | EC10: 0 | ED10: 0 | EE10: =SUMIF($IM$20:$IM$96,"=OPEX",EE$20:EE$96)+EE11+EE12 -> 0 | EF10: 0 | EG10: 0 | EH10: 0 | EI10: 0 | EJ10: 0 | EK10: 0 | EL10: 0 | EM10: 0 | EN10: 0 | EO10: 0 | EP10: 0 | EQ10: 0 | ER10: 0 | ES10: 0 | ET10: 0 | EU10: 0 | EV10: 0 | EW10: 0 | EX10: 0 | EY10: 0 | EZ10: 0 | FA10: 0 | FB10: 0 | FC10: 0 | FD10: 0 | FE10: 0 | FF10: 0 | FG10: 0 | FH10: 0 | FI10: 0 | FJ10: 0 | FK10: 0 | FL10: 0 | FM10: 0 | FN10: 0 | FO10: 0 | FP10: 0 | FQ10: 0 | FR10: 0 | FS10: 0 | FT10: 0 | FU10: 0 | FV10: 0 | FW10: 0 | FX10: 0 | FY10: 0 | FZ10: 0 | GA10: 0 | GB10: 0 | GC10: 0 | GD10: 0 | GE10: 0 | GF10: 0 | GG10: 0 | GH10: 0 | GI10: 0 | GJ10: 0 | GK10: 0 | GL10: 0 | GM10: 0 | GN10: 0 | GO10: 0 | GP10: 0 | GQ10: =SUMIF($IM$20:$IM$96,"=OPEX",GQ$20:GQ$96)+GQ11+GQ12 -> 0 | GR10: 0 | GS10: 0 | GT10: 0 | GU10: 0 | GV10: 0 | GW10: 0 | GX10: 0 | GY10: 0 | GZ10: 0 | HA10: 0 | HB10: 0 | HC10: 0 | HD10: 0 | HE10: 0 | HF10: 0 | HG10: 0 | HH10: 0 | HI10: 0 | HJ10: 0 | HK10: 0 | HL10: 0 | HM10: 0 | HN10: 0 | HO10: 0 | HP10: 0 | HQ10: 0 | HR10: 0 | HS10: 0 | HT10: 0 | HU10: 0 | HV10: 0 | HW10: 0 | HX10: 0 | HY10: 0 | HZ10: 0 | IA10: 0 | IB10: 0 | IC10: 0 | ID10: 0 | IE10: 0 | IF10: 0 | IG10: 0 | IH10: =SUMIF($IM$20:$IM$96,"=OPEX",IH$20:IH$96)+IH11+IH12 -> 0 | II10: 0 | IJ10: 0 | IK10: 0 | IL10: 0
A13: Subscriptores / hogares | B13: =IFERROR(IF(TipoRed="Fija",VelocidadPromedioDL/(RelacionContencion*Velocidad),(VelocidadPromedioDL*RelacionContencion*3600*24*30)/(8000*Velocidad)),0) -> 0 | E13: =+DAY(F18) -> 1 | F13: 1 | G13: 1 | H13: 1 | I13: 1 | J13: 1 | K13: 1 | L13: 1 | M13: 1 | N13: 1 | O13: 1 | P13: 1 | Q13: 1 | R13: 1 | S13: 1 | T13: 1 | U13: 1 | V13: 1 | W13: 1 | X13: 1 | Y13: 1 | Z13: 1 | AA13: 1 | AB13: 1 | AC13: 1 | AD13: 1 | AE13: 1 | AF13: 1 | AG13: 1 | AH13: 1 | AI13: 1 | AJ13: 1 | AK13: 1 | AL13: 1 | AM13: 1 | AN13: 1 | AO13: 1 | AP13: 1 | AQ13: 1 | AR13: 1 | AS13: 1 | AT13: 1 | AU13: 1 | AV13: 1 | AW13: 1 | AX13: =+DAY(AY18) -> 1 | AY13: =+DAY(AZ18) -> 1 | AZ13: =+DAY(BA18) -> 1 | BA13: =+DAY(BB18) -> 1 | BB13: 1 | BC13: 1 | BD13: 1 | BE13: 1 | BF13: 1 | BG13: 1 | BH13: 1 | BI13: 1 | BJ13: 1 | BK13: 1 | BL13: 1 | BM13: 1 | BN13: =+DAY(BO18) -> 1 | BO13: 1 | BP13: 1 | BQ13: 1 | BR13: 1 | BS13: 1 | BT13: 1 | BU13: 1 | BV13: 1 | BW13: 1 | BX13: 1 | BY13: 1 | BZ13: 1 | CA13: 1 | CB13: 1 | CC13: 1 | CD13: 1 | CE13: 1 | CF13: 1 | CG13: 1 | CH13: 1 | CI13: 1 | CJ13: 1 | CK13: 1 | CL13: =+DAY(CM18) -> 1 | CM13: 1 | CN13: 1 | CO13: 1 | CP13: 1 | CQ13: 1 | CR13: 1 | CS13: 1 | CT13: 1 | CU13: 1 | CV13: 1 | CW13: 1 | CX13: 1 | CY13: 1 | CZ13: 1 | DA13: 1 | DB13: 1 | DC13: 1 | DD13: 1 | DE13: 1 | DF13: 1 | DG13: 1 | DH13: 1 | DI13: 1 | DJ13: 1 | DK13: 1 | DL13: 1 | DM13: 1 | DN13: 1 | DO13: 1 | DP13: 1 | DQ13: 1 | DR13: 1 | DS13: 1 | DT13: 1 | DU13: 1 | DV13: =+DAY(DW18) -> 1 | DW13: 1 | DX13: 1 | DY13: 1 | DZ13: 1 | EA13: 1 | EB13: 1 | EC13: 1 | ED13: 1 | EE13: 1 | EF13: 1 | EG13: 1 | EH13: 1 | EI13: 1 | EJ13: 1 | EK13: 1 | EL13: 1 | EM13: 1 | EN13: 1 | EO13: 1 | EP13: 1 | EQ13: 1 | ER13: 1 | ES13: 1 | ET13: 1 | EU13: 1 | EV13: 1 | EW13: 1 | EX13: 1 | EY13: 1 | EZ13: 1 | FA13: 1 | FB13: =+DAY(FC18) -> 1 | FC13: 1 | FD13: 1 | FE13: 1 | FF13: 1 | FG13: 1 | FH13: 1 | FI13: 1 | FJ13: 1 | FK13: 1 | FL13: 1 | FM13: 1 | FN13: 1 | FO13: 1 | FP13: 1 | FQ13: 1 | FR13: 1 | FS13: 1 | FT13: 1 | FU13: 1 | FV13: 1 | FW13: 1 | FX13: 1 | FY13: 1 | FZ13: 1 | GA13: 1 | GB13: 1 | GC13: 1 | GD13: 1 | GE13: 1 | GF13: 1 | GG13: 1 | GH13: =+DAY(GI18) -> 1 | GI13: 1 | GJ13: 1 | GK13: 1 | GL13: 1 | GM13: 1 | GN13: 1 | GO13: 1 | GP13: 1 | GQ13: 1 | GR13: 1 | GS13: 1 | GT13: 1 | GU13: 1 | GV13: 1 | GW13: 1 | GX13: 1 | GY13: 1 | GZ13: 1 | HA13: 1 | HB13: 1 | HC13: 1 | HD13: 1 | HE13: 1 | HF13: 1 | HG13: 1 | HH13: 1 | HI13: 1 | HJ13: 1 | HK13: 1 | HL13: 1 | HM13: 1 | HN13: =+DAY(HO18) -> 1 | HO13: 1 | HP13: 1 | HQ13: 1 | HR13: 1 | HS13: 1 | HT13: 1 | HU13: 1 | HV13: 1 | HW13: 1 | HX13: 1 | HY13: 1 | HZ13: 1 | IA13: 1 | IB13: 1 | IC13: 1 | ID13: 1 | IE13: 1 | IF13: 1 | IG13: 1 | IH13: 1 | II13: 1 | IJ13: 1 | IK13: 1 | IL13: =+DAY(IM17) -> 
A15: OPEX total | B15: =+SUM(E7:Y7) -> 712272528.5
A16: CAPEX total | B16: =+SUM(B21:B27,B37:B42,B45:B47,B51:B53,B63:B65,B70:B79,B83:B91,B95) -> 634483009.8 | E16: 1 | F16: 2 | G16: 3 | H16: 4 | I16: 5 | J16: 6 | K16: 7 | L16: 8 | M16: 9 | N16: 10 | O16: 11 | P16: 12 | Q16: 13 | R16: 14 | S16: 15 | T16: 16 | U16: 17 | V16: 18 | W16: 19 | X16: 20 | Y16: 21 | Z16: 22 | AA16: 23 | AB16: 24 | AC16: 25 | AD16: 26 | AE16: 27 | AF16: 28 | AG16: 29 | AH16: 30 | AI16: 31 | AJ16: 32 | AK16: 33 | AL16: 34 | AM16: 35 | AN16: 36 | AO16: 37 | AP16: 38 | AQ16: 39 | AR16: 40 | AS16: 41 | AT16: 42 | AU16: 43 | AV16: 44 | AW16: 45 | AX16: 46 | AY16: 47 | AZ16: 48 | BA16: 49 | BB16: 50 | BC16: 51 | BD16: 52 | BE16: 53 | BF16: 54 | BG16: 55 | BH16: 56 | BI16: 57 | BJ16: 58 | BK16: 59 | BL16: 60 | BM16: 61 | BN16: 62 | BO16: 63 | BP16: 64 | BQ16: 65 | BR16: 66 | BS16: 67 | BT16: 68 | BU16: 69 | BV16: 70 | BW16: 71 | BX16: 72 | BY16: 73 | BZ16: 74 | CA16: 75 | CB16: 76 | CC16: 77 | CD16: 78 | CE16: 79 | CF16: 80 | CG16: 81 | CH16: 82 | CI16: 83 | CJ16: 84 | CK16: 85 | CL16: 86 | CM16: 87 | CN16: 88 | CO16: 89 | CP16: 90 | CQ16: 91 | CR16: 92 | CS16: 93 | CT16: 94 | CU16: 95 | CV16: 96 | CW16: 97 | CX16: 98 | CY16: 99 | CZ16: 100 | DA16: 101 | DB16: 102 | DC16: 103 | DD16: 104 | DE16: 105 | DF16: 106 | DG16: 107 | DH16: 108 | DI16: 109 | DJ16: 110 | DK16: 111 | DL16: 112 | DM16: 113 | DN16: 114 | DO16: 115 | DP16: 116 | DQ16: 117 | DR16: 118 | DS16: 119 | DT16: 120 | DU16: 121 | DV16: 122 | DW16: 123 | DX16: 124 | DY16: 125 | DZ16: 126 | EA16: 127 | EB16: 128 | EC16: 129 | ED16: 130 | EE16: 131 | EF16: 132 | EG16: 133 | EH16: 134 | EI16: 135 | EJ16: 136 | EK16: 137 | EL16: 138 | EM16: 139 | EN16: 140 | EO16: 141 | EP16: 142 | EQ16: 143 | ER16: 144 | ES16: 145 | ET16: 146 | EU16: 147 | EV16: 148 | EW16: 149 | EX16: 150 | EY16: 151 | EZ16: 152 | FA16: 153 | FB16: 154 | FC16: 155 | FD16: 156 | FE16: 157 | FF16: 158 | FG16: 159 | FH16: 160 | FI16: 161 | FJ16: 162 | FK16: 163 | FL16: 164 | FM16: 165 | FN16: 166 | FO16: 167 | FP16: 168 | FQ16: 169 | FR16: 170 | FS16: 171 | FT16: 172 | FU16: 173 | FV16: 174 | FW16: 175 | FX16: 176 | FY16: 177 | FZ16: 178 | GA16: 179 | GB16: 180 | GC16: 181 | GD16: 182 | GE16: 183 | GF16: 184 | GG16: 185 | GH16: 186 | GI16: 187 | GJ16: 188 | GK16: 189 | GL16: 190 | GM16: 191 | GN16: 192 | GO16: 193 | GP16: 194 | GQ16: 195 | GR16: 196 | GS16: 197 | GT16: 198 | GU16: 199 | GV16: 200 | GW16: 201 | GX16: 202 | GY16: 203 | GZ16: 204 | HA16: 205 | HB16: 206 | HC16: 207 | HD16: 208 | HE16: 209 | HF16: 210 | HG16: 211 | HH16: 212 | HI16: 213 | HJ16: 214 | HK16: 215 | HL16: 216 | HM16: 217 | HN16: 218 | HO16: 219 | HP16: 220 | HQ16: 221 | HR16: 222 | HS16: 223 | HT16: 224 | HU16: 225 | HV16: 226 | HW16: 227 | HX16: 228 | HY16: 229 | HZ16: 230 | IA16: 231 | IB16: 232 | IC16: 233 | ID16: 234 | IE16: 235 | IF16: 236 | IG16: 237 | IH16: 238 | II16: 239 | IJ16: 240 | IK16: 241 | IL16: 242
A17: Costo total por Usuario | B17: =IFERROR(B5/SubscriptoresSugeridos,0) -> 0 | F17: 0 | G17: 1 | H17: 2 | I17: 3 | J17: 4 | K17: 5 | L17: 6 | M17: 7 | N17: 8 | O17: 9 | P17: 10 | Q17: 11 | R17: 12 | S17: 13 | T17: 14 | U17: 15 | V17: 16 | W17: 17 | X17: 18 | Y17: 19 | Z17: 20 | AA17: 21 | AB17: 22 | AC17: 23 | AD17: 24 | AE17: 25 | AF17: 26 | AG17: 27 | AH17: 28 | AI17: 29 | AJ17: 30 | AK17: 31 | AL17: 32 | AM17: 33 | AN17: 34 | AO17: 35 | AP17: 36 | AQ17: 37 | AR17: 38 | AS17: 39 | AT17: 40 | AU17: 41 | AV17: 42 | AW17: 43 | AX17: 44 | AY17: 45 | AZ17: 46 | BA17: 47 | BB17: 48 | BC17: 49 | BD17: 50 | BE17: 51 | BF17: 52 | BG17: 53 | BH17: 54 | BI17: 55 | BJ17: 56 | BK17: 57 | BL17: 58 | BM17: 59 | BN17: 60 | BO17: 61 | BP17: 62 | BQ17: 63 | BR17: 64 | BS17: 65 | BT17: 66 | BU17: 67 | BV17: 68 | BW17: 69 | BX17: 70 | BY17: 71 | BZ17: 72 | CA17: 73 | CB17: 74 | CC17: 75 | CD17: 76 | CE17: 77 | CF17: 78 | CG17: 79 | CH17: 80 | CI17: 81 | CJ17: 82 | CK17: 83 | CL17: 84 | CM17: 85 | CN17: 86 | CO17: 87 | CP17: 88 | CQ17: 89 | CR17: 90 | CS17: 91 | CT17: 92 | CU17: 93 | CV17: 94 | CW17: 95 | CX17: 96 | CY17: 97 | CZ17: 98 | DA17: 99 | DB17: 100 | DC17: 101 | DD17: 102 | DE17: 103 | DF17: 104 | DG17: 105 | DH17: 106 | DI17: 107 | DJ17: 108 | DK17: 109 | DL17: 110 | DM17: 111 | DN17: 112 | DO17: 113 | DP17: 114 | DQ17: 115 | DR17: 116 | DS17: 117 | DT17: 118 | DU17: 119 | DV17: 120 | DW17: 121 | DX17: 122 | DY17: 123 | DZ17: 124 | EA17: 125 | EB17: 126 | EC17: 127 | ED17: 128 | EE17: 129 | EF17: 130 | EG17: 131 | EH17: 132 | EI17: 133 | EJ17: 134 | EK17: 135 | EL17: 136 | EM17: 137 | EN17: 138 | EO17: 139 | EP17: 140 | EQ17: 141 | ER17: 142 | ES17: 143 | ET17: 144 | EU17: 145 | EV17: 146 | EW17: 147 | EX17: 148 | EY17: 149 | EZ17: 150 | FA17: 151 | FB17: 152 | FC17: 153 | FD17: 154 | FE17: 155 | FF17: 156 | FG17: 157 | FH17: 158 | FI17: 159 | FJ17: 160 | FK17: 161 | FL17: 162 | FM17: 163 | FN17: 164 | FO17: 165 | FP17: 166 | FQ17: 167 | FR17: 168 | FS17: 169 | FT17: 170 | FU17: 171 | FV17: 172 | FW17: 173 | FX17: 174 | FY17: 175 | FZ17: 176 | GA17: 177 | GB17: 178 | GC17: 179 | GD17: 180 | GE17: 181 | GF17: 182 | GG17: 183 | GH17: 184 | GI17: 185 | GJ17: 186 | GK17: 187 | GL17: 188 | GM17: 189 | GN17: 190 | GO17: 191 | GP17: 192 | GQ17: 193 | GR17: 194 | GS17: 195 | GT17: 196 | GU17: 197 | GV17: 198 | GW17: 199 | GX17: 200 | GY17: 201 | GZ17: 202 | HA17: 203 | HB17: 204 | HC17: 205 | HD17: 206 | HE17: 207 | HF17: 208 | HG17: 209 | HH17: 210 | HI17: 211 | HJ17: 212 | HK17: 213 | HL17: 214 | HM17: 215 | HN17: 216 | HO17: 217 | HP17: 218 | HQ17: 219 | HR17: 220 | HS17: 221 | HT17: 222 | HU17: 223 | HV17: 224 | HW17: 225 | HX17: 226 | HY17: 227 | HZ17: 228 | IA17: 229 | IB17: 230 | IC17: 231 | ID17: 232 | IE17: 233 | IF17: 234 | IG17: 235 | IH17: 236 | II17: 237 | IJ17: 238 | IK17: 239 | IL17: 240 | IM17: CLASIFICACIÓN CONCEPTO
A18: CONCEPTO | B18: CAPEX | C18: OPEX | D18: Periodo de Inicio | E18: Periodos a reconocer | F18: =+DATE(YEAR($B$7),MONTH(B7),1) -> 2020-11-01 | G18: =+IF(AND(MONTH(F18)=2,OR(YEAR(F18)=2020,YEAR(F18)=2024,YEAR(F18)=2028,YEAR(F18)=2032,YEAR(F18)=2036,YEAR(F18)=2040)),F18+29,IF(MONTH(F18)=2,F18+28,IF(OR(MONTH(F18)=4,MONTH(F18)=6,MONTH(F18)=9,MONTH(F18)=11),F18+30,F18+31))) -> 2020-12-01 | H18: =+IF(AND(MONTH(G18)=2,OR(YEAR(G18)=2020,YEAR(G18)=2024,YEAR(G18)=2028,YEAR(G18)=2032,YEAR(G18)=2036,YEAR(G18)=2040)),G18+29,IF(MONTH(G18)=2,G18+28,IF(OR(MONTH(G18)=4,MONTH(G18)=6,MONTH(G18)=9,MONTH(G18)=11),G18+30,G18+31))) -> 2021-01-01 | I18: 2021-02-01 | J18: 2021-03-01 | K18: 2021-04-01 | L18: 2021-05-01 | M18: 2021-06-01 | N18: 2021-07-01 | O18: 2021-08-01 | P18: 2021-09-01 | Q18: 2021-10-01 | R18: 2021-11-01 | S18: 2021-12-01 | T18: 2022-01-01 | U18: 2022-02-01 | V18: 2022-03-01 | W18: 2022-04-01 | X18: 2022-05-01 | Y18: 2022-06-01 | Z18: 2022-07-01 | AA18: 2022-08-01 | AB18: 2022-09-01 | AC18: 2022-10-01 | AD18: 2022-11-01 | AE18: 2022-12-01 | AF18: 2023-01-01 | AG18: 2023-02-01 | AH18: 2023-03-01 | AI18: 2023-04-01 | AJ18: 2023-05-01 | AK18: 2023-06-01 | AL18: 2023-07-01 | AM18: 2023-08-01 | AN18: 2023-09-01 | AO18: 2023-10-01 | AP18: 2023-11-01 | AQ18: 2023-12-01 | AR18: 2024-01-01 | AS18: 2024-02-01 | AT18: 2024-03-01 | AU18: 2024-04-01 | AV18: 2024-05-01 | AW18: 2024-06-01 | AX18: 2024-07-01 | AY18: 2024-08-01 | AZ18: 2024-09-01 | BA18: 2024-10-01 | BB18: 2024-11-01 | BC18: 2024-12-01 | BD18: 2025-01-01 | BE18: 2025-02-01 | BF18: 2025-03-01 | BG18: 2025-04-01 | BH18: 2025-05-01 | BI18: 2025-06-01 | BJ18: 2025-07-01 | BK18: 2025-08-01 | BL18: 2025-09-01 | BM18: 2025-10-01 | BN18: 2025-11-01 | BO18: 2025-12-01 | BP18: 2026-01-01 | BQ18: 2026-02-01 | BR18: 2026-03-01 | BS18: 2026-04-01 | BT18: =+IF(AND(MONTH(BS18)=2,OR(YEAR(BS18)=2020,YEAR(BS18)=2024,YEAR(BS18)=2028,YEAR(BS18)=2032,YEAR(BS18)=2036,YEAR(BS18)=2040)),BS18+29,IF(MONTH(BS18)=2,BS18+28,IF(OR(MONTH(BS18)=4,MONTH(BS18)=6,MONTH(BS18)=9,MONTH(BS18)=11),BS18+30,BS18+31))) -> 2026-05-01 | BU18: 2026-06-01 | BV18: 2026-07-01 | BW18: 2026-08-01 | BX18: 2026-09-01 | BY18: 2026-10-01 | BZ18: 2026-11-01 | CA18: 2026-12-01 | CB18: 2027-01-01 | CC18: 2027-02-01 | CD18: 2027-03-01 | CE18: 2027-04-01 | CF18: 2027-05-01 | CG18: 2027-06-01 | CH18: 2027-07-01 | CI18: 2027-08-01 | CJ18: 2027-09-01 | CK18: 2027-10-01 | CL18: 2027-11-01 | CM18: 2027-12-01 | CN18: 2028-01-01 | CO18: 2028-02-01 | CP18: 2028-03-01 | CQ18: 2028-04-01 | CR18: 2028-05-01 | CS18: 2028-06-01 | CT18: 2028-07-01 | CU18: 2028-08-01 | CV18: 2028-09-01 | CW18: 2028-10-01 | CX18: 2028-11-01 | CY18: 2028-12-01 | CZ18: 2029-01-01 | DA18: 2029-02-01 | DB18: 2029-03-01 | DC18: 2029-04-01 | DD18: 2029-05-01 | DE18: 2029-06-01 | DF18: 2029-07-01 | DG18: 2029-08-01 | DH18: 2029-09-01 | DI18: 2029-10-01 | DJ18: 2029-11-01 | DK18: 2029-12-01 | DL18: 2030-01-01 | DM18: 2030-02-01 | DN18: 2030-03-01 | DO18: 2030-04-01 | DP18: 2030-05-01 | DQ18: 2030-06-01 | DR18: 2030-07-01 | DS18: 2030-08-01 | DT18: 2030-09-01 | DU18: 2030-10-01 | DV18: 2030-11-01 | DW18: 2030-12-01 | DX18: 2031-01-01 | DY18: 2031-02-01 | DZ18: 2031-03-01 | EA18: 2031-04-01 | EB18: 2031-05-01 | EC18: 2031-06-01 | ED18: 2031-07-01 | EE18: 2031-08-01 | EF18: =+IF(AND(MONTH(EE18)=2,OR(YEAR(EE18)=2020,YEAR(EE18)=2024,YEAR(EE18)=2028,YEAR(EE18)=2032,YEAR(EE18)=2036,YEAR(EE18)=2040)),EE18+29,IF(MONTH(EE18)=2,EE18+28,IF(OR(MONTH(EE18)=4,MONTH(EE18)=6,MONTH(EE18)=9,MONTH(EE18)=11),EE18+30,EE18+31))) -> 2031-09-01 | EG18: 2031-10-01 | EH18: 2031-11-01 | EI18: 2031-12-01 | EJ18: 2032-01-01 | EK18: 2032-02-01 | EL18: 2032-03-01 | EM18: 2032-04-01 | EN18: 2032-05-01 | EO18: 2032-06-01 | EP18: 2032-07-01 | EQ18: 2032-08-01 | ER18: 2032-09-01 | ES18: 2032-10-01 | ET18: 2032-11-01 | EU18: 2032-12-01 | EV18: 2033-01-01 | EW18: 2033-02-01 | EX18: 2033-03-01 | EY18: 2033-04-01 | EZ18: 2033-05-01 | FA18: 2033-06-01 | FB18: 2033-07-01 | FC18: 2033-08-01 | FD18: 2033-09-01 | FE18: 2033-10-01 | FF18: 2033-11-01 | FG18: 2033-12-01 | FH18: 2034-01-01 | FI18: 2034-02-01 | FJ18: 2034-03-01 | FK18: 2034-04-01 | FL18: 2034-05-01 | FM18: 2034-06-01 | FN18: 2034-07-01 | FO18: 2034-08-01 | FP18: 2034-09-01 | FQ18: 2034-10-01 | FR18: 2034-11-01 | FS18: 2034-12-01 | FT18: 2035-01-01 | FU18: 2035-02-01 | FV18: 2035-03-01 | FW18: 2035-04-01 | FX18: 2035-05-01 | FY18: 2035-06-01 | FZ18: 2035-07-01 | GA18: 2035-08-01 | GB18: 2035-09-01 | GC18: 2035-10-01 | GD18: 2035-11-01 | GE18: 2035-12-01 | GF18: 2036-01-01 | GG18: 2036-02-01 | GH18: 2036-03-01 | GI18: 2036-04-01 | GJ18: 2036-05-01 | GK18: 2036-06-01 | GL18: 2036-07-01 | GM18: 2036-08-01 | GN18: 2036-09-01 | GO18: 2036-10-01 | GP18: 2036-11-01 | GQ18: 2036-12-01 | GR18: =+IF(AND(MONTH(GQ18)=2,OR(YEAR(GQ18)=2020,YEAR(GQ18)=2024,YEAR(GQ18)=2028,YEAR(GQ18)=2032,YEAR(GQ18)=2036,YEAR(GQ18)=2040)),GQ18+29,IF(MONTH(GQ18)=2,GQ18+28,IF(OR(MONTH(GQ18)=4,MONTH(GQ18)=6,MONTH(GQ18)=9,MONTH(GQ18)=11),GQ18+30,GQ18+31))) -> 2037-01-01 | GS18: 2037-02-01 | GT18: 2037-03-01 | GU18: 2037-04-01 | GV18: 2037-05-01 | GW18: 2037-06-01 | GX18: 2037-07-01 | GY18: 2037-08-01 | GZ18: 2037-09-01 | HA18: 2037-10-01 | HB18: 2037-11-01 | HC18: 2037-12-01 | HD18: 2038-01-01 | HE18: 2038-02-01 | HF18: 2038-03-01 | HG18: 2038-04-01 | HH18: 2038-05-01 | HI18: 2038-06-01 | HJ18: 2038-07-01 | HK18: 2038-08-01 | HL18: 2038-09-01 | HM18: 2038-10-01 | HN18: 2038-11-01 | HO18: 2038-12-01 | HP18: 2039-01-01 | HQ18: 2039-02-01 | HR18: 2039-03-01 | HS18: 2039-04-01 | HT18: 2039-05-01 | HU18: 2039-06-01 | HV18: 2039-07-01 | HW18: 2039-08-01 | HX18: 2039-09-01 | HY18: 2039-10-01 | HZ18: 2039-11-01 | IA18: 2039-12-01 | IB18: 2040-01-01 | IC18: 2040-02-01 | ID18: 2040-03-01 | IE18: 2040-04-01 | IF18: 2040-05-01 | IG18: 2040-06-01 | IH18: 2040-07-01 | II18: 2040-08-01 | IJ18: 2040-09-01 | IK18: 2040-10-01 | IL18: 2040-11-01
A19: 4G / 5G / FWA / MW (Los valores que no se discriminan incluyen el costo de la instalación)
A20: Consumo Combustible / mensual (Periodo después de conexión a red MT) | C20: =+IF(ArrendamientoInfraestructura="S",0,SUMIFS(ValoresMercado,Conceptos,A20,Tipo,TipoEspecifico,Relacion,KW_EnergiaValor)) -> 840780 | E20: =+MesesReconocimiento -> 60 | F20: =+(IF($A20="","",IF($D20>MONTH(F$18)-MONTH(InicioFuncion)+12*(YEAR(F$18)-YEAR(InicioFuncion))+1,0,IF($E20<=(MONTH(F$18)-MONTH(InicioFuncion)+12*(YEAR(F$18)-YEAR(InicioFuncion)))-$D20+IF($D20<>"",1,0),0,IF(F$17>$B$9+(12*(YEAR(InicioFuncion)-YEAR(InicioObra))+MONTH(InicioFuncion)-MONTH(InicioObra)),0,IF((YEAR($B$8)-YEAR($B$7))*12+(MONTH($B$8)-MONTH($B$7))+$E$16<=E$16,$C20))))*HLOOKUP(YEAR(F$18),$E$3:$Y$5,3,0))) -> 0 | G20: 0 | H20: 0 | I20: 0 | J20: 0 | K20: 0 | L20: 0 | M20: 0 | N20: 866003.4 | O20: 866003.4 | P20: 866003.4 | Q20: 866003.4 | R20: 866003.4 | S20: 866003.4 | T20: 891983.502 | U20: 891983.502 | V20: 891983.502 | W20: 891983.502 | X20: 891983.502 | Y20: 891983.502 | Z20: 891983.502 | AA20: 891983.502 | AB20: 891983.502 | AC20: 891983.502 | AD20: 891983.502 | AE20: 891983.502 | AF20: 918743.0071 | AG20: 918743.0071 | AH20: 918743.0071 | AI20: 918743.0071 | AJ20: 918743.0071 | AK20: 918743.0071 | AL20: 918743.0071 | AM20: 918743.0071 | AN20: 918743.0071 | AO20: 918743.0071 | AP20: 918743.0071 | AQ20: 918743.0071 | AR20: 946305.2973 | AS20: 946305.2973 | AT20: 946305.2973 | AU20: 946305.2973 | AV20: 946305.2973 | AW20: 946305.2973 | AX20: 946305.2973 | AY20: 946305.2973 | AZ20: 946305.2973 | BA20: 946305.2973 | BB20: 946305.2973 | BC20: 946305.2973 | BD20: 974694.4562 | BE20: 974694.4562 | BF20: 974694.4562 | BG20: 974694.4562 | BH20: 974694.4562 | BI20: 974694.4562 | BJ20: 974694.4562 | BK20: 974694.4562 | BL20: 974694.4562 | BM20: 974694.4562 | BN20: 974694.4562 | BO20: 974694.4562 | BP20: 1003935.29 | BQ20: 1003935.29 | BR20: =+(IF($A20="","",IF($D20>MONTH(BR$18)-MONTH(InicioFuncion)+12*(YEAR(BR$18)-YEAR(InicioFuncion))+1,0,IF($E20<=(MONTH(BR$18)-MONTH(InicioFuncion)+12*(YEAR(BR$18)-YEAR(InicioFuncion)))-$D20+IF($D20<>"",1,0),0,IF(BR$17>$B$9+(12*(YEAR(InicioFuncion)-YEAR(InicioObra))+MONTH(InicioFuncion)-MONTH(InicioObra)),0,IF((YEAR($B$8)-YEAR($B$7))*12+(MONTH($B$8)-MONTH($B$7))+$E$16<=BQ$16,$C20))))*HLOOKUP(YEAR(BR$18),$E$3:$Y$5,3,0))) -> 1003935.29 | BS20: 1003935.29 | BT20: 1003935.29 | BU20: 1003935.29 | BV20: 0 | BW20: 0 | BX20: 0 | BY20: 0 | BZ20: 0 | CA20: 0 | CB20: 0 | CC20: 0 | CD20: 0 | CE20: 0 | CF20: 0 | CG20: 0 | CH20: 0 | CI20: 0 | CJ20: 0 | CK20: 0 | CL20: 0 | CM20: 0 | CN20: 0 | CO20: 0 | CP20: 0 | CQ20: 0 | CR20: 0 | CS20: 0 | CT20: 0 | CU20: 0 | CV20: 0 | CW20: 0 | CX20: 0 | CY20: 0 | CZ20: 0 | DA20: 0 | DB20: 0 | DC20: 0 | DD20: 0 | DE20: 0 | DF20: 0 | DG20: 0 | DH20: 0 | DI20: 0 | DJ20: 0 | DK20: 0 | DL20: 0 | DM20: 0 | DN20: 0 | DO20: 0 | DP20: 0 | DQ20: 0 | DR20: 0 | DS20: 0 | DT20: 0 | DU20: 0 | DV20: 0 | DW20: 0 | DX20: 0 | DY20: 0 | DZ20: 0 | EA20: 0 | EB20: 0 | EC20: 0 | ED20: =+(IF($A20="","",IF($D20>MONTH(ED$18)-MONTH(InicioFuncion)+12*(YEAR(ED$18)-YEAR(InicioFuncion))+1,0,IF($E20<=(MONTH(ED$18)-MONTH(InicioFuncion)+12*(YEAR(ED$18)-YEAR(InicioFuncion)))-$D20+IF($D20<>"",1,0),0,IF(ED$17>$B$9+(12*(YEAR(InicioFuncion)-YEAR(InicioObra))+MONTH(InicioFuncion)-MONTH(InicioObra)),0,IF((YEAR($B$8)-YEAR($B$7))*12+(MONTH($B$8)-MONTH($B$7))+$E$16<=EC$16,$C20))))*HLOOKUP(YEAR(ED$18),$E$3:$Y$5,3,0))) -> 0 | EE20: 0 | EF20: 0 | EG20: 0 | EH20: 0 | EI20: 0 | EJ20: 0 | EK20: 0 | EL20: 0 | EM20: 0 | EN20: 0 | EO20: 0 | EP20: 0 | EQ20: 0 | ER20: 0 | ES20: 0 | ET20: 0 | EU20: 0 | EV20: 0 | EW20: 0 | EX20: 0 | EY20: 0 | EZ20: 0 | FA20: 0 | FB20: 0 | FC20: 0 | FD20: 0 | FE20: 0 | FF20: 0 | FG20: 0 | FH20: 0 | FI20: 0 | FJ20: 0 | FK20: 0 | FL20: 0 | FM20: 0 | FN20: 0 | FO20: 0 | FP20: 0 | FQ20: 0 | FR20: 0 | FS20: 0 | FT20: 0 | FU20: 0 | FV20: 0 | FW20: 0 | FX20: 0 | FY20: 0 | FZ20: 0 | GA20: 0 | GB20: 0 | GC20: 0 | GD20: 0 | GE20: 0 | GF20: 0 | GG20: 0 | GH20: 0 | GI20: 0 | GJ20: 0 | GK20: 0 | GL20: 0 | GM20: 0 | GN20: 0 | GO20: 0 | GP20: =+(IF($A20="","",IF($D20>MONTH(GP$18)-MONTH(InicioFuncion)+12*(YEAR(GP$18)-YEAR(InicioFuncion))+1,0,IF($E20<=(MONTH(GP$18)-MONTH(InicioFuncion)+12*(YEAR(GP$18)-YEAR(InicioFuncion)))-$D20+IF($D20<>"",1,0),0,IF(GP$17>$B$9+(12*(YEAR(InicioFuncion)-YEAR(InicioObra))+MONTH(InicioFuncion)-MONTH(InicioObra)),0,IF((YEAR($B$8)-YEAR($B$7))*12+(MONTH($B$8)-MONTH($B$7))+$E$16<=GO$16,$C20))))*HLOOKUP(YEAR(GP$18),$E$3:$Y$5,3,0))) -> 0 | GQ20: 0 | GR20: 0 | GS20: 0 | GT20: 0 | GU20: 0 | GV20: 0 | GW20: 0 | GX20: 0 | GY20: 0 | GZ20: 0 | HA20: 0 | HB20: 0 | HC20: 0 | HD20: 0 | HE20: 0 | HF20: 0 | HG20: 0 | HH20: 0 | HI20: 0 | HJ20: 0 | HK20: 0 | HL20: 0 | HM20: 0 | HN20: 0 | HO20: 0 | HP20: 0 | HQ20: 0 | HR20: 0 | HS20: 0 | HT20: 0 | HU20: 0 | HV20: 0 | HW20: 0 | HX20: 0 | HY20: 0 | HZ20: 0 | IA20: 0 | IB20: 0 | IC20: 0 | ID20: 0 | IE20: 0 | IF20: 0 | IG20: 0 | IH20: 0 | II20: 0 | IJ20: 0 | IK20: 0 | IL20: 0 | IM20: =IF(B20<>"","CAPEX","OPEX") -> OPEX
A21: Digital EnodeB | B21: =+SUMIFS(ValoresMercado,Conceptos,A21,Relacion,TmcBw,RangoSectorEnodeb,SectorEnodeb) -> 70363374.29 | D21: 10 | E21: 60 | F21: =+IF($A21="","",IF($D21=F$17,$B21+IF(MONTH($B$8)-MONTH($B$7)+$E$16=E$16,$C21,0),0)) -> 0 | G21: =+IF($A21="","",IF($D21=G$17,$B21+IF(MONTH($B$8)-MONTH($B$7)+$E$16=F$16,$C21,0),0)) -> 0 | H21: =+IF($A21="","",IF($D21=H$17,$B21+IF(MONTH($B$8)-MONTH($B$7)+$E$16=G$16,$C21,0),0)) -> 0 | I21: =+IF($A21="","",IF($D21=I$17,$B21+IF(MONTH($B$8)-MONTH($B$7)+$E$16=H$16,$C21,0),0)) -> 0 | J21: =+IF($A21="","",IF($D21=J$17,$B21+IF(MONTH($B$8)-MONTH($B$7)+$E$16=I$16,$C21,0),0)) -> 0 | K21: 0 | L21: 0 | M21: 0 | N21: 0 | O21: 0 | P21: 70363374.29 | Q21: 0 | R21: 0 | S21: 0 | T21: 0 | U21: 0 | V21: 0 | W21: 0 | X21: 0 | Y21: 0 | Z21: 0 | AA21: 0 | AB21: 0 | AC21: 0 | AD21: 0 | AE21: 0 | AF21: 0 | AG21: 0 | AH21: 0 | AI21: 0 | AJ21: 0 | AK21: 0 | AL21: =+IF($A21="","",IF($D21=AL$17,$B21+IF(MONTH($B$8)-MONTH($B$7)+$E$16=AK$16,$C21,0),0)) -> 0 | AM21: 0 | AN21: 0 | AO21: 0 | AP21: 0 | AQ21: 0 | AR21: 0 | AS21: 0 | AT21: 0 | AU21: 0 | AV21: 0 | AW21: 0 | AX21: 0 | AY21: 0 | AZ21: 0 | BA21: 0 | BB21: 0 | BC21: 0 | BD21: 0 | BE21: 0 | BF21: 0 | BG21: 0 | BH21: 0 | BI21: 0 | BJ21: 0 | BK21: 0 | BL21: 0 | BM21: 0 | BN21: 0 | BO21: 0 | BP21: 0 | BQ21: 0 | BR21: =+IF($A21="","",IF($D21=BR$17,$B21+IF(MONTH($B$8)-MONTH($B$7)+$E$16=BQ$16,$C21,0),0)) -> 0 | BS21: 0 | BT21: 0 | BU21: 0 | BV21: 0 | BW21: 0 | BX21: 0 | BY21: 0 | BZ21: 0 | CA21: 0 | CB21: 0 | CC21: 0 | CD21: 0 | CE21: 0 | CF21: 0 | CG21: 0 | CH21: 0 | CI21: 0 | CJ21: 0 | CK21: 0 | CL21: 0 | CM21: 0 | CN21: 0 | CO21: 0 | CP21: 0 | CQ21: 0 | CR21: 0 | CS21: 0 | CT21: 0 | CU21: 0 | CV21: 0 | CW21: 0 | CX21: =+IF($A21="","",IF($D21=CX$17,$B21+IF(MONTH($B$8)-MONTH($B$7)+$E$16=CW$16,$C21,0),0)) -> 0 | CY21: 0 | CZ21: 0 | DA21: 0 | DB21: 0 | DC21: 0 | DD21: 0 | DE21: 0 | DF21: 0 | DG21: 0 | DH21: 0 | DI21: 0 | DJ21: 0 | DK21: 0 | DL21: 0 | DM21: 0 | DN21: 0 | DO21: 0 | DP21: 0 | DQ21: 0 | DR21: 0 | DS21: 0 | DT21: 0 | DU21: 0 | DV21: =+IF($A21="","",IF($D21=DV$17,$B21+IF(MONTH($B$8)-MONTH($B$7)+$E$16=DU$16,$C21,0),0)) -> 0 | DW21: =+IF($A21="","",IF($D21=DW$17,$B21+IF(MONTH($B$8)-MONTH($B$7)+$E$16=DV$16,$C21,0),0)) -> 0 | DX21: =+IF($A21="","",IF($D21=DX$17,$B21+IF(MONTH($B$8)-MONTH($B$7)+$E$16=DW$16,$C21,0),0)) -> 0 | DY21: =+IF($A21="","",IF($D21=DY$17,$B21+IF(MONTH($B$8)-MONTH($B$7)+$E$16=DX$16,$C21,0),0)) -> 0 | DZ21: =+IF($A21="","",IF($D21=DZ$17,$B21+IF(MONTH($B$8)-MONTH($B$7)+$E$16=DY$16,$C21,0),0)) -> 0 | EA21: =+IF($A21="","",IF($D21=EA$17,$B21+IF(MONTH($B$8)-MONTH($B$7)+$E$16=DZ$16,$C21,0),0)) -> 0 | EB21: =+IF($A21="","",IF($D21=EB$17,$B21+IF(MONTH($B$8)-MONTH($B$7)+$E$16=EA$16,$C21,0),0)) -> 0 | EC21: =+IF($A21="","",IF($D21=EC$17,$B21+IF(MONTH($B$8)-MONTH($B$7)+$E$16=EB$16,$C21,0),0)) -> 0 | ED21: =+IF($A21="","",IF($D21=ED$17,$B21+IF(MONTH($B$8)-MONTH($B$7)+$E$16=EC$16,$C21,0),0)) -> 0 | EE21: =+IF($A21="","",IF($D21=EE$17,$B21+IF(MONTH($B$8)-MONTH($B$7)+$E$16=ED$16,$C21,0),0)) -> 0 | EF21: =+IF($A21="","",IF($D21=EF$17,$B21+IF(MONTH($B$8)-MONTH($B$7)+$E$16=EE$16,$C21,0),0)) -> 0 | EG21: =+IF($A21="","",IF($D21=EG$17,$B21+IF(MONTH($B$8)-MONTH($B$7)+$E$16=EF$16,$C21,0),0)) -> 0 | EH21: =+IF($A21="","",IF($D21=EH$17,$B21+IF(MONTH($B$8)-MONTH($B$7)+$E$16=EG$16,$C21,0),0)) -> 0 | EI21: =+IF($A21="","",IF($D21=EI$17,$B21+IF(MONTH($B$8)-MONTH($B$7)+$E$16=EH$16,$C21,0),0)) -> 0 | EJ21: =+IF($A21="","",IF($D21=EJ$17,$B21+IF(MONTH($B$8)-MONTH($B$7)+$E$16=EI$16,$C21,0),0)) -> 0 | EK21: =+IF($A21="","",IF($D21=EK$17,$B21+IF(MONTH($B$8)-MONTH($B$7)+$E$16=EJ$16,$C21,0),0)) -> 0 | EL21: =+IF($A21="","",IF($D21=EL$17,$B21+IF(MONTH($B$8)-MONTH($B$7)+$E$16=EK$16,$C21,0),0)) -> 0 | EM21: =+IF($A21="","",IF($D21=EM$17,$B21+IF(MONTH($B$8)-MONTH($B$7)+$E$16=EL$16,$C21,0),0)) -> 0 | EN21: =+IF($A21="","",IF($D21=EN$17,$B21+IF(MONTH($B$8)-MONTH($B$7)+$E$16=EM$16,$C21,0),0)) -> 0 | EO21: =+IF($A21="","",IF($D21=EO$17,$B21+IF(MONTH($B$8)-MONTH($B$7)+$E$16=EN$16,$C21,0),0)) -> 0 | EP21: =+IF($A21="","",IF($D21=EP$17,$B21+IF(MONTH($B$8)-MONTH($B$7)+$E$16=EO$16,$C21,0),0)) -> 0 | EQ21: =+IF($A21="","",IF($D21=EQ$17,$B21+IF(MONTH($B$8)-MONTH($B$7)+$E$16=EP$16,$C21,0),0)) -> 0 | ER21: =+IF($A21="","",IF($D21=ER$17,$B21+IF(MONTH($B$8)-MONTH($B$7)+$E$16=EQ$16,$C21,0),0)) -> 0 | ES21: =+IF($A21="","",IF($D21=ES$17,$B21+IF(MONTH($B$8)-MONTH($B$7)+$E$16=ER$16,$C21,0),0)) -> 0 | ET21: =+IF($A21="","",IF($D21=ET$17,$B21+IF(MONTH($B$8)-MONTH($B$7)+$E$16=ES$16,$C21,0),0)) -> 0 | EU21: =+IF($A21="","",IF($D21=EU$17,$B21+IF(MONTH($B$8)-MONTH($B$7)+$E$16=ET$16,$C21,0),0)) -> 0 | EV21: =+IF($A21="","",IF($D21=EV$17,$B21+IF(MONTH($B$8)-MONTH($B$7)+$E$16=EU$16,$C21,0),0)) -> 0 | EW21: =+IF($A21="","",IF($D21=EW$17,$B21+IF(MONTH($B$8)-MONTH($B$7)+$E$16=EV$16,$C21,0),0)) -> 0 | EX21: =+IF($A21="","",IF($D21=EX$17,$B21+IF(MONTH($B$8)-MONTH($B$7)+$E$16=EW$16,$C21,0),0)) -> 0 | EY21: =+IF($A21="","",IF($D21=EY$17,$B21+IF(MONTH($B$8)-MONTH($B$7)+$E$16=EX$16,$C21,0),0)) -> 0 | EZ21: =+IF($A21="","",IF($D21=EZ$17,$B21+IF(MONTH($B$8)-MONTH($B$7)+$E$16=EY$16,$C21,0),0)) -> 0 | FA21: =+IF($A21="","",IF($D21=FA$17,$B21+IF(MONTH($B$8)-MONTH($B$7)+$E$16=EZ$16,$C21,0),0)) -> 0 | FB21: =+IF($A21="","",IF($D21=FB$17,$B21+IF(MONTH($B$8)-MONTH($B$7)+$E$16=FA$16,$C21,0),0)) -> 0 | FC21: =+IF($A21="","",IF($D21=FC$17,$B21+IF(MONTH($B$8)-MONTH($B$7)+$E$16=FB$16,$C21,0),0)) -> 0 | FD21: =+IF($A21="","",IF($D21=FD$17,$B21+IF(MONTH($B$8)-MONTH($B$7)+$E$16=FC$16,$C21,0),0)) -> 0 | FE21: =+IF($A21="","",IF($D21=FE$17,$B21+IF(MONTH($B$8)-MONTH($B$7)+$E$16=FD$16,$C21,0),0)) -> 0 | FF21: =+IF($A21="","",IF($D21=FF$17,$B21+IF(MONTH($B$8)-MONTH($B$7)+$E$16=FE$16,$C21,0),0)) -> 0 | FG21: =+IF($A21="","",IF($D21=FG$17,$B21+IF(MONTH($B$8)-MONTH($B$7)+$E$16=FF$16,$C21,0),0)) -> 0 | FH21: =+IF($A21="","",IF($D21=FH$17,$B21+IF(MONTH($B$8)-MONTH($B$7)+$E$16=FG$16,$C21,0),0)) -> 0 | FI21: =+IF($A21="","",IF($D21=FI$17,$B21+IF(MONTH($B$8)-MONTH($B$7)+$E$16=FH$16,$C21,0),0)) -> 0 | FJ21: =+IF($A21="","",IF($D21=FJ$17,$B21+IF(MONTH($B$8)-MONTH($B$7)+$E$16=FI$16,$C21,0),0)) -> 0 | FK21: =+IF($A21="","",IF($D21=FK$17,$B21+IF(MONTH($B$8)-MONTH($B$7)+$E$16=FJ$16,$C21,0),0)) -> 0 | FL21: =+IF($A21="","",IF($D21=FL$17,$B21+IF(MONTH($B$8)-MONTH($B$7)+$E$16=FK$16,$C21,0),0)) -> 0 | FM21: =+IF($A21="","",IF($D21=FM$17,$B21+IF(MONTH($B$8)-MONTH($B$7)+$E$16=FL$16,$C21,0),0)) -> 0 | FN21: =+IF($A21="","",IF($D21=FN$17,$B21+IF(MONTH($B$8)-MONTH($B$7)+$E$16=FM$16,$C21,0),0)) -> 0 | FO21: =+IF($A21="","",IF($D21=FO$17,$B21+IF(MONTH($B$8)-MONTH($B$7)+$E$16=FN$16,$C21,0),0)) -> 0 | FP21: =+IF($A21="","",IF($D21=FP$17,$B21+IF(MONTH($B$8)-MONTH($B$7)+$E$16=FO$16,$C21,0),0)) -> 0 | FQ21: =+IF($A21="","",IF($D21=FQ$17,$B21+IF(MONTH($B$8)-MONTH($B$7)+$E$16=FP$16,$C21,0),0)) -> 0 | FR21: =+IF($A21="","",IF($D21=FR$17,$B21+IF(MONTH($B$8)-MONTH($B$7)+$E$16=FQ$16,$C21,0),0)) -> 0 | FS21: =+IF($A21="","",IF($D21=FS$17,$B21+IF(MONTH($B$8)-MONTH($B$7)+$E$16=FR$16,$C21,0),0)) -> 0 | FT21: =+IF($A21="","",IF($D21=FT$17,$B21+IF(MONTH($B$8)-MONTH($B$7)+$E$16=FS$16,$C21,0),0)) -> 0 | FU21: =+IF($A21="","",IF($D21=FU$17,$B21+IF(MONTH($B$8)-MONTH($B$7)+$E$16=FT$16,$C21,0),0)) -> 0 | FV21: =+IF($A21="","",IF($D21=FV$17,$B21+IF(MONTH($B$8)-MONTH($B$7)+$E$16=FU$16,$C21,0),0)) -> 0 | FW21: =+IF($A21="","",IF($D21=FW$17,$B21+IF(MONTH($B$8)-MONTH($B$7)+$E$16=FV$16,$C21,0),0)) -> 0 | FX21: =+IF($A21="","",IF($D21=FX$17,$B21+IF(MONTH($B$8)-MONTH($B$7)+$E$16=FW$16,$C21,0),0)) -> 0 | FY21: =+IF($A21="","",IF($D21=FY$17,$B21+IF(MONTH($B$8)-MONTH($B$7)+$E$16=FX$16,$C21,0),0)) -> 0 | FZ21: =+IF($A21="","",IF($D21=FZ$17,$B21+IF(MONTH($B$8)-MONTH($B$7)+$E$16=FY$16,$C21,0),0)) -> 0 | GA21: =+IF($A21="","",IF($D21=GA$17,$B21+IF(MONTH($B$8)-MONTH($B$7)+$E$16=FZ$16,$C21,0),0)) -> 0 | GB21: =+IF($A21="","",IF($D21=GB$17,$B21+IF(MONTH($B$8)-MONTH($B$7)+$E$16=GA$16,$C21,0),0)) -> 0 | GC21: =+IF($A21="","",IF($D21=GC$17,$B21+IF(MONTH($B$8)-MONTH($B$7)+$E$16=GB$16,$C21,0),0)) -> 0 | GD21: =+IF($A21="","",IF($D21=GD$17,$B21+IF(MONTH($B$8)-MONTH($B$7)+$E$16=GC$16,$C21,0),0)) -> 0 | GE21: =+IF($A21="","",IF($D21=GE$17,$B21+IF(MONTH($B$8)-MONTH($B$7)+$E$16=GD$16,$C21,0),0)) -> 0 | GF21: =+IF($A21="","",IF($D21=GF$17,$B21+IF(MONTH($B$8)-MONTH($B$7)+$E$16=GE$16,$C21,0),0)) -> 0 | GG21: =+IF($A21="","",IF($D21=GG$17,$B21+IF(MONTH($B$8)-MONTH($B$7)+$E$16=GF$16,$C21,0),0)) -> 0 | GH21: =+IF($A21="","",IF($D21=GH$17,$B21+IF(MONTH($B$8)-MONTH($B$7)+$E$16=GG$16,$C21,0),0)) -> 0 | GI21: =+IF($A21="","",IF($D21=GI$17,$B21+IF(MONTH($B$8)-MONTH($B$7)+$E$16=GH$16,$C21,0),0)) -> 0 | GJ21: =+IF($A21="","",IF($D21=GJ$17,$B21+IF(MONTH($B$8)-MONTH($B$7)+$E$16=GI$16,$C21,0),0)) -> 0 | GK21: =+IF($A21="","",IF($D21=GK$17,$B21+IF(MONTH($B$8)-MONTH($B$7)+$E$16=GJ$16,$C21,0),0)) -> 0 | GL21: =+IF($A21="","",IF($D21=GL$17,$B21+IF(MONTH($B$8)-MONTH($B$7)+$E$16=GK$16,$C21,0),0)) -> 0 | GM21: =+IF($A21="","",IF($D21=GM$17,$B21+IF(MONTH($B$8)-MONTH($B$7)+$E$16=GL$16,$C21,0),0)) -> 0 | GN21: =+IF($A21="","",IF($D21=GN$17,$B21+IF(MONTH($B$8)-MONTH($B$7)+$E$16=GM$16,$C21,0),0)) -> 0 | GO21: =+IF($A21="","",IF($D21=GO$17,$B21+IF(MONTH($B$8)-MONTH($B$7)+$E$16=GN$16,$C21,0),0)) -> 0 | GP21: =+IF($A21="","",IF($D21=GP$17,$B21+IF(MONTH($B$8)-MONTH($B$7)+$E$16=GO$16,$C21,0),0)) -> 0 | GQ21: =+IF($A21="","",IF($D21=GQ$17,$B21+IF(MONTH($B$8)-MONTH($B$7)+$E$16=GP$16,$C21,0),0)) -> 0 | GR21: =+IF($A21="","",IF($D21=GR$17,$B21+IF(MONTH($B$8)-MONTH($B$7)+$E$16=GQ$16,$C21,0),0)) -> 0 | GS21: =+IF($A21="","",IF($D21=GS$17,$B21+IF(MONTH($B$8)-MONTH($B$7)+$E$16=GR$16,$C21,0),0)) -> 0 | GT21: =+IF($A21="","",IF($D21=GT$17,$B21+IF(MONTH($B$8)-MONTH($B$7)+$E$16=GS$16,$C21,0),0)) -> 0 | GU21: =+IF($A21="","",IF($D21=GU$17,$B21+IF(MONTH($B$8)-MONTH($B$7)+$E$16=GT$16,$C21,0),0)) -> 0 | GV21: =+IF($A21="","",IF($D21=GV$17,$B21+IF(MONTH($B$8)-MONTH($B$7)+$E$16=GU$16,$C21,0),0)) -> 0 | GW21: =+IF($A21="","",IF($D21=GW$17,$B21+IF(MONTH($B$8)-MONTH($B$7)+$E$16=GV$16,$C21,0),0)) -> 0 | GX21: =+IF($A21="","",IF($D21=GX$17,$B21+IF(MONTH($B$8)-MONTH($B$7)+$E$16=GW$16,$C21,0),0)) -> 0 | GY21: =+IF($A21="","",IF($D21=GY$17,$B21+IF(MONTH($B$8)-MONTH($B$7)+$E$16=GX$16,$C21,0),0)) -> 0 | GZ21: =+IF($A21="","",IF($D21=GZ$17,$B21+IF(MONTH($B$8)-MONTH($B$7)+$E$16=GY$16,$C21,0),0)) -> 0 | HA21: =+IF($A21="","",IF($D21=HA$17,$B21+IF(MONTH($B$8)-MONTH($B$7)+$E$16=GZ$16,$C21,0),0)) -> 0 | HB21: =+IF($A21="","",IF($D21=HB$17,$B21+IF(MONTH($B$8)-MONTH($B$7)+$E$16=HA$16,$C21,0),0)) -> 0 | HC21: =+IF($A21="","",IF($D21=HC$17,$B21+IF(MONTH($B$8)-MONTH($B$7)+$E$16=HB$16,$C21,0),0)) -> 0 | HD21: =+IF($A21="","",IF($D21=HD$17,$B21+IF(MONTH($B$8)-MONTH($B$7)+$E$16=HC$16,$C21,0),0)) -> 0 | HE21: =+IF($A21="","",IF($D21=HE$17,$B21+IF(MONTH($B$8)-MONTH($B$7)+$E$16=HD$16,$C21,0),0)) -> 0 | HF21: =+IF($A21="","",IF($D21=HF$17,$B21+IF(MONTH($B$8)-MONTH($B$7)+$E$16=HE$16,$C21,0),0)) -> 0 | HG21: =+IF($A21="","",IF($D21=HG$17,$B21+IF(MONTH($B$8)-MONTH($B$7)+$E$16=HF$16,$C21,0),0)) -> 0 | HH21: =+IF($A21="","",IF($D21=HH$17,$B21+IF(MONTH($B$8)-MONTH($B$7)+$E$16=HG$16,$C21,0),0)) -> 0 | HI21: =+IF($A21="","",IF($D21=HI$17,$B21+IF(MONTH($B$8)-MONTH($B$7)+$E$16=HH$16,$C21,0),0)) -> 0 | HJ21: =+IF($A21="","",IF($D21=HJ$17,$B21+IF(MONTH($B$8)-MONTH($B$7)+$E$16=HI$16,$C21,0),0)) -> 0 | HK21: =+IF($A21="","",IF($D21=HK$17,$B21+IF(MONTH($B$8)-MONTH($B$7)+$E$16=HJ$16,$C21,0),0)) -> 0 | HL21: =+IF($A21="","",IF($D21=HL$17,$B21+IF(MONTH($B$8)-MONTH($B$7)+$E$16=HK$16,$C21,0),0)) -> 0 | HM21: =+IF($A21="","",IF($D21=HM$17,$B21+IF(MONTH($B$8)-MONTH($B$7)+$E$16=HL$16,$C21,0),0)) -> 0 | HN21: =+IF($A21="","",IF($D21=HN$17,$B21+IF(MONTH($B$8)-MONTH($B$7)+$E$16=HM$16,$C21,0),0)) -> 0 | HO21: =+IF($A21="","",IF($D21=HO$17,$B21+IF(MONTH($B$8)-MONTH($B$7)+$E$16=HN$16,$C21,0),0)) -> 0 | HP21: =+IF($A21="","",IF($D21=HP$17,$B21+IF(MONTH($B$8)-MONTH($B$7)+$E$16=HO$16,$C21,0),0)) -> 0 | HQ21: =+IF($A21="","",IF($D21=HQ$17,$B21+IF(MONTH($B$8)-MONTH($B$7)+$E$16=HP$16,$C21,0),0)) -> 0 | HR21: =+IF($A21="","",IF($D21=HR$17,$B21+IF(MONTH($B$8)-MONTH($B$7)+$E$16=HQ$16,$C21,0),0)) -> 0 | HS21: =+IF($A21="","",IF($D21=HS$17,$B21+IF(MONTH($B$8)-MONTH($B$7)+$E$16=HR$16,$C21,0),0)) -> 0 | HT21: =+IF($A21="","",IF($D21=HT$17,$B21+IF(MONTH($B$8)-MONTH($B$7)+$E$16=HS$16,$C21,0),0)) -> 0 | HU21: =+IF($A21="","",IF($D21=HU$17,$B21+IF(MONTH($B$8)-MONTH($B$7)+$E$16=HT$16,$C21,0),0)) -> 0 | HV21: =+IF($A21="","",IF($D21=HV$17,$B21+IF(MONTH($B$8)-MONTH($B$7)+$E$16=HU$16,$C21,0),0)) -> 0 | HW21: =+IF($A21="","",IF($D21=HW$17,$B21+IF(MONTH($B$8)-MONTH($B$7)+$E$16=HV$16,$C21,0),0)) -> 0 | HX21: =+IF($A21="","",IF($D21=HX$17,$B21+IF(MONTH($B$8)-MONTH($B$7)+$E$16=HW$16,$C21,0),0)) -> 0 | HY21: =+IF($A21="","",IF($D21=HY$17,$B21+IF(MONTH($B$8)-MONTH($B$7)+$E$16=HX$16,$C21,0),0)) -> 0 | HZ21: =+IF($A21="","",IF($D21=HZ$17,$B21+IF(MONTH($B$8)-MONTH($B$7)+$E$16=HY$16,$C21,0),0)) -> 0 | IA21: =+IF($A21="","",IF($D21=IA$17,$B21+IF(MONTH($B$8)-MONTH($B$7)+$E$16=HZ$16,$C21,0),0)) -> 0 | IB21: =+IF($A21="","",IF($D21=IB$17,$B21+IF(MONTH($B$8)-MONTH($B$7)+$E$16=IA$16,$C21,0),0)) -> 0 | IC21: =+IF($A21="","",IF($D21=IC$17,$B21+IF(MONTH($B$8)-MONTH($B$7)+$E$16=IB$16,$C21,0),0)) -> 0 | ID21: =+IF($A21="","",IF($D21=ID$17,$B21+IF(MONTH($B$8)-MONTH($B$7)+$E$16=IC$16,$C21,0),0)) -> 0 | IE21: =+IF($A21="","",IF($D21=IE$17,$B21+IF(MONTH($B$8)-MONTH($B$7)+$E$16=ID$16,$C21,0),0)) -> 0 | IF21: =+IF($A21="","",IF($D21=IF$17,$B21+IF(MONTH($B$8)-MONTH($B$7)+$E$16=IE$16,$C21,0),0)) -> 0 | IG21: =+IF($A21="","",IF($D21=IG$17,$B21+IF(MONTH($B$8)-MONTH($B$7)+$E$16=IF$16,$C21,0),0)) -> 0 | IH21: =+IF($A21="","",IF($D21=IH$17,$B21+IF(MONTH($B$8)-MONTH($B$7)+$E$16=IG$16,$C21,0),0)) -> 0 | II21: =+IF($A21="","",IF($D21=II$17,$B21+IF(MONTH($B$8)-MONTH($B$7)+$E$16=IH$16,$C21,0),0)) -> 0 | IJ21: =+IF($A21="","",IF($D21=IJ$17,$B21+IF(MONTH($B$8)-MONTH($B$7)+$E$16=II$16,$C21,0),0)) -> 0 | IK21: =+IF($A21="","",IF($D21=IK$17,$B21+IF(MONTH($B$8)-MONTH($B$7)+$E$16=IJ$16,$C21,0),0)) -> 0 | IL21: =+IF($A21="","",IF($D21=IL$17,$B21+IF(MONTH($B$8)-MONTH($B$7)+$E$16=IK$16,$C21,0),0)) -> 0 | IM21: =IF(B21<>"","CAPEX","OPEX") -> CAPEX
A22: Antena De Transmision | B22: =+SUMIFS(ValoresMercado,Conceptos,A22,Relacion,DiametroAntenaMts) -> 5066562.251 | E22: 60 | F22: 5066562.251 | G22: 0 | H22: 0 | I22: 0 | J22: 0 | K22: 0 | L22: 0 | M22: 0 | N22: 0 | O22: 0 | P22: 0 | Q22: 0 | R22: 0 | S22: 0 | T22: 0 | U22: 0 | V22: 0 | W22: 0 | X22: 0 | Y22: 0 | Z22: 0 | AA22: 0 | AB22: 0 | AC22: 0 | AD22: 0 | AE22: 0 | AF22: 0 | AG22: 0 | AH22: 0 | AI22: 0 | AJ22: 0 | AK22: 0 | AL22: =+IF($A22="","",IF($D22=AL$17,$B22+IF(MONTH($B$8)-MONTH($B$7)+$E$16=AK$16,$C22,0),0)) -> 0 | AM22: 0 | AN22: 0 | AO22: 0 | AP22: 0 | AQ22: 0 | AR22: 0 | AS22: 0 | AT22: 0 | AU22: 0 | AV22: 0 | AW22: 0 | AX22: 0 | AY22: 0 | AZ22: 0 | BA22: 0 | BB22: 0 | BC22: 0 | BD22: 0 | BE22: 0 | BF22: 0 | BG22: 0 | BH22: 0 | BI22: 0 | BJ22: 0 | BK22: 0 | BL22: 0 | BM22: 0 | BN22: 0 | BO22: 0 | BP22: 0 | BQ22: 0 | BR22: =+IF($A22="","",IF($D22=BR$17,$B22+IF(MONTH($B$8)-MONTH($B$7)+$E$16=BQ$16,$C22,0),0)) -> 0 | BS22: 0 | BT22: 0 | BU22: 0 | BV22: 0 | BW22: 0 | BX22: 0 | BY22: 0 | BZ22: 0 | CA22: 0 | CB22: 0 | CC22: 0 | CD22: 0 | CE22: 0 | CF22: 0 | CG22: 0 | CH22: 0 | CI22: 0 | CJ22: 0 | CK22: 0 | CL22: 0 | CM22: 0 | CN22: 0 | CO22: 0 | CP22: 0 | CQ22: 0 | CR22: 0 | CS22: 0 | CT22: 0 | CU22: 0 | CV22: 0 | CW22: 0 | CX22: =+IF($A22="","",IF($D22=CX$17,$B22+IF(MONTH($B$8)-MONTH($B$7)+$E$16=CW$16,$C22,0),0)) -> 0 | CY22: 0 | CZ22: 0 | DA22: 0 | DB22: 0 | DC22: 0 | DD22: 0 | DE22: 0 | DF22: 0 | DG22: 0 | DH22: 0 | DI22: 0 | DJ22: 0 | DK22: 0 | DL22: 0 | DM22: 0 | DN22: 0 | DO22: 0 | DP22: 0 | DQ22: 0 | DR22: 0 | DS22: 0 | DT22: 0 | DU22: 0 | DV22: 0 | DW22: 0 | DX22: 0 | DY22: 0 | DZ22: 0 | EA22: 0 | EB22: 0 | EC22: 0 | ED22: 0 | EE22: 0 | EF22: 0 | EG22: 0 | EH22: 0 | EI22: 0 | EJ22: 0 | EK22: 0 | EL22: 0 | EM22: 0 | EN22: 0 | EO22: 0 | EP22: 0 | EQ22: 0 | ER22: 0 | ES22: 0 | ET22: 0 | EU22: 0 | EV22: 0 | EW22: 0 | EX22: 0 | EY22: 0 | EZ22: 0 | FA22: 0 | FB22: 0 | FC22: 0 | FD22: 0 | FE22: 0 | FF22: 0 | FG22: 0 | FH22: 0 | FI22: 0 | FJ22: 0 | FK22: 0 | FL22: 0 | FM22: 0 | FN22: 0 | FO22: 0 | FP22: 0 | FQ22: 0 | FR22: 0 | FS22: 0 | FT22: 0 | FU22: 0 | FV22: 0 | FW22: 0 | FX22: 0 | FY22: 0 | FZ22: 0 | GA22: 0 | GB22: 0 | GC22: 0 | GD22: 0 | GE22: 0 | GF22: 0 | GG22: 0 | GH22: 0 | GI22: 0 | GJ22: 0 | GK22: 0 | GL22: 0 | GM22: 0 | GN22: 0 | GO22: 0 | GP22: 0 | GQ22: 0 | GR22: 0 | GS22: 0 | GT22: 0 | GU22: 0 | GV22: 0 | GW22: 0 | GX22: 0 | GY22: 0 | GZ22: 0 | HA22: 0 | HB22: 0 | HC22: 0 | HD22: 0 | HE22: 0 | HF22: 0 | HG22: 0 | HH22: 0 | HI22: 0 | HJ22: 0 | HK22: 0 | HL22: 0 | HM22: 0 | HN22: 0 | HO22: 0 | HP22: 0 | HQ22: 0 | HR22: 0 | HS22: 0 | HT22: 0 | HU22: 0 | HV22: 0 | HW22: 0 | HX22: 0 | HY22: 0 | HZ22: 0 | IA22: 0 | IB22: 0 | IC22: 0 | ID22: 0 | IE22: 0 | IF22: 0 | IG22: 0 | IH22: 0 | II22: 0 | IJ22: 0 | IK22: 0 | IL22: 0 | IM22: CAPEX
A23: Equipos terminales enlace MW - HTSB | B23: =+SUMIFS(ValoresMercado,Conceptos,A23,Detalle,MWEquiposHTSB) -> 99081422.51 | E23: 60 | F23: =+IF($A23="","",IF($D23=F$17,$B23+IF(MONTH($B$8)-MONTH($B$7)+$E$16=E$16,$C23,0),0)) -> 99081422.51 | G23: 0 | H23: 0 | I23: 0 | J23: 0 | K23: 0 | L23: 0 | M23: 0 | N23: 0 | O23: 0 | P23: 0 | Q23: 0 | R23: 0 | S23: 0 | T23: 0 | U23: 0 | V23: 0 | W23: 0 | X23: 0 | Y23: 0 | Z23: 0 | AA23: 0 | AB23: 0 | AC23: 0 | AD23: 0 | AE23: 0 | AF23: 0 | AG23: 0 | AH23: 0 | AI23: 0 | AJ23: 0 | AK23: 0 | AL23: =+IF($A23="","",IF($D23=AL$17,$B23+IF(MONTH($B$8)-MONTH($B$7)+$E$16=AK$16,$C23,0),0)) -> 0 | AM23: 0 | AN23: 0 | AO23: 0 | AP23: 0 | AQ23: 0 | AR23: 0 | AS23: 0 | AT23: 0 | AU23: 0 | AV23: 0 | AW23: 0 | AX23: 0 | AY23: 0 | AZ23: 0 | BA23: 0 | BB23: 0 | BC23: 0 | BD23: 0 | BE23: 0 | BF23: 0 | BG23: 0 | BH23: 0 | BI23: 0 | BJ23: 0 | BK23: 0 | BL23: 0 | BM23: 0 | BN23: 0 | BO23: 0 | BP23: 0 | BQ23: 0 | BR23: =+IF($A23="","",IF($D23=BR$17,$B23+IF(MONTH($B$8)-MONTH($B$7)+$E$16=BQ$16,$C23,0),0)) -> 0 | BS23: 0 | BT23: 0 | BU23: 0 | BV23: 0 | BW23: 0 | BX23: 0 | BY23: 0 | BZ23: 0 | CA23: 0 | CB23: 0 | CC23: 0 | CD23: 0 | CE23: 0 | CF23: 0 | CG23: 0 | CH23: 0 | CI23: 0 | CJ23: 0 | CK23: 0 | CL23: 0 | CM23: 0 | CN23: 0 | CO23: 0 | CP23: 0 | CQ23: 0 | CR23: 0 | CS23: 0 | CT23: 0 | CU23: 0 | CV23: 0 | CW23: 0 | CX23: =+IF($A23="","",IF($D23=CX$17,$B23+IF(MONTH($B$8)-MONTH($B$7)+$E$16=CW$16,$C23,0),0)) -> 0 | CY23: 0 | CZ23: 0 | DA23: 0 | DB23: 0 | DC23: 0 | DD23: 0 | DE23: 0 | DF23: 0 | DG23: 0 | DH23: 0 | DI23: 0 | DJ23: 0 | DK23: 0 | DL23: 0 | DM23: 0 | DN23: 0 | DO23: 0 | DP23: 0 | DQ23: 0 | DR23: 0 | DS23: 0 | DT23: 0 | DU23: 0 | DV23: 0 | DW23: 0 | DX23: 0 | DY23: 0 | DZ23: 0 | EA23: 0 | EB23: 0 | EC23: 0 | ED23: 0 | EE23: 0 | EF23: 0 | EG23: 0 | EH23: 0 | EI23: 0 | EJ23: 0 | EK23: 0 | EL23: 0 | EM23: 0 | EN23: 0 | EO23: 0 | EP23: 0 | EQ23: 0 | ER23: 0 | ES23: 0 | ET23: 0 | EU23: 0 | EV23: 0 | EW23: 0 | EX23: 0 | EY23: 0 | EZ23: 0 | FA23: 0 | FB23: 0 | FC23: 0 | FD23: 0 | FE23: 0 | FF23: 0 | FG23: 0 | FH23: 0 | FI23: 0 | FJ23: 0 | FK23: 0 | FL23: 0 | FM23: 0 | FN23: 0 | FO23: 0 | FP23: 0 | FQ23: 0 | FR23: 0 | FS23: 0 | FT23: 0 | FU23: 0 | FV23: 0 | FW23: 0 | FX23: 0 | FY23: 0 | FZ23: 0 | GA23: 0 | GB23: 0 | GC23: 0 | GD23: 0 | GE23: 0 | GF23: 0 | GG23: 0 | GH23: 0 | GI23: 0 | GJ23: 0 | GK23: 0 | GL23: 0 | GM23: 0 | GN23: 0 | GO23: 0 | GP23: 0 | GQ23: 0 | GR23: 0 | GS23: 0 | GT23: 0 | GU23: 0 | GV23: 0 | GW23: 0 | GX23: 0 | GY23: 0 | GZ23: 0 | HA23: 0 | HB23: 0 | HC23: 0 | HD23: 0 | HE23: 0 | HF23: 0 | HG23: 0 | HH23: 0 | HI23: 0 | HJ23: 0 | HK23: 0 | HL23: 0 | HM23: 0 | HN23: 0 | HO23: 0 | HP23: 0 | HQ23: 0 | HR23: 0 | HS23: 0 | HT23: 0 | HU23: 0 | HV23: 0 | HW23: 0 | HX23: 0 | HY23: 0 | HZ23: 0 | IA23: 0 | IB23: 0 | IC23: 0 | ID23: 0 | IE23: 0 | IF23: 0 | IG23: 0 | IH23: 0 | II23: 0 | IJ23: 0 | IK23: 0 | IL23: 0 | IM23: CAPEX
A24: Instalación Enodeb Tipo1 | B24: =+SUMIFS(ValoresMercado,Conceptos,A24,Relacion,TmcBw,Tipo,TipoEspecifico) -> 0 | E24: 60 | F24: =+IF($A24="","",IF($D24=F$17,$B24+IF(MONTH($B$8)-MONTH($B$7)+$E$16=E$16,$C24,0),0)) -> 0 | G24: 0 | H24: 0 | I24: 0 | J24: 0 | K24: 0 | L24: 0 | M24: 0 | N24: 0 | O24: 0 | P24: 0 | Q24: 0 | R24: 0 | S24: 0 | T24: 0 | U24: 0 | V24: 0 | W24: 0 | X24: 0 | Y24: 0 | Z24: 0 | AA24: 0 | AB24: 0 | AC24: 0 | AD24: 0 | AE24: 0 | AF24: 0 | AG24: 0 | AH24: 0 | AI24: 0 | AJ24: 0 | AK24: 0 | AL24: =+IF($A24="","",IF($D24=AL$17,$B24+IF(MONTH($B$8)-MONTH($B$7)+$E$16=AK$16,$C24,0),0)) -> 0 | AM24: 0 | AN24: 0 | AO24: 0 | AP24: 0 | AQ24: 0 | AR24: 0 | AS24: 0 | AT24: 0 | AU24: 0 | AV24: 0 | AW24: 0 | AX24: 0 | AY24: 0 | AZ24: 0 | BA24: 0 | BB24: 0 | BC24: 0 | BD24: 0 | BE24: 0 | BF24: 0 | BG24: 0 | BH24: 0 | BI24: 0 | BJ24: 0 | BK24: 0 | BL24: 0 | BM24: 0 | BN24: 0 | BO24: 0 | BP24: 0 | BQ24: 0 | BR24: =+IF($A24="","",IF($D24=BR$17,$B24+IF(MONTH($B$8)-MONTH($B$7)+$E$16=BQ$16,$C24,0),0)) -> 0 | BS24: 0 | BT24: 0 | BU24: 0 | BV24: 0 | BW24: 0 | BX24: 0 | BY24: 0 | BZ24: 0 | CA24: 0 | CB24: 0 | CC24: 0 | CD24: 0 | CE24: 0 | CF24: 0 | CG24: 0 | CH24: 0 | CI24: 0 | CJ24: 0 | CK24: 0 | CL24: 0 | CM24: 0 | CN24: 0 | CO24: 0 | CP24: 0 | CQ24: 0 | CR24: 0 | CS24: 0 | CT24: 0 | CU24: 0 | CV24: 0 | CW24: 0 | CX24: =+IF($A24="","",IF($D24=CX$17,$B24+IF(MONTH($B$8)-MONTH($B$7)+$E$16=CW$16,$C24,0),0)) -> 0 | CY24: 0 | CZ24: 0 | DA24: 0 | DB24: 0 | DC24: 0 | DD24: 0 | DE24: 0 | DF24: 0 | DG24: 0 | DH24: 0 | DI24: 0 | DJ24: 0 | DK24: 0 | DL24: 0 | DM24: 0 | DN24: 0 | DO24: 0 | DP24: 0 | DQ24: 0 | DR24: 0 | DS24: 0 | DT24: 0 | DU24: 0 | DV24: 0 | DW24: 0 | DX24: 0 | DY24: 0 | DZ24: 0 | EA24: 0 | EB24: 0 | EC24: 0 | ED24: 0 | EE24: 0 | EF24: 0 | EG24: 0 | EH24: 0 | EI24: 0 | EJ24: 0 | EK24: 0 | EL24: 0 | EM24: 0 | EN24: 0 | EO24: 0 | EP24: 0 | EQ24: 0 | ER24: 0 | ES24: 0 | ET24: 0 | EU24: 0 | EV24: 0 | EW24: 0 | EX24: 0 | EY24: 0 | EZ24: 0 | FA24: 0 | FB24: 0 | FC24: 0 | FD24: 0 | FE24: 0 | FF24: 0 | FG24: 0 | FH24: 0 | FI24: 0 | FJ24: 0 | FK24: 0 | FL24: 0 | FM24: 0 | FN24: 0 | FO24: 0 | FP24: 0 | FQ24: 0 | FR24: 0 | FS24: 0 | FT24: 0 | FU24: 0 | FV24: 0 | FW24: 0 | FX24: 0 | FY24: 0 | FZ24: 0 | GA24: 0 | GB24: 0 | GC24: 0 | GD24: 0 | GE24: 0 | GF24: 0 | GG24: 0 | GH24: 0 | GI24: 0 | GJ24: 0 | GK24: 0 | GL24: 0 | GM24: 0 | GN24: 0 | GO24: 0 | GP24: 0 | GQ24: 0 | GR24: 0 | GS24: 0 | GT24: 0 | GU24: 0 | GV24: 0 | GW24: 0 | GX24: 0 | GY24: 0 | GZ24: 0 | HA24: 0 | HB24: 0 | HC24: 0 | HD24: 0 | HE24: 0 | HF24: 0 | HG24: 0 | HH24: 0 | HI24: 0 | HJ24: 0 | HK24: 0 | HL24: 0 | HM24: 0 | HN24: 0 | HO24: 0 | HP24: 0 | HQ24: 0 | HR24: 0 | HS24: 0 | HT24: 0 | HU24: 0 | HV24: 0 | HW24: 0 | HX24: 0 | HY24: 0 | HZ24: 0 | IA24: 0 | IB24: 0 | IC24: 0 | ID24: 0 | IE24: 0 | IF24: 0 | IG24: 0 | IH24: 0 | II24: 0 | IJ24: 0 | IK24: 0 | IL24: 0 | IM24: CAPEX
A25: Instalación Enodeb Tipo2 | B25: =+SUMIFS(ValoresMercado,Conceptos,A25,Relacion,TmcBw,Tipo,TipoEspecifico) -> 14587755.86 | E25: 60 | F25: =+IF($A25="","",IF($D25=F$17,$B25+IF(MONTH($B$8)-MONTH($B$7)+$E$16=E$16,$C25,0),0)) -> 14587755.86 | G25: 0 | H25: 0 | I25: 0 | J25: 0 | K25: 0 | L25: 0 | M25: 0 | N25: 0 | O25: 0 | P25: 0 | Q25: 0 | R25: 0 | S25: 0 | T25: 0 | U25: 0 | V25: 0 | W25: 0 | X25: 0 | Y25: 0 | Z25: 0 | AA25: 0 | AB25: 0 | AC25: 0 | AD25: 0 | AE25: 0 | AF25: 0 | AG25: 0 | AH25: 0 | AI25: 0 | AJ25: 0 | AK25: 0 | AL25: =+IF($A25="","",IF($D25=AL$17,$B25+IF(MONTH($B$8)-MONTH($B$7)+$E$16=AK$16,$C25,0),0)) -> 0 | AM25: 0 | AN25: 0 | AO25: 0 | AP25: 0 | AQ25: 0 | AR25: 0 | AS25: 0 | AT25: 0 | AU25: 0 | AV25: 0 | AW25: 0 | AX25: 0 | AY25: 0 | AZ25: 0 | BA25: 0 | BB25: 0 | BC25: 0 | BD25: 0 | BE25: 0 | BF25: 0 | BG25: 0 | BH25: 0 | BI25: 0 | BJ25: 0 | BK25: 0 | BL25: 0 | BM25: 0 | BN25: 0 | BO25: 0 | BP25: 0 | BQ25: 0 | BR25: =+IF($A25="","",IF($D25=BR$17,$B25+IF(MONTH($B$8)-MONTH($B$7)+$E$16=BQ$16,$C25,0),0)) -> 0 | BS25: 0 | BT25: 0 | BU25: 0 | BV25: 0 | BW25: 0 | BX25: 0 | BY25: 0 | BZ25: 0 | CA25: 0 | CB25: 0 | CC25: 0 | CD25: 0 | CE25: 0 | CF25: 0 | CG25: 0 | CH25: 0 | CI25: 0 | CJ25: 0 | CK25: 0 | CL25: 0 | CM25: 0 | CN25: 0 | CO25: 0 | CP25: 0 | CQ25: 0 | CR25: 0 | CS25: 0 | CT25: 0 | CU25: 0 | CV25: 0 | CW25: 0 | CX25: =+IF($A25="","",IF($D25=CX$17,$B25+IF(MONTH($B$8)-MONTH($B$7)+$E$16=CW$16,$C25,0),0)) -> 0 | CY25: 0 | CZ25: 0 | DA25: 0 | DB25: 0 | DC25: 0 | DD25: 0 | DE25: 0 | DF25: 0 | DG25: 0 | DH25: 0 | DI25: 0 | DJ25: 0 | DK25: 0 | DL25: 0 | DM25: 0 | DN25: 0 | DO25: 0 | DP25: 0 | DQ25: 0 | DR25: 0 | DS25: 0 | DT25: 0 | DU25: 0 | DV25: 0 | DW25: 0 | DX25: 0 | DY25: 0 | DZ25: 0 | EA25: 0 | EB25: 0 | EC25: 0 | ED25: 0 | EE25: 0 | EF25: 0 | EG25: 0 | EH25: 0 | EI25: 0 | EJ25: 0 | EK25: 0 | EL25: 0 | EM25: 0 | EN25: 0 | EO25: 0 | EP25: 0 | EQ25: 0 | ER25: 0 | ES25: 0 | ET25: 0 | EU25: 0 | EV25: 0 | EW25: 0 | EX25: 0 | EY25: 0 | EZ25: 0 | FA25: 0 | FB25: 0 | FC25: 0 | FD25: 0 | FE25: 0 | FF25: 0 | FG25: 0 | FH25: 0 | FI25: 0 | FJ25: 0 | FK25: 0 | FL25: 0 | FM25: 0 | FN25: 0 | FO25: 0 | FP25: 0 | FQ25: 0 | FR25: 0 | FS25: 0 | FT25: 0 | FU25: 0 | FV25: 0 | FW25: 0 | FX25: 0 | FY25: 0 | FZ25: 0 | GA25: 0 | GB25: 0 | GC25: 0 | GD25: 0 | GE25: 0 | GF25: 0 | GG25: 0 | GH25: 0 | GI25: 0 | GJ25: 0 | GK25: 0 | GL25: 0 | GM25: 0 | GN25: 0 | GO25: 0 | GP25: 0 | GQ25: 0 | GR25: 0 | GS25: 0 | GT25: 0 | GU25: 0 | GV25: 0 | GW25: 0 | GX25: 0 | GY25: 0 | GZ25: 0 | HA25: 0 | HB25: 0 | HC25: 0 | HD25: 0 | HE25: 0 | HF25: 0 | HG25: 0 | HH25: 0 | HI25: 0 | HJ25: 0 | HK25: 0 | HL25: 0 | HM25: 0 | HN25: 0 | HO25: 0 | HP25: 0 | HQ25: 0 | HR25: 0 | HS25: 0 | HT25: 0 | HU25: 0 | HV25: 0 | HW25: 0 | HX25: 0 | HY25: 0 | HZ25: 0 | IA25: 0 | IB25: 0 | IC25: 0 | ID25: 0 | IE25: 0 | IF25: 0 | IG25: 0 | IH25: 0 | II25: 0 | IJ25: 0 | IK25: 0 | IL25: 0 | IM25: CAPEX
A26: Instalación Enodeb Tipo3 | B26: =+SUMIFS(ValoresMercado,Conceptos,A26,Relacion,TmcBw,Tipo,TipoEspecifico) -> 0 | E26: 60 | F26: =+IF($A26="","",IF($D26=F$17,$B26+IF(MONTH($B$8)-MONTH($B$7)+$E$16=E$16,$C26,0),0)) -> 0 | G26: 0 | H26: 0 | I26: 0 | J26: 0 | K26: 0 | L26: 0 | M26: 0 | N26: 0 | O26: 0 | P26: 0 | Q26: 0 | R26: 0 | S26: 0 | T26: 0 | U26: 0 | V26: 0 | W26: 0 | X26: 0 | Y26: 0 | Z26: 0 | AA26: 0 | AB26: 0 | AC26: 0 | AD26: 0 | AE26: 0 | AF26: 0 | AG26: 0 | AH26: 0 | AI26: 0 | AJ26: 0 | AK26: 0 | AL26: =+IF($A26="","",IF($D26=AL$17,$B26+IF(MONTH($B$8)-MONTH($B$7)+$E$16=AK$16,$C26,0),0)) -> 0 | AM26: 0 | AN26: 0 | AO26: 0 | AP26: 0 | AQ26: 0 | AR26: 0 | AS26: 0 | AT26: 0 | AU26: 0 | AV26: 0 | AW26: 0 | AX26: 0 | AY26: 0 | AZ26: 0 | BA26: 0 | BB26: 0 | BC26: 0 | BD26: 0 | BE26: 0 | BF26: 0 | BG26: 0 | BH26: 0 | BI26: 0 | BJ26: 0 | BK26: 0 | BL26: 0 | BM26: 0 | BN26: 0 | BO26: 0 | BP26: 0 | BQ26: 0 | BR26: =+IF($A26="","",IF($D26=BR$17,$B26+IF(MONTH($B$8)-MONTH($B$7)+$E$16=BQ$16,$C26,0),0)) -> 0 | BS26: 0 | BT26: 0 | BU26: 0 | BV26: 0 | BW26: 0 | BX26: 0 | BY26: 0 | BZ26: 0 | CA26: 0 | CB26: 0 | CC26: 0 | CD26: 0 | CE26: 0 | CF26: 0 | CG26: 0 | CH26: 0 | CI26: 0 | CJ26: 0 | CK26: 0 | CL26: 0 | CM26: 0 | CN26: 0 | CO26: 0 | CP26: 0 | CQ26: 0 | CR26: 0 | CS26: 0 | CT26: 0 | CU26: 0 | CV26: 0 | CW26: 0 | CX26: =+IF($A26="","",IF($D26=CX$17,$B26+IF(MONTH($B$8)-MONTH($B$7)+$E$16=CW$16,$C26,0),0)) -> 0 | CY26: 0 | CZ26: 0 | DA26: 0 | DB26: 0 | DC26: 0 | DD26: 0 | DE26: 0 | DF26: 0 | DG26: 0 | DH26: 0 | DI26: 0 | DJ26: 0 | DK26: 0 | DL26: 0 | DM26: 0 | DN26: 0 | DO26: 0 | DP26: 0 | DQ26: 0 | DR26: 0 | DS26: 0 | DT26: 0 | DU26: 0 | DV26: 0 | DW26: 0 | DX26: 0 | DY26: 0 | DZ26: 0 | EA26: 0 | EB26: 0 | EC26: 0 | ED26: 0 | EE26: 0 | EF26: 0 | EG26: 0 | EH26: 0 | EI26: 0 | EJ26: 0 | EK26: 0 | EL26: 0 | EM26: 0 | EN26: 0 | EO26: 0 | EP26: 0 | EQ26: 0 | ER26: 0 | ES26: 0 | ET26: 0 | EU26: 0 | EV26: 0 | EW26: 0 | EX26: 0 | EY26: 0 | EZ26: 0 | FA26: 0 | FB26: 0 | FC26: 0 | FD26: 0 | FE26: 0 | FF26: 0 | FG26: 0 | FH26: 0 | FI26: 0 | FJ26: 0 | FK26: 0 | FL26: 0 | FM26: 0 | FN26: 0 | FO26: 0 | FP26: 0 | FQ26: 0 | FR26: 0 | FS26: 0 | FT26: 0 | FU26: 0 | FV26: 0 | FW26: 0 | FX26: 0 | FY26: 0 | FZ26: 0 | GA26: 0 | GB26: 0 | GC26: 0 | GD26: 0 | GE26: 0 | GF26: 0 | GG26: 0 | GH26: 0 | GI26: 0 | GJ26: 0 | GK26: 0 | GL26: 0 | GM26: 0 | GN26: 0 | GO26: 0 | GP26: 0 | GQ26: 0 | GR26: 0 | GS26: 0 | GT26: 0 | GU26: 0 | GV26: 0 | GW26: 0 | GX26: 0 | GY26: 0 | GZ26: 0 | HA26: 0 | HB26: 0 | HC26: 0 | HD26: 0 | HE26: 0 | HF26: 0 | HG26: 0 | HH26: 0 | HI26: 0 | HJ26: 0 | HK26: 0 | HL26: 0 | HM26: 0 | HN26: 0 | HO26: 0 | HP26: 0 | HQ26: 0 | HR26: 0 | HS26: 0 | HT26: 0 | HU26: 0 | HV26: 0 | HW26: 0 | HX26: 0 | HY26: 0 | HZ26: 0 | IA26: 0 | IB26: 0 | IC26: 0 | ID26: 0 | IE26: 0 | IF26: 0 | IG26: 0 | IH26: 0 | II26: 0 | IJ26: 0 | IK26: 0 | IL26: 0 | IM26: CAPEX
A27: Licencias | B27: =+SUMIFS(ValoresMercado,Conceptos,A27,Relacion,TmcBw,RangoSectorEnodeb,SectorEnodeb) -> 35302608 | E27: 60 | F27: =+IF($A27="","",IF($D27=F$17,$B27+IF(MONTH($B$8)-MONTH($B$7)+$E$16=E$16,$C27,0),0)) -> 35302608 | G27: 0 | H27: 0 | I27: 0 | J27: 0 | K27: 0 | L27: 0 | M27: 0 | N27: 0 | O27: 0 | P27: 0 | Q27: 0 | R27: 0 | S27: 0 | T27: 0 | U27: 0 | V27: 0 | W27: 0 | X27: 0 | Y27: 0 | Z27: 0 | AA27: 0 | AB27: 0 | AC27: 0 | AD27: 0 | AE27: 0 | AF27: 0 | AG27: 0 | AH27: 0 | AI27: 0 | AJ27: 0 | AK27: 0 | AL27: =+IF($A27="","",IF($D27=AL$17,$B27+IF(MONTH($B$8)-MONTH($B$7)+$E$16=AK$16,$C27,0),0)) -> 0 | AM27: 0 | AN27: 0 | AO27: 0 | AP27: 0 | AQ27: 0 | AR27: 0 | AS27: 0 | AT27: 0 | AU27: 0 | AV27: 0 | AW27: 0 | AX27: 0 | AY27: 0 | AZ27: 0 | BA27: 0 | BB27: 0 | BC27: 0 | BD27: 0 | BE27: 0 | BF27: 0 | BG27: 0 | BH27: 0 | BI27: 0 | BJ27: 0 | BK27: 0 | BL27: 0 | BM27: 0 | BN27: 0 | BO27: 0 | BP27: 0 | BQ27: 0 | BR27: =+IF($A27="","",IF($D27=BR$17,$B27+IF(MONTH($B$8)-MONTH($B$7)+$E$16=BQ$16,$C27,0),0)) -> 0 | BS27: 0 | BT27: 0 | BU27: 0 | BV27: 0 | BW27: 0 | BX27: 0 | BY27: 0 | BZ27: 0 | CA27: 0 | CB27: 0 | CC27: 0 | CD27: 0 | CE27: 0 | CF27: 0 | CG27: 0 | CH27: 0 | CI27: 0 | CJ27: 0 | CK27: 0 | CL27: 0 | CM27: 0 | CN27: 0 | CO27: 0 | CP27: 0 | CQ27: 0 | CR27: 0 | CS27: 0 | CT27: 0 | CU27: 0 | CV27: 0 | CW27: 0 | CX27: =+IF($A27="","",IF($D27=CX$17,$B27+IF(MONTH($B$8)-MONTH($B$7)+$E$16=CW$16,$C27,0),0)) -> 0 | CY27: 0 | CZ27: 0 | DA27: 0 | DB27: 0 | DC27: 0 | DD27: 0 | DE27: 0 | DF27: 0 | DG27: 0 | DH27: 0 | DI27: 0 | DJ27: 0 | DK27: 0 | DL27: 0 | DM27: 0 | DN27: 0 | DO27: 0 | DP27: 0 | DQ27: 0 | DR27: 0 | DS27: 0 | DT27: 0 | DU27: 0 | DV27: 0 | DW27: 0 | DX27: 0 | DY27: 0 | DZ27: 0 | EA27: 0 | EB27: 0 | EC27: 0 | ED27: 0 | EE27: 0 | EF27: 0 | EG27: 0 | EH27: 0 | EI27: 0 | EJ27: 0 | EK27: 0 | EL27: 0 | EM27: 0 | EN27: 0 | EO27: 0 | EP27: 0 | EQ27: 0 | ER27: 0 | ES27: 0 | ET27: 0 | EU27: 0 | EV27: 0 | EW27: 0 | EX27: 0 | EY27: 0 | EZ27: 0 | FA27: 0 | FB27: 0 | FC27: 0 | FD27: 0 | FE27: 0 | FF27: 0 | FG27: 0 | FH27: 0 | FI27: 0 | FJ27: 0 | FK27: 0 | FL27: 0 | FM27: 0 | FN27: 0 | FO27: 0 | FP27: 0 | FQ27: 0 | FR27: 0 | FS27: 0 | FT27: 0 | FU27: 0 | FV27: 0 | FW27: 0 | FX27: 0 | FY27: 0 | FZ27: 0 | GA27: 0 | GB27: 0 | GC27: 0 | GD27: 0 | GE27: 0 | GF27: 0 | GG27: 0 | GH27: 0 | GI27: 0 | GJ27: 0 | GK27: 0 | GL27: 0 | GM27: 0 | GN27: 0 | GO27: 0 | GP27: 0 | GQ27: 0 | GR27: 0 | GS27: 0 | GT27: 0 | GU27: 0 | GV27: 0 | GW27: 0 | GX27: 0 | GY27: 0 | GZ27: 0 | HA27: 0 | HB27: 0 | HC27: 0 | HD27: 0 | HE27: 0 | HF27: 0 | HG27: 0 | HH27: 0 | HI27: 0 | HJ27: 0 | HK27: 0 | HL27: 0 | HM27: 0 | HN27: 0 | HO27: 0 | HP27: 0 | HQ27: 0 | HR27: 0 | HS27: 0 | HT27: 0 | HU27: 0 | HV27: 0 | HW27: 0 | HX27: 0 | HY27: 0 | HZ27: 0 | IA27: 0 | IB27: 0 | IC27: 0 | ID27: 0 | IE27: 0 | IF27: 0 | IG27: 0 | IH27: 0 | II27: 0 | IJ27: 0 | IK27: 0 | IL27: 0 | IM27: CAPEX
A28: Mto Correctivo Enlace De Transmision Mw /Evento | C28: =+IFERROR(IF(EventosMmto="",0,SUMIFS(ValoresMercado,Conceptos,A28,Tipo,TipoEspecifico)/(12/EventosMmtoEquipos)),0) -> 433333.3333 | E28: =+MesesReconocimiento -> 60 | F28: =+(IF($A28="","",IF($D28>MONTH(F$18)-MONTH(InicioFuncion)+12*(YEAR(F$18)-YEAR(InicioFuncion))+1,0,IF($E28<=(MONTH(F$18)-MONTH(InicioFuncion)+12*(YEAR(F$18)-YEAR(InicioFuncion)))-$D28+IF($D28<>"",1,0),0,IF(F$17>$B$9+(12*(YEAR(InicioFuncion)-YEAR(InicioObra))+MONTH(InicioFuncion)-MONTH(InicioObra)),0,IF((YEAR($B$8)-YEAR($B$7))*12+(MONTH($B$8)-MONTH($B$7))+$E$16<=E$16,$C28))))*HLOOKUP(YEAR(F$18),$E$3:$Y$5,3,0)))*IF(F$17<=24+(12*(YEAR(InicioFuncion)-YEAR(InicioObra))+MONTH(InicioFuncion)-MONTH(InicioObra)),MmtoGarantia3,1) -> 0 | G28: 0 | H28: 0 | I28: 0 | J28: 0 | K28: 0 | L28: 0 | M28: 0 | N28: 446333.3333 | O28: 446333.3333 | P28: 446333.3333 | Q28: 446333.3333 | R28: 446333.3333 | S28: 446333.3333 | T28: 459723.3333 | U28: 459723.3333 | V28: 459723.3333 | W28: 459723.3333 | X28: 459723.3333 | Y28: 459723.3333 | Z28: 459723.3333 | AA28: 459723.3333 | AB28: 459723.3333 | AC28: 459723.3333 | AD28: 459723.3333 | AE28: 459723.3333 | AF28: 473515.0333 | AG28: 473515.0333 | AH28: 473515.0333 | AI28: 473515.0333 | AJ28: 473515.0333 | AK28: 473515.0333 | AL28: 473515.0333 | AM28: 473515.0333 | AN28: 473515.0333 | AO28: 473515.0333 | AP28: 473515.0333 | AQ28: 473515.0333 | AR28: 487720.4843 | AS28: 487720.4843 | AT28: 487720.4843 | AU28: 487720.4843 | AV28: 487720.4843 | AW28: 487720.4843 | AX28: 487720.4843 | AY28: 487720.4843 | AZ28: 487720.4843 | BA28: 487720.4843 | BB28: 487720.4843 | BC28: 487720.4843 | BD28: 502352.0989 | BE28: 502352.0989 | BF28: 502352.0989 | BG28: 502352.0989 | BH28: 502352.0989 | BI28: 502352.0989 | BJ28: 502352.0989 | BK28: 502352.0989 | BL28: 502352.0989 | BM28: 502352.0989 | BN28: 502352.0989 | BO28: 502352.0989 | BP28: 517422.6618 | BQ28: 517422.6618 | BR28: =+(IF($A28="","",IF($D28>MONTH(BR$18)-MONTH(InicioFuncion)+12*(YEAR(BR$18)-YEAR(InicioFuncion))+1,0,IF($E28<=(MONTH(BR$18)-MONTH(InicioFuncion)+12*(YEAR(BR$18)-YEAR(InicioFuncion)))-$D28+IF($D28<>"",1,0),0,IF(BR$17>$B$9+(12*(YEAR(InicioFuncion)-YEAR(InicioObra))+MONTH(InicioFuncion)-MONTH(InicioObra)),0,IF((YEAR($B$8)-YEAR($B$7))*12+(MONTH($B$8)-MONTH($B$7))+$E$16<=BQ$16,$C28))))*HLOOKUP(YEAR(BR$18),$E$3:$Y$5,3,0)))*IF(BR$17<=24+(12*(YEAR(InicioFuncion)-YEAR(InicioObra))+MONTH(InicioFuncion)-MONTH(InicioObra)),MmtoGarantia3,1) -> 517422.6618 | BS28: 517422.6618 | BT28: 517422.6618 | BU28: 517422.6618 | BV28: 0 | BW28: 0 | BX28: 0 | BY28: 0 | BZ28: 0 | CA28: 0 | CB28: 0 | CC28: 0 | CD28: 0 | CE28: 0 | CF28: 0 | CG28: 0 | CH28: 0 | CI28: 0 | CJ28: 0 | CK28: 0 | CL28: 0 | CM28: 0 | CN28: 0 | CO28: 0 | CP28: 0 | CQ28: 0 | CR28: 0 | CS28: 0 | CT28: 0 | CU28: 0 | CV28: 0 | CW28: 0 | CX28: 0 | CY28: 0 | CZ28: 0 | DA28: 0 | DB28: 0 | DC28: 0 | DD28: 0 | DE28: 0 | DF28: 0 | DG28: 0 | DH28: 0 | DI28: 0 | DJ28: 0 | DK28: 0 | DL28: 0 | DM28: 0 | DN28: 0 | DO28: 0 | DP28: 0 | DQ28: 0 | DR28: 0 | DS28: 0 | DT28: 0 | DU28: 0 | DV28: 0 | DW28: 0 | DX28: 0 | DY28: 0 | DZ28: 0 | EA28: 0 | EB28: 0 | EC28: 0 | ED28: =+(IF($A28="","",IF($D28>MONTH(ED$18)-MONTH(InicioFuncion)+12*(YEAR(ED$18)-YEAR(InicioFuncion))+1,0,IF($E28<=(MONTH(ED$18)-MONTH(InicioFuncion)+12*(YEAR(ED$18)-YEAR(InicioFuncion)))-$D28+IF($D28<>"",1,0),0,IF(ED$17>$B$9+(12*(YEAR(InicioFuncion)-YEAR(InicioObra))+MONTH(InicioFuncion)-MONTH(InicioObra)),0,IF((YEAR($B$8)-YEAR($B$7))*12+(MONTH($B$8)-MONTH($B$7))+$E$16<=EC$16,$C28))))*HLOOKUP(YEAR(ED$18),$E$3:$Y$5,3,0)))*IF(ED$17<=24+(12*(YEAR(InicioFuncion)-YEAR(InicioObra))+MONTH(InicioFuncion)-MONTH(InicioObra)),MmtoGarantia3,1) -> 0 | EE28: 0 | EF28: 0 | EG28: 0 | EH28: 0 | EI28: 0 | EJ28: 0 | EK28: 0 | EL28: 0 | EM28: 0 | EN28: 0 | EO28: 0 | EP28: 0 | EQ28: 0 | ER28: 0 | ES28: 0 | ET28: 0 | EU28: 0 | EV28: 0 | EW28: 0 | EX28: 0 | EY28: 0 | EZ28: 0 | FA28: 0 | FB28: 0 | FC28: 0 | FD28: 0 | FE28: 0 | FF28: 0 | FG28: 0 | FH28: 0 | FI28: 0 | FJ28: 0 | FK28: 0 | FL28: 0 | FM28: 0 | FN28: 0 | FO28: 0 | FP28: 0 | FQ28: 0 | FR28: 0 | FS28: 0 | FT28: 0 | FU28: 0 | FV28: 0 | FW28: 0 | FX28: 0 | FY28: 0 | FZ28: 0 | GA28: 0 | GB28: 0 | GC28: 0 | GD28: 0 | GE28: 0 | GF28: 0 | GG28: 0 | GH28: 0 | GI28: 0 | GJ28: 0 | GK28: 0 | GL28: 0 | GM28: 0 | GN28: 0 | GO28: 0 | GP28: =+(IF($A28="","",IF($D28>MONTH(GP$18)-MONTH(InicioFuncion)+12*(YEAR(GP$18)-YEAR(InicioFuncion))+1,0,IF($E28<=(MONTH(GP$18)-MONTH(InicioFuncion)+12*(YEAR(GP$18)-YEAR(InicioFuncion)))-$D28+IF($D28<>"",1,0),0,IF(GP$17>$B$9+(12*(YEAR(InicioFuncion)-YEAR(InicioObra))+MONTH(InicioFuncion)-MONTH(InicioObra)),0,IF((YEAR($B$8)-YEAR($B$7))*12+(MONTH($B$8)-MONTH($B$7))+$E$16<=GO$16,$C28))))*HLOOKUP(YEAR(GP$18),$E$3:$Y$5,3,0)))*IF(GP$17<=24+(12*(YEAR(InicioFuncion)-YEAR(InicioObra))+MONTH(InicioFuncion)-MONTH(InicioObra)),MmtoGarantia3,1) -> 0 | GQ28: 0 | GR28: 0 | GS28: 0 | GT28: 0 | GU28: 0 | GV28: 0 | GW28: 0 | GX28: 0 | GY28: 0 | GZ28: 0 | HA28: 0 | HB28: 0 | HC28: 0 | HD28: 0 | HE28: 0 | HF28: 0 | HG28: 0 | HH28: 0 | HI28: 0 | HJ28: 0 | HK28: 0 | HL28: 0 | HM28: 0 | HN28: 0 | HO28: 0 | HP28: 0 | HQ28: 0 | HR28: 0 | HS28: 0 | HT28: 0 | HU28: 0 | HV28: 0 | HW28: 0 | HX28: 0 | HY28: 0 | HZ28: 0 | IA28: 0 | IB28: 0 | IC28: 0 | ID28: 0 | IE28: 0 | IF28: 0 | IG28: 0 | IH28: 0 | II28: 0 | IJ28: 0 | IK28: 0 | IL28: 0 | IM28: OPEX
A29: Mto Correctivo Enodeb Estimado / Evento | C29: =+IFERROR(IF(EventosMmto="",0,SUMIFS(ValoresMercado,Conceptos,A29,Tipo,TipoEspecifico)/(12/EventosMmtoEquipos)),0) -> 650000 | E29: =+MesesReconocimiento -> 60 | F29: =+(IF($A29="","",IF($D29>MONTH(F$18)-MONTH(InicioFuncion)+12*(YEAR(F$18)-YEAR(InicioFuncion))+1,0,IF($E29<=(MONTH(F$18)-MONTH(InicioFuncion)+12*(YEAR(F$18)-YEAR(InicioFuncion)))-$D29+IF($D29<>"",1,0),0,IF(F$17>$B$9+(12*(YEAR(InicioFuncion)-YEAR(InicioObra))+MONTH(InicioFuncion)-MONTH(InicioObra)),0,IF((YEAR($B$8)-YEAR($B$7))*12+(MONTH($B$8)-MONTH($B$7))+$E$16<=E$16,$C29))))*HLOOKUP(YEAR(F$18),$E$3:$Y$5,3,0)))*IF(F$17<=24+(12*(YEAR(InicioFuncion)-YEAR(InicioObra))+MONTH(InicioFuncion)-MONTH(InicioObra)),MmtoGarantia3,1) -> 0 | G29: 0 | H29: 0 | I29: 0 | J29: 0 | K29: 0 | L29: 0 | M29: 0 | N29: 669500 | O29: 669500 | P29: 669500 | Q29: 669500 | R29: 669500 | S29: 669500 | T29: 689585 | U29: 689585 | V29: 689585 | W29: 689585 | X29: 689585 | Y29: 689585 | Z29: 689585 | AA29: 689585 | AB29: 689585 | AC29: 689585 | AD29: 689585 | AE29: 689585 | AF29: 710272.55 | AG29: 710272.55 | AH29: 710272.55 | AI29: 710272.55 | AJ29: 710272.55 | AK29: 710272.55 | AL29: 710272.55 | AM29: 710272.55 | AN29: 710272.55 | AO29: 710272.55 | AP29: 710272.55 | AQ29: 710272.55 | AR29: 731580.7265 | AS29: 731580.7265 | AT29: 731580.7265 | AU29: 731580.7265 | AV29: 731580.7265 | AW29: 731580.7265 | AX29: 731580.7265 | AY29: 731580.7265 | AZ29: 731580.7265 | BA29: 731580.7265 | BB29: 731580.7265 | BC29: 731580.7265 | BD29: 753528.1483 | BE29: 753528.1483 | BF29: 753528.1483 | BG29: 753528.1483 | BH29: 753528.1483 | BI29: 753528.1483 | BJ29: 753528.1483 | BK29: 753528.1483 | BL29: 753528.1483 | BM29: 753528.1483 | BN29: 753528.1483 | BO29: 753528.1483 | BP29: 776133.9927 | BQ29: 776133.9927 | BR29: =+(IF($A29="","",IF($D29>MONTH(BR$18)-MONTH(InicioFuncion)+12*(YEAR(BR$18)-YEAR(InicioFuncion))+1,0,IF($E29<=(MONTH(BR$18)-MONTH(InicioFuncion)+12*(YEAR(BR$18)-YEAR(InicioFuncion)))-$D29+IF($D29<>"",1,0),0,IF(BR$17>$B$9+(12*(YEAR(InicioFuncion)-YEAR(InicioObra))+MONTH(InicioFuncion)-MONTH(InicioObra)),0,IF((YEAR($B$8)-YEAR($B$7))*12+(MONTH($B$8)-MONTH($B$7))+$E$16<=BQ$16,$C29))))*HLOOKUP(YEAR(BR$18),$E$3:$Y$5,3,0)))*IF(BR$17<=24+(12*(YEAR(InicioFuncion)-YEAR(InicioObra))+MONTH(InicioFuncion)-MONTH(InicioObra)),MmtoGarantia3,1) -> 776133.9927 | BS29: 776133.9927 | BT29: 776133.9927 | BU29: 776133.9927 | BV29: 0 | BW29: 0 | BX29: 0 | BY29: 0 | BZ29: 0 | CA29: 0 | CB29: 0 | CC29: 0 | CD29: 0 | CE29: 0 | CF29: 0 | CG29: 0 | CH29: 0 | CI29: 0 | CJ29: 0 | CK29: 0 | CL29: 0 | CM29: 0 | CN29: 0 | CO29: 0 | CP29: 0 | CQ29: 0 | CR29: 0 | CS29: 0 | CT29: 0 | CU29: 0 | CV29: 0 | CW29: 0 | CX29: 0 | CY29: 0 | CZ29: 0 | DA29: 0 | DB29: 0 | DC29: 0 | DD29: 0 | DE29: 0 | DF29: 0 | DG29: 0 | DH29: 0 | DI29: 0 | DJ29: 0 | DK29: 0 | DL29: 0 | DM29: 0 | DN29: 0 | DO29: 0 | DP29: 0 | DQ29: 0 | DR29: 0 | DS29: 0 | DT29: 0 | DU29: 0 | DV29: 0 | DW29: 0 | DX29: 0 | DY29: 0 | DZ29: 0 | EA29: 0 | EB29: 0 | EC29: 0 | ED29: =+(IF($A29="","",IF($D29>MONTH(ED$18)-MONTH(InicioFuncion)+12*(YEAR(ED$18)-YEAR(InicioFuncion))+1,0,IF($E29<=(MONTH(ED$18)-MONTH(InicioFuncion)+12*(YEAR(ED$18)-YEAR(InicioFuncion)))-$D29+IF($D29<>"",1,0),0,IF(ED$17>$B$9+(12*(YEAR(InicioFuncion)-YEAR(InicioObra))+MONTH(InicioFuncion)-MONTH(InicioObra)),0,IF((YEAR($B$8)-YEAR($B$7))*12+(MONTH($B$8)-MONTH($B$7))+$E$16<=EC$16,$C29))))*HLOOKUP(YEAR(ED$18),$E$3:$Y$5,3,0)))*IF(ED$17<=24+(12*(YEAR(InicioFuncion)-YEAR(InicioObra))+MONTH(InicioFuncion)-MONTH(InicioObra)),MmtoGarantia3,1) -> 0 | EE29: 0 | EF29: 0 | EG29: 0 | EH29: 0 | EI29: 0 | EJ29: 0 | EK29: 0 | EL29: 0 | EM29: 0 | EN29: 0 | EO29: 0 | EP29: 0 | EQ29: 0 | ER29: 0 | ES29: 0 | ET29: 0 | EU29: 0 | EV29: 0 | EW29: 0 | EX29: 0 | EY29: 0 | EZ29: 0 | FA29: 0 | FB29: 0 | FC29: 0 | FD29: 0 | FE29: 0 | FF29: 0 | FG29: 0 | FH29: 0 | FI29: 0 | FJ29: 0 | FK29: 0 | FL29: 0 | FM29: 0 | FN29: 0 | FO29: 0 | FP29: 0 | FQ29: 0 | FR29: 0 | FS29: 0 | FT29: 0 | FU29: 0 | FV29: 0 | FW29: 0 | FX29: 0 | FY29: 0 | FZ29: 0 | GA29: 0 | GB29: 0 | GC29: 0 | GD29: 0 | GE29: 0 | GF29: 0 | GG29: 0 | GH29: 0 | GI29: 0 | GJ29: 0 | GK29: 0 | GL29: 0 | GM29: 0 | GN29: 0 | GO29: 0 | GP29: =+(IF($A29="","",IF($D29>MONTH(GP$18)-MONTH(InicioFuncion)+12*(YEAR(GP$18)-YEAR(InicioFuncion))+1,0,IF($E29<=(MONTH(GP$18)-MONTH(InicioFuncion)+12*(YEAR(GP$18)-YEAR(InicioFuncion)))-$D29+IF($D29<>"",1,0),0,IF(GP$17>$B$9+(12*(YEAR(InicioFuncion)-YEAR(InicioObra))+MONTH(InicioFuncion)-MONTH(InicioObra)),0,IF((YEAR($B$8)-YEAR($B$7))*12+(MONTH($B$8)-MONTH($B$7))+$E$16<=GO$16,$C29))))*HLOOKUP(YEAR(GP$18),$E$3:$Y$5,3,0)))*IF(GP$17<=24+(12*(YEAR(InicioFuncion)-YEAR(InicioObra))+MONTH(InicioFuncion)-MONTH(InicioObra)),MmtoGarantia3,1) -> 0 | GQ29: 0 | GR29: 0 | GS29: 0 | GT29: 0 | GU29: 0 | GV29: 0 | GW29: 0 | GX29: 0 | GY29: 0 | GZ29: 0 | HA29: 0 | HB29: 0 | HC29: 0 | HD29: 0 | HE29: 0 | HF29: 0 | HG29: 0 | HH29: 0 | HI29: 0 | HJ29: 0 | HK29: 0 | HL29: 0 | HM29: 0 | HN29: 0 | HO29: 0 | HP29: 0 | HQ29: 0 | HR29: 0 | HS29: 0 | HT29: 0 | HU29: 0 | HV29: 0 | HW29: 0 | HX29: 0 | HY29: 0 | HZ29: 0 | IA29: 0 | IB29: 0 | IC29: 0 | ID29: 0 | IE29: 0 | IF29: 0 | IG29: 0 | IH29: 0 | II29: 0 | IJ29: 0 | IK29: 0 | IL29: 0 | IM29: OPEX
A30: Mto Correctivo Planta Electrica / Evento | C30: =+IFERROR(IF(EventosMmto="",0,SUMIFS(ValoresMercado,Conceptos,A30,Tipo,TipoEspecifico,Relacion,KW_EnergiaValor)/(12/EventosMmtoEquipos)),0) -> 399282.6246 | E30: 60 | F30: =+(IF($A30="","",IF($D30>MONTH(F$18)-MONTH(InicioFuncion)+12*(YEAR(F$18)-YEAR(InicioFuncion))+1,0,IF($E30<=(MONTH(F$18)-MONTH(InicioFuncion)+12*(YEAR(F$18)-YEAR(InicioFuncion)))-$D30+IF($D30<>"",1,0),0,IF(F$17>$B$9+(12*(YEAR(InicioFuncion)-YEAR(InicioObra))+MONTH(InicioFuncion)-MONTH(InicioObra)),0,IF((YEAR($B$8)-YEAR($B$7))*12+(MONTH($B$8)-MONTH($B$7))+$E$16<=E$16,$C30))))*HLOOKUP(YEAR(F$18),$E$3:$Y$5,3,0)))*IF(F$17<=24+(12*(YEAR(InicioFuncion)-YEAR(InicioObra))+MONTH(InicioFuncion)-MONTH(InicioObra)),MmtoGarantia3,1) -> 0 | G30: 0 | H30: 0 | I30: 0 | J30: 0 | K30: 0 | L30: 0 | M30: 0 | N30: 411261.1034 | O30: 411261.1034 | P30: 411261.1034 | Q30: 411261.1034 | R30: 411261.1034 | S30: 411261.1034 | T30: 423598.9365 | U30: 423598.9365 | V30: 423598.9365 | W30: 423598.9365 | X30: 423598.9365 | Y30: 423598.9365 | Z30: 423598.9365 | AA30: 423598.9365 | AB30: 423598.9365 | AC30: 423598.9365 | AD30: 423598.9365 | AE30: 423598.9365 | AF30: 436306.9046 | AG30: 436306.9046 | AH30: 436306.9046 | AI30: 436306.9046 | AJ30: 436306.9046 | AK30: 436306.9046 | AL30: 436306.9046 | AM30: 436306.9046 | AN30: 436306.9046 | AO30: 436306.9046 | AP30: 436306.9046 | AQ30: 436306.9046 | AR30: 449396.1117 | AS30: 449396.1117 | AT30: 449396.1117 | AU30: 449396.1117 | AV30: 449396.1117 | AW30: 449396.1117 | AX30: 449396.1117 | AY30: 449396.1117 | AZ30: 449396.1117 | BA30: 449396.1117 | BB30: 449396.1117 | BC30: 449396.1117 | BD30: 462877.9951 | BE30: 462877.9951 | BF30: 462877.9951 | BG30: 462877.9951 | BH30: 462877.9951 | BI30: 462877.9951 | BJ30: 462877.9951 | BK30: 462877.9951 | BL30: 462877.9951 | BM30: 462877.9951 | BN30: 462877.9951 | BO30: 462877.9951 | BP30: 476764.3349 | BQ30: 476764.3349 | BR30: =+(IF($A30="","",IF($D30>MONTH(BR$18)-MONTH(InicioFuncion)+12*(YEAR(BR$18)-YEAR(InicioFuncion))+1,0,IF($E30<=(MONTH(BR$18)-MONTH(InicioFuncion)+12*(YEAR(BR$18)-YEAR(InicioFuncion)))-$D30+IF($D30<>"",1,0),0,IF(BR$17>$B$9+(12*(YEAR(InicioFuncion)-YEAR(InicioObra))+MONTH(InicioFuncion)-MONTH(InicioObra)),0,IF((YEAR($B$8)-YEAR($B$7))*12+(MONTH($B$8)-MONTH($B$7))+$E$16<=BQ$16,$C30))))*HLOOKUP(YEAR(BR$18),$E$3:$Y$5,3,0)))*IF(BR$17<=24+(12*(YEAR(InicioFuncion)-YEAR(InicioObra))+MONTH(InicioFuncion)-MONTH(InicioObra)),MmtoGarantia3,1) -> 476764.3349 | BS30: 476764.3349 | BT30: 476764.3349 | BU30: 476764.3349 | BV30: 0 | BW30: 0 | BX30: 0 | BY30: 0 | BZ30: 0 | CA30: 0 | CB30: 0 | CC30: 0 | CD30: 0 | CE30: 0 | CF30: 0 | CG30: 0 | CH30: 0 | CI30: 0 | CJ30: 0 | CK30: 0 | CL30: 0 | CM30: 0 | CN30: 0 | CO30: 0 | CP30: 0 | CQ30: 0 | CR30: 0 | CS30: 0 | CT30: 0 | CU30: 0 | CV30: 0 | CW30: 0 | CX30: 0 | CY30: 0 | CZ30: 0 | DA30: 0 | DB30: 0 | DC30: 0 | DD30: 0 | DE30: 0 | DF30: 0 | DG30: 0 | DH30: 0 | DI30: 0 | DJ30: 0 | DK30: 0 | DL30: 0 | DM30: 0 | DN30: 0 | DO30: 0 | DP30: 0 | DQ30: 0 | DR30: 0 | DS30: 0 | DT30: 0 | DU30: 0 | DV30: 0 | DW30: 0 | DX30: 0 | DY30: 0 | DZ30: 0 | EA30: 0 | EB30: 0 | EC30: 0 | ED30: =+(IF($A30="","",IF($D30>MONTH(ED$18)-MONTH(InicioFuncion)+12*(YEAR(ED$18)-YEAR(InicioFuncion))+1,0,IF($E30<=(MONTH(ED$18)-MONTH(InicioFuncion)+12*(YEAR(ED$18)-YEAR(InicioFuncion)))-$D30+IF($D30<>"",1,0),0,IF(ED$17>$B$9+(12*(YEAR(InicioFuncion)-YEAR(InicioObra))+MONTH(InicioFuncion)-MONTH(InicioObra)),0,IF((YEAR($B$8)-YEAR($B$7))*12+(MONTH($B$8)-MONTH($B$7))+$E$16<=EC$16,$C30))))*HLOOKUP(YEAR(ED$18),$E$3:$Y$5,3,0)))*IF(ED$17<=24+(12*(YEAR(InicioFuncion)-YEAR(InicioObra))+MONTH(InicioFuncion)-MONTH(InicioObra)),MmtoGarantia3,1) -> 0 | EE30: 0 | EF30: 0 | EG30: 0 | EH30: 0 | EI30: 0 | EJ30: 0 | EK30: 0 | EL30: 0 | EM30: 0 | EN30: 0 | EO30: 0 | EP30: 0 | EQ30: 0 | ER30: 0 | ES30: 0 | ET30: 0 | EU30: 0 | EV30: 0 | EW30: 0 | EX30: 0 | EY30: 0 | EZ30: 0 | FA30: 0 | FB30: 0 | FC30: 0 | FD30: 0 | FE30: 0 | FF30: 0 | FG30: 0 | FH30: 0 | FI30: 0 | FJ30: 0 | FK30: 0 | FL30: 0 | FM30: 0 | FN30: 0 | FO30: 0 | FP30: 0 | FQ30: 0 | FR30: 0 | FS30: 0 | FT30: 0 | FU30: 0 | FV30: 0 | FW30: 0 | FX30: 0 | FY30: 0 | FZ30: 0 | GA30: 0 | GB30: 0 | GC30: 0 | GD30: 0 | GE30: 0 | GF30: 0 | GG30: 0 | GH30: 0 | GI30: 0 | GJ30: 0 | GK30: 0 | GL30: 0 | GM30: 0 | GN30: 0 | GO30: 0 | GP30: =+(IF($A30="","",IF($D30>MONTH(GP$18)-MONTH(InicioFuncion)+12*(YEAR(GP$18)-YEAR(InicioFuncion))+1,0,IF($E30<=(MONTH(GP$18)-MONTH(InicioFuncion)+12*(YEAR(GP$18)-YEAR(InicioFuncion)))-$D30+IF($D30<>"",1,0),0,IF(GP$17>$B$9+(12*(YEAR(InicioFuncion)-YEAR(InicioObra))+MONTH(InicioFuncion)-MONTH(InicioObra)),0,IF((YEAR($B$8)-YEAR($B$7))*12+(MONTH($B$8)-MONTH($B$7))+$E$16<=GO$16,$C30))))*HLOOKUP(YEAR(GP$18),$E$3:$Y$5,3,0)))*IF(GP$17<=24+(12*(YEAR(InicioFuncion)-YEAR(InicioObra))+MONTH(InicioFuncion)-MONTH(InicioObra)),MmtoGarantia3,1) -> 0 | GQ30: 0 | GR30: 0 | GS30: 0 | GT30: 0 | GU30: 0 | GV30: 0 | GW30: 0 | GX30: 0 | GY30: 0 | GZ30: 0 | HA30: 0 | HB30: 0 | HC30: 0 | HD30: 0 | HE30: 0 | HF30: 0 | HG30: 0 | HH30: 0 | HI30: 0 | HJ30: 0 | HK30: 0 | HL30: 0 | HM30: 0 | HN30: 0 | HO30: 0 | HP30: 0 | HQ30: 0 | HR30: 0 | HS30: 0 | HT30: 0 | HU30: 0 | HV30: 0 | HW30: 0 | HX30: 0 | HY30: 0 | HZ30: 0 | IA30: 0 | IB30: 0 | IC30: 0 | ID30: 0 | IE30: 0 | IF30: 0 | IG30: 0 | IH30: 0 | II30: 0 | IJ30: 0 | IK30: 0 | IL30: 0 | IM30: OPEX
A31: Mto Correctivo Transferencia Y Control / Evento | C31: =+IFERROR(IF(EventosMmto="",0,SUMIFS(ValoresMercado,Conceptos,A31,Tipo,TipoEspecifico,Relacion,KW_EnergiaValor)/(12/EventosMmtoEquipos)),0) -> 216666.6667 | E31: 60 | F31: =+(IF($A31="","",IF($D31>MONTH(F$18)-MONTH(InicioFuncion)+12*(YEAR(F$18)-YEAR(InicioFuncion))+1,0,IF($E31<=(MONTH(F$18)-MONTH(InicioFuncion)+12*(YEAR(F$18)-YEAR(InicioFuncion)))-$D31+IF($D31<>"",1,0),0,IF(F$17>$B$9+(12*(YEAR(InicioFuncion)-YEAR(InicioObra))+MONTH(InicioFuncion)-MONTH(InicioObra)),0,IF((YEAR($B$8)-YEAR($B$7))*12+(MONTH($B$8)-MONTH($B$7))+$E$16<=E$16,$C31))))*HLOOKUP(YEAR(F$18),$E$3:$Y$5,3,0)))*IF(F$17<=24+(12*(YEAR(InicioFuncion)-YEAR(InicioObra))+MONTH(InicioFuncion)-MONTH(InicioObra)),MmtoGarantia3,1) -> 0 | G31: 0 | H31: 0 | I31: 0 | J31: 0 | K31: 0 | L31: 0 | M31: 0 | N31: 223166.6667 | O31: 223166.6667 | P31: 223166.6667 | Q31: 223166.6667 | R31: 223166.6667 | S31: 223166.6667 | T31: 229861.6667 | U31: 229861.6667 | V31: 229861.6667 | W31: 229861.6667 | X31: 229861.6667 | Y31: 229861.6667 | Z31: 229861.6667 | AA31: 229861.6667 | AB31: 229861.6667 | AC31: 229861.6667 | AD31: 229861.6667 | AE31: 229861.6667 | AF31: 236757.5167 | AG31: 236757.5167 | AH31: 236757.5167 | AI31: 236757.5167 | AJ31: 236757.5167 | AK31: 236757.5167 | AL31: 236757.5167 | AM31: 236757.5167 | AN31: 236757.5167 | AO31: 236757.5167 | AP31: 236757.5167 | AQ31: 236757.5167 | AR31: 243860.2422 | AS31: 243860.2422 | AT31: 243860.2422 | AU31: 243860.2422 | AV31: 243860.2422 | AW31: 243860.2422 | AX31: 243860.2422 | AY31: 243860.2422 | AZ31: 243860.2422 | BA31: 243860.2422 | BB31: 243860.2422 | BC31: 243860.2422 | BD31: 251176.0494 | BE31: 251176.0494 | BF31: 251176.0494 | BG31: 251176.0494 | BH31: 251176.0494 | BI31: 251176.0494 | BJ31: 251176.0494 | BK31: 251176.0494 | BL31: 251176.0494 | BM31: 251176.0494 | BN31: 251176.0494 | BO31: 251176.0494 | BP31: 258711.3309 | BQ31: 258711.3309 | BR31: =+(IF($A31="","",IF($D31>MONTH(BR$18)-MONTH(InicioFuncion)+12*(YEAR(BR$18)-YEAR(InicioFuncion))+1,0,IF($E31<=(MONTH(BR$18)-MONTH(InicioFuncion)+12*(YEAR(BR$18)-YEAR(InicioFuncion)))-$D31+IF($D31<>"",1,0),0,IF(BR$17>$B$9+(12*(YEAR(InicioFuncion)-YEAR(InicioObra))+MONTH(InicioFuncion)-MONTH(InicioObra)),0,IF((YEAR($B$8)-YEAR($B$7))*12+(MONTH($B$8)-MONTH($B$7))+$E$16<=BQ$16,$C31))))*HLOOKUP(YEAR(BR$18),$E$3:$Y$5,3,0)))*IF(BR$17<=24+(12*(YEAR(InicioFuncion)-YEAR(InicioObra))+MONTH(InicioFuncion)-MONTH(InicioObra)),MmtoGarantia3,1) -> 258711.3309 | BS31: 258711.3309 | BT31: 258711.3309 | BU31: 258711.3309 | BV31: 0 | BW31: 0 | BX31: 0 | BY31: 0 | BZ31: 0 | CA31: 0 | CB31: 0 | CC31: 0 | CD31: 0 | CE31: 0 | CF31: 0 | CG31: 0 | CH31: 0 | CI31: 0 | CJ31: 0 | CK31: 0 | CL31: 0 | CM31: 0 | CN31: 0 | CO31: 0 | CP31: 0 | CQ31: 0 | CR31: 0 | CS31: 0 | CT31: 0 | CU31: 0 | CV31: 0 | CW31: 0 | CX31: 0 | CY31: 0 | CZ31: 0 | DA31: 0 | DB31: 0 | DC31: 0 | DD31: 0 | DE31: 0 | DF31: 0 | DG31: 0 | DH31: 0 | DI31: 0 | DJ31: 0 | DK31: 0 | DL31: 0 | DM31: 0 | DN31: 0 | DO31: 0 | DP31: 0 | DQ31: 0 | DR31: 0 | DS31: 0 | DT31: 0 | DU31: 0 | DV31: 0 | DW31: 0 | DX31: 0 | DY31: 0 | DZ31: 0 | EA31: 0 | EB31: 0 | EC31: 0 | ED31: =+(IF($A31="","",IF($D31>MONTH(ED$18)-MONTH(InicioFuncion)+12*(YEAR(ED$18)-YEAR(InicioFuncion))+1,0,IF($E31<=(MONTH(ED$18)-MONTH(InicioFuncion)+12*(YEAR(ED$18)-YEAR(InicioFuncion)))-$D31+IF($D31<>"",1,0),0,IF(ED$17>$B$9+(12*(YEAR(InicioFuncion)-YEAR(InicioObra))+MONTH(InicioFuncion)-MONTH(InicioObra)),0,IF((YEAR($B$8)-YEAR($B$7))*12+(MONTH($B$8)-MONTH($B$7))+$E$16<=EC$16,$C31))))*HLOOKUP(YEAR(ED$18),$E$3:$Y$5,3,0)))*IF(ED$17<=24+(12*(YEAR(InicioFuncion)-YEAR(InicioObra))+MONTH(InicioFuncion)-MONTH(InicioObra)),MmtoGarantia3,1) -> 0 | EE31: 0 | EF31: 0 | EG31: 0 | EH31: 0 | EI31: 0 | EJ31: 0 | EK31: 0 | EL31: 0 | EM31: 0 | EN31: 0 | EO31: 0 | EP31: 0 | EQ31: 0 | ER31: 0 | ES31: 0 | ET31: 0 | EU31: 0 | EV31: 0 | EW31: 0 | EX31: 0 | EY31: 0 | EZ31: 0 | FA31: 0 | FB31: 0 | FC31: 0 | FD31: 0 | FE31: 0 | FF31: 0 | FG31: 0 | FH31: 0 | FI31: 0 | FJ31: 0 | FK31: 0 | FL31: 0 | FM31: 0 | FN31: 0 | FO31: 0 | FP31: 0 | FQ31: 0 | FR31: 0 | FS31: 0 | FT31: 0 | FU31: 0 | FV31: 0 | FW31: 0 | FX31: 0 | FY31: 0 | FZ31: 0 | GA31: 0 | GB31: 0 | GC31: 0 | GD31: 0 | GE31: 0 | GF31: 0 | GG31: 0 | GH31: 0 | GI31: 0 | GJ31: 0 | GK31: 0 | GL31: 0 | GM31: 0 | GN31: 0 | GO31: 0 | GP31: =+(IF($A31="","",IF($D31>MONTH(GP$18)-MONTH(InicioFuncion)+12*(YEAR(GP$18)-YEAR(InicioFuncion))+1,0,IF($E31<=(MONTH(GP$18)-MONTH(InicioFuncion)+12*(YEAR(GP$18)-YEAR(InicioFuncion)))-$D31+IF($D31<>"",1,0),0,IF(GP$17>$B$9+(12*(YEAR(InicioFuncion)-YEAR(InicioObra))+MONTH(InicioFuncion)-MONTH(InicioObra)),0,IF((YEAR($B$8)-YEAR($B$7))*12+(MONTH($B$8)-MONTH($B$7))+$E$16<=GO$16,$C31))))*HLOOKUP(YEAR(GP$18),$E$3:$Y$5,3,0)))*IF(GP$17<=24+(12*(YEAR(InicioFuncion)-YEAR(InicioObra))+MONTH(InicioFuncion)-MONTH(InicioObra)),MmtoGarantia3,1) -> 0 | GQ31: 0 | GR31: 0 | GS31: 0 | GT31: 0 | GU31: 0 | GV31: 0 | GW31: 0 | GX31: 0 | GY31: 0 | GZ31: 0 | HA31: 0 | HB31: 0 | HC31: 0 | HD31: 0 | HE31: 0 | HF31: 0 | HG31: 0 | HH31: 0 | HI31: 0 | HJ31: 0 | HK31: 0 | HL31: 0 | HM31: 0 | HN31: 0 | HO31: 0 | HP31: 0 | HQ31: 0 | HR31: 0 | HS31: 0 | HT31: 0 | HU31: 0 | HV31: 0 | HW31: 0 | HX31: 0 | HY31: 0 | HZ31: 0 | IA31: 0 | IB31: 0 | IC31: 0 | ID31: 0 | IE31: 0 | IF31: 0 | IG31: 0 | IH31: 0 | II31: 0 | IJ31: 0 | IK31: 0 | IL31: 0 | IM31: OPEX
A32: Mto Digital Enodeb Soporte Fabricante /Anual | C32: =+IF(Tipologia_Campo="Repetidora",0,IF('Parametros tecnologicos'!C$18="N",0,SUMIFS(ValoresMercado,Conceptos,A32,Tipo,TipoEspecifico)/12)) -> 296291.5843 | E32: 60 | F32: =+(IF($A32="","",IF(F$17>=12+(12*(YEAR(InicioFuncion)-YEAR(InicioObra))+MONTH(InicioFuncion)-MONTH(InicioObra)),IF($D32>MONTH(F$18)-MONTH(InicioFuncion)+12*(YEAR(F$18)-YEAR(InicioFuncion))+1,0,IF($E32<=(MONTH(F$18)-MONTH(InicioFuncion)+12*(YEAR(F$18)-YEAR(InicioFuncion)))-$D32+IF($D32<>"",1,0),0,IF(F$17>$B$9+(12*(YEAR(InicioFuncion)-YEAR(InicioObra))+MONTH(InicioFuncion)-MONTH(InicioObra)),0,IF((YEAR($B$8)-YEAR($B$7))*12+(MONTH($B$8)-MONTH($B$7))+$E$16<=E$16,$C32))))*HLOOKUP(YEAR(F$18),$E$3:$Y$5,3,0),0))) -> 0 | G32: 0 | H32: 0 | I32: 0 | J32: 0 | K32: 0 | L32: 0 | M32: 0 | N32: 0 | O32: 0 | P32: 0 | Q32: 0 | R32: 0 | S32: 0 | T32: 0 | U32: 0 | V32: 0 | W32: 0 | X32: 0 | Y32: 0 | Z32: 314335.7418 | AA32: 314335.7418 | AB32: 314335.7418 | AC32: 314335.7418 | AD32: 314335.7418 | AE32: 314335.7418 | AF32: 323765.8141 | AG32: 323765.8141 | AH32: 323765.8141 | AI32: 323765.8141 | AJ32: 323765.8141 | AK32: 323765.8141 | AL32: 323765.8141 | AM32: 323765.8141 | AN32: 323765.8141 | AO32: 323765.8141 | AP32: 323765.8141 | AQ32: 323765.8141 | AR32: 333478.7885 | AS32: 333478.7885 | AT32: 333478.7885 | AU32: 333478.7885 | AV32: 333478.7885 | AW32: 333478.7885 | AX32: 333478.7885 | AY32: 333478.7885 | AZ32: 333478.7885 | BA32: 333478.7885 | BB32: 333478.7885 | BC32: 333478.7885 | BD32: 343483.1522 | BE32: 343483.1522 | BF32: 343483.1522 | BG32: 343483.1522 | BH32: 343483.1522 | BI32: 343483.1522 | BJ32: 343483.1522 | BK32: 343483.1522 | BL32: 343483.1522 | BM32: 343483.1522 | BN32: 343483.1522 | BO32: 343483.1522 | BP32: 353787.6467 | BQ32: 353787.6467 | BR32: =+(IF($A32="","",IF(BR$17>=12+(12*(YEAR(InicioFuncion)-YEAR(InicioObra))+MONTH(InicioFuncion)-MONTH(InicioObra)),IF($D32>MONTH(BR$18)-MONTH(InicioFuncion)+12*(YEAR(BR$18)-YEAR(InicioFuncion))+1,0,IF($E32<=(MONTH(BR$18)-MONTH(InicioFuncion)+12*(YEAR(BR$18)-YEAR(InicioFuncion)))-$D32+IF($D32<>"",1,0),0,IF(BR$17>$B$9+(12*(YEAR(InicioFuncion)-YEAR(InicioObra))+MONTH(InicioFuncion)-MONTH(InicioObra)),0,IF((YEAR($B$8)-YEAR($B$7))*12+(MONTH($B$8)-MONTH($B$7))+$E$16<=BQ$16,$C32))))*HLOOKUP(YEAR(BR$18),$E$3:$Y$5,3,0),0))) -> 353787.6467 | BS32: 353787.6467 | BT32: 353787.6467 | BU32: 353787.6467 | BV32: 0 | BW32: 0 | BX32: 0 | BY32: 0 | BZ32: 0 | CA32: 0 | CB32: 0 | CC32: 0 | CD32: 0 | CE32: 0 | CF32: 0 | CG32: 0 | CH32: 0 | CI32: 0 | CJ32: 0 | CK32: 0 | CL32: 0 | CM32: 0 | CN32: 0 | CO32: 0 | CP32: 0 | CQ32: 0 | CR32: 0 | CS32: 0 | CT32: 0 | CU32: 0 | CV32: 0 | CW32: 0 | CX32: 0 | CY32: 0 | CZ32: 0 | DA32: 0 | DB32: 0 | DC32: 0 | DD32: 0 | DE32: 0 | DF32: 0 | DG32: 0 | DH32: 0 | DI32: 0 | DJ32: 0 | DK32: 0 | DL32: 0 | DM32: 0 | DN32: 0 | DO32: 0 | DP32: 0 | DQ32: 0 | DR32: 0 | DS32: 0 | DT32: 0 | DU32: 0 | DV32: 0 | DW32: 0 | DX32: 0 | DY32: 0 | DZ32: 0 | EA32: 0 | EB32: 0 | EC32: 0 | ED32: =+(IF($A32="","",IF(ED$17>=12+(12*(YEAR(InicioFuncion)-YEAR(InicioObra))+MONTH(InicioFuncion)-MONTH(InicioObra)),IF($D32>MONTH(ED$18)-MONTH(InicioFuncion)+12*(YEAR(ED$18)-YEAR(InicioFuncion))+1,0,IF($E32<=(MONTH(ED$18)-MONTH(InicioFuncion)+12*(YEAR(ED$18)-YEAR(InicioFuncion)))-$D32+IF($D32<>"",1,0),0,IF(ED$17>$B$9+(12*(YEAR(InicioFuncion)-YEAR(InicioObra))+MONTH(InicioFuncion)-MONTH(InicioObra)),0,IF((YEAR($B$8)-YEAR($B$7))*12+(MONTH($B$8)-MONTH($B$7))+$E$16<=EC$16,$C32))))*HLOOKUP(YEAR(ED$18),$E$3:$Y$5,3,0),0))) -> 0 | EE32: 0 | EF32: 0 | EG32: 0 | EH32: 0 | EI32: 0 | EJ32: 0 | EK32: 0 | EL32: 0 | EM32: 0 | EN32: 0 | EO32: 0 | EP32: 0 | EQ32: 0 | ER32: 0 | ES32: 0 | ET32: 0 | EU32: 0 | EV32: 0 | EW32: 0 | EX32: 0 | EY32: 0 | EZ32: 0 | FA32: 0 | FB32: 0 | FC32: 0 | FD32: 0 | FE32: 0 | FF32: 0 | FG32: 0 | FH32: 0 | FI32: 0 | FJ32: 0 | FK32: 0 | FL32: 0 | FM32: 0 | FN32: 0 | FO32: 0 | FP32: 0 | FQ32: 0 | FR32: 0 | FS32: 0 | FT32: 0 | FU32: 0 | FV32: 0 | FW32: 0 | FX32: 0 | FY32: 0 | FZ32: 0 | GA32: 0 | GB32: 0 | GC32: 0 | GD32: 0 | GE32: 0 | GF32: 0 | GG32: 0 | GH32: 0 | GI32: 0 | GJ32: 0 | GK32: 0 | GL32: 0 | GM32: 0 | GN32: 0 | GO32: 0 | GP32: =+(IF($A32="","",IF(GP$17>=12+(12*(YEAR(InicioFuncion)-YEAR(InicioObra))+MONTH(InicioFuncion)-MONTH(InicioObra)),IF($D32>MONTH(GP$18)-MONTH(InicioFuncion)+12*(YEAR(GP$18)-YEAR(InicioFuncion))+1,0,IF($E32<=(MONTH(GP$18)-MONTH(InicioFuncion)+12*(YEAR(GP$18)-YEAR(InicioFuncion)))-$D32+IF($D32<>"",1,0),0,IF(GP$17>$B$9+(12*(YEAR(InicioFuncion)-YEAR(InicioObra))+MONTH(InicioFuncion)-MONTH(InicioObra)),0,IF((YEAR($B$8)-YEAR($B$7))*12+(MONTH($B$8)-MONTH($B$7))+$E$16<=GO$16,$C32))))*HLOOKUP(YEAR(GP$18),$E$3:$Y$5,3,0),0))) -> 0 | GQ32: 0 | GR32: 0 | GS32: 0 | GT32: 0 | GU32: 0 | GV32: 0 | GW32: 0 | GX32: 0 | GY32: 0 | GZ32: 0 | HA32: 0 | HB32: 0 | HC32: 0 | HD32: 0 | HE32: 0 | HF32: 0 | HG32: 0 | HH32: 0 | HI32: 0 | HJ32: 0 | HK32: 0 | HL32: 0 | HM32: 0 | HN32: 0 | HO32: 0 | HP32: 0 | HQ32: 0 | HR32: 0 | HS32: 0 | HT32: 0 | HU32: 0 | HV32: 0 | HW32: 0 | HX32: 0 | HY32: 0 | HZ32: 0 | IA32: 0 | IB32: 0 | IC32: 0 | ID32: 0 | IE32: 0 | IF32: 0 | IG32: 0 | IH32: 0 | II32: 0 | IJ32: 0 | IK32: 0 | IL32: 0 | IM32: OPEX
A33: Mto Enlace De Transmision Mw Soporte Fabricante /Anual | C33: =+SUMIFS(ValoresMercado,Conceptos,A33,Tipo,TipoEspecifico)/12 -> 108333.3333 | E33: 60 | F33: =+(IF($A33="","",IF(F$17>=12+(12*(YEAR(InicioFuncion)-YEAR(InicioObra))+MONTH(InicioFuncion)-MONTH(InicioObra)),IF($D33>MONTH(F$18)-MONTH(InicioFuncion)+12*(YEAR(F$18)-YEAR(InicioFuncion))+1,0,IF($E33<=(MONTH(F$18)-MONTH(InicioFuncion)+12*(YEAR(F$18)-YEAR(InicioFuncion)))-$D33+IF($D33<>"",1,0),0,IF(F$17>$B$9+(12*(YEAR(InicioFuncion)-YEAR(InicioObra))+MONTH(InicioFuncion)-MONTH(InicioObra)),0,IF((YEAR($B$8)-YEAR($B$7))*12+(MONTH($B$8)-MONTH($B$7))+$E$16<=E$16,$C33))))*HLOOKUP(YEAR(F$18),$E$3:$Y$5,3,0),0))) -> 0 | G33: 0 | H33: 0 | I33: 0 | J33: 0 | K33: 0 | L33: 0 | M33: 0 | N33: 0 | O33: 0 | P33: 0 | Q33: 0 | R33: 0 | S33: 0 | T33: 0 | U33: 0 | V33: 0 | W33: 0 | X33: 0 | Y33: 0 | Z33: 114930.8333 | AA33: 114930.8333 | AB33: 114930.8333 | AC33: 114930.8333 | AD33: 114930.8333 | AE33: 114930.8333 | AF33: 118378.7583 | AG33: 118378.7583 | AH33: 118378.7583 | AI33: 118378.7583 | AJ33: 118378.7583 | AK33: 118378.7583 | AL33: 118378.7583 | AM33: 118378.7583 | AN33: 118378.7583 | AO33: 118378.7583 | AP33: 118378.7583 | AQ33: 118378.7583 | AR33: 121930.1211 | AS33: 121930.1211 | AT33: 121930.1211 | AU33: 121930.1211 | AV33: 121930.1211 | AW33: 121930.1211 | AX33: 121930.1211 | AY33: 121930.1211 | AZ33: 121930.1211 | BA33: 121930.1211 | BB33: 121930.1211 | BC33: 121930.1211 | BD33: 125588.0247 | BE33: 125588.0247 | BF33: 125588.0247 | BG33: 125588.0247 | BH33: 125588.0247 | BI33: 125588.0247 | BJ33: 125588.0247 | BK33: 125588.0247 | BL33: 125588.0247 | BM33: 125588.0247 | BN33: 125588.0247 | BO33: 125588.0247 | BP33: 129355.6655 | BQ33: 129355.6655 | BR33: =+(IF($A33="","",IF(BR$17>=12+(12*(YEAR(InicioFuncion)-YEAR(InicioObra))+MONTH(InicioFuncion)-MONTH(InicioObra)),IF($D33>MONTH(BR$18)-MONTH(InicioFuncion)+12*(YEAR(BR$18)-YEAR(InicioFuncion))+1,0,IF($E33<=(MONTH(BR$18)-MONTH(InicioFuncion)+12*(YEAR(BR$18)-YEAR(InicioFuncion)))-$D33+IF($D33<>"",1,0),0,IF(BR$17>$B$9+(12*(YEAR(InicioFuncion)-YEAR(InicioObra))+MONTH(InicioFuncion)-MONTH(InicioObra)),0,IF((YEAR($B$8)-YEAR($B$7))*12+(MONTH($B$8)-MONTH($B$7))+$E$16<=BQ$16,$C33))))*HLOOKUP(YEAR(BR$18),$E$3:$Y$5,3,0),0))) -> 129355.6655 | BS33: 129355.6655 | BT33: 129355.6655 | BU33: 129355.6655 | BV33: 0 | BW33: 0 | BX33: 0 | BY33: 0 | BZ33: 0 | CA33: 0 | CB33: 0 | CC33: 0 | CD33: 0 | CE33: 0 | CF33: 0 | CG33: 0 | CH33: 0 | CI33: 0 | CJ33: 0 | CK33: 0 | CL33: 0 | CM33: 0 | CN33: 0 | CO33: 0 | CP33: 0 | CQ33: 0 | CR33: 0 | CS33: 0 | CT33: 0 | CU33: 0 | CV33: 0 | CW33: 0 | CX33: 0 | CY33: 0 | CZ33: 0 | DA33: 0 | DB33: 0 | DC33: 0 | DD33: 0 | DE33: 0 | DF33: 0 | DG33: 0 | DH33: 0 | DI33: 0 | DJ33: 0 | DK33: 0 | DL33: 0 | DM33: 0 | DN33: 0 | DO33: 0 | DP33: 0 | DQ33: 0 | DR33: 0 | DS33: 0 | DT33: 0 | DU33: 0 | DV33: 0 | DW33: 0 | DX33: 0 | DY33: 0 | DZ33: 0 | EA33: 0 | EB33: 0 | EC33: 0 | ED33: =+(IF($A33="","",IF(ED$17>=12+(12*(YEAR(InicioFuncion)-YEAR(InicioObra))+MONTH(InicioFuncion)-MONTH(InicioObra)),IF($D33>MONTH(ED$18)-MONTH(InicioFuncion)+12*(YEAR(ED$18)-YEAR(InicioFuncion))+1,0,IF($E33<=(MONTH(ED$18)-MONTH(InicioFuncion)+12*(YEAR(ED$18)-YEAR(InicioFuncion)))-$D33+IF($D33<>"",1,0),0,IF(ED$17>$B$9+(12*(YEAR(InicioFuncion)-YEAR(InicioObra))+MONTH(InicioFuncion)-MONTH(InicioObra)),0,IF((YEAR($B$8)-YEAR($B$7))*12+(MONTH($B$8)-MONTH($B$7))+$E$16<=EC$16,$C33))))*HLOOKUP(YEAR(ED$18),$E$3:$Y$5,3,0),0))) -> 0 | EE33: 0 | EF33: 0 | EG33: 0 | EH33: 0 | EI33: 0 | EJ33: 0 | EK33: 0 | EL33: 0 | EM33: 0 | EN33: 0 | EO33: 0 | EP33: 0 | EQ33: 0 | ER33: 0 | ES33: 0 | ET33: 0 | EU33: 0 | EV33: 0 | EW33: 0 | EX33: 0 | EY33: 0 | EZ33: 0 | FA33: 0 | FB33: 0 | FC33: 0 | FD33: 0 | FE33: 0 | FF33: 0 | FG33: 0 | FH33: 0 | FI33: 0 | FJ33: 0 | FK33: 0 | FL33: 0 | FM33: 0 | FN33: 0 | FO33: 0 | FP33: 0 | FQ33: 0 | FR33: 0 | FS33: 0 | FT33: 0 | FU33: 0 | FV33: 0 | FW33: 0 | FX33: 0 | FY33: 0 | FZ33: 0 | GA33: 0 | GB33: 0 | GC33: 0 | GD33: 0 | GE33: 0 | GF33: 0 | GG33: 0 | GH33: 0 | GI33: 0 | GJ33: 0 | GK33: 0 | GL33: 0 | GM33: 0 | GN33: 0 | GO33: 0 | GP33: =+(IF($A33="","",IF(GP$17>=12+(12*(YEAR(InicioFuncion)-YEAR(InicioObra))+MONTH(InicioFuncion)-MONTH(InicioObra)),IF($D33>MONTH(GP$18)-MONTH(InicioFuncion)+12*(YEAR(GP$18)-YEAR(InicioFuncion))+1,0,IF($E33<=(MONTH(GP$18)-MONTH(InicioFuncion)+12*(YEAR(GP$18)-YEAR(InicioFuncion)))-$D33+IF($D33<>"",1,0),0,IF(GP$17>$B$9+(12*(YEAR(InicioFuncion)-YEAR(InicioObra))+MONTH(InicioFuncion)-MONTH(InicioObra)),0,IF((YEAR($B$8)-YEAR($B$7))*12+(MONTH($B$8)-MONTH($B$7))+$E$16<=GO$16,$C33))))*HLOOKUP(YEAR(GP$18),$E$3:$Y$5,3,0),0))) -> 0 | GQ33: 0 | GR33: 0 | GS33: 0 | GT33: 0 | GU33: 0 | GV33: 0 | GW33: 0 | GX33: 0 | GY33: 0 | GZ33: 0 | HA33: 0 | HB33: 0 | HC33: 0 | HD33: 0 | HE33: 0 | HF33: 0 | HG33: 0 | HH33: 0 | HI33: 0 | HJ33: 0 | HK33: 0 | HL33: 0 | HM33: 0 | HN33: 0 | HO33: 0 | HP33: 0 | HQ33: 0 | HR33: 0 | HS33: 0 | HT33: 0 | HU33: 0 | HV33: 0 | HW33: 0 | HX33: 0 | HY33: 0 | HZ33: 0 | IA33: 0 | IB33: 0 | IC33: 0 | ID33: 0 | IE33: 0 | IF33: 0 | IG33: 0 | IH33: 0 | II33: 0 | IJ33: 0 | IK33: 0 | IL33: 0 | IM33: OPEX
A34: Mto Preventivo Transferencia Y Control / Anual | C34: =+SUMIFS(ValoresMercado,Conceptos,A34,Tipo,TipoEspecifico,Relacion,KW_EnergiaValor)/12 -> 32500 | E34: 60 | F34: =+(IF($A34="","",IF(F$17>=12+(12*(YEAR(InicioFuncion)-YEAR(InicioObra))+MONTH(InicioFuncion)-MONTH(InicioObra)),IF($D34>MONTH(F$18)-MONTH(InicioFuncion)+12*(YEAR(F$18)-YEAR(InicioFuncion))+1,0,IF($E34<=(MONTH(F$18)-MONTH(InicioFuncion)+12*(YEAR(F$18)-YEAR(InicioFuncion)))-$D34+IF($D34<>"",1,0),0,IF(F$17>$B$9+(12*(YEAR(InicioFuncion)-YEAR(InicioObra))+MONTH(InicioFuncion)-MONTH(InicioObra)),0,IF((YEAR($B$8)-YEAR($B$7))*12+(MONTH($B$8)-MONTH($B$7))+$E$16<=E$16,$C34))))*HLOOKUP(YEAR(F$18),$E$3:$Y$5,3,0),0))) -> 0 | G34: 0 | H34: 0 | I34: 0 | J34: 0 | K34: 0 | L34: 0 | M34: 0 | N34: 0 | O34: 0 | P34: 0 | Q34: 0 | R34: 0 | S34: 0 | T34: 0 | U34: 0 | V34: 0 | W34: 0 | X34: 0 | Y34: 0 | Z34: 34479.25 | AA34: 34479.25 | AB34: 34479.25 | AC34: 34479.25 | AD34: 34479.25 | AE34: 34479.25 | AF34: 35513.6275 | AG34: 35513.6275 | AH34: 35513.6275 | AI34: 35513.6275 | AJ34: 35513.6275 | AK34: 35513.6275 | AL34: 35513.6275 | AM34: 35513.6275 | AN34: 35513.6275 | AO34: 35513.6275 | AP34: 35513.6275 | AQ34: 35513.6275 | AR34: 36579.03633 | AS34: 36579.03633 | AT34: 36579.03633 | AU34: 36579.03633 | AV34: 36579.03633 | AW34: 36579.03633 | AX34: 36579.03633 | AY34: 36579.03633 | AZ34: 36579.03633 | BA34: 36579.03633 | BB34: 36579.03633 | BC34: 36579.03633 | BD34: 37676.40741 | BE34: 37676.40741 | BF34: 37676.40741 | BG34: 37676.40741 | BH34: 37676.40741 | BI34: 37676.40741 | BJ34: 37676.40741 | BK34: 37676.40741 | BL34: 37676.40741 | BM34: 37676.40741 | BN34: 37676.40741 | BO34: 37676.40741 | BP34: 38806.69964 | BQ34: 38806.69964 | BR34: =+(IF($A34="","",IF(BR$17>=12+(12*(YEAR(InicioFuncion)-YEAR(InicioObra))+MONTH(InicioFuncion)-MONTH(InicioObra)),IF($D34>MONTH(BR$18)-MONTH(InicioFuncion)+12*(YEAR(BR$18)-YEAR(InicioFuncion))+1,0,IF($E34<=(MONTH(BR$18)-MONTH(InicioFuncion)+12*(YEAR(BR$18)-YEAR(InicioFuncion)))-$D34+IF($D34<>"",1,0),0,IF(BR$17>$B$9+(12*(YEAR(InicioFuncion)-YEAR(InicioObra))+MONTH(InicioFuncion)-MONTH(InicioObra)),0,IF((YEAR($B$8)-YEAR($B$7))*12+(MONTH($B$8)-MONTH($B$7))+$E$16<=BQ$16,$C34))))*HLOOKUP(YEAR(BR$18),$E$3:$Y$5,3,0),0))) -> 38806.69964 | BS34: 38806.69964 | BT34: 38806.69964 | BU34: 38806.69964 | BV34: 0 | BW34: 0 | BX34: 0 | BY34: 0 | BZ34: 0 | CA34: 0 | CB34: 0 | CC34: 0 | CD34: 0 | CE34: 0 | CF34: 0 | CG34: 0 | CH34: 0 | CI34: 0 | CJ34: 0 | CK34: 0 | CL34: 0 | CM34: 0 | CN34: 0 | CO34: 0 | CP34: 0 | CQ34: 0 | CR34: 0 | CS34: 0 | CT34: 0 | CU34: 0 | CV34: 0 | CW34: 0 | CX34: 0 | CY34: 0 | CZ34: 0 | DA34: 0 | DB34: 0 | DC34: 0 | DD34: 0 | DE34: 0 | DF34: 0 | DG34: 0 | DH34: 0 | DI34: 0 | DJ34: 0 | DK34: 0 | DL34: 0 | DM34: 0 | DN34: 0 | DO34: 0 | DP34: 0 | DQ34: 0 | DR34: 0 | DS34: 0 | DT34: 0 | DU34: 0 | DV34: 0 | DW34: 0 | DX34: 0 | DY34: 0 | DZ34: 0 | EA34: 0 | EB34: 0 | EC34: 0 | ED34: =+(IF($A34="","",IF(ED$17>=12+(12*(YEAR(InicioFuncion)-YEAR(InicioObra))+MONTH(InicioFuncion)-MONTH(InicioObra)),IF($D34>MONTH(ED$18)-MONTH(InicioFuncion)+12*(YEAR(ED$18)-YEAR(InicioFuncion))+1,0,IF($E34<=(MONTH(ED$18)-MONTH(InicioFuncion)+12*(YEAR(ED$18)-YEAR(InicioFuncion)))-$D34+IF($D34<>"",1,0),0,IF(ED$17>$B$9+(12*(YEAR(InicioFuncion)-YEAR(InicioObra))+MONTH(InicioFuncion)-MONTH(InicioObra)),0,IF((YEAR($B$8)-YEAR($B$7))*12+(MONTH($B$8)-MONTH($B$7))+$E$16<=EC$16,$C34))))*HLOOKUP(YEAR(ED$18),$E$3:$Y$5,3,0),0))) -> 0 | EE34: 0 | EF34: 0 | EG34: 0 | EH34: 0 | EI34: 0 | EJ34: 0 | EK34: 0 | EL34: 0 | EM34: 0 | EN34: 0 | EO34: 0 | EP34: 0 | EQ34: 0 | ER34: 0 | ES34: 0 | ET34: 0 | EU34: 0 | EV34: 0 | EW34: 0 | EX34: 0 | EY34: 0 | EZ34: 0 | FA34: 0 | FB34: 0 | FC34: 0 | FD34: 0 | FE34: 0 | FF34: 0 | FG34: 0 | FH34: 0 | FI34: 0 | FJ34: 0 | FK34: 0 | FL34: 0 | FM34: 0 | FN34: 0 | FO34: 0 | FP34: 0 | FQ34: 0 | FR34: 0 | FS34: 0 | FT34: 0 | FU34: 0 | FV34: 0 | FW34: 0 | FX34: 0 | FY34: 0 | FZ34: 0 | GA34: 0 | GB34: 0 | GC34: 0 | GD34: 0 | GE34: 0 | GF34: 0 | GG34: 0 | GH34: 0 | GI34: 0 | GJ34: 0 | GK34: 0 | GL34: 0 | GM34: 0 | GN34: 0 | GO34: 0 | GP34: =+(IF($A34="","",IF(GP$17>=12+(12*(YEAR(InicioFuncion)-YEAR(InicioObra))+MONTH(InicioFuncion)-MONTH(InicioObra)),IF($D34>MONTH(GP$18)-MONTH(InicioFuncion)+12*(YEAR(GP$18)-YEAR(InicioFuncion))+1,0,IF($E34<=(MONTH(GP$18)-MONTH(InicioFuncion)+12*(YEAR(GP$18)-YEAR(InicioFuncion)))-$D34+IF($D34<>"",1,0),0,IF(GP$17>$B$9+(12*(YEAR(InicioFuncion)-YEAR(InicioObra))+MONTH(InicioFuncion)-MONTH(InicioObra)),0,IF((YEAR($B$8)-YEAR($B$7))*12+(MONTH($B$8)-MONTH($B$7))+$E$16<=GO$16,$C34))))*HLOOKUP(YEAR(GP$18),$E$3:$Y$5,3,0),0))) -> 0 | GQ34: 0 | GR34: 0 | GS34: 0 | GT34: 0 | GU34: 0 | GV34: 0 | GW34: 0 | GX34: 0 | GY34: 0 | GZ34: 0 | HA34: 0 | HB34: 0 | HC34: 0 | HD34: 0 | HE34: 0 | HF34: 0 | HG34: 0 | HH34: 0 | HI34: 0 | HJ34: 0 | HK34: 0 | HL34: 0 | HM34: 0 | HN34: 0 | HO34: 0 | HP34: 0 | HQ34: 0 | HR34: 0 | HS34: 0 | HT34: 0 | HU34: 0 | HV34: 0 | HW34: 0 | HX34: 0 | HY34: 0 | HZ34: 0 | IA34: 0 | IB34: 0 | IC34: 0 | ID34: 0 | IE34: 0 | IF34: 0 | IG34: 0 | IH34: 0 | II34: 0 | IJ34: 0 | IK34: 0 | IL34: 0 | IM34: OPEX
A35: Mto Preventivoplanta Electrica / Anual | C35: =+SUMIFS(ValoresMercado,Conceptos,A35,Tipo,TipoEspecifico,Relacion,KW_EnergiaValor)/12 -> 233880.1667 | E35: 60 | F35: =+(IF($A35="","",IF(F$17>=12+(12*(YEAR(InicioFuncion)-YEAR(InicioObra))+MONTH(InicioFuncion)-MONTH(InicioObra)),IF($D35>MONTH(F$18)-MONTH(InicioFuncion)+12*(YEAR(F$18)-YEAR(InicioFuncion))+1,0,IF($E35<=(MONTH(F$18)-MONTH(InicioFuncion)+12*(YEAR(F$18)-YEAR(InicioFuncion)))-$D35+IF($D35<>"",1,0),0,IF(F$17>$B$9+(12*(YEAR(InicioFuncion)-YEAR(InicioObra))+MONTH(InicioFuncion)-MONTH(InicioObra)),0,IF((YEAR($B$8)-YEAR($B$7))*12+(MONTH($B$8)-MONTH($B$7))+$E$16<=E$16,$C35))))*HLOOKUP(YEAR(F$18),$E$3:$Y$5,3,0),0))) -> 0 | G35: 0 | H35: 0 | I35: 0 | J35: 0 | K35: 0 | L35: 0 | M35: 0 | N35: 0 | O35: 0 | P35: 0 | Q35: 0 | R35: 0 | S35: 0 | T35: 0 | U35: 0 | V35: 0 | W35: 0 | X35: 0 | Y35: 0 | Z35: 248123.4688 | AA35: 248123.4688 | AB35: 248123.4688 | AC35: 248123.4688 | AD35: 248123.4688 | AE35: 248123.4688 | AF35: 255567.1729 | AG35: 255567.1729 | AH35: 255567.1729 | AI35: 255567.1729 | AJ35: 255567.1729 | AK35: 255567.1729 | AL35: 255567.1729 | AM35: 255567.1729 | AN35: 255567.1729 | AO35: 255567.1729 | AP35: 255567.1729 | AQ35: 255567.1729 | AR35: 263234.1881 | AS35: 263234.1881 | AT35: 263234.1881 | AU35: 263234.1881 | AV35: 263234.1881 | AW35: 263234.1881 | AX35: 263234.1881 | AY35: 263234.1881 | AZ35: 263234.1881 | BA35: 263234.1881 | BB35: 263234.1881 | BC35: 263234.1881 | BD35: 271131.2137 | BE35: 271131.2137 | BF35: 271131.2137 | BG35: 271131.2137 | BH35: 271131.2137 | BI35: 271131.2137 | BJ35: 271131.2137 | BK35: 271131.2137 | BL35: 271131.2137 | BM35: 271131.2137 | BN35: 271131.2137 | BO35: 271131.2137 | BP35: 279265.1501 | BQ35: 279265.1501 | BR35: =+(IF($A35="","",IF(BR$17>=12+(12*(YEAR(InicioFuncion)-YEAR(InicioObra))+MONTH(InicioFuncion)-MONTH(InicioObra)),IF($D35>MONTH(BR$18)-MONTH(InicioFuncion)+12*(YEAR(BR$18)-YEAR(InicioFuncion))+1,0,IF($E35<=(MONTH(BR$18)-MONTH(InicioFuncion)+12*(YEAR(BR$18)-YEAR(InicioFuncion)))-$D35+IF($D35<>"",1,0),0,IF(BR$17>$B$9+(12*(YEAR(InicioFuncion)-YEAR(InicioObra))+MONTH(InicioFuncion)-MONTH(InicioObra)),0,IF((YEAR($B$8)-YEAR($B$7))*12+(MONTH($B$8)-MONTH($B$7))+$E$16<=BQ$16,$C35))))*HLOOKUP(YEAR(BR$18),$E$3:$Y$5,3,0),0))) -> 279265.1501 | BS35: 279265.1501 | BT35: 279265.1501 | BU35: 279265.1501 | BV35: 0 | BW35: 0 | BX35: 0 | BY35: 0 | BZ35: 0 | CA35: 0 | CB35: 0 | CC35: 0 | CD35: 0 | CE35: 0 | CF35: 0 | CG35: 0 | CH35: 0 | CI35: 0 | CJ35: 0 | CK35: 0 | CL35: 0 | CM35: 0 | CN35: 0 | CO35: 0 | CP35: 0 | CQ35: 0 | CR35: 0 | CS35: 0 | CT35: 0 | CU35: 0 | CV35: 0 | CW35: 0 | CX35: 0 | CY35: 0 | CZ35: 0 | DA35: 0 | DB35: 0 | DC35: 0 | DD35: 0 | DE35: 0 | DF35: 0 | DG35: 0 | DH35: 0 | DI35: 0 | DJ35: 0 | DK35: 0 | DL35: 0 | DM35: 0 | DN35: 0 | DO35: 0 | DP35: 0 | DQ35: 0 | DR35: 0 | DS35: 0 | DT35: 0 | DU35: 0 | DV35: 0 | DW35: 0 | DX35: 0 | DY35: 0 | DZ35: 0 | EA35: 0 | EB35: 0 | EC35: 0 | ED35: =+(IF($A35="","",IF(ED$17>=12+(12*(YEAR(InicioFuncion)-YEAR(InicioObra))+MONTH(InicioFuncion)-MONTH(InicioObra)),IF($D35>MONTH(ED$18)-MONTH(InicioFuncion)+12*(YEAR(ED$18)-YEAR(InicioFuncion))+1,0,IF($E35<=(MONTH(ED$18)-MONTH(InicioFuncion)+12*(YEAR(ED$18)-YEAR(InicioFuncion)))-$D35+IF($D35<>"",1,0),0,IF(ED$17>$B$9+(12*(YEAR(InicioFuncion)-YEAR(InicioObra))+MONTH(InicioFuncion)-MONTH(InicioObra)),0,IF((YEAR($B$8)-YEAR($B$7))*12+(MONTH($B$8)-MONTH($B$7))+$E$16<=EC$16,$C35))))*HLOOKUP(YEAR(ED$18),$E$3:$Y$5,3,0),0))) -> 0 | EE35: 0 | EF35: 0 | EG35: 0 | EH35: 0 | EI35: 0 | EJ35: 0 | EK35: 0 | EL35: 0 | EM35: 0 | EN35: 0 | EO35: 0 | EP35: 0 | EQ35: 0 | ER35: 0 | ES35: 0 | ET35: 0 | EU35: 0 | EV35: 0 | EW35: 0 | EX35: 0 | EY35: 0 | EZ35: 0 | FA35: 0 | FB35: 0 | FC35: 0 | FD35: 0 | FE35: 0 | FF35: 0 | FG35: 0 | FH35: 0 | FI35: 0 | FJ35: 0 | FK35: 0 | FL35: 0 | FM35: 0 | FN35: 0 | FO35: 0 | FP35: 0 | FQ35: 0 | FR35: 0 | FS35: 0 | FT35: 0 | FU35: 0 | FV35: 0 | FW35: 0 | FX35: 0 | FY35: 0 | FZ35: 0 | GA35: 0 | GB35: 0 | GC35: 0 | GD35: 0 | GE35: 0 | GF35: 0 | GG35: 0 | GH35: 0 | GI35: 0 | GJ35: 0 | GK35: 0 | GL35: 0 | GM35: 0 | GN35: 0 | GO35: 0 | GP35: =+(IF($A35="","",IF(GP$17>=12+(12*(YEAR(InicioFuncion)-YEAR(InicioObra))+MONTH(InicioFuncion)-MONTH(InicioObra)),IF($D35>MONTH(GP$18)-MONTH(InicioFuncion)+12*(YEAR(GP$18)-YEAR(InicioFuncion))+1,0,IF($E35<=(MONTH(GP$18)-MONTH(InicioFuncion)+12*(YEAR(GP$18)-YEAR(InicioFuncion)))-$D35+IF($D35<>"",1,0),0,IF(GP$17>$B$9+(12*(YEAR(InicioFuncion)-YEAR(InicioObra))+MONTH(InicioFuncion)-MONTH(InicioObra)),0,IF((YEAR($B$8)-YEAR($B$7))*12+(MONTH($B$8)-MONTH($B$7))+$E$16<=GO$16,$C35))))*HLOOKUP(YEAR(GP$18),$E$3:$Y$5,3,0),0))) -> 0 | GQ35: 0 | GR35: 0 | GS35: 0 | GT35: 0 | GU35: 0 | GV35: 0 | GW35: 0 | GX35: 0 | GY35: 0 | GZ35: 0 | HA35: 0 | HB35: 0 | HC35: 0 | HD35: 0 | HE35: 0 | HF35: 0 | HG35: 0 | HH35: 0 | HI35: 0 | HJ35: 0 | HK35: 0 | HL35: 0 | HM35: 0 | HN35: 0 | HO35: 0 | HP35: 0 | HQ35: 0 | HR35: 0 | HS35: 0 | HT35: 0 | HU35: 0 | HV35: 0 | HW35: 0 | HX35: 0 | HY35: 0 | HZ35: 0 | IA35: 0 | IB35: 0 | IC35: 0 | ID35: 0 | IE35: 0 | IF35: 0 | IG35: 0 | IH35: 0 | II35: 0 | IJ35: 0 | IK35: 0 | IL35: 0 | IM35: OPEX
A36: Mto Sistema De Seguridad Electronica | C36: =+SUMIFS(ValoresMercado,Conceptos,A36)/12 -> 452073.5508 | E36: 60 | F36: =+(IF($A36="","",IF(F$17>=12+(12*(YEAR(InicioFuncion)-YEAR(InicioObra))+MONTH(InicioFuncion)-MONTH(InicioObra)),IF($D36>MONTH(F$18)-MONTH(InicioFuncion)+12*(YEAR(F$18)-YEAR(InicioFuncion))+1,0,IF($E36<=(MONTH(F$18)-MONTH(InicioFuncion)+12*(YEAR(F$18)-YEAR(InicioFuncion)))-$D36+IF($D36<>"",1,0),0,IF(F$17>$B$9+(12*(YEAR(InicioFuncion)-YEAR(InicioObra))+MONTH(InicioFuncion)-MONTH(InicioObra)),0,IF((YEAR($B$8)-YEAR($B$7))*12+(MONTH($B$8)-MONTH($B$7))+$E$16<=E$16,$C36))))*HLOOKUP(YEAR(F$18),$E$3:$Y$5,3,0),0))) -> 0 | G36: 0 | H36: 0 | I36: 0 | J36: 0 | K36: 0 | L36: 0 | M36: 0 | N36: 0 | O36: 0 | P36: 0 | Q36: 0 | R36: 0 | S36: 0 | T36: 0 | U36: 0 | V36: 0 | W36: 0 | X36: 0 | Y36: 0 | Z36: 479604.8301 | AA36: 479604.8301 | AB36: 479604.8301 | AC36: 479604.8301 | AD36: 479604.8301 | AE36: 479604.8301 | AF36: 493992.975 | AG36: 493992.975 | AH36: 493992.975 | AI36: 493992.975 | AJ36: 493992.975 | AK36: 493992.975 | AL36: 493992.975 | AM36: 493992.975 | AN36: 493992.975 | AO36: 493992.975 | AP36: 493992.975 | AQ36: 493992.975 | AR36: 508812.7642 | AS36: 508812.7642 | AT36: 508812.7642 | AU36: 508812.7642 | AV36: 508812.7642 | AW36: 508812.7642 | AX36: 508812.7642 | AY36: 508812.7642 | AZ36: 508812.7642 | BA36: 508812.7642 | BB36: 508812.7642 | BC36: 508812.7642 | BD36: 524077.1472 | BE36: 524077.1472 | BF36: 524077.1472 | BG36: 524077.1472 | BH36: 524077.1472 | BI36: 524077.1472 | BJ36: 524077.1472 | BK36: 524077.1472 | BL36: 524077.1472 | BM36: 524077.1472 | BN36: 524077.1472 | BO36: 524077.1472 | BP36: 539799.4616 | BQ36: 539799.4616 | BR36: =+(IF($A36="","",IF(BR$17>=12+(12*(YEAR(InicioFuncion)-YEAR(InicioObra))+MONTH(InicioFuncion)-MONTH(InicioObra)),IF($D36>MONTH(BR$18)-MONTH(InicioFuncion)+12*(YEAR(BR$18)-YEAR(InicioFuncion))+1,0,IF($E36<=(MONTH(BR$18)-MONTH(InicioFuncion)+12*(YEAR(BR$18)-YEAR(InicioFuncion)))-$D36+IF($D36<>"",1,0),0,IF(BR$17>$B$9+(12*(YEAR(InicioFuncion)-YEAR(InicioObra))+MONTH(InicioFuncion)-MONTH(InicioObra)),0,IF((YEAR($B$8)-YEAR($B$7))*12+(MONTH($B$8)-MONTH($B$7))+$E$16<=BQ$16,$C36))))*HLOOKUP(YEAR(BR$18),$E$3:$Y$5,3,0),0))) -> 539799.4616 | BS36: 539799.4616 | BT36: 539799.4616 | BU36: 539799.4616 | BV36: 0 | BW36: 0 | BX36: 0 | BY36: 0 | BZ36: 0 | CA36: 0 | CB36: 0 | CC36: 0 | CD36: 0 | CE36: 0 | CF36: 0 | CG36: 0 | CH36: 0 | CI36: 0 | CJ36: 0 | CK36: 0 | CL36: 0 | CM36: 0 | CN36: 0 | CO36: 0 | CP36: 0 | CQ36: 0 | CR36: 0 | CS36: 0 | CT36: 0 | CU36: 0 | CV36: 0 | CW36: 0 | CX36: 0 | CY36: 0 | CZ36: 0 | DA36: 0 | DB36: 0 | DC36: 0 | DD36: 0 | DE36: 0 | DF36: 0 | DG36: 0 | DH36: 0 | DI36: 0 | DJ36: 0 | DK36: 0 | DL36: 0 | DM36: 0 | DN36: 0 | DO36: 0 | DP36: 0 | DQ36: 0 | DR36: 0 | DS36: 0 | DT36: 0 | DU36: 0 | DV36: 0 | DW36: 0 | DX36: 0 | DY36: 0 | DZ36: 0 | EA36: 0 | EB36: 0 | EC36: 0 | ED36: =+(IF($A36="","",IF(ED$17>=12+(12*(YEAR(InicioFuncion)-YEAR(InicioObra))+MONTH(InicioFuncion)-MONTH(InicioObra)),IF($D36>MONTH(ED$18)-MONTH(InicioFuncion)+12*(YEAR(ED$18)-YEAR(InicioFuncion))+1,0,IF($E36<=(MONTH(ED$18)-MONTH(InicioFuncion)+12*(YEAR(ED$18)-YEAR(InicioFuncion)))-$D36+IF($D36<>"",1,0),0,IF(ED$17>$B$9+(12*(YEAR(InicioFuncion)-YEAR(InicioObra))+MONTH(InicioFuncion)-MONTH(InicioObra)),0,IF((YEAR($B$8)-YEAR($B$7))*12+(MONTH($B$8)-MONTH($B$7))+$E$16<=EC$16,$C36))))*HLOOKUP(YEAR(ED$18),$E$3:$Y$5,3,0),0))) -> 0 | EE36: 0 | EF36: 0 | EG36: 0 | EH36: 0 | EI36: 0 | EJ36: 0 | EK36: 0 | EL36: 0 | EM36: 0 | EN36: 0 | EO36: 0 | EP36: 0 | EQ36: 0 | ER36: 0 | ES36: 0 | ET36: 0 | EU36: 0 | EV36: 0 | EW36: 0 | EX36: 0 | EY36: 0 | EZ36: 0 | FA36: 0 | FB36: 0 | FC36: 0 | FD36: 0 | FE36: 0 | FF36: 0 | FG36: 0 | FH36: 0 | FI36: 0 | FJ36: 0 | FK36: 0 | FL36: 0 | FM36: 0 | FN36: 0 | FO36: 0 | FP36: 0 | FQ36: 0 | FR36: 0 | FS36: 0 | FT36: 0 | FU36: 0 | FV36: 0 | FW36: 0 | FX36: 0 | FY36: 0 | FZ36: 0 | GA36: 0 | GB36: 0 | GC36: 0 | GD36: 0 | GE36: 0 | GF36: 0 | GG36: 0 | GH36: 0 | GI36: 0 | GJ36: 0 | GK36: 0 | GL36: 0 | GM36: 0 | GN36: 0 | GO36: 0 | GP36: =+(IF($A36="","",IF(GP$17>=12+(12*(YEAR(InicioFuncion)-YEAR(InicioObra))+MONTH(InicioFuncion)-MONTH(InicioObra)),IF($D36>MONTH(GP$18)-MONTH(InicioFuncion)+12*(YEAR(GP$18)-YEAR(InicioFuncion))+1,0,IF($E36<=(MONTH(GP$18)-MONTH(InicioFuncion)+12*(YEAR(GP$18)-YEAR(InicioFuncion)))-$D36+IF($D36<>"",1,0),0,IF(GP$17>$B$9+(12*(YEAR(InicioFuncion)-YEAR(InicioObra))+MONTH(InicioFuncion)-MONTH(InicioObra)),0,IF((YEAR($B$8)-YEAR($B$7))*12+(MONTH($B$8)-MONTH($B$7))+$E$16<=GO$16,$C36))))*HLOOKUP(YEAR(GP$18),$E$3:$Y$5,3,0),0))) -> 0 | GQ36: 0 | GR36: 0 | GS36: 0 | GT36: 0 | GU36: 0 | GV36: 0 | GW36: 0 | GX36: 0 | GY36: 0 | GZ36: 0 | HA36: 0 | HB36: 0 | HC36: 0 | HD36: 0 | HE36: 0 | HF36: 0 | HG36: 0 | HH36: 0 | HI36: 0 | HJ36: 0 | HK36: 0 | HL36: 0 | HM36: 0 | HN36: 0 | HO36: 0 | HP36: 0 | HQ36: 0 | HR36: 0 | HS36: 0 | HT36: 0 | HU36: 0 | HV36: 0 | HW36: 0 | HX36: 0 | HY36: 0 | HZ36: 0 | IA36: 0 | IB36: 0 | IC36: 0 | ID36: 0 | IE36: 0 | IF36: 0 | IG36: 0 | IH36: 0 | II36: 0 | IJ36: 0 | IK36: 0 | IL36: 0 | IM36: OPEX
A37: Planta Electrica | B37: =+SUMIFS(ValoresMercado,Conceptos,A37,Tipo,TipoEspecifico,Relacion,PlantaElectrica) -> 67780600 | E37: 60 | F37: =+IF($A37="","",IF($D37=F$17,$B37+IF(MONTH($B$8)-MONTH($B$7)+$E$16=E$16,$C37,0),0)) -> 67780600 | G37: 0 | H37: 0 | I37: 0 | J37: 0 | K37: 0 | L37: 0 | M37: 0 | N37: 0 | O37: 0 | P37: 0 | Q37: 0 | R37: 0 | S37: 0 | T37: 0 | U37: 0 | V37: 0 | W37: 0 | X37: 0 | Y37: 0 | Z37: 0 | AA37: 0 | AB37: 0 | AC37: 0 | AD37: 0 | AE37: 0 | AF37: 0 | AG37: 0 | AH37: 0 | AI37: 0 | AJ37: 0 | AK37: 0 | AL37: =+IF($A37="","",IF($D37=AL$17,$B37+IF(MONTH($B$8)-MONTH($B$7)+$E$16=AK$16,$C37,0),0)) -> 0 | AM37: 0 | AN37: 0 | AO37: 0 | AP37: 0 | AQ37: 0 | AR37: 0 | AS37: 0 | AT37: 0 | AU37: 0 | AV37: 0 | AW37: 0 | AX37: 0 | AY37: 0 | AZ37: 0 | BA37: 0 | BB37: 0 | BC37: 0 | BD37: 0 | BE37: 0 | BF37: 0 | BG37: 0 | BH37: 0 | BI37: 0 | BJ37: 0 | BK37: 0 | BL37: 0 | BM37: 0 | BN37: 0 | BO37: 0 | BP37: 0 | BQ37: 0 | BR37: =+IF($A37="","",IF($D37=BR$17,$B37+IF(MONTH($B$8)-MONTH($B$7)+$E$16=BQ$16,$C37,0),0)) -> 0 | BS37: 0 | BT37: 0 | BU37: 0 | BV37: 0 | BW37: 0 | BX37: 0 | BY37: 0 | BZ37: 0 | CA37: 0 | CB37: 0 | CC37: 0 | CD37: 0 | CE37: 0 | CF37: 0 | CG37: 0 | CH37: 0 | CI37: 0 | CJ37: 0 | CK37: 0 | CL37: 0 | CM37: 0 | CN37: 0 | CO37: 0 | CP37: 0 | CQ37: 0 | CR37: 0 | CS37: 0 | CT37: 0 | CU37: 0 | CV37: 0 | CW37: 0 | CX37: =+IF($A37="","",IF($D37=CX$17,$B37+IF(MONTH($B$8)-MONTH($B$7)+$E$16=CW$16,$C37,0),0)) -> 0 | CY37: 0 | CZ37: 0 | DA37: 0 | DB37: 0 | DC37: 0 | DD37: 0 | DE37: 0 | DF37: 0 | DG37: 0 | DH37: 0 | DI37: 0 | DJ37: 0 | DK37: 0 | DL37: 0 | DM37: 0 | DN37: 0 | DO37: 0 | DP37: 0 | DQ37: 0 | DR37: 0 | DS37: 0 | DT37: 0 | DU37: 0 | DV37: =+IF($A37="","",IF($D37=DV$17,$B37+IF(MONTH($B$8)-MONTH($B$7)+$E$16=DU$16,$C37,0),0)) -> 0 | DW37: =+IF($A37="","",IF($D37=DW$17,$B37+IF(MONTH($B$8)-MONTH($B$7)+$E$16=DV$16,$C37,0),0)) -> 0 | DX37: =+IF($A37="","",IF($D37=DX$17,$B37+IF(MONTH($B$8)-MONTH($B$7)+$E$16=DW$16,$C37,0),0)) -> 0 | DY37: =+IF($A37="","",IF($D37=DY$17,$B37+IF(MONTH($B$8)-MONTH($B$7)+$E$16=DX$16,$C37,0),0)) -> 0 | DZ37: =+IF($A37="","",IF($D37=DZ$17,$B37+IF(MONTH($B$8)-MONTH($B$7)+$E$16=DY$16,$C37,0),0)) -> 0 | EA37: =+IF($A37="","",IF($D37=EA$17,$B37+IF(MONTH($B$8)-MONTH($B$7)+$E$16=DZ$16,$C37,0),0)) -> 0 | EB37: =+IF($A37="","",IF($D37=EB$17,$B37+IF(MONTH($B$8)-MONTH($B$7)+$E$16=EA$16,$C37,0),0)) -> 0 | EC37: =+IF($A37="","",IF($D37=EC$17,$B37+IF(MONTH($B$8)-MONTH($B$7)+$E$16=EB$16,$C37,0),0)) -> 0 | ED37: =+IF($A37="","",IF($D37=ED$17,$B37+IF(MONTH($B$8)-MONTH($B$7)+$E$16=EC$16,$C37,0),0)) -> 0 | EE37: =+IF($A37="","",IF($D37=EE$17,$B37+IF(MONTH($B$8)-MONTH($B$7)+$E$16=ED$16,$C37,0),0)) -> 0 | EF37: =+IF($A37="","",IF($D37=EF$17,$B37+IF(MONTH($B$8)-MONTH($B$7)+$E$16=EE$16,$C37,0),0)) -> 0 | EG37: =+IF($A37="","",IF($D37=EG$17,$B37+IF(MONTH($B$8)-MONTH($B$7)+$E$16=EF$16,$C37,0),0)) -> 0 | EH37: =+IF($A37="","",IF($D37=EH$17,$B37+IF(MONTH($B$8)-MONTH($B$7)+$E$16=EG$16,$C37,0),0)) -> 0 | EI37: =+IF($A37="","",IF($D37=EI$17,$B37+IF(MONTH($B$8)-MONTH($B$7)+$E$16=EH$16,$C37,0),0)) -> 0 | EJ37: =+IF($A37="","",IF($D37=EJ$17,$B37+IF(MONTH($B$8)-MONTH($B$7)+$E$16=EI$16,$C37,0),0)) -> 0 | EK37: =+IF($A37="","",IF($D37=EK$17,$B37+IF(MONTH($B$8)-MONTH($B$7)+$E$16=EJ$16,$C37,0),0)) -> 0 | EL37: =+IF($A37="","",IF($D37=EL$17,$B37+IF(MONTH($B$8)-MONTH($B$7)+$E$16=EK$16,$C37,0),0)) -> 0 | EM37: =+IF($A37="","",IF($D37=EM$17,$B37+IF(MONTH($B$8)-MONTH($B$7)+$E$16=EL$16,$C37,0),0)) -> 0 | EN37: =+IF($A37="","",IF($D37=EN$17,$B37+IF(MONTH($B$8)-MONTH($B$7)+$E$16=EM$16,$C37,0),0)) -> 0 | EO37: =+IF($A37="","",IF($D37=EO$17,$B37+IF(MONTH($B$8)-MONTH($B$7)+$E$16=EN$16,$C37,0),0)) -> 0 | EP37: =+IF($A37="","",IF($D37=EP$17,$B37+IF(MONTH($B$8)-MONTH($B$7)+$E$16=EO$16,$C37,0),0)) -> 0 | EQ37: =+IF($A37="","",IF($D37=EQ$17,$B37+IF(MONTH($B$8)-MONTH($B$7)+$E$16=EP$16,$C37,0),0)) -> 0 | ER37: =+IF($A37="","",IF($D37=ER$17,$B37+IF(MONTH($B$8)-MONTH($B$7)+$E$16=EQ$16,$C37,0),0)) -> 0 | ES37: =+IF($A37="","",IF($D37=ES$17,$B37+IF(MONTH($B$8)-MONTH($B$7)+$E$16=ER$16,$C37,0),0)) -> 0 | ET37: =+IF($A37="","",IF($D37=ET$17,$B37+IF(MONTH($B$8)-MONTH($B$7)+$E$16=ES$16,$C37,0),0)) -> 0 | EU37: =+IF($A37="","",IF($D37=EU$17,$B37+IF(MONTH($B$8)-MONTH($B$7)+$E$16=ET$16,$C37,0),0)) -> 0 | EV37: =+IF($A37="","",IF($D37=EV$17,$B37+IF(MONTH($B$8)-MONTH($B$7)+$E$16=EU$16,$C37,0),0)) -> 0 | EW37: =+IF($A37="","",IF($D37=EW$17,$B37+IF(MONTH($B$8)-MONTH($B$7)+$E$16=EV$16,$C37,0),0)) -> 0 | EX37: =+IF($A37="","",IF($D37=EX$17,$B37+IF(MONTH($B$8)-MONTH($B$7)+$E$16=EW$16,$C37,0),0)) -> 0 | EY37: =+IF($A37="","",IF($D37=EY$17,$B37+IF(MONTH($B$8)-MONTH($B$7)+$E$16=EX$16,$C37,0),0)) -> 0 | EZ37: =+IF($A37="","",IF($D37=EZ$17,$B37+IF(MONTH($B$8)-MONTH($B$7)+$E$16=EY$16,$C37,0),0)) -> 0 | FA37: =+IF($A37="","",IF($D37=FA$17,$B37+IF(MONTH($B$8)-MONTH($B$7)+$E$16=EZ$16,$C37,0),0)) -> 0 | FB37: =+IF($A37="","",IF($D37=FB$17,$B37+IF(MONTH($B$8)-MONTH($B$7)+$E$16=FA$16,$C37,0),0)) -> 0 | FC37: =+IF($A37="","",IF($D37=FC$17,$B37+IF(MONTH($B$8)-MONTH($B$7)+$E$16=FB$16,$C37,0),0)) -> 0 | FD37: =+IF($A37="","",IF($D37=FD$17,$B37+IF(MONTH($B$8)-MONTH($B$7)+$E$16=FC$16,$C37,0),0)) -> 0 | FE37: =+IF($A37="","",IF($D37=FE$17,$B37+IF(MONTH($B$8)-MONTH($B$7)+$E$16=FD$16,$C37,0),0)) -> 0 | FF37: =+IF($A37="","",IF($D37=FF$17,$B37+IF(MONTH($B$8)-MONTH($B$7)+$E$16=FE$16,$C37,0),0)) -> 0 | FG37: =+IF($A37="","",IF($D37=FG$17,$B37+IF(MONTH($B$8)-MONTH($B$7)+$E$16=FF$16,$C37,0),0)) -> 0 | FH37: =+IF($A37="","",IF($D37=FH$17,$B37+IF(MONTH($B$8)-MONTH($B$7)+$E$16=FG$16,$C37,0),0)) -> 0 | FI37: =+IF($A37="","",IF($D37=FI$17,$B37+IF(MONTH($B$8)-MONTH($B$7)+$E$16=FH$16,$C37,0),0)) -> 0 | FJ37: =+IF($A37="","",IF($D37=FJ$17,$B37+IF(MONTH($B$8)-MONTH($B$7)+$E$16=FI$16,$C37,0),0)) -> 0 | FK37: =+IF($A37="","",IF($D37=FK$17,$B37+IF(MONTH($B$8)-MONTH($B$7)+$E$16=FJ$16,$C37,0),0)) -> 0 | FL37: =+IF($A37="","",IF($D37=FL$17,$B37+IF(MONTH($B$8)-MONTH($B$7)+$E$16=FK$16,$C37,0),0)) -> 0 | FM37: =+IF($A37="","",IF($D37=FM$17,$B37+IF(MONTH($B$8)-MONTH($B$7)+$E$16=FL$16,$C37,0),0)) -> 0 | FN37: =+IF($A37="","",IF($D37=FN$17,$B37+IF(MONTH($B$8)-MONTH($B$7)+$E$16=FM$16,$C37,0),0)) -> 0 | FO37: =+IF($A37="","",IF($D37=FO$17,$B37+IF(MONTH($B$8)-MONTH($B$7)+$E$16=FN$16,$C37,0),0)) -> 0 | FP37: =+IF($A37="","",IF($D37=FP$17,$B37+IF(MONTH($B$8)-MONTH($B$7)+$E$16=FO$16,$C37,0),0)) -> 0 | FQ37: =+IF($A37="","",IF($D37=FQ$17,$B37+IF(MONTH($B$8)-MONTH($B$7)+$E$16=FP$16,$C37,0),0)) -> 0 | FR37: =+IF($A37="","",IF($D37=FR$17,$B37+IF(MONTH($B$8)-MONTH($B$7)+$E$16=FQ$16,$C37,0),0)) -> 0 | FS37: =+IF($A37="","",IF($D37=FS$17,$B37+IF(MONTH($B$8)-MONTH($B$7)+$E$16=FR$16,$C37,0),0)) -> 0 | FT37: =+IF($A37="","",IF($D37=FT$17,$B37+IF(MONTH($B$8)-MONTH($B$7)+$E$16=FS$16,$C37,0),0)) -> 0 | FU37: =+IF($A37="","",IF($D37=FU$17,$B37+IF(MONTH($B$8)-MONTH($B$7)+$E$16=FT$16,$C37,0),0)) -> 0 | FV37: =+IF($A37="","",IF($D37=FV$17,$B37+IF(MONTH($B$8)-MONTH($B$7)+$E$16=FU$16,$C37,0),0)) -> 0 | FW37: =+IF($A37="","",IF($D37=FW$17,$B37+IF(MONTH($B$8)-MONTH($B$7)+$E$16=FV$16,$C37,0),0)) -> 0 | FX37: =+IF($A37="","",IF($D37=FX$17,$B37+IF(MONTH($B$8)-MONTH($B$7)+$E$16=FW$16,$C37,0),0)) -> 0 | FY37: =+IF($A37="","",IF($D37=FY$17,$B37+IF(MONTH($B$8)-MONTH($B$7)+$E$16=FX$16,$C37,0),0)) -> 0 | FZ37: =+IF($A37="","",IF($D37=FZ$17,$B37+IF(MONTH($B$8)-MONTH($B$7)+$E$16=FY$16,$C37,0),0)) -> 0 | GA37: =+IF($A37="","",IF($D37=GA$17,$B37+IF(MONTH($B$8)-MONTH($B$7)+$E$16=FZ$16,$C37,0),0)) -> 0 | GB37: =+IF($A37="","",IF($D37=GB$17,$B37+IF(MONTH($B$8)-MONTH($B$7)+$E$16=GA$16,$C37,0),0)) -> 0 | GC37: =+IF($A37="","",IF($D37=GC$17,$B37+IF(MONTH($B$8)-MONTH($B$7)+$E$16=GB$16,$C37,0),0)) -> 0 | GD37: =+IF($A37="","",IF($D37=GD$17,$B37+IF(MONTH($B$8)-MONTH($B$7)+$E$16=GC$16,$C37,0),0)) -> 0 | GE37: =+IF($A37="","",IF($D37=GE$17,$B37+IF(MONTH($B$8)-MONTH($B$7)+$E$16=GD$16,$C37,0),0)) -> 0 | GF37: =+IF($A37="","",IF($D37=GF$17,$B37+IF(MONTH($B$8)-MONTH($B$7)+$E$16=GE$16,$C37,0),0)) -> 0 | GG37: =+IF($A37="","",IF($D37=GG$17,$B37+IF(MONTH($B$8)-MONTH($B$7)+$E$16=GF$16,$C37,0),0)) -> 0 | GH37: =+IF($A37="","",IF($D37=GH$17,$B37+IF(MONTH($B$8)-MONTH($B$7)+$E$16=GG$16,$C37,0),0)) -> 0 | GI37: =+IF($A37="","",IF($D37=GI$17,$B37+IF(MONTH($B$8)-MONTH($B$7)+$E$16=GH$16,$C37,0),0)) -> 0 | GJ37: =+IF($A37="","",IF($D37=GJ$17,$B37+IF(MONTH($B$8)-MONTH($B$7)+$E$16=GI$16,$C37,0),0)) -> 0 | GK37: =+IF($A37="","",IF($D37=GK$17,$B37+IF(MONTH($B$8)-MONTH($B$7)+$E$16=GJ$16,$C37,0),0)) -> 0 | GL37: =+IF($A37="","",IF($D37=GL$17,$B37+IF(MONTH($B$8)-MONTH($B$7)+$E$16=GK$16,$C37,0),0)) -> 0 | GM37: =+IF($A37="","",IF($D37=GM$17,$B37+IF(MONTH($B$8)-MONTH($B$7)+$E$16=GL$16,$C37,0),0)) -> 0 | GN37: =+IF($A37="","",IF($D37=GN$17,$B37+IF(MONTH($B$8)-MONTH($B$7)+$E$16=GM$16,$C37,0),0)) -> 0 | GO37: =+IF($A37="","",IF($D37=GO$17,$B37+IF(MONTH($B$8)-MONTH($B$7)+$E$16=GN$16,$C37,0),0)) -> 0 | GP37: =+IF($A37="","",IF($D37=GP$17,$B37+IF(MONTH($B$8)-MONTH($B$7)+$E$16=GO$16,$C37,0),0)) -> 0 | GQ37: =+IF($A37="","",IF($D37=GQ$17,$B37+IF(MONTH($B$8)-MONTH($B$7)+$E$16=GP$16,$C37,0),0)) -> 0 | GR37: =+IF($A37="","",IF($D37=GR$17,$B37+IF(MONTH($B$8)-MONTH($B$7)+$E$16=GQ$16,$C37,0),0)) -> 0 | GS37: =+IF($A37="","",IF($D37=GS$17,$B37+IF(MONTH($B$8)-MONTH($B$7)+$E$16=GR$16,$C37,0),0)) -> 0 | GT37: =+IF($A37="","",IF($D37=GT$17,$B37+IF(MONTH($B$8)-MONTH($B$7)+$E$16=GS$16,$C37,0),0)) -> 0 | GU37: =+IF($A37="","",IF($D37=GU$17,$B37+IF(MONTH($B$8)-MONTH($B$7)+$E$16=GT$16,$C37,0),0)) -> 0 | GV37: =+IF($A37="","",IF($D37=GV$17,$B37+IF(MONTH($B$8)-MONTH($B$7)+$E$16=GU$16,$C37,0),0)) -> 0 | GW37: =+IF($A37="","",IF($D37=GW$17,$B37+IF(MONTH($B$8)-MONTH($B$7)+$E$16=GV$16,$C37,0),0)) -> 0 | GX37: =+IF($A37="","",IF($D37=GX$17,$B37+IF(MONTH($B$8)-MONTH($B$7)+$E$16=GW$16,$C37,0),0)) -> 0 | GY37: =+IF($A37="","",IF($D37=GY$17,$B37+IF(MONTH($B$8)-MONTH($B$7)+$E$16=GX$16,$C37,0),0)) -> 0 | GZ37: =+IF($A37="","",IF($D37=GZ$17,$B37+IF(MONTH($B$8)-MONTH($B$7)+$E$16=GY$16,$C37,0),0)) -> 0 | HA37: =+IF($A37="","",IF($D37=HA$17,$B37+IF(MONTH($B$8)-MONTH($B$7)+$E$16=GZ$16,$C37,0),0)) -> 0 | HB37: =+IF($A37="","",IF($D37=HB$17,$B37+IF(MONTH($B$8)-MONTH($B$7)+$E$16=HA$16,$C37,0),0)) -> 0 | HC37: =+IF($A37="","",IF($D37=HC$17,$B37+IF(MONTH($B$8)-MONTH($B$7)+$E$16=HB$16,$C37,0),0)) -> 0 | HD37: =+IF($A37="","",IF($D37=HD$17,$B37+IF(MONTH($B$8)-MONTH($B$7)+$E$16=HC$16,$C37,0),0)) -> 0 | HE37: =+IF($A37="","",IF($D37=HE$17,$B37+IF(MONTH($B$8)-MONTH($B$7)+$E$16=HD$16,$C37,0),0)) -> 0 | HF37: =+IF($A37="","",IF($D37=HF$17,$B37+IF(MONTH($B$8)-MONTH($B$7)+$E$16=HE$16,$C37,0),0)) -> 0 | HG37: =+IF($A37="","",IF($D37=HG$17,$B37+IF(MONTH($B$8)-MONTH($B$7)+$E$16=HF$16,$C37,0),0)) -> 0 | HH37: =+IF($A37="","",IF($D37=HH$17,$B37+IF(MONTH($B$8)-MONTH($B$7)+$E$16=HG$16,$C37,0),0)) -> 0 | HI37: =+IF($A37="","",IF($D37=HI$17,$B37+IF(MONTH($B$8)-MONTH($B$7)+$E$16=HH$16,$C37,0),0)) -> 0 | HJ37: =+IF($A37="","",IF($D37=HJ$17,$B37+IF(MONTH($B$8)-MONTH($B$7)+$E$16=HI$16,$C37,0),0)) -> 0 | HK37: =+IF($A37="","",IF($D37=HK$17,$B37+IF(MONTH($B$8)-MONTH($B$7)+$E$16=HJ$16,$C37,0),0)) -> 0 | HL37: =+IF($A37="","",IF($D37=HL$17,$B37+IF(MONTH($B$8)-MONTH($B$7)+$E$16=HK$16,$C37,0),0)) -> 0 | HM37: =+IF($A37="","",IF($D37=HM$17,$B37+IF(MONTH($B$8)-MONTH($B$7)+$E$16=HL$16,$C37,0),0)) -> 0 | HN37: =+IF($A37="","",IF($D37=HN$17,$B37+IF(MONTH($B$8)-MONTH($B$7)+$E$16=HM$16,$C37,0),0)) -> 0 | HO37: =+IF($A37="","",IF($D37=HO$17,$B37+IF(MONTH($B$8)-MONTH($B$7)+$E$16=HN$16,$C37,0),0)) -> 0 | HP37: =+IF($A37="","",IF($D37=HP$17,$B37+IF(MONTH($B$8)-MONTH($B$7)+$E$16=HO$16,$C37,0),0)) -> 0 | HQ37: =+IF($A37="","",IF($D37=HQ$17,$B37+IF(MONTH($B$8)-MONTH($B$7)+$E$16=HP$16,$C37,0),0)) -> 0 | HR37: =+IF($A37="","",IF($D37=HR$17,$B37+IF(MONTH($B$8)-MONTH($B$7)+$E$16=HQ$16,$C37,0),0)) -> 0 | HS37: =+IF($A37="","",IF($D37=HS$17,$B37+IF(MONTH($B$8)-MONTH($B$7)+$E$16=HR$16,$C37,0),0)) -> 0 | HT37: =+IF($A37="","",IF($D37=HT$17,$B37+IF(MONTH($B$8)-MONTH($B$7)+$E$16=HS$16,$C37,0),0)) -> 0 | HU37: =+IF($A37="","",IF($D37=HU$17,$B37+IF(MONTH($B$8)-MONTH($B$7)+$E$16=HT$16,$C37,0),0)) -> 0 | HV37: =+IF($A37="","",IF($D37=HV$17,$B37+IF(MONTH($B$8)-MONTH($B$7)+$E$16=HU$16,$C37,0),0)) -> 0 | HW37: =+IF($A37="","",IF($D37=HW$17,$B37+IF(MONTH($B$8)-MONTH($B$7)+$E$16=HV$16,$C37,0),0)) -> 0 | HX37: =+IF($A37="","",IF($D37=HX$17,$B37+IF(MONTH($B$8)-MONTH($B$7)+$E$16=HW$16,$C37,0),0)) -> 0 | HY37: =+IF($A37="","",IF($D37=HY$17,$B37+IF(MONTH($B$8)-MONTH($B$7)+$E$16=HX$16,$C37,0),0)) -> 0 | HZ37: =+IF($A37="","",IF($D37=HZ$17,$B37+IF(MONTH($B$8)-MONTH($B$7)+$E$16=HY$16,$C37,0),0)) -> 0 | IA37: =+IF($A37="","",IF($D37=IA$17,$B37+IF(MONTH($B$8)-MONTH($B$7)+$E$16=HZ$16,$C37,0),0)) -> 0 | IB37: =+IF($A37="","",IF($D37=IB$17,$B37+IF(MONTH($B$8)-MONTH($B$7)+$E$16=IA$16,$C37,0),0)) -> 0 | IC37: =+IF($A37="","",IF($D37=IC$17,$B37+IF(MONTH($B$8)-MONTH($B$7)+$E$16=IB$16,$C37,0),0)) -> 0 | ID37: =+IF($A37="","",IF($D37=ID$17,$B37+IF(MONTH($B$8)-MONTH($B$7)+$E$16=IC$16,$C37,0),0)) -> 0 | IE37: =+IF($A37="","",IF($D37=IE$17,$B37+IF(MONTH($B$8)-MONTH($B$7)+$E$16=ID$16,$C37,0),0)) -> 0 | IF37: =+IF($A37="","",IF($D37=IF$17,$B37+IF(MONTH($B$8)-MONTH($B$7)+$E$16=IE$16,$C37,0),0)) -> 0 | IG37: =+IF($A37="","",IF($D37=IG$17,$B37+IF(MONTH($B$8)-MONTH($B$7)+$E$16=IF$16,$C37,0),0)) -> 0 | IH37: =+IF($A37="","",IF($D37=IH$17,$B37+IF(MONTH($B$8)-MONTH($B$7)+$E$16=IG$16,$C37,0),0)) -> 0 | II37: =+IF($A37="","",IF($D37=II$17,$B37+IF(MONTH($B$8)-MONTH($B$7)+$E$16=IH$16,$C37,0),0)) -> 0 | IJ37: =+IF($A37="","",IF($D37=IJ$17,$B37+IF(MONTH($B$8)-MONTH($B$7)+$E$16=II$16,$C37,0),0)) -> 0 | IK37: =+IF($A37="","",IF($D37=IK$17,$B37+IF(MONTH($B$8)-MONTH($B$7)+$E$16=IJ$16,$C37,0),0)) -> 0 | IL37: =+IF($A37="","",IF($D37=IL$17,$B37+IF(MONTH($B$8)-MONTH($B$7)+$E$16=IK$16,$C37,0),0)) -> 0 | IM37: CAPEX
A38: Rectificador Y Baterias Para Enodob | B38: =+SUMIFS(ValoresMercado,Conceptos,A38,Relacion,TmcBw,RangoSectorEnodeb,SectorEnodeb) -> 14839000 | E38: 60 | F38: =+IF($A38="","",IF($D38=F$17,$B38+IF(MONTH($B$8)-MONTH($B$7)+$E$16=E$16,$C38,0),0)) -> 14839000 | G38: 0 | H38: 0 | I38: 0 | J38: 0 | K38: 0 | L38: 0 | M38: 0 | N38: 0 | O38: 0 | P38: 0 | Q38: 0 | R38: 0 | S38: 0 | T38: 0 | U38: 0 | V38: 0 | W38: 0 | X38: 0 | Y38: 0 | Z38: 0 | AA38: 0 | AB38: 0 | AC38: 0 | AD38: 0 | AE38: 0 | AF38: 0 | AG38: 0 | AH38: 0 | AI38: 0 | AJ38: 0 | AK38: 0 | AL38: =+IF($A38="","",IF($D38=AL$17,$B38+IF(MONTH($B$8)-MONTH($B$7)+$E$16=AK$16,$C38,0),0)) -> 0 | AM38: 0 | AN38: 0 | AO38: 0 | AP38: 0 | AQ38: 0 | AR38: 0 | AS38: 0 | AT38: 0 | AU38: 0 | AV38: 0 | AW38: 0 | AX38: 0 | AY38: 0 | AZ38: 0 | BA38: 0 | BB38: 0 | BC38: 0 | BD38: 0 | BE38: 0 | BF38: 0 | BG38: 0 | BH38: 0 | BI38: 0 | BJ38: 0 | BK38: 0 | BL38: 0 | BM38: 0 | BN38: 0 | BO38: 0 | BP38: 0 | BQ38: 0 | BR38: =+IF($A38="","",IF($D38=BR$17,$B38+IF(MONTH($B$8)-MONTH($B$7)+$E$16=BQ$16,$C38,0),0)) -> 0 | BS38: 0 | BT38: 0 | BU38: 0 | BV38: 0 | BW38: 0 | BX38: 0 | BY38: 0 | BZ38: 0 | CA38: 0 | CB38: 0 | CC38: 0 | CD38: 0 | CE38: 0 | CF38: 0 | CG38: 0 | CH38: 0 | CI38: 0 | CJ38: 0 | CK38: 0 | CL38: 0 | CM38: 0 | CN38: 0 | CO38: 0 | CP38: 0 | CQ38: 0 | CR38: 0 | CS38: 0 | CT38: 0 | CU38: 0 | CV38: 0 | CW38: 0 | CX38: =+IF($A38="","",IF($D38=CX$17,$B38+IF(MONTH($B$8)-MONTH($B$7)+$E$16=CW$16,$C38,0),0)) -> 0 | CY38: 0 | CZ38: 0 | DA38: 0 | DB38: 0 | DC38: 0 | DD38: 0 | DE38: 0 | DF38: 0 | DG38: 0 | DH38: 0 | DI38: 0 | DJ38: 0 | DK38: 0 | DL38: 0 | DM38: 0 | DN38: 0 | DO38: 0 | DP38: 0 | DQ38: 0 | DR38: 0 | DS38: 0 | DT38: 0 | DU38: 0 | DV38: 0 | DW38: 0 | DX38: 0 | DY38: 0 | DZ38: 0 | EA38: 0 | EB38: 0 | EC38: 0 | ED38: 0 | EE38: 0 | EF38: 0 | EG38: 0 | EH38: 0 | EI38: 0 | EJ38: 0 | EK38: 0 | EL38: 0 | EM38: 0 | EN38: 0 | EO38: 0 | EP38: 0 | EQ38: 0 | ER38: 0 | ES38: 0 | ET38: 0 | EU38: 0 | EV38: 0 | EW38: 0 | EX38: 0 | EY38: 0 | EZ38: 0 | FA38: 0 | FB38: 0 | FC38: 0 | FD38: 0 | FE38: 0 | FF38: 0 | FG38: 0 | FH38: 0 | FI38: 0 | FJ38: 0 | FK38: 0 | FL38: 0 | FM38: 0 | FN38: 0 | FO38: 0 | FP38: 0 | FQ38: 0 | FR38: 0 | FS38: 0 | FT38: 0 | FU38: 0 | FV38: 0 | FW38: 0 | FX38: 0 | FY38: 0 | FZ38: 0 | GA38: 0 | GB38: 0 | GC38: 0 | GD38: 0 | GE38: 0 | GF38: 0 | GG38: 0 | GH38: 0 | GI38: 0 | GJ38: 0 | GK38: 0 | GL38: 0 | GM38: 0 | GN38: 0 | GO38: 0 | GP38: 0 | GQ38: 0 | GR38: 0 | GS38: 0 | GT38: 0 | GU38: 0 | GV38: 0 | GW38: 0 | GX38: 0 | GY38: 0 | GZ38: 0 | HA38: 0 | HB38: 0 | HC38: 0 | HD38: 0 | HE38: 0 | HF38: 0 | HG38: 0 | HH38: 0 | HI38: 0 | HJ38: 0 | HK38: 0 | HL38: 0 | HM38: 0 | HN38: 0 | HO38: 0 | HP38: 0 | HQ38: 0 | HR38: 0 | HS38: 0 | HT38: 0 | HU38: 0 | HV38: 0 | HW38: 0 | HX38: 0 | HY38: 0 | HZ38: 0 | IA38: 0 | IB38: 0 | IC38: 0 | ID38: 0 | IE38: 0 | IF38: 0 | IG38: 0 | IH38: 0 | II38: 0 | IJ38: 0 | IK38: 0 | IL38: 0 | IM38: CAPEX
A39: Sistema De Seguridad Electronica | B39: =+SUMIFS(ValoresMercado,Conceptos,A39,Tipo,TipoEspecifico) -> 15163436.17 | E39: 60 | F39: =+IF($A39="","",IF($D39=F$17,$B39+IF(MONTH($B$8)-MONTH($B$7)+$E$16=E$16,$C39,0),0)) -> 15163436.17 | G39: 0 | H39: 0 | I39: 0 | J39: 0 | K39: 0 | L39: 0 | M39: 0 | N39: 0 | O39: 0 | P39: 0 | Q39: 0 | R39: 0 | S39: 0 | T39: 0 | U39: 0 | V39: 0 | W39: 0 | X39: 0 | Y39: 0 | Z39: 0 | AA39: 0 | AB39: 0 | AC39: 0 | AD39: 0 | AE39: 0 | AF39: 0 | AG39: 0 | AH39: 0 | AI39: 0 | AJ39: 0 | AK39: 0 | AL39: =+IF($A39="","",IF($D39=AL$17,$B39+IF(MONTH($B$8)-MONTH($B$7)+$E$16=AK$16,$C39,0),0)) -> 0 | AM39: 0 | AN39: 0 | AO39: 0 | AP39: 0 | AQ39: 0 | AR39: 0 | AS39: 0 | AT39: 0 | AU39: 0 | AV39: 0 | AW39: 0 | AX39: 0 | AY39: 0 | AZ39: 0 | BA39: 0 | BB39: 0 | BC39: 0 | BD39: 0 | BE39: 0 | BF39: 0 | BG39: 0 | BH39: 0 | BI39: 0 | BJ39: 0 | BK39: 0 | BL39: 0 | BM39: 0 | BN39: 0 | BO39: 0 | BP39: 0 | BQ39: 0 | BR39: =+IF($A39="","",IF($D39=BR$17,$B39+IF(MONTH($B$8)-MONTH($B$7)+$E$16=BQ$16,$C39,0),0)) -> 0 | BS39: 0 | BT39: 0 | BU39: 0 | BV39: 0 | BW39: 0 | BX39: 0 | BY39: 0 | BZ39: 0 | CA39: 0 | CB39: 0 | CC39: 0 | CD39: 0 | CE39: 0 | CF39: 0 | CG39: 0 | CH39: 0 | CI39: 0 | CJ39: 0 | CK39: 0 | CL39: 0 | CM39: 0 | CN39: 0 | CO39: 0 | CP39: 0 | CQ39: 0 | CR39: 0 | CS39: 0 | CT39: 0 | CU39: 0 | CV39: 0 | CW39: 0 | CX39: =+IF($A39="","",IF($D39=CX$17,$B39+IF(MONTH($B$8)-MONTH($B$7)+$E$16=CW$16,$C39,0),0)) -> 0 | CY39: 0 | CZ39: 0 | DA39: 0 | DB39: 0 | DC39: 0 | DD39: 0 | DE39: 0 | DF39: 0 | DG39: 0 | DH39: 0 | DI39: 0 | DJ39: 0 | DK39: 0 | DL39: 0 | DM39: 0 | DN39: 0 | DO39: 0 | DP39: 0 | DQ39: 0 | DR39: 0 | DS39: 0 | DT39: 0 | DU39: 0 | DV39: 0 | DW39: 0 | DX39: 0 | DY39: 0 | DZ39: 0 | EA39: 0 | EB39: 0 | EC39: 0 | ED39: 0 | EE39: 0 | EF39: 0 | EG39: 0 | EH39: 0 | EI39: 0 | EJ39: 0 | EK39: 0 | EL39: 0 | EM39: 0 | EN39: 0 | EO39: 0 | EP39: 0 | EQ39: 0 | ER39: 0 | ES39: 0 | ET39: 0 | EU39: 0 | EV39: 0 | EW39: 0 | EX39: 0 | EY39: 0 | EZ39: 0 | FA39: 0 | FB39: 0 | FC39: 0 | FD39: 0 | FE39: 0 | FF39: 0 | FG39: 0 | FH39: 0 | FI39: 0 | FJ39: 0 | FK39: 0 | FL39: 0 | FM39: 0 | FN39: 0 | FO39: 0 | FP39: 0 | FQ39: 0 | FR39: 0 | FS39: 0 | FT39: 0 | FU39: 0 | FV39: 0 | FW39: 0 | FX39: 0 | FY39: 0 | FZ39: 0 | GA39: 0 | GB39: 0 | GC39: 0 | GD39: 0 | GE39: 0 | GF39: 0 | GG39: 0 | GH39: 0 | GI39: 0 | GJ39: 0 | GK39: 0 | GL39: 0 | GM39: 0 | GN39: 0 | GO39: 0 | GP39: 0 | GQ39: 0 | GR39: 0 | GS39: 0 | GT39: 0 | GU39: 0 | GV39: 0 | GW39: 0 | GX39: 0 | GY39: 0 | GZ39: 0 | HA39: 0 | HB39: 0 | HC39: 0 | HD39: 0 | HE39: 0 | HF39: 0 | HG39: 0 | HH39: 0 | HI39: 0 | HJ39: 0 | HK39: 0 | HL39: 0 | HM39: 0 | HN39: 0 | HO39: 0 | HP39: 0 | HQ39: 0 | HR39: 0 | HS39: 0 | HT39: 0 | HU39: 0 | HV39: 0 | HW39: 0 | HX39: 0 | HY39: 0 | HZ39: 0 | IA39: 0 | IB39: 0 | IC39: 0 | ID39: 0 | IE39: 0 | IF39: 0 | IG39: 0 | IH39: 0 | II39: 0 | IJ39: 0 | IK39: 0 | IL39: 0 | IM39: CAPEX
A40: Transferencia Y Control | B40: =+SUMIFS(ValoresMercado,Conceptos,A40,Tipo,TipoEspecifico,Relacion,KW_EnergiaValor) -> 11454285.71 | E40: 60 | F40: =+IF($A40="","",IF($D40=F$17,$B40+IF(MONTH($B$8)-MONTH($B$7)+$E$16=E$16,$C40,0),0)) -> 11454285.71 | G40: 0 | H40: 0 | I40: 0 | J40: 0 | K40: 0 | L40: 0 | M40: 0 | N40: 0 | O40: 0 | P40: 0 | Q40: 0 | R40: 0 | S40: 0 | T40: 0 | U40: 0 | V40: 0 | W40: 0 | X40: 0 | Y40: 0 | Z40: 0 | AA40: 0 | AB40: 0 | AC40: 0 | AD40: 0 | AE40: 0 | AF40: 0 | AG40: 0 | AH40: 0 | AI40: 0 | AJ40: 0 | AK40: 0 | AL40: =+IF($A40="","",IF($D40=AL$17,$B40+IF(MONTH($B$8)-MONTH($B$7)+$E$16=AK$16,$C40,0),0)) -> 0 | AM40: 0 | AN40: 0 | AO40: 0 | AP40: 0 | AQ40: 0 | AR40: 0 | AS40: 0 | AT40: 0 | AU40: 0 | AV40: 0 | AW40: 0 | AX40: 0 | AY40: 0 | AZ40: 0 | BA40: 0 | BB40: 0 | BC40: 0 | BD40: 0 | BE40: 0 | BF40: 0 | BG40: 0 | BH40: 0 | BI40: 0 | BJ40: 0 | BK40: 0 | BL40: 0 | BM40: 0 | BN40: 0 | BO40: 0 | BP40: 0 | BQ40: 0 | BR40: =+IF($A40="","",IF($D40=BR$17,$B40+IF(MONTH($B$8)-MONTH($B$7)+$E$16=BQ$16,$C40,0),0)) -> 0 | BS40: 0 | BT40: 0 | BU40: 0 | BV40: 0 | BW40: 0 | BX40: 0 | BY40: 0 | BZ40: 0 | CA40: 0 | CB40: 0 | CC40: 0 | CD40: 0 | CE40: 0 | CF40: 0 | CG40: 0 | CH40: 0 | CI40: 0 | CJ40: 0 | CK40: 0 | CL40: 0 | CM40: 0 | CN40: 0 | CO40: 0 | CP40: 0 | CQ40: 0 | CR40: 0 | CS40: 0 | CT40: 0 | CU40: 0 | CV40: 0 | CW40: 0 | CX40: =+IF($A40="","",IF($D40=CX$17,$B40+IF(MONTH($B$8)-MONTH($B$7)+$E$16=CW$16,$C40,0),0)) -> 0 | CY40: 0 | CZ40: 0 | DA40: 0 | DB40: 0 | DC40: 0 | DD40: 0 | DE40: 0 | DF40: 0 | DG40: 0 | DH40: 0 | DI40: 0 | DJ40: 0 | DK40: 0 | DL40: 0 | DM40: 0 | DN40: 0 | DO40: 0 | DP40: 0 | DQ40: 0 | DR40: 0 | DS40: 0 | DT40: 0 | DU40: 0 | DV40: 0 | DW40: 0 | DX40: 0 | DY40: 0 | DZ40: 0 | EA40: 0 | EB40: 0 | EC40: 0 | ED40: 0 | EE40: 0 | EF40: 0 | EG40: 0 | EH40: 0 | EI40: 0 | EJ40: 0 | EK40: 0 | EL40: 0 | EM40: 0 | EN40: 0 | EO40: 0 | EP40: 0 | EQ40: 0 | ER40: 0 | ES40: 0 | ET40: 0 | EU40: 0 | EV40: 0 | EW40: 0 | EX40: 0 | EY40: 0 | EZ40: 0 | FA40: 0 | FB40: 0 | FC40: 0 | FD40: 0 | FE40: 0 | FF40: 0 | FG40: 0 | FH40: 0 | FI40: 0 | FJ40: 0 | FK40: 0 | FL40: 0 | FM40: 0 | FN40: 0 | FO40: 0 | FP40: 0 | FQ40: 0 | FR40: 0 | FS40: 0 | FT40: 0 | FU40: 0 | FV40: 0 | FW40: 0 | FX40: 0 | FY40: 0 | FZ40: 0 | GA40: 0 | GB40: 0 | GC40: 0 | GD40: 0 | GE40: 0 | GF40: 0 | GG40: 0 | GH40: 0 | GI40: 0 | GJ40: 0 | GK40: 0 | GL40: 0 | GM40: 0 | GN40: 0 | GO40: 0 | GP40: 0 | GQ40: 0 | GR40: 0 | GS40: 0 | GT40: 0 | GU40: 0 | GV40: 0 | GW40: 0 | GX40: 0 | GY40: 0 | GZ40: 0 | HA40: 0 | HB40: 0 | HC40: 0 | HD40: 0 | HE40: 0 | HF40: 0 | HG40: 0 | HH40: 0 | HI40: 0 | HJ40: 0 | HK40: 0 | HL40: 0 | HM40: 0 | HN40: 0 | HO40: 0 | HP40: 0 | HQ40: 0 | HR40: 0 | HS40: 0 | HT40: 0 | HU40: 0 | HV40: 0 | HW40: 0 | HX40: 0 | HY40: 0 | HZ40: 0 | IA40: 0 | IB40: 0 | IC40: 0 | ID40: 0 | IE40: 0 | IF40: 0 | IG40: 0 | IH40: 0 | II40: 0 | IJ40: 0 | IK40: 0 | IL40: 0 | IM40: CAPEX
A41: CPE | B41: =+IF('Parametros tecnologicos'!C28="S",'Anexo 2 Lista de Precios'!P1492,0) -> 0 | E41: 60 | F41: =+IF($A41="","",IF($D41=F$17,$B41+IF(MONTH($B$8)-MONTH($B$7)+$E$16=E$16,$C41,0),0)) -> 0 | G41: 0 | H41: 0 | I41: 0 | J41: 0 | K41: 0 | L41: 0 | M41: 0 | N41: 0 | O41: 0 | P41: 0 | Q41: 0 | R41: 0 | S41: 0 | T41: 0 | U41: 0 | V41: 0 | W41: 0 | X41: 0 | Y41: 0 | Z41: 0 | AA41: 0 | AB41: 0 | AC41: 0 | AD41: 0 | AE41: 0 | AF41: 0 | AG41: 0 | AH41: 0 | AI41: 0 | AJ41: 0 | AK41: 0 | AL41: =+IF($A41="","",IF($D41=AL$17,$B41+IF(MONTH($B$8)-MONTH($B$7)+$E$16=AK$16,$C41,0),0)) -> 0 | AM41: 0 | AN41: 0 | AO41: 0 | AP41: 0 | AQ41: 0 | AR41: 0 | AS41: 0 | AT41: 0 | AU41: 0 | AV41: 0 | AW41: 0 | AX41: 0 | AY41: 0 | AZ41: 0 | BA41: 0 | BB41: 0 | BC41: 0 | BD41: 0 | BE41: 0 | BF41: 0 | BG41: 0 | BH41: 0 | BI41: 0 | BJ41: 0 | BK41: 0 | BL41: 0 | BM41: 0 | BN41: 0 | BO41: 0 | BP41: 0 | BQ41: 0 | BR41: =+IF($A41="","",IF($D41=BR$17,$B41+IF(MONTH($B$8)-MONTH($B$7)+$E$16=BQ$16,$C41,0),0)) -> 0 | BS41: 0 | BT41: 0 | BU41: 0 | BV41: 0 | BW41: 0 | BX41: 0 | BY41: 0 | BZ41: 0 | CA41: 0 | CB41: 0 | CC41: 0 | CD41: 0 | CE41: 0 | CF41: 0 | CG41: 0 | CH41: 0 | CI41: 0 | CJ41: 0 | CK41: 0 | CL41: 0 | CM41: 0 | CN41: 0 | CO41: 0 | CP41: 0 | CQ41: 0 | CR41: 0 | CS41: 0 | CT41: 0 | CU41: 0 | CV41: 0 | CW41: 0 | CX41: =+IF($A41="","",IF($D41=CX$17,$B41+IF(MONTH($B$8)-MONTH($B$7)+$E$16=CW$16,$C41,0),0)) -> 0 | CY41: 0 | CZ41: 0 | DA41: 0 | DB41: 0 | DC41: 0 | DD41: 0 | DE41: 0 | DF41: 0 | DG41: 0 | DH41: 0 | DI41: 0 | DJ41: 0 | DK41: 0 | DL41: 0 | DM41: 0 | DN41: 0 | DO41: 0 | DP41: 0 | DQ41: 0 | DR41: 0 | DS41: 0 | DT41: 0 | DU41: 0 | DV41: 0 | DW41: 0 | DX41: 0 | DY41: 0 | DZ41: 0 | EA41: 0 | EB41: 0 | EC41: 0 | ED41: 0 | EE41: 0 | EF41: 0 | EG41: 0 | EH41: 0 | EI41: 0 | EJ41: 0 | EK41: 0 | EL41: 0 | EM41: 0 | EN41: 0 | EO41: 0 | EP41: 0 | EQ41: 0 | ER41: 0 | ES41: 0 | ET41: 0 | EU41: 0 | EV41: 0 | EW41: 0 | EX41: 0 | EY41: 0 | EZ41: 0 | FA41: 0 | FB41: 0 | FC41: 0 | FD41: 0 | FE41: 0 | FF41: 0 | FG41: 0 | FH41: 0 | FI41: 0 | FJ41: 0 | FK41: 0 | FL41: 0 | FM41: 0 | FN41: 0 | FO41: 0 | FP41: 0 | FQ41: 0 | FR41: 0 | FS41: 0 | FT41: 0 | FU41: 0 | FV41: 0 | FW41: 0 | FX41: 0 | FY41: 0 | FZ41: 0 | GA41: 0 | GB41: 0 | GC41: 0 | GD41: 0 | GE41: 0 | GF41: 0 | GG41: 0 | GH41: 0 | GI41: 0 | GJ41: 0 | GK41: 0 | GL41: 0 | GM41: 0 | GN41: 0 | GO41: 0 | GP41: 0 | GQ41: 0 | GR41: 0 | GS41: 0 | GT41: 0 | GU41: 0 | GV41: 0 | GW41: 0 | GX41: 0 | GY41: 0 | GZ41: 0 | HA41: 0 | HB41: 0 | HC41: 0 | HD41: 0 | HE41: 0 | HF41: 0 | HG41: 0 | HH41: 0 | HI41: 0 | HJ41: 0 | HK41: 0 | HL41: 0 | HM41: 0 | HN41: 0 | HO41: 0 | HP41: 0 | HQ41: 0 | HR41: 0 | HS41: 0 | HT41: 0 | HU41: 0 | HV41: 0 | HW41: 0 | HX41: 0 | HY41: 0 | HZ41: 0 | IA41: 0 | IB41: 0 | IC41: 0 | ID41: 0 | IE41: 0 | IF41: 0 | IG41: 0 | IH41: 0 | II41: 0 | IJ41: 0 | IK41: 0 | IL41: 0 | IM41: CAPEX
A42: Energia Solar - Repetidora | B42: =+IF('Parametros tecnologicos'!$C$35="S",'Anexo 2 Lista de Precios'!$P$1493,0) -> 0 | E42: 60 | F42: =+IF($A42="","",IF($D42=F$17,$B42+IF(MONTH($B$8)-MONTH($B$7)+$E$16=E$16,$C42,0),0)) -> 0 | G42: 0 | H42: 0 | I42: 0 | J42: 0 | K42: 0 | L42: 0 | M42: 0 | N42: 0 | O42: 0 | P42: 0 | Q42: 0 | R42: 0 | S42: 0 | T42: 0 | U42: 0 | V42: 0 | W42: 0 | X42: 0 | Y42: 0 | Z42: 0 | AA42: 0 | AB42: 0 | AC42: 0 | AD42: 0 | AE42: 0 | AF42: 0 | AG42: 0 | AH42: 0 | AI42: 0 | AJ42: 0 | AK42: 0 | AL42: =+IF($A42="","",IF($D42=AL$17,$B42+IF(MONTH($B$8)-MONTH($B$7)+$E$16=AK$16,$C42,0),0)) -> 0 | AM42: 0 | AN42: 0 | AO42: 0 | AP42: 0 | AQ42: 0 | AR42: 0 | AS42: 0 | AT42: 0 | AU42: 0 | AV42: 0 | AW42: 0 | AX42: 0 | AY42: 0 | AZ42: 0 | BA42: 0 | BB42: 0 | BC42: 0 | BD42: 0 | BE42: 0 | BF42: 0 | BG42: 0 | BH42: 0 | BI42: 0 | BJ42: 0 | BK42: 0 | BL42: 0 | BM42: 0 | BN42: 0 | BO42: 0 | BP42: 0 | BQ42: 0 | BR42: =+IF($A42="","",IF($D42=BR$17,$B42+IF(MONTH($B$8)-MONTH($B$7)+$E$16=BQ$16,$C42,0),0)) -> 0 | BS42: 0 | BT42: 0 | BU42: 0 | BV42: 0 | BW42: 0 | BX42: 0 | BY42: 0 | BZ42: 0 | CA42: 0 | CB42: 0 | CC42: 0 | CD42: 0 | CE42: 0 | CF42: 0 | CG42: 0 | CH42: 0 | CI42: 0 | CJ42: 0 | CK42: 0 | CL42: 0 | CM42: 0 | CN42: 0 | CO42: 0 | CP42: 0 | CQ42: 0 | CR42: 0 | CS42: 0 | CT42: 0 | CU42: 0 | CV42: 0 | CW42: 0 | CX42: =+IF($A42="","",IF($D42=CX$17,$B42+IF(MONTH($B$8)-MONTH($B$7)+$E$16=CW$16,$C42,0),0)) -> 0 | CY42: 0 | CZ42: 0 | DA42: 0 | DB42: 0 | DC42: 0 | DD42: 0 | DE42: 0 | DF42: 0 | DG42: 0 | DH42: 0 | DI42: 0 | DJ42: 0 | DK42: 0 | DL42: 0 | DM42: 0 | DN42: 0 | DO42: 0 | DP42: 0 | DQ42: 0 | DR42: 0 | DS42: 0 | DT42: 0 | DU42: 0 | DV42: 0 | DW42: 0 | DX42: 0 | DY42: 0 | DZ42: 0 | EA42: 0 | EB42: 0 | EC42: 0 | ED42: 0 | EE42: 0 | EF42: 0 | EG42: 0 | EH42: 0 | EI42: 0 | EJ42: 0 | EK42: 0 | EL42: 0 | EM42: 0 | EN42: 0 | EO42: 0 | EP42: 0 | EQ42: 0 | ER42: 0 | ES42: 0 | ET42: 0 | EU42: 0 | EV42: 0 | EW42: 0 | EX42: 0 | EY42: 0 | EZ42: 0 | FA42: 0 | FB42: 0 | FC42: 0 | FD42: 0 | FE42: 0 | FF42: 0 | FG42: 0 | FH42: 0 | FI42: 0 | FJ42: 0 | FK42: 0 | FL42: 0 | FM42: 0 | FN42: 0 | FO42: 0 | FP42: 0 | FQ42: 0 | FR42: 0 | FS42: 0 | FT42: 0 | FU42: 0 | FV42: 0 | FW42: 0 | FX42: 0 | FY42: 0 | FZ42: 0 | GA42: 0 | GB42: 0 | GC42: 0 | GD42: 0 | GE42: 0 | GF42: 0 | GG42: 0 | GH42: 0 | GI42: 0 | GJ42: 0 | GK42: 0 | GL42: 0 | GM42: 0 | GN42: 0 | GO42: 0 | GP42: 0 | GQ42: 0 | GR42: 0 | GS42: 0 | GT42: 0 | GU42: 0 | GV42: 0 | GW42: 0 | GX42: 0 | GY42: 0 | GZ42: 0 | HA42: 0 | HB42: 0 | HC42: 0 | HD42: 0 | HE42: 0 | HF42: 0 | HG42: 0 | HH42: 0 | HI42: 0 | HJ42: 0 | HK42: 0 | HL42: 0 | HM42: 0 | HN42: 0 | HO42: 0 | HP42: 0 | HQ42: 0 | HR42: 0 | HS42: 0 | HT42: 0 | HU42: 0 | HV42: 0 | HW42: 0 | HX42: 0 | HY42: 0 | HZ42: 0 | IA42: 0 | IB42: 0 | IC42: 0 | ID42: 0 | IE42: 0 | IF42: 0 | IG42: 0 | IH42: 0 | II42: 0 | IJ42: 0 | IK42: 0 | IL42: 0 | IM42: CAPEX
A43: OBRA CIVIL | E43: 60 | F43: =+IF($A43="","",$B43+IF(MONTH($B$8)-MONTH($B$7)+$E$16=E$16,$C43,0)) -> 0 | G43: =+(IF($A43="","",IF($D43>MONTH(G$18)-MONTH(InicioFuncion)+12*(YEAR(G$18)-YEAR(InicioFuncion))+1,0,IF($E43<=(MONTH(G$18)-MONTH(InicioFuncion)+12*(YEAR(G$18)-YEAR(InicioFuncion)))-$D43,0,IF(G$17>$B$9,0,IF((YEAR($B$8)-YEAR($B$7))*12+(MONTH($B$8)-MONTH($B$7))+$E$16<=F$16,$C43))))*HLOOKUP(YEAR(G$18),$E$3:$Y$5,3,0))) -> 0 | H43: 0 | I43: 0 | J43: 0 | K43: 0 | L43: 0 | M43: 0 | N43: 0 | O43: 0 | P43: 0 | Q43: 0 | R43: 0 | S43: 0 | T43: 0 | U43: 0 | V43: 0 | W43: 0 | X43: 0 | Y43: 0 | Z43: 0 | AA43: 0 | AB43: 0 | AC43: 0 | AD43: 0 | AE43: 0 | AF43: 0 | AG43: 0 | AH43: 0 | AI43: 0 | AJ43: 0 | AK43: 0 | AL43: 0 | AM43: 0 | AN43: 0 | AO43: 0 | AP43: 0 | AQ43: 0 | AR43: 0 | AS43: 0 | AT43: 0 | AU43: 0 | AV43: 0 | AW43: 0 | AX43: 0 | AY43: 0 | AZ43: 0 | BA43: 0 | BB43: 0 | BC43: 0 | BD43: 0 | BE43: 0 | BF43: 0 | BG43: 0 | BH43: 0 | BI43: 0 | BJ43: 0 | BK43: 0 | BL43: 0 | BM43: 0 | BN43: 0 | BO43: 0 | BP43: 0 | BQ43: 0 | BR43: 0 | BS43: =+(IF($A43="","",IF($D43>MONTH(BS$18)-MONTH(InicioFuncion)+12*(YEAR(BS$18)-YEAR(InicioFuncion))+1,0,IF($E43<=(MONTH(BS$18)-MONTH(InicioFuncion)+12*(YEAR(BS$18)-YEAR(InicioFuncion)))-$D43,0,IF(BS$17>$B$9,0,IF((YEAR($B$8)-YEAR($B$7))*12+(MONTH($B$8)-MONTH($B$7))+$E$16<=BR$16,$C43))))*HLOOKUP(YEAR(BS$18),$E$3:$Y$5,3,0))) -> 0 | BT43: 0 | BU43: 0 | BV43: 0 | BW43: 0 | BX43: 0 | BY43: 0 | BZ43: 0 | CA43: 0 | CB43: 0 | CC43: 0 | CD43: 0 | CE43: 0 | CF43: 0 | CG43: 0 | CH43: 0 | CI43: 0 | CJ43: 0 | CK43: 0 | CL43: 0 | CM43: 0 | CN43: 0 | CO43: 0 | CP43: 0 | CQ43: 0 | CR43: 0 | CS43: 0 | CT43: 0 | CU43: 0 | CV43: 0 | CW43: 0 | CX43: 0 | CY43: 0 | CZ43: 0 | DA43: 0 | DB43: 0 | DC43: 0 | DD43: 0 | DE43: 0 | DF43: 0 | DG43: 0 | DH43: 0 | DI43: 0 | DJ43: 0 | DK43: 0 | DL43: 0 | DM43: 0 | DN43: 0 | DO43: 0 | DP43: 0 | DQ43: 0 | DR43: 0 | DS43: 0 | DT43: 0 | DU43: 0 | DV43: 0 | DW43: 0 | DX43: 0 | DY43: 0 | DZ43: 0 | EA43: 0 | EB43: 0 | EC43: 0 | ED43: 0 | EE43: =+(IF($A43="","",IF($D43>MONTH(EE$18)-MONTH(InicioFuncion)+12*(YEAR(EE$18)-YEAR(InicioFuncion))+1,0,IF($E43<=(MONTH(EE$18)-MONTH(InicioFuncion)+12*(YEAR(EE$18)-YEAR(InicioFuncion)))-$D43,0,IF(EE$17>$B$9,0,IF((YEAR($B$8)-YEAR($B$7))*12+(MONTH($B$8)-MONTH($B$7))+$E$16<=ED$16,$C43))))*HLOOKUP(YEAR(EE$18),$E$3:$Y$5,3,0))) -> 0 | EF43: 0 | EG43: 0 | EH43: 0 | EI43: 0 | EJ43: 0 | EK43: 0 | EL43: 0 | EM43: 0 | EN43: 0 | EO43: 0 | EP43: 0 | EQ43: 0 | ER43: 0 | ES43: 0 | ET43: 0 | EU43: 0 | EV43: 0 | EW43: 0 | EX43: 0 | EY43: 0 | EZ43: 0 | FA43: 0 | FB43: 0 | FC43: 0 | FD43: 0 | FE43: 0 | FF43: 0 | FG43: 0 | FH43: 0 | FI43: 0 | FJ43: 0 | FK43: 0 | FL43: 0 | FM43: 0 | FN43: 0 | FO43: 0 | FP43: 0 | FQ43: 0 | FR43: 0 | FS43: 0 | FT43: 0 | FU43: 0 | FV43: 0 | FW43: 0 | FX43: 0 | FY43: 0 | FZ43: 0 | GA43: 0 | GB43: 0 | GC43: 0 | GD43: 0 | GE43: 0 | GF43: 0 | GG43: 0 | GH43: 0 | GI43: 0 | GJ43: 0 | GK43: 0 | GL43: 0 | GM43: 0 | GN43: 0 | GO43: 0 | GP43: 0 | GQ43: =+(IF($A43="","",IF($D43>MONTH(GQ$18)-MONTH(InicioFuncion)+12*(YEAR(GQ$18)-YEAR(InicioFuncion))+1,0,IF($E43<=(MONTH(GQ$18)-MONTH(InicioFuncion)+12*(YEAR(GQ$18)-YEAR(InicioFuncion)))-$D43,0,IF(GQ$17>$B$9,0,IF((YEAR($B$8)-YEAR($B$7))*12+(MONTH($B$8)-MONTH($B$7))+$E$16<=GP$16,$C43))))*HLOOKUP(YEAR(GQ$18),$E$3:$Y$5,3,0))) -> 0 | GR43: 0 | GS43: 0 | GT43: 0 | GU43: 0 | GV43: 0 | GW43: 0 | GX43: 0 | GY43: 0 | GZ43: 0 | HA43: 0 | HB43: 0 | HC43: 0 | HD43: 0 | HE43: 0 | HF43: 0 | HG43: 0 | HH43: 0 | HI43: 0 | HJ43: 0 | HK43: 0 | HL43: 0 | HM43: 0 | HN43: 0 | HO43: 0 | HP43: 0 | HQ43: 0 | HR43: 0 | HS43: 0 | HT43: 0 | HU43: 0 | HV43: 0 | HW43: 0 | HX43: 0 | HY43: 0 | HZ43: 0 | IA43: 0 | IB43: 0 | IC43: 0 | ID43: 0 | IE43: 0 | IF43: 0 | IG43: 0 | IH43: 0 | II43: 0 | IJ43: 0 | IK43: 0 | IL43: 0 | IM43: OPEX
A44: Arriendo | C44: =+SUMIFS(ValoresMercado,Conceptos,A44,Tipo,TipoEspecifico,Relacion,'Parametros tecnologicos'!$F$7) -> 1446535.513 | E44: 60 | F44: =+(IF($A44="","",IF($D44>MONTH(F$18)-MONTH(InicioFuncion)+12*(YEAR(F$18)-YEAR(InicioFuncion))+1,0,IF($E44<=(MONTH(F$18)-MONTH(InicioFuncion)+12*(YEAR(F$18)-YEAR(InicioFuncion)))-$D44+IF($D44<>"",1,0),0,IF(F$17>$B$9+(12*(YEAR(InicioFuncion)-YEAR(InicioObra))+MONTH(InicioFuncion)-MONTH(InicioObra)),0,IF((YEAR($B$8)-YEAR($B$7))*12+(MONTH($B$8)-MONTH($B$7))+$E$16<=E$16,$C44))))*HLOOKUP(YEAR(F$18),$E$3:$Y$5,3,0))) -> 0 | G44: 0 | H44: 0 | I44: 0 | J44: 0 | K44: 0 | L44: 0 | M44: 0 | N44: 1489931.578 | O44: 1489931.578 | P44: 1489931.578 | Q44: 1489931.578 | R44: 1489931.578 | S44: 1489931.578 | T44: 1534629.525 | U44: 1534629.525 | V44: 1534629.525 | W44: 1534629.525 | X44: 1534629.525 | Y44: 1534629.525 | Z44: 1534629.525 | AA44: 1534629.525 | AB44: 1534629.525 | AC44: 1534629.525 | AD44: 1534629.525 | AE44: 1534629.525 | AF44: 1580668.411 | AG44: 1580668.411 | AH44: 1580668.411 | AI44: 1580668.411 | AJ44: 1580668.411 | AK44: 1580668.411 | AL44: 1580668.411 | AM44: 1580668.411 | AN44: 1580668.411 | AO44: 1580668.411 | AP44: 1580668.411 | AQ44: 1580668.411 | AR44: 1628088.464 | AS44: 1628088.464 | AT44: 1628088.464 | AU44: 1628088.464 | AV44: 1628088.464 | AW44: 1628088.464 | AX44: 1628088.464 | AY44: 1628088.464 | AZ44: 1628088.464 | BA44: 1628088.464 | BB44: 1628088.464 | BC44: 1628088.464 | BD44: 1676931.117 | BE44: 1676931.117 | BF44: 1676931.117 | BG44: 1676931.117 | BH44: 1676931.117 | BI44: 1676931.117 | BJ44: 1676931.117 | BK44: 1676931.117 | BL44: 1676931.117 | BM44: 1676931.117 | BN44: 1676931.117 | BO44: 1676931.117 | BP44: 1727239.051 | BQ44: 1727239.051 | BR44: =+(IF($A44="","",IF($D44>MONTH(BR$18)-MONTH(InicioFuncion)+12*(YEAR(BR$18)-YEAR(InicioFuncion))+1,0,IF($E44<=(MONTH(BR$18)-MONTH(InicioFuncion)+12*(YEAR(BR$18)-YEAR(InicioFuncion)))-$D44+IF($D44<>"",1,0),0,IF(BR$17>$B$9+(12*(YEAR(InicioFuncion)-YEAR(InicioObra))+MONTH(InicioFuncion)-MONTH(InicioObra)),0,IF((YEAR($B$8)-YEAR($B$7))*12+(MONTH($B$8)-MONTH($B$7))+$E$16<=BQ$16,$C44))))*HLOOKUP(YEAR(BR$18),$E$3:$Y$5,3,0))) -> 1727239.051 | BS44: 1727239.051 | BT44: 1727239.051 | BU44: 1727239.051 | BV44: 0 | BW44: 0 | BX44: 0 | BY44: 0 | BZ44: 0 | CA44: 0 | CB44: 0 | CC44: 0 | CD44: 0 | CE44: 0 | CF44: 0 | CG44: 0 | CH44: 0 | CI44: 0 | CJ44: 0 | CK44: 0 | CL44: 0 | CM44: 0 | CN44: 0 | CO44: 0 | CP44: 0 | CQ44: 0 | CR44: 0 | CS44: 0 | CT44: 0 | CU44: 0 | CV44: 0 | CW44: 0 | CX44: 0 | CY44: 0 | CZ44: 0 | DA44: 0 | DB44: 0 | DC44: 0 | DD44: 0 | DE44: 0 | DF44: 0 | DG44: 0 | DH44: 0 | DI44: 0 | DJ44: 0 | DK44: 0 | DL44: 0 | DM44: 0 | DN44: 0 | DO44: 0 | DP44: 0 | DQ44: 0 | DR44: 0 | DS44: 0 | DT44: 0 | DU44: 0 | DV44: 0 | DW44: 0 | DX44: 0 | DY44: 0 | DZ44: 0 | EA44: 0 | EB44: 0 | EC44: 0 | ED44: =+(IF($A44="","",IF($D44>MONTH(ED$18)-MONTH(InicioFuncion)+12*(YEAR(ED$18)-YEAR(InicioFuncion))+1,0,IF($E44<=(MONTH(ED$18)-MONTH(InicioFuncion)+12*(YEAR(ED$18)-YEAR(InicioFuncion)))-$D44+IF($D44<>"",1,0),0,IF(ED$17>$B$9+(12*(YEAR(InicioFuncion)-YEAR(InicioObra))+MONTH(InicioFuncion)-MONTH(InicioObra)),0,IF((YEAR($B$8)-YEAR($B$7))*12+(MONTH($B$8)-MONTH($B$7))+$E$16<=EC$16,$C44))))*HLOOKUP(YEAR(ED$18),$E$3:$Y$5,3,0))) -> 0 | EE44: 0 | EF44: 0 | EG44: 0 | EH44: 0 | EI44: 0 | EJ44: 0 | EK44: 0 | EL44: 0 | EM44: 0 | EN44: 0 | EO44: 0 | EP44: 0 | EQ44: 0 | ER44: 0 | ES44: 0 | ET44: 0 | EU44: 0 | EV44: 0 | EW44: 0 | EX44: 0 | EY44: 0 | EZ44: 0 | FA44: 0 | FB44: 0 | FC44: 0 | FD44: 0 | FE44: 0 | FF44: 0 | FG44: 0 | FH44: 0 | FI44: 0 | FJ44: 0 | FK44: 0 | FL44: 0 | FM44: 0 | FN44: 0 | FO44: 0 | FP44: 0 | FQ44: 0 | FR44: 0 | FS44: 0 | FT44: 0 | FU44: 0 | FV44: 0 | FW44: 0 | FX44: 0 | FY44: 0 | FZ44: 0 | GA44: 0 | GB44: 0 | GC44: 0 | GD44: 0 | GE44: 0 | GF44: 0 | GG44: 0 | GH44: 0 | GI44: 0 | GJ44: 0 | GK44: 0 | GL44: 0 | GM44: 0 | GN44: 0 | GO44: 0 | GP44: =+(IF($A44="","",IF($D44>MONTH(GP$18)-MONTH(InicioFuncion)+12*(YEAR(GP$18)-YEAR(InicioFuncion))+1,0,IF($E44<=(MONTH(GP$18)-MONTH(InicioFuncion)+12*(YEAR(GP$18)-YEAR(InicioFuncion)))-$D44+IF($D44<>"",1,0),0,IF(GP$17>$B$9+(12*(YEAR(InicioFuncion)-YEAR(InicioObra))+MONTH(InicioFuncion)-MONTH(InicioObra)),0,IF((YEAR($B$8)-YEAR($B$7))*12+(MONTH($B$8)-MONTH($B$7))+$E$16<=GO$16,$C44))))*HLOOKUP(YEAR(GP$18),$E$3:$Y$5,3,0))) -> 0 | GQ44: 0 | GR44: 0 | GS44: 0 | GT44: 0 | GU44: 0 | GV44: 0 | GW44: 0 | GX44: 0 | GY44: 0 | GZ44: 0 | HA44: 0 | HB44: 0 | HC44: 0 | HD44: 0 | HE44: 0 | HF44: 0 | HG44: 0 | HH44: 0 | HI44: 0 | HJ44: 0 | HK44: 0 | HL44: 0 | HM44: 0 | HN44: 0 | HO44: 0 | HP44: 0 | HQ44: 0 | HR44: 0 | HS44: 0 | HT44: 0 | HU44: 0 | HV44: 0 | HW44: 0 | HX44: 0 | HY44: 0 | HZ44: 0 | IA44: 0 | IB44: 0 | IC44: 0 | ID44: 0 | IE44: 0 | IF44: 0 | IG44: 0 | IH44: 0 | II44: 0 | IJ44: 0 | IK44: 0 | IL44: 0 | IM44: OPEX
A45: Obra civil - Caseta Para Equipos | B45: =+IF(ArrendamientoInfraestructura="S",0,SUMIFS(ValoresMercado,Conceptos,A45,Relacion,'Parametros tecnologicos'!$F$7,Tipo,TipoEspecifico)) -> 6329992.5 | E45: 60 | F45: =+IF($A45="","",IF($D45=F$17,$B45+IF(MONTH($B$8)-MONTH($B$7)+$E$16=E$16,$C45,0),0)) -> 6329992.5 | G45: 0 | H45: 0 | I45: 0 | J45: 0 | K45: 0 | L45: 0 | M45: 0 | N45: 0 | O45: 0 | P45: 0 | Q45: 0 | R45: 0 | S45: 0 | T45: 0 | U45: 0 | V45: 0 | W45: 0 | X45: 0 | Y45: 0 | Z45: 0 | AA45: 0 | AB45: 0 | AC45: 0 | AD45: 0 | AE45: 0 | AF45: 0 | AG45: 0 | AH45: 0 | AI45: 0 | AJ45: 0 | AK45: 0 | AL45: =+IF($A45="","",IF($D45=AL$17,$B45+IF(MONTH($B$8)-MONTH($B$7)+$E$16=AK$16,$C45,0),0)) -> 0 | AM45: 0 | AN45: 0 | AO45: 0 | AP45: 0 | AQ45: 0 | AR45: 0 | AS45: 0 | AT45: 0 | AU45: 0 | AV45: 0 | AW45: 0 | AX45: 0 | AY45: 0 | AZ45: 0 | BA45: 0 | BB45: 0 | BC45: 0 | BD45: 0 | BE45: 0 | BF45: 0 | BG45: 0 | BH45: 0 | BI45: 0 | BJ45: 0 | BK45: 0 | BL45: 0 | BM45: 0 | BN45: 0 | BO45: 0 | BP45: 0 | BQ45: 0 | BR45: =+IF($A45="","",IF($D45=BR$17,$B45+IF(MONTH($B$8)-MONTH($B$7)+$E$16=BQ$16,$C45,0),0)) -> 0 | BS45: 0 | BT45: 0 | BU45: 0 | BV45: 0 | BW45: 0 | BX45: 0 | BY45: 0 | BZ45: 0 | CA45: 0 | CB45: 0 | CC45: 0 | CD45: 0 | CE45: 0 | CF45: 0 | CG45: 0 | CH45: 0 | CI45: 0 | CJ45: 0 | CK45: 0 | CL45: 0 | CM45: 0 | CN45: 0 | CO45: 0 | CP45: 0 | CQ45: 0 | CR45: 0 | CS45: 0 | CT45: 0 | CU45: 0 | CV45: 0 | CW45: 0 | CX45: =+IF($A45="","",IF($D45=CX$17,$B45+IF(MONTH($B$8)-MONTH($B$7)+$E$16=CW$16,$C45,0),0)) -> 0 | CY45: 0 | CZ45: 0 | DA45: 0 | DB45: 0 | DC45: 0 | DD45: 0 | DE45: 0 | DF45: 0 | DG45: 0 | DH45: 0 | DI45: 0 | DJ45: 0 | DK45: 0 | DL45: 0 | DM45: 0 | DN45: 0 | DO45: 0 | DP45: 0 | DQ45: 0 | DR45: 0 | DS45: 0 | DT45: 0 | DU45: 0 | DV45: =+IF($A45="","",IF($D45=DV$17,$B45+IF(MONTH($B$8)-MONTH($B$7)+$E$16=DU$16,$C45,0),0)) -> 0 | DW45: 0 | DX45: 0 | DY45: 0 | DZ45: 0 | EA45: 0 | EB45: 0 | EC45: 0 | ED45: 0 | EE45: 0 | EF45: 0 | EG45: 0 | EH45: 0 | EI45: 0 | EJ45: 0 | EK45: 0 | EL45: 0 | EM45: 0 | EN45: 0 | EO45: 0 | EP45: 0 | EQ45: 0 | ER45: 0 | ES45: 0 | ET45: 0 | EU45: 0 | EV45: 0 | EW45: 0 | EX45: 0 | EY45: 0 | EZ45: 0 | FA45: 0 | FB45: =+IF($A45="","",IF($D45=FB$17,$B45+IF(MONTH($B$8)-MONTH($B$7)+$E$16=FA$16,$C45,0),0)) -> 0 | FC45: 0 | FD45: 0 | FE45: 0 | FF45: 0 | FG45: 0 | FH45: 0 | FI45: 0 | FJ45: 0 | FK45: 0 | FL45: 0 | FM45: 0 | FN45: 0 | FO45: 0 | FP45: 0 | FQ45: 0 | FR45: 0 | FS45: 0 | FT45: 0 | FU45: 0 | FV45: 0 | FW45: 0 | FX45: 0 | FY45: 0 | FZ45: 0 | GA45: 0 | GB45: 0 | GC45: 0 | GD45: 0 | GE45: 0 | GF45: 0 | GG45: 0 | GH45: =+IF($A45="","",IF($D45=GH$17,$B45+IF(MONTH($B$8)-MONTH($B$7)+$E$16=GG$16,$C45,0),0)) -> 0 | GI45: 0 | GJ45: 0 | GK45: 0 | GL45: 0 | GM45: 0 | GN45: 0 | GO45: 0 | GP45: 0 | GQ45: 0 | GR45: 0 | GS45: 0 | GT45: 0 | GU45: 0 | GV45: 0 | GW45: 0 | GX45: 0 | GY45: 0 | GZ45: 0 | HA45: 0 | HB45: 0 | HC45: 0 | HD45: 0 | HE45: 0 | HF45: 0 | HG45: 0 | HH45: 0 | HI45: 0 | HJ45: 0 | HK45: 0 | HL45: 0 | HM45: 0 | HN45: =+IF($A45="","",IF($D45=HN$17,$B45+IF(MONTH($B$8)-MONTH($B$7)+$E$16=HM$16,$C45,0),0)) -> 0 | HO45: 0 | HP45: 0 | HQ45: 0 | HR45: 0 | HS45: 0 | HT45: 0 | HU45: 0 | HV45: 0 | HW45: 0 | HX45: 0 | HY45: 0 | HZ45: 0 | IA45: 0 | IB45: 0 | IC45: 0 | ID45: 0 | IE45: 0 | IF45: 0 | IG45: 0 | IH45: 0 | II45: 0 | IJ45: 0 | IK45: 0 | IL45: 0 | IM45: CAPEX
A46: Obra civil - Encerramiento | B46: =+IF(ArrendamientoInfraestructura="S",0,SUMIFS(ValoresMercado,Conceptos,A46,Relacion,'Parametros tecnologicos'!$F$7,Tipo,TipoEspecifico)) -> 36830725 | E46: 60 | F46: =+IF($A46="","",IF($D46=F$17,$B46+IF(MONTH($B$8)-MONTH($B$7)+$E$16=E$16,$C46,0),0)) -> 36830725 | G46: 0 | H46: 0 | I46: 0 | J46: 0 | K46: 0 | L46: 0 | M46: 0 | N46: 0 | O46: 0 | P46: 0 | Q46: 0 | R46: 0 | S46: 0 | T46: 0 | U46: 0 | V46: 0 | W46: 0 | X46: 0 | Y46: 0 | Z46: 0 | AA46: 0 | AB46: 0 | AC46: 0 | AD46: 0 | AE46: 0 | AF46: 0 | AG46: 0 | AH46: 0 | AI46: 0 | AJ46: 0 | AK46: 0 | AL46: =+IF($A46="","",IF($D46=AL$17,$B46+IF(MONTH($B$8)-MONTH($B$7)+$E$16=AK$16,$C46,0),0)) -> 0 | AM46: 0 | AN46: 0 | AO46: 0 | AP46: 0 | AQ46: 0 | AR46: 0 | AS46: 0 | AT46: 0 | AU46: 0 | AV46: 0 | AW46: 0 | AX46: 0 | AY46: 0 | AZ46: 0 | BA46: 0 | BB46: 0 | BC46: 0 | BD46: 0 | BE46: 0 | BF46: 0 | BG46: 0 | BH46: 0 | BI46: 0 | BJ46: 0 | BK46: 0 | BL46: 0 | BM46: 0 | BN46: 0 | BO46: 0 | BP46: 0 | BQ46: 0 | BR46: =+IF($A46="","",IF($D46=BR$17,$B46+IF(MONTH($B$8)-MONTH($B$7)+$E$16=BQ$16,$C46,0),0)) -> 0 | BS46: 0 | BT46: 0 | BU46: 0 | BV46: 0 | BW46: 0 | BX46: 0 | BY46: 0 | BZ46: 0 | CA46: 0 | CB46: 0 | CC46: 0 | CD46: 0 | CE46: 0 | CF46: 0 | CG46: 0 | CH46: 0 | CI46: 0 | CJ46: 0 | CK46: 0 | CL46: 0 | CM46: 0 | CN46: 0 | CO46: 0 | CP46: 0 | CQ46: 0 | CR46: 0 | CS46: 0 | CT46: 0 | CU46: 0 | CV46: 0 | CW46: 0 | CX46: =+IF($A46="","",IF($D46=CX$17,$B46+IF(MONTH($B$8)-MONTH($B$7)+$E$16=CW$16,$C46,0),0)) -> 0 | CY46: 0 | CZ46: 0 | DA46: 0 | DB46: 0 | DC46: 0 | DD46: 0 | DE46: 0 | DF46: 0 | DG46: 0 | DH46: 0 | DI46: 0 | DJ46: 0 | DK46: 0 | DL46: 0 | DM46: 0 | DN46: 0 | DO46: 0 | DP46: 0 | DQ46: 0 | DR46: 0 | DS46: 0 | DT46: 0 | DU46: 0 | DV46: =+IF($A46="","",IF($D46=DV$17,$B46+IF(MONTH($B$8)-MONTH($B$7)+$E$16=DU$16,$C46,0),0)) -> 0 | DW46: 0 | DX46: 0 | DY46: 0 | DZ46: 0 | EA46: 0 | EB46: 0 | EC46: 0 | ED46: 0 | EE46: 0 | EF46: 0 | EG46: 0 | EH46: 0 | EI46: 0 | EJ46: 0 | EK46: 0 | EL46: 0 | EM46: 0 | EN46: 0 | EO46: 0 | EP46: 0 | EQ46: 0 | ER46: 0 | ES46: 0 | ET46: 0 | EU46: 0 | EV46: 0 | EW46: 0 | EX46: 0 | EY46: 0 | EZ46: 0 | FA46: 0 | FB46: =+IF($A46="","",IF($D46=FB$17,$B46+IF(MONTH($B$8)-MONTH($B$7)+$E$16=FA$16,$C46,0),0)) -> 0 | FC46: 0 | FD46: 0 | FE46: 0 | FF46: 0 | FG46: 0 | FH46: 0 | FI46: 0 | FJ46: 0 | FK46: 0 | FL46: 0 | FM46: 0 | FN46: 0 | FO46: 0 | FP46: 0 | FQ46: 0 | FR46: 0 | FS46: 0 | FT46: 0 | FU46: 0 | FV46: 0 | FW46: 0 | FX46: 0 | FY46: 0 | FZ46: 0 | GA46: 0 | GB46: 0 | GC46: 0 | GD46: 0 | GE46: 0 | GF46: 0 | GG46: 0 | GH46: =+IF($A46="","",IF($D46=GH$17,$B46+IF(MONTH($B$8)-MONTH($B$7)+$E$16=GG$16,$C46,0),0)) -> 0 | GI46: 0 | GJ46: 0 | GK46: 0 | GL46: 0 | GM46: 0 | GN46: 0 | GO46: 0 | GP46: 0 | GQ46: 0 | GR46: 0 | GS46: 0 | GT46: 0 | GU46: 0 | GV46: 0 | GW46: 0 | GX46: 0 | GY46: 0 | GZ46: 0 | HA46: 0 | HB46: 0 | HC46: 0 | HD46: 0 | HE46: 0 | HF46: 0 | HG46: 0 | HH46: 0 | HI46: 0 | HJ46: 0 | HK46: 0 | HL46: 0 | HM46: 0 | HN46: =+IF($A46="","",IF($D46=HN$17,$B46+IF(MONTH($B$8)-MONTH($B$7)+$E$16=HM$16,$C46,0),0)) -> 0 | HO46: 0 | HP46: 0 | HQ46: 0 | HR46: 0 | HS46: 0 | HT46: 0 | HU46: 0 | HV46: 0 | HW46: 0 | HX46: 0 | HY46: 0 | HZ46: 0 | IA46: 0 | IB46: 0 | IC46: 0 | ID46: 0 | IE46: 0 | IF46: 0 | IG46: 0 | IH46: 0 | II46: 0 | IJ46: 0 | IK46: 0 | IL46: 0 | IM46: CAPEX
A47: Obra civil - Trasiegos | B47: =+IF(ArrendamientoInfraestructura="S",0,SUMIFS(ValoresMercado,Conceptos,A47,Relacion,'Parametros tecnologicos'!$F$7,Tipo,TipoEspecifico)) -> 77781635 | E47: 60 | F47: =+IF($A47="","",IF($D47=F$17,$B47+IF(MONTH($B$8)-MONTH($B$7)+$E$16=E$16,$C47,0),0)) -> 77781635 | G47: 0 | H47: 0 | I47: 0 | J47: 0 | K47: 0 | L47: 0 | M47: 0 | N47: 0 | O47: 0 | P47: 0 | Q47: 0 | R47: 0 | S47: 0 | T47: 0 | U47: 0 | V47: 0 | W47: 0 | X47: 0 | Y47: 0 | Z47: 0 | AA47: 0 | AB47: 0 | AC47: 0 | AD47: 0 | AE47: 0 | AF47: 0 | AG47: 0 | AH47: 0 | AI47: 0 | AJ47: 0 | AK47: 0 | AL47: =+IF($A47="","",IF($D47=AL$17,$B47+IF(MONTH($B$8)-MONTH($B$7)+$E$16=AK$16,$C47,0),0)) -> 0 | AM47: 0 | AN47: 0 | AO47: 0 | AP47: 0 | AQ47: 0 | AR47: 0 | AS47: 0 | AT47: 0 | AU47: 0 | AV47: 0 | AW47: 0 | AX47: 0 | AY47: 0 | AZ47: 0 | BA47: 0 | BB47: 0 | BC47: 0 | BD47: 0 | BE47: 0 | BF47: 0 | BG47: 0 | BH47: 0 | BI47: 0 | BJ47: 0 | BK47: 0 | BL47: 0 | BM47: 0 | BN47: 0 | BO47: 0 | BP47: 0 | BQ47: 0 | BR47: =+IF($A47="","",IF($D47=BR$17,$B47+IF(MONTH($B$8)-MONTH($B$7)+$E$16=BQ$16,$C47,0),0)) -> 0 | BS47: 0 | BT47: 0 | BU47: 0 | BV47: 0 | BW47: 0 | BX47: 0 | BY47: 0 | BZ47: 0 | CA47: 0 | CB47: 0 | CC47: 0 | CD47: 0 | CE47: 0 | CF47: 0 | CG47: 0 | CH47: 0 | CI47: 0 | CJ47: 0 | CK47: 0 | CL47: 0 | CM47: 0 | CN47: 0 | CO47: 0 | CP47: 0 | CQ47: 0 | CR47: 0 | CS47: 0 | CT47: 0 | CU47: 0 | CV47: 0 | CW47: 0 | CX47: =+IF($A47="","",IF($D47=CX$17,$B47+IF(MONTH($B$8)-MONTH($B$7)+$E$16=CW$16,$C47,0),0)) -> 0 | CY47: 0 | CZ47: 0 | DA47: 0 | DB47: 0 | DC47: 0 | DD47: 0 | DE47: 0 | DF47: 0 | DG47: 0 | DH47: 0 | DI47: 0 | DJ47: 0 | DK47: 0 | DL47: 0 | DM47: 0 | DN47: 0 | DO47: 0 | DP47: 0 | DQ47: 0 | DR47: 0 | DS47: 0 | DT47: 0 | DU47: 0 | DV47: =+IF($A47="","",IF($D47=DV$17,$B47+IF(MONTH($B$8)-MONTH($B$7)+$E$16=DU$16,$C47,0),0)) -> 0 | DW47: 0 | DX47: 0 | DY47: 0 | DZ47: 0 | EA47: 0 | EB47: 0 | EC47: 0 | ED47: 0 | EE47: 0 | EF47: 0 | EG47: 0 | EH47: 0 | EI47: 0 | EJ47: 0 | EK47: 0 | EL47: 0 | EM47: 0 | EN47: 0 | EO47: 0 | EP47: 0 | EQ47: 0 | ER47: 0 | ES47: 0 | ET47: 0 | EU47: 0 | EV47: 0 | EW47: 0 | EX47: 0 | EY47: 0 | EZ47: 0 | FA47: 0 | FB47: =+IF($A47="","",IF($D47=FB$17,$B47+IF(MONTH($B$8)-MONTH($B$7)+$E$16=FA$16,$C47,0),0)) -> 0 | FC47: 0 | FD47: 0 | FE47: 0 | FF47: 0 | FG47: 0 | FH47: 0 | FI47: 0 | FJ47: 0 | FK47: 0 | FL47: 0 | FM47: 0 | FN47: 0 | FO47: 0 | FP47: 0 | FQ47: 0 | FR47: 0 | FS47: 0 | FT47: 0 | FU47: 0 | FV47: 0 | FW47: 0 | FX47: 0 | FY47: 0 | FZ47: 0 | GA47: 0 | GB47: 0 | GC47: 0 | GD47: 0 | GE47: 0 | GF47: 0 | GG47: 0 | GH47: =+IF($A47="","",IF($D47=GH$17,$B47+IF(MONTH($B$8)-MONTH($B$7)+$E$16=GG$16,$C47,0),0)) -> 0 | GI47: 0 | GJ47: 0 | GK47: 0 | GL47: 0 | GM47: 0 | GN47: 0 | GO47: 0 | GP47: 0 | GQ47: 0 | GR47: 0 | GS47: 0 | GT47: 0 | GU47: 0 | GV47: 0 | GW47: 0 | GX47: 0 | GY47: 0 | GZ47: 0 | HA47: 0 | HB47: 0 | HC47: 0 | HD47: 0 | HE47: 0 | HF47: 0 | HG47: 0 | HH47: 0 | HI47: 0 | HJ47: 0 | HK47: 0 | HL47: 0 | HM47: 0 | HN47: =+IF($A47="","",IF($D47=HN$17,$B47+IF(MONTH($B$8)-MONTH($B$7)+$E$16=HM$16,$C47,0),0)) -> 0 | HO47: 0 | HP47: 0 | HQ47: 0 | HR47: 0 | HS47: 0 | HT47: 0 | HU47: 0 | HV47: 0 | HW47: 0 | HX47: 0 | HY47: 0 | HZ47: 0 | IA47: 0 | IB47: 0 | IC47: 0 | ID47: 0 | IE47: 0 | IF47: 0 | IG47: 0 | IH47: 0 | II47: 0 | IJ47: 0 | IK47: 0 | IL47: 0 | IM47: CAPEX
A48: Mto Torre (Incluye: Tierra, Pararrayo) - Convencional (*) | C48: =+SUMIFS(ValoresMercado,Conceptos,A48,Tipo,TipoEspecifico,Relacion,'Parametros tecnologicos'!$F$7,ClaseTorreRango,ClaseTorre)/12 -> 1282528.924 | E48: 60 | F48: =+(IF($A48="","",IF(F$17>=12+(12*(YEAR(InicioFuncion)-YEAR(InicioObra))+MONTH(InicioFuncion)-MONTH(InicioObra)),IF($D48>MONTH(F$18)-MONTH(InicioFuncion)+12*(YEAR(F$18)-YEAR(InicioFuncion))+1,0,IF($E48<=(MONTH(F$18)-MONTH(InicioFuncion)+12*(YEAR(F$18)-YEAR(InicioFuncion)))-$D48+IF($D48<>"",1,0),0,IF(F$17>$B$9+(12*(YEAR(InicioFuncion)-YEAR(InicioObra))+MONTH(InicioFuncion)-MONTH(InicioObra)),0,IF((YEAR($B$8)-YEAR($B$7))*12+(MONTH($B$8)-MONTH($B$7))+$E$16<=E$16,$C48))))*HLOOKUP(YEAR(F$18),$E$3:$Y$5,3,0),0))) -> 0 | G48: 0 | H48: 0 | I48: 0 | J48: 0 | K48: 0 | L48: 0 | M48: 0 | N48: 0 | O48: 0 | P48: 0 | Q48: 0 | R48: 0 | S48: 0 | T48: 0 | U48: 0 | V48: 0 | W48: 0 | X48: 0 | Y48: 0 | Z48: 1360634.935 | AA48: 1360634.935 | AB48: 1360634.935 | AC48: 1360634.935 | AD48: 1360634.935 | AE48: 1360634.935 | AF48: 1401453.983 | AG48: 1401453.983 | AH48: 1401453.983 | AI48: 1401453.983 | AJ48: 1401453.983 | AK48: 1401453.983 | AL48: 1401453.983 | AM48: 1401453.983 | AN48: 1401453.983 | AO48: 1401453.983 | AP48: 1401453.983 | AQ48: 1401453.983 | AR48: 1443497.603 | AS48: 1443497.603 | AT48: 1443497.603 | AU48: 1443497.603 | AV48: 1443497.603 | AW48: 1443497.603 | AX48: 1443497.603 | AY48: 1443497.603 | AZ48: 1443497.603 | BA48: 1443497.603 | BB48: 1443497.603 | BC48: 1443497.603 | BD48: 1486802.531 | BE48: 1486802.531 | BF48: 1486802.531 | BG48: 1486802.531 | BH48: 1486802.531 | BI48: 1486802.531 | BJ48: 1486802.531 | BK48: 1486802.531 | BL48: 1486802.531 | BM48: 1486802.531 | BN48: 1486802.531 | BO48: 1486802.531 | BP48: 1531406.607 | BQ48: 1531406.607 | BR48: =+(IF($A48="","",IF(BR$17>=12+(12*(YEAR(InicioFuncion)-YEAR(InicioObra))+MONTH(InicioFuncion)-MONTH(InicioObra)),IF($D48>MONTH(BR$18)-MONTH(InicioFuncion)+12*(YEAR(BR$18)-YEAR(InicioFuncion))+1,0,IF($E48<=(MONTH(BR$18)-MONTH(InicioFuncion)+12*(YEAR(BR$18)-YEAR(InicioFuncion)))-$D48+IF($D48<>"",1,0),0,IF(BR$17>$B$9+(12*(YEAR(InicioFuncion)-YEAR(InicioObra))+MONTH(InicioFuncion)-MONTH(InicioObra)),0,IF((YEAR($B$8)-YEAR($B$7))*12+(MONTH($B$8)-MONTH($B$7))+$E$16<=BQ$16,$C48))))*HLOOKUP(YEAR(BR$18),$E$3:$Y$5,3,0),0))) -> 1531406.607 | BS48: 1531406.607 | BT48: 1531406.607 | BU48: 1531406.607 | BV48: 0 | BW48: 0 | BX48: 0 | BY48: 0 | BZ48: 0 | CA48: 0 | CB48: 0 | CC48: 0 | CD48: 0 | CE48: 0 | CF48: 0 | CG48: 0 | CH48: 0 | CI48: 0 | CJ48: 0 | CK48: 0 | CL48: 0 | CM48: 0 | CN48: 0 | CO48: 0 | CP48: 0 | CQ48: 0 | CR48: 0 | CS48: 0 | CT48: 0 | CU48: 0 | CV48: 0 | CW48: 0 | CX48: 0 | CY48: 0 | CZ48: 0 | DA48: 0 | DB48: 0 | DC48: 0 | DD48: 0 | DE48: 0 | DF48: 0 | DG48: 0 | DH48: 0 | DI48: 0 | DJ48: 0 | DK48: 0 | DL48: 0 | DM48: 0 | DN48: 0 | DO48: 0 | DP48: 0 | DQ48: 0 | DR48: 0 | DS48: 0 | DT48: 0 | DU48: 0 | DV48: 0 | DW48: 0 | DX48: 0 | DY48: 0 | DZ48: 0 | EA48: 0 | EB48: 0 | EC48: 0 | ED48: =+(IF($A48="","",IF(ED$17>=12+(12*(YEAR(InicioFuncion)-YEAR(InicioObra))+MONTH(InicioFuncion)-MONTH(InicioObra)),IF($D48>MONTH(ED$18)-MONTH(InicioFuncion)+12*(YEAR(ED$18)-YEAR(InicioFuncion))+1,0,IF($E48<=(MONTH(ED$18)-MONTH(InicioFuncion)+12*(YEAR(ED$18)-YEAR(InicioFuncion)))-$D48+IF($D48<>"",1,0),0,IF(ED$17>$B$9+(12*(YEAR(InicioFuncion)-YEAR(InicioObra))+MONTH(InicioFuncion)-MONTH(InicioObra)),0,IF((YEAR($B$8)-YEAR($B$7))*12+(MONTH($B$8)-MONTH($B$7))+$E$16<=EC$16,$C48))))*HLOOKUP(YEAR(ED$18),$E$3:$Y$5,3,0),0))) -> 0 | EE48: 0 | EF48: 0 | EG48: 0 | EH48: 0 | EI48: 0 | EJ48: 0 | EK48: 0 | EL48: 0 | EM48: 0 | EN48: 0 | EO48: 0 | EP48: 0 | EQ48: 0 | ER48: 0 | ES48: 0 | ET48: 0 | EU48: 0 | EV48: 0 | EW48: 0 | EX48: 0 | EY48: 0 | EZ48: 0 | FA48: 0 | FB48: 0 | FC48: 0 | FD48: 0 | FE48: 0 | FF48: 0 | FG48: 0 | FH48: 0 | FI48: 0 | FJ48: 0 | FK48: 0 | FL48: 0 | FM48: 0 | FN48: 0 | FO48: 0 | FP48: 0 | FQ48: 0 | FR48: 0 | FS48: 0 | FT48: 0 | FU48: 0 | FV48: 0 | FW48: 0 | FX48: 0 | FY48: 0 | FZ48: 0 | GA48: 0 | GB48: 0 | GC48: 0 | GD48: 0 | GE48: 0 | GF48: 0 | GG48: 0 | GH48: 0 | GI48: 0 | GJ48: 0 | GK48: 0 | GL48: 0 | GM48: 0 | GN48: 0 | GO48: 0 | GP48: =+(IF($A48="","",IF(GP$17>=12+(12*(YEAR(InicioFuncion)-YEAR(InicioObra))+MONTH(InicioFuncion)-MONTH(InicioObra)),IF($D48>MONTH(GP$18)-MONTH(InicioFuncion)+12*(YEAR(GP$18)-YEAR(InicioFuncion))+1,0,IF($E48<=(MONTH(GP$18)-MONTH(InicioFuncion)+12*(YEAR(GP$18)-YEAR(InicioFuncion)))-$D48+IF($D48<>"",1,0),0,IF(GP$17>$B$9+(12*(YEAR(InicioFuncion)-YEAR(InicioObra))+MONTH(InicioFuncion)-MONTH(InicioObra)),0,IF((YEAR($B$8)-YEAR($B$7))*12+(MONTH($B$8)-MONTH($B$7))+$E$16<=GO$16,$C48))))*HLOOKUP(YEAR(GP$18),$E$3:$Y$5,3,0),0))) -> 0 | GQ48: 0 | GR48: 0 | GS48: 0 | GT48: 0 | GU48: 0 | GV48: 0 | GW48: 0 | GX48: 0 | GY48: 0 | GZ48: 0 | HA48: 0 | HB48: 0 | HC48: 0 | HD48: 0 | HE48: 0 | HF48: 0 | HG48: 0 | HH48: 0 | HI48: 0 | HJ48: 0 | HK48: 0 | HL48: 0 | HM48: 0 | HN48: 0 | HO48: 0 | HP48: 0 | HQ48: 0 | HR48: 0 | HS48: 0 | HT48: 0 | HU48: 0 | HV48: 0 | HW48: 0 | HX48: 0 | HY48: 0 | HZ48: 0 | IA48: 0 | IB48: 0 | IC48: 0 | ID48: 0 | IE48: 0 | IF48: 0 | IG48: 0 | IH48: 0 | II48: 0 | IJ48: 0 | IK48: 0 | IL48: 0 | IM48: OPEX
A49: Mto Torre (Incluye: Tierra, Pararrayo) - Monopolo (*) | C49: =+SUMIFS(ValoresMercado,Conceptos,A49,Tipo,TipoEspecifico,Relacion,'Parametros tecnologicos'!$F$7,ClaseTorreRango,ClaseTorre)/12 -> 0 | E49: 60 | F49: =+(IF($A49="","",IF(F$17>=12+(12*(YEAR(InicioFuncion)-YEAR(InicioObra))+MONTH(InicioFuncion)-MONTH(InicioObra)),IF($D49>MONTH(F$18)-MONTH(InicioFuncion)+12*(YEAR(F$18)-YEAR(InicioFuncion))+1,0,IF($E49<=(MONTH(F$18)-MONTH(InicioFuncion)+12*(YEAR(F$18)-YEAR(InicioFuncion)))-$D49+IF($D49<>"",1,0),0,IF(F$17>$B$9+(12*(YEAR(InicioFuncion)-YEAR(InicioObra))+MONTH(InicioFuncion)-MONTH(InicioObra)),0,IF((YEAR($B$8)-YEAR($B$7))*12+(MONTH($B$8)-MONTH($B$7))+$E$16<=E$16,$C49))))*HLOOKUP(YEAR(F$18),$E$3:$Y$5,3,0),0))) -> 0 | G49: 0 | H49: 0 | I49: 0 | J49: 0 | K49: 0 | L49: 0 | M49: 0 | N49: 0 | O49: 0 | P49: 0 | Q49: 0 | R49: 0 | S49: 0 | T49: 0 | U49: 0 | V49: 0 | W49: 0 | X49: 0 | Y49: 0 | Z49: 0 | AA49: 0 | AB49: 0 | AC49: 0 | AD49: 0 | AE49: 0 | AF49: 0 | AG49: 0 | AH49: 0 | AI49: 0 | AJ49: 0 | AK49: 0 | AL49: 0 | AM49: 0 | AN49: 0 | AO49: 0 | AP49: 0 | AQ49: 0 | AR49: 0 | AS49: 0 | AT49: 0 | AU49: 0 | AV49: 0 | AW49: 0 | AX49: 0 | AY49: 0 | AZ49: 0 | BA49: 0 | BB49: 0 | BC49: 0 | BD49: 0 | BE49: 0 | BF49: 0 | BG49: 0 | BH49: 0 | BI49: 0 | BJ49: 0 | BK49: 0 | BL49: 0 | BM49: 0 | BN49: 0 | BO49: 0 | BP49: 0 | BQ49: 0 | BR49: =+(IF($A49="","",IF(BR$17>=12+(12*(YEAR(InicioFuncion)-YEAR(InicioObra))+MONTH(InicioFuncion)-MONTH(InicioObra)),IF($D49>MONTH(BR$18)-MONTH(InicioFuncion)+12*(YEAR(BR$18)-YEAR(InicioFuncion))+1,0,IF($E49<=(MONTH(BR$18)-MONTH(InicioFuncion)+12*(YEAR(BR$18)-YEAR(InicioFuncion)))-$D49+IF($D49<>"",1,0),0,IF(BR$17>$B$9+(12*(YEAR(InicioFuncion)-YEAR(InicioObra))+MONTH(InicioFuncion)-MONTH(InicioObra)),0,IF((YEAR($B$8)-YEAR($B$7))*12+(MONTH($B$8)-MONTH($B$7))+$E$16<=BQ$16,$C49))))*HLOOKUP(YEAR(BR$18),$E$3:$Y$5,3,0),0))) -> 0 | BS49: 0 | BT49: 0 | BU49: 0 | BV49: 0 | BW49: 0 | BX49: 0 | BY49: 0 | BZ49: 0 | CA49: 0 | CB49: 0 | CC49: 0 | CD49: 0 | CE49: 0 | CF49: 0 | CG49: 0 | CH49: 0 | CI49: 0 | CJ49: 0 | CK49: 0 | CL49: 0 | CM49: 0 | CN49: 0 | CO49: 0 | CP49: 0 | CQ49: 0 | CR49: 0 | CS49: 0 | CT49: 0 | CU49: 0 | CV49: 0 | CW49: 0 | CX49: 0 | CY49: 0 | CZ49: 0 | DA49: 0 | DB49: 0 | DC49: 0 | DD49: 0 | DE49: 0 | DF49: 0 | DG49: 0 | DH49: 0 | DI49: 0 | DJ49: 0 | DK49: 0 | DL49: 0 | DM49: 0 | DN49: 0 | DO49: 0 | DP49: 0 | DQ49: 0 | DR49: 0 | DS49: 0 | DT49: 0 | DU49: 0 | DV49: 0 | DW49: 0 | DX49: 0 | DY49: 0 | DZ49: 0 | EA49: 0 | EB49: 0 | EC49: 0 | ED49: =+(IF($A49="","",IF(ED$17>=12+(12*(YEAR(InicioFuncion)-YEAR(InicioObra))+MONTH(InicioFuncion)-MONTH(InicioObra)),IF($D49>MONTH(ED$18)-MONTH(InicioFuncion)+12*(YEAR(ED$18)-YEAR(InicioFuncion))+1,0,IF($E49<=(MONTH(ED$18)-MONTH(InicioFuncion)+12*(YEAR(ED$18)-YEAR(InicioFuncion)))-$D49+IF($D49<>"",1,0),0,IF(ED$17>$B$9+(12*(YEAR(InicioFuncion)-YEAR(InicioObra))+MONTH(InicioFuncion)-MONTH(InicioObra)),0,IF((YEAR($B$8)-YEAR($B$7))*12+(MONTH($B$8)-MONTH($B$7))+$E$16<=EC$16,$C49))))*HLOOKUP(YEAR(ED$18),$E$3:$Y$5,3,0),0))) -> 0 | EE49: 0 | EF49: 0 | EG49: 0 | EH49: 0 | EI49: 0 | EJ49: 0 | EK49: 0 | EL49: 0 | EM49: 0 | EN49: 0 | EO49: 0 | EP49: 0 | EQ49: 0 | ER49: 0 | ES49: 0 | ET49: 0 | EU49: 0 | EV49: 0 | EW49: 0 | EX49: 0 | EY49: 0 | EZ49: 0 | FA49: 0 | FB49: 0 | FC49: 0 | FD49: 0 | FE49: 0 | FF49: 0 | FG49: 0 | FH49: 0 | FI49: 0 | FJ49: 0 | FK49: 0 | FL49: 0 | FM49: 0 | FN49: 0 | FO49: 0 | FP49: 0 | FQ49: 0 | FR49: 0 | FS49: 0 | FT49: 0 | FU49: 0 | FV49: 0 | FW49: 0 | FX49: 0 | FY49: 0 | FZ49: 0 | GA49: 0 | GB49: 0 | GC49: 0 | GD49: 0 | GE49: 0 | GF49: 0 | GG49: 0 | GH49: 0 | GI49: 0 | GJ49: 0 | GK49: 0 | GL49: 0 | GM49: 0 | GN49: 0 | GO49: 0 | GP49: =+(IF($A49="","",IF(GP$17>=12+(12*(YEAR(InicioFuncion)-YEAR(InicioObra))+MONTH(InicioFuncion)-MONTH(InicioObra)),IF($D49>MONTH(GP$18)-MONTH(InicioFuncion)+12*(YEAR(GP$18)-YEAR(InicioFuncion))+1,0,IF($E49<=(MONTH(GP$18)-MONTH(InicioFuncion)+12*(YEAR(GP$18)-YEAR(InicioFuncion)))-$D49+IF($D49<>"",1,0),0,IF(GP$17>$B$9+(12*(YEAR(InicioFuncion)-YEAR(InicioObra))+MONTH(InicioFuncion)-MONTH(InicioObra)),0,IF((YEAR($B$8)-YEAR($B$7))*12+(MONTH($B$8)-MONTH($B$7))+$E$16<=GO$16,$C49))))*HLOOKUP(YEAR(GP$18),$E$3:$Y$5,3,0),0))) -> 0 | GQ49: 0 | GR49: 0 | GS49: 0 | GT49: 0 | GU49: 0 | GV49: 0 | GW49: 0 | GX49: 0 | GY49: 0 | GZ49: 0 | HA49: 0 | HB49: 0 | HC49: 0 | HD49: 0 | HE49: 0 | HF49: 0 | HG49: 0 | HH49: 0 | HI49: 0 | HJ49: 0 | HK49: 0 | HL49: 0 | HM49: 0 | HN49: 0 | HO49: 0 | HP49: 0 | HQ49: 0 | HR49: 0 | HS49: 0 | HT49: 0 | HU49: 0 | HV49: 0 | HW49: 0 | HX49: 0 | HY49: 0 | HZ49: 0 | IA49: 0 | IB49: 0 | IC49: 0 | ID49: 0 | IE49: 0 | IF49: 0 | IG49: 0 | IH49: 0 | II49: 0 | IJ49: 0 | IK49: 0 | IL49: 0 | IM49: OPEX
A50: Mto encerramiento | C50: =+SUMIFS(ValoresMercado,Conceptos,A50,Tipo,TipoEspecifico,Relacion,'Parametros tecnologicos'!$F$7)/12 -> 379529.8452 | E50: 60 | F50: =+(IF($A50="","",IF(F$17>=12+(12*(YEAR(InicioFuncion)-YEAR(InicioObra))+MONTH(InicioFuncion)-MONTH(InicioObra)),IF($D50>MONTH(F$18)-MONTH(InicioFuncion)+12*(YEAR(F$18)-YEAR(InicioFuncion))+1,0,IF($E50<=(MONTH(F$18)-MONTH(InicioFuncion)+12*(YEAR(F$18)-YEAR(InicioFuncion)))-$D50+IF($D50<>"",1,0),0,IF(F$17>$B$9+(12*(YEAR(InicioFuncion)-YEAR(InicioObra))+MONTH(InicioFuncion)-MONTH(InicioObra)),0,IF((YEAR($B$8)-YEAR($B$7))*12+(MONTH($B$8)-MONTH($B$7))+$E$16<=E$16,$C50))))*HLOOKUP(YEAR(F$18),$E$3:$Y$5,3,0),0))) -> 0 | G50: 0 | H50: 0 | I50: 0 | J50: 0 | K50: 0 | L50: 0 | M50: 0 | N50: 0 | O50: 0 | P50: 0 | Q50: 0 | R50: 0 | S50: 0 | T50: 0 | U50: 0 | V50: 0 | W50: 0 | X50: 0 | Y50: 0 | Z50: 402643.2127 | AA50: 402643.2127 | AB50: 402643.2127 | AC50: 402643.2127 | AD50: 402643.2127 | AE50: 402643.2127 | AF50: 414722.5091 | AG50: 414722.5091 | AH50: 414722.5091 | AI50: 414722.5091 | AJ50: 414722.5091 | AK50: 414722.5091 | AL50: 414722.5091 | AM50: 414722.5091 | AN50: 414722.5091 | AO50: 414722.5091 | AP50: 414722.5091 | AQ50: 414722.5091 | AR50: 427164.1844 | AS50: 427164.1844 | AT50: 427164.1844 | AU50: 427164.1844 | AV50: 427164.1844 | AW50: 427164.1844 | AX50: 427164.1844 | AY50: 427164.1844 | AZ50: 427164.1844 | BA50: 427164.1844 | BB50: 427164.1844 | BC50: 427164.1844 | BD50: 439979.1099 | BE50: 439979.1099 | BF50: 439979.1099 | BG50: 439979.1099 | BH50: 439979.1099 | BI50: 439979.1099 | BJ50: 439979.1099 | BK50: 439979.1099 | BL50: 439979.1099 | BM50: 439979.1099 | BN50: 439979.1099 | BO50: 439979.1099 | BP50: 453178.4832 | BQ50: 453178.4832 | BR50: =+(IF($A50="","",IF(BR$17>=12+(12*(YEAR(InicioFuncion)-YEAR(InicioObra))+MONTH(InicioFuncion)-MONTH(InicioObra)),IF($D50>MONTH(BR$18)-MONTH(InicioFuncion)+12*(YEAR(BR$18)-YEAR(InicioFuncion))+1,0,IF($E50<=(MONTH(BR$18)-MONTH(InicioFuncion)+12*(YEAR(BR$18)-YEAR(InicioFuncion)))-$D50+IF($D50<>"",1,0),0,IF(BR$17>$B$9+(12*(YEAR(InicioFuncion)-YEAR(InicioObra))+MONTH(InicioFuncion)-MONTH(InicioObra)),0,IF((YEAR($B$8)-YEAR($B$7))*12+(MONTH($B$8)-MONTH($B$7))+$E$16<=BQ$16,$C50))))*HLOOKUP(YEAR(BR$18),$E$3:$Y$5,3,0),0))) -> 453178.4832 | BS50: 453178.4832 | BT50: 453178.4832 | BU50: 453178.4832 | BV50: 0 | BW50: 0 | BX50: 0 | BY50: 0 | BZ50: 0 | CA50: 0 | CB50: 0 | CC50: 0 | CD50: 0 | CE50: 0 | CF50: 0 | CG50: 0 | CH50: 0 | CI50: 0 | CJ50: 0 | CK50: 0 | CL50: 0 | CM50: 0 | CN50: 0 | CO50: 0 | CP50: 0 | CQ50: 0 | CR50: 0 | CS50: 0 | CT50: 0 | CU50: 0 | CV50: 0 | CW50: 0 | CX50: 0 | CY50: 0 | CZ50: 0 | DA50: 0 | DB50: 0 | DC50: 0 | DD50: 0 | DE50: 0 | DF50: 0 | DG50: 0 | DH50: 0 | DI50: 0 | DJ50: 0 | DK50: 0 | DL50: 0 | DM50: 0 | DN50: 0 | DO50: 0 | DP50: 0 | DQ50: 0 | DR50: 0 | DS50: 0 | DT50: 0 | DU50: 0 | DV50: 0 | DW50: 0 | DX50: 0 | DY50: 0 | DZ50: 0 | EA50: 0 | EB50: 0 | EC50: 0 | ED50: =+(IF($A50="","",IF(ED$17>=12+(12*(YEAR(InicioFuncion)-YEAR(InicioObra))+MONTH(InicioFuncion)-MONTH(InicioObra)),IF($D50>MONTH(ED$18)-MONTH(InicioFuncion)+12*(YEAR(ED$18)-YEAR(InicioFuncion))+1,0,IF($E50<=(MONTH(ED$18)-MONTH(InicioFuncion)+12*(YEAR(ED$18)-YEAR(InicioFuncion)))-$D50+IF($D50<>"",1,0),0,IF(ED$17>$B$9+(12*(YEAR(InicioFuncion)-YEAR(InicioObra))+MONTH(InicioFuncion)-MONTH(InicioObra)),0,IF((YEAR($B$8)-YEAR($B$7))*12+(MONTH($B$8)-MONTH($B$7))+$E$16<=EC$16,$C50))))*HLOOKUP(YEAR(ED$18),$E$3:$Y$5,3,0),0))) -> 0 | EE50: 0 | EF50: 0 | EG50: 0 | EH50: 0 | EI50: 0 | EJ50: 0 | EK50: 0 | EL50: 0 | EM50: 0 | EN50: 0 | EO50: 0 | EP50: 0 | EQ50: 0 | ER50: 0 | ES50: 0 | ET50: 0 | EU50: 0 | EV50: 0 | EW50: 0 | EX50: 0 | EY50: 0 | EZ50: 0 | FA50: 0 | FB50: 0 | FC50: 0 | FD50: 0 | FE50: 0 | FF50: 0 | FG50: 0 | FH50: 0 | FI50: 0 | FJ50: 0 | FK50: 0 | FL50: 0 | FM50: 0 | FN50: 0 | FO50: 0 | FP50: 0 | FQ50: 0 | FR50: 0 | FS50: 0 | FT50: 0 | FU50: 0 | FV50: 0 | FW50: 0 | FX50: 0 | FY50: 0 | FZ50: 0 | GA50: 0 | GB50: 0 | GC50: 0 | GD50: 0 | GE50: 0 | GF50: 0 | GG50: 0 | GH50: 0 | GI50: 0 | GJ50: 0 | GK50: 0 | GL50: 0 | GM50: 0 | GN50: 0 | GO50: 0 | GP50: =+(IF($A50="","",IF(GP$17>=12+(12*(YEAR(InicioFuncion)-YEAR(InicioObra))+MONTH(InicioFuncion)-MONTH(InicioObra)),IF($D50>MONTH(GP$18)-MONTH(InicioFuncion)+12*(YEAR(GP$18)-YEAR(InicioFuncion))+1,0,IF($E50<=(MONTH(GP$18)-MONTH(InicioFuncion)+12*(YEAR(GP$18)-YEAR(InicioFuncion)))-$D50+IF($D50<>"",1,0),0,IF(GP$17>$B$9+(12*(YEAR(InicioFuncion)-YEAR(InicioObra))+MONTH(InicioFuncion)-MONTH(InicioObra)),0,IF((YEAR($B$8)-YEAR($B$7))*12+(MONTH($B$8)-MONTH($B$7))+$E$16<=GO$16,$C50))))*HLOOKUP(YEAR(GP$18),$E$3:$Y$5,3,0),0))) -> 0 | GQ50: 0 | GR50: 0 | GS50: 0 | GT50: 0 | GU50: 0 | GV50: 0 | GW50: 0 | GX50: 0 | GY50: 0 | GZ50: 0 | HA50: 0 | HB50: 0 | HC50: 0 | HD50: 0 | HE50: 0 | HF50: 0 | HG50: 0 | HH50: 0 | HI50: 0 | HJ50: 0 | HK50: 0 | HL50: 0 | HM50: 0 | HN50: 0 | HO50: 0 | HP50: 0 | HQ50: 0 | HR50: 0 | HS50: 0 | HT50: 0 | HU50: 0 | HV50: 0 | HW50: 0 | HX50: 0 | HY50: 0 | HZ50: 0 | IA50: 0 | IB50: 0 | IC50: 0 | ID50: 0 | IE50: 0 | IF50: 0 | IG50: 0 | IH50: 0 | II50: 0 | IJ50: 0 | IK50: 0 | IL50: 0 | IM50: OPEX
A51: Servicios Profesionales: Terreno, Ambiente, Aeronautica | B51: =+IF(ArrendamientoInfraestructura="S",0,SUMIFS(ValoresMercado,Conceptos,A51,Relacion,'Parametros tecnologicos'!$F$7,Tipo,TipoEspecifico)) -> 18990633.5 | E51: 60 | F51: =+IF($A51="","",IF($D51=F$17,$B51+IF(MONTH($B$8)-MONTH($B$7)+$E$16=E$16,$C51,0),0)) -> 18990633.5 | G51: 0 | H51: 0 | I51: 0 | J51: 0 | K51: 0 | L51: 0 | M51: 0 | N51: 0 | O51: 0 | P51: 0 | Q51: 0 | R51: 0 | S51: 0 | T51: 0 | U51: 0 | V51: 0 | W51: 0 | X51: 0 | Y51: 0 | Z51: 0 | AA51: 0 | AB51: 0 | AC51: 0 | AD51: 0 | AE51: 0 | AF51: 0 | AG51: 0 | AH51: 0 | AI51: 0 | AJ51: 0 | AK51: 0 | AL51: =+IF($A51="","",IF($D51=AL$17,$B51+IF(MONTH($B$8)-MONTH($B$7)+$E$16=AK$16,$C51,0),0)) -> 0 | AM51: 0 | AN51: 0 | AO51: 0 | AP51: 0 | AQ51: 0 | AR51: 0 | AS51: 0 | AT51: 0 | AU51: 0 | AV51: 0 | AW51: 0 | AX51: 0 | AY51: 0 | AZ51: 0 | BA51: 0 | BB51: 0 | BC51: 0 | BD51: 0 | BE51: 0 | BF51: 0 | BG51: 0 | BH51: 0 | BI51: 0 | BJ51: 0 | BK51: 0 | BL51: 0 | BM51: 0 | BN51: 0 | BO51: 0 | BP51: 0 | BQ51: 0 | BR51: =+IF($A51="","",IF($D51=BR$17,$B51+IF(MONTH($B$8)-MONTH($B$7)+$E$16=BQ$16,$C51,0),0)) -> 0 | BS51: 0 | BT51: 0 | BU51: 0 | BV51: 0 | BW51: 0 | BX51: 0 | BY51: 0 | BZ51: 0 | CA51: 0 | CB51: 0 | CC51: 0 | CD51: 0 | CE51: 0 | CF51: 0 | CG51: 0 | CH51: 0 | CI51: 0 | CJ51: 0 | CK51: 0 | CL51: 0 | CM51: 0 | CN51: 0 | CO51: 0 | CP51: 0 | CQ51: 0 | CR51: 0 | CS51: 0 | CT51: 0 | CU51: 0 | CV51: 0 | CW51: 0 | CX51: =+IF($A51="","",IF($D51=CX$17,$B51+IF(MONTH($B$8)-MONTH($B$7)+$E$16=CW$16,$C51,0),0)) -> 0 | CY51: 0 | CZ51: 0 | DA51: 0 | DB51: 0 | DC51: 0 | DD51: 0 | DE51: 0 | DF51: 0 | DG51: 0 | DH51: 0 | DI51: 0 | DJ51: 0 | DK51: 0 | DL51: 0 | DM51: 0 | DN51: 0 | DO51: 0 | DP51: 0 | DQ51: 0 | DR51: 0 | DS51: 0 | DT51: 0 | DU51: 0 | DV51: =+IF($A51="","",IF($D51=DV$17,$B51+IF(MONTH($B$8)-MONTH($B$7)+$E$16=DU$16,$C51,0),0)) -> 0 | DW51: 0 | DX51: 0 | DY51: 0 | DZ51: 0 | EA51: 0 | EB51: 0 | EC51: 0 | ED51: 0 | EE51: 0 | EF51: 0 | EG51: 0 | EH51: 0 | EI51: 0 | EJ51: 0 | EK51: 0 | EL51: 0 | EM51: 0 | EN51: 0 | EO51: 0 | EP51: 0 | EQ51: 0 | ER51: 0 | ES51: 0 | ET51: 0 | EU51: 0 | EV51: 0 | EW51: 0 | EX51: 0 | EY51: 0 | EZ51: 0 | FA51: 0 | FB51: =+IF($A51="","",IF($D51=FB$17,$B51+IF(MONTH($B$8)-MONTH($B$7)+$E$16=FA$16,$C51,0),0)) -> 0 | FC51: 0 | FD51: 0 | FE51: 0 | FF51: 0 | FG51: 0 | FH51: 0 | FI51: 0 | FJ51: 0 | FK51: 0 | FL51: 0 | FM51: 0 | FN51: 0 | FO51: 0 | FP51: 0 | FQ51: 0 | FR51: 0 | FS51: 0 | FT51: 0 | FU51: 0 | FV51: 0 | FW51: 0 | FX51: 0 | FY51: 0 | FZ51: 0 | GA51: 0 | GB51: 0 | GC51: 0 | GD51: 0 | GE51: 0 | GF51: 0 | GG51: 0 | GH51: =+IF($A51="","",IF($D51=GH$17,$B51+IF(MONTH($B$8)-MONTH($B$7)+$E$16=GG$16,$C51,0),0)) -> 0 | GI51: 0 | GJ51: 0 | GK51: 0 | GL51: 0 | GM51: 0 | GN51: 0 | GO51: 0 | GP51: 0 | GQ51: 0 | GR51: 0 | GS51: 0 | GT51: 0 | GU51: 0 | GV51: 0 | GW51: 0 | GX51: 0 | GY51: 0 | GZ51: 0 | HA51: 0 | HB51: 0 | HC51: 0 | HD51: 0 | HE51: 0 | HF51: 0 | HG51: 0 | HH51: 0 | HI51: 0 | HJ51: 0 | HK51: 0 | HL51: 0 | HM51: 0 | HN51: =+IF($A51="","",IF($D51=HN$17,$B51+IF(MONTH($B$8)-MONTH($B$7)+$E$16=HM$16,$C51,0),0)) -> 0 | HO51: 0 | HP51: 0 | HQ51: 0 | HR51: 0 | HS51: 0 | HT51: 0 | HU51: 0 | HV51: 0 | HW51: 0 | HX51: 0 | HY51: 0 | HZ51: 0 | IA51: 0 | IB51: 0 | IC51: 0 | ID51: 0 | IE51: 0 | IF51: 0 | IG51: 0 | IH51: 0 | II51: 0 | IJ51: 0 | IK51: 0 | IL51: 0 | IM51: CAPEX
A52: Torre (Incluye: Tierra, Pararrayo) - Convencional (*) | B52: =+IF(ArrendamientoInfraestructura="S",0,SUMIFS(ValoresMercado,Conceptos,A52,Relacion,'Parametros tecnologicos'!$F$7,Tipo,TipoEspecifico,ClaseTorreRango,ClaseTorre)) -> 109632220.5 | E52: 60 | F52: =+IF($A52="","",IF($D52=F$17,$B52+IF(MONTH($B$8)-MONTH($B$7)+$E$16=E$16,$C52,0),0)) -> 109632220.5 | G52: 0 | H52: 0 | I52: 0 | J52: 0 | K52: 0 | L52: 0 | M52: 0 | N52: 0 | O52: 0 | P52: 0 | Q52: 0 | R52: 0 | S52: 0 | T52: 0 | U52: 0 | V52: 0 | W52: 0 | X52: 0 | Y52: 0 | Z52: 0 | AA52: 0 | AB52: 0 | AC52: 0 | AD52: 0 | AE52: 0 | AF52: 0 | AG52: 0 | AH52: 0 | AI52: 0 | AJ52: 0 | AK52: 0 | AL52: =+IF($A52="","",IF($D52=AL$17,$B52+IF(MONTH($B$8)-MONTH($B$7)+$E$16=AK$16,$C52,0),0)) -> 0 | AM52: 0 | AN52: 0 | AO52: 0 | AP52: 0 | AQ52: 0 | AR52: 0 | AS52: 0 | AT52: 0 | AU52: 0 | AV52: 0 | AW52: 0 | AX52: 0 | AY52: 0 | AZ52: 0 | BA52: 0 | BB52: 0 | BC52: 0 | BD52: 0 | BE52: 0 | BF52: 0 | BG52: 0 | BH52: 0 | BI52: 0 | BJ52: 0 | BK52: 0 | BL52: 0 | BM52: 0 | BN52: 0 | BO52: 0 | BP52: 0 | BQ52: 0 | BR52: =+IF($A52="","",IF($D52=BR$17,$B52+IF(MONTH($B$8)-MONTH($B$7)+$E$16=BQ$16,$C52,0),0)) -> 0 | BS52: 0 | BT52: 0 | BU52: 0 | BV52: 0 | BW52: 0 | BX52: 0 | BY52: 0 | BZ52: 0 | CA52: 0 | CB52: 0 | CC52: 0 | CD52: 0 | CE52: 0 | CF52: 0 | CG52: 0 | CH52: 0 | CI52: 0 | CJ52: 0 | CK52: 0 | CL52: 0 | CM52: 0 | CN52: 0 | CO52: 0 | CP52: 0 | CQ52: 0 | CR52: 0 | CS52: 0 | CT52: 0 | CU52: 0 | CV52: 0 | CW52: 0 | CX52: =+IF($A52="","",IF($D52=CX$17,$B52+IF(MONTH($B$8)-MONTH($B$7)+$E$16=CW$16,$C52,0),0)) -> 0 | CY52: 0 | CZ52: 0 | DA52: 0 | DB52: 0 | DC52: 0 | DD52: 0 | DE52: 0 | DF52: 0 | DG52: 0 | DH52: 0 | DI52: 0 | DJ52: 0 | DK52: 0 | DL52: 0 | DM52: 0 | DN52: 0 | DO52: 0 | DP52: 0 | DQ52: 0 | DR52: 0 | DS52: 0 | DT52: 0 | DU52: 0 | DV52: =+IF($A52="","",IF($D52=DV$17,$B52+IF(MONTH($B$8)-MONTH($B$7)+$E$16=DU$16,$C52,0),0)) -> 0 | DW52: 0 | DX52: 0 | DY52: 0 | DZ52: 0 | EA52: 0 | EB52: 0 | EC52: 0 | ED52: 0 | EE52: 0 | EF52: 0 | EG52: 0 | EH52: 0 | EI52: 0 | EJ52: 0 | EK52: 0 | EL52: 0 | EM52: 0 | EN52: 0 | EO52: 0 | EP52: 0 | EQ52: 0 | ER52: 0 | ES52: 0 | ET52: 0 | EU52: 0 | EV52: 0 | EW52: 0 | EX52: 0 | EY52: 0 | EZ52: 0 | FA52: 0 | FB52: =+IF($A52="","",IF($D52=FB$17,$B52+IF(MONTH($B$8)-MONTH($B$7)+$E$16=FA$16,$C52,0),0)) -> 0 | FC52: 0 | FD52: 0 | FE52: 0 | FF52: 0 | FG52: 0 | FH52: 0 | FI52: 0 | FJ52: 0 | FK52: 0 | FL52: 0 | FM52: 0 | FN52: 0 | FO52: 0 | FP52: 0 | FQ52: 0 | FR52: 0 | FS52: 0 | FT52: 0 | FU52: 0 | FV52: 0 | FW52: 0 | FX52: 0 | FY52: 0 | FZ52: 0 | GA52: 0 | GB52: 0 | GC52: 0 | GD52: 0 | GE52: 0 | GF52: 0 | GG52: 0 | GH52: =+IF($A52="","",IF($D52=GH$17,$B52+IF(MONTH($B$8)-MONTH($B$7)+$E$16=GG$16,$C52,0),0)) -> 0 | GI52: 0 | GJ52: 0 | GK52: 0 | GL52: 0 | GM52: 0 | GN52: 0 | GO52: 0 | GP52: 0 | GQ52: 0 | GR52: 0 | GS52: 0 | GT52: 0 | GU52: 0 | GV52: 0 | GW52: 0 | GX52: 0 | GY52: 0 | GZ52: 0 | HA52: 0 | HB52: 0 | HC52: 0 | HD52: 0 | HE52: 0 | HF52: 0 | HG52: 0 | HH52: 0 | HI52: 0 | HJ52: 0 | HK52: 0 | HL52: 0 | HM52: 0 | HN52: =+IF($A52="","",IF($D52=HN$17,$B52+IF(MONTH($B$8)-MONTH($B$7)+$E$16=HM$16,$C52,0),0)) -> 0 | HO52: 0 | HP52: 0 | HQ52: 0 | HR52: 0 | HS52: 0 | HT52: 0 | HU52: 0 | HV52: 0 | HW52: 0 | HX52: 0 | HY52: 0 | HZ52: 0 | IA52: 0 | IB52: 0 | IC52: 0 | ID52: 0 | IE52: 0 | IF52: 0 | IG52: 0 | IH52: 0 | II52: 0 | IJ52: 0 | IK52: 0 | IL52: 0 | IM52: CAPEX
A53: Torre (Incluye: Tierra, Pararrayo) - Monopolo (*) | B53: =+IF(ArrendamientoInfraestructura="S",0,SUMIFS(ValoresMercado,Conceptos,A53,Relacion,'Parametros tecnologicos'!$F$7,Tipo,TipoEspecifico,ClaseTorreRango,ClaseTorre)) -> 0 | E53: 60 | F53: =+IF($A53="","",IF($D53=F$17,$B53+IF(MONTH($B$8)-MONTH($B$7)+$E$16=E$16,$C53,0),0)) -> 0 | G53: 0 | H53: 0 | I53: 0 | J53: 0 | K53: 0 | L53: 0 | M53: 0 | N53: 0 | O53: 0 | P53: 0 | Q53: 0 | R53: 0 | S53: 0 | T53: 0 | U53: 0 | V53: 0 | W53: 0 | X53: 0 | Y53: 0 | Z53: 0 | AA53: 0 | AB53: 0 | AC53: 0 | AD53: 0 | AE53: 0 | AF53: 0 | AG53: 0 | AH53: 0 | AI53: 0 | AJ53: 0 | AK53: 0 | AL53: =+IF($A53="","",IF($D53=AL$17,$B53+IF(MONTH($B$8)-MONTH($B$7)+$E$16=AK$16,$C53,0),0)) -> 0 | AM53: 0 | AN53: 0 | AO53: 0 | AP53: 0 | AQ53: 0 | AR53: 0 | AS53: 0 | AT53: 0 | AU53: 0 | AV53: 0 | AW53: 0 | AX53: 0 | AY53: 0 | AZ53: 0 | BA53: 0 | BB53: 0 | BC53: 0 | BD53: 0 | BE53: 0 | BF53: 0 | BG53: 0 | BH53: 0 | BI53: 0 | BJ53: 0 | BK53: 0 | BL53: 0 | BM53: 0 | BN53: 0 | BO53: 0 | BP53: 0 | BQ53: 0 | BR53: =+IF($A53="","",IF($D53=BR$17,$B53+IF(MONTH($B$8)-MONTH($B$7)+$E$16=BQ$16,$C53,0),0)) -> 0 | BS53: 0 | BT53: 0 | BU53: 0 | BV53: 0 | BW53: 0 | BX53: 0 | BY53: 0 | BZ53: 0 | CA53: 0 | CB53: 0 | CC53: 0 | CD53: 0 | CE53: 0 | CF53: 0 | CG53: 0 | CH53: 0 | CI53: 0 | CJ53: 0 | CK53: 0 | CL53: 0 | CM53: 0 | CN53: 0 | CO53: 0 | CP53: 0 | CQ53: 0 | CR53: 0 | CS53: 0 | CT53: 0 | CU53: 0 | CV53: 0 | CW53: 0 | CX53: =+IF($A53="","",IF($D53=CX$17,$B53+IF(MONTH($B$8)-MONTH($B$7)+$E$16=CW$16,$C53,0),0)) -> 0 | CY53: 0 | CZ53: 0 | DA53: 0 | DB53: 0 | DC53: 0 | DD53: 0 | DE53: 0 | DF53: 0 | DG53: 0 | DH53: 0 | DI53: 0 | DJ53: 0 | DK53: 0 | DL53: 0 | DM53: 0 | DN53: 0 | DO53: 0 | DP53: 0 | DQ53: 0 | DR53: 0 | DS53: 0 | DT53: 0 | DU53: 0 | DV53: =+IF($A53="","",IF($D53=DV$17,$B53+IF(MONTH($B$8)-MONTH($B$7)+$E$16=DU$16,$C53,0),0)) -> 0 | DW53: 0 | DX53: 0 | DY53: 0 | DZ53: 0 | EA53: 0 | EB53: 0 | EC53: 0 | ED53: 0 | EE53: 0 | EF53: 0 | EG53: 0 | EH53: 0 | EI53: 0 | EJ53: 0 | EK53: 0 | EL53: 0 | EM53: 0 | EN53: 0 | EO53: 0 | EP53: 0 | EQ53: 0 | ER53: 0 | ES53: 0 | ET53: 0 | EU53: 0 | EV53: 0 | EW53: 0 | EX53: 0 | EY53: 0 | EZ53: 0 | FA53: 0 | FB53: =+IF($A53="","",IF($D53=FB$17,$B53+IF(MONTH($B$8)-MONTH($B$7)+$E$16=FA$16,$C53,0),0)) -> 0 | FC53: 0 | FD53: 0 | FE53: 0 | FF53: 0 | FG53: 0 | FH53: 0 | FI53: 0 | FJ53: 0 | FK53: 0 | FL53: 0 | FM53: 0 | FN53: 0 | FO53: 0 | FP53: 0 | FQ53: 0 | FR53: 0 | FS53: 0 | FT53: 0 | FU53: 0 | FV53: 0 | FW53: 0 | FX53: 0 | FY53: 0 | FZ53: 0 | GA53: 0 | GB53: 0 | GC53: 0 | GD53: 0 | GE53: 0 | GF53: 0 | GG53: 0 | GH53: =+IF($A53="","",IF($D53=GH$17,$B53+IF(MONTH($B$8)-MONTH($B$7)+$E$16=GG$16,$C53,0),0)) -> 0 | GI53: 0 | GJ53: 0 | GK53: 0 | GL53: 0 | GM53: 0 | GN53: 0 | GO53: 0 | GP53: 0 | GQ53: 0 | GR53: 0 | GS53: 0 | GT53: 0 | GU53: 0 | GV53: 0 | GW53: 0 | GX53: 0 | GY53: 0 | GZ53: 0 | HA53: 0 | HB53: 0 | HC53: 0 | HD53: 0 | HE53: 0 | HF53: 0 | HG53: 0 | HH53: 0 | HI53: 0 | HJ53: 0 | HK53: 0 | HL53: 0 | HM53: 0 | HN53: =+IF($A53="","",IF($D53=HN$17,$B53+IF(MONTH($B$8)-MONTH($B$7)+$E$16=HM$16,$C53,0),0)) -> 0 | HO53: 0 | HP53: 0 | HQ53: 0 | HR53: 0 | HS53: 0 | HT53: 0 | HU53: 0 | HV53: 0 | HW53: 0 | HX53: 0 | HY53: 0 | HZ53: 0 | IA53: 0 | IB53: 0 | IC53: 0 | ID53: 0 | IE53: 0 | IF53: 0 | IG53: 0 | IH53: 0 | II53: 0 | IJ53: 0 | IK53: 0 | IL53: 0 | IM53: CAPEX
A54: OPEX GENERAL | E54: 60 | F54: =+IF($A54="","",$B54+IF(MONTH($B$8)-MONTH($B$7)+$E$16=E$16,$C54,0)) -> 0 | G54: =+(IF($A54="","",IF($D54>MONTH(G$18)-MONTH(InicioFuncion)+12*(YEAR(G$18)-YEAR(InicioFuncion))+1,0,IF($E54<=(MONTH(G$18)-MONTH(InicioFuncion)+12*(YEAR(G$18)-YEAR(InicioFuncion)))-$D54,0,IF(G$17>$B$9,0,IF((YEAR($B$8)-YEAR($B$7))*12+(MONTH($B$8)-MONTH($B$7))+$E$16<=F$16,$C54))))*HLOOKUP(YEAR(G$18),$E$3:$Y$5,3,0))) -> 0 | H54: 0 | I54: 0 | J54: 0 | K54: 0 | L54: 0 | M54: 0 | N54: 0 | O54: 0 | P54: 0 | Q54: 0 | R54: 0 | S54: 0 | T54: 0 | U54: 0 | V54: 0 | W54: 0 | X54: 0 | Y54: 0 | Z54: 0 | AA54: 0 | AB54: 0 | AC54: 0 | AD54: 0 | AE54: 0 | AF54: 0 | AG54: 0 | AH54: 0 | AI54: 0 | AJ54: 0 | AK54: 0 | AL54: 0 | AM54: 0 | AN54: 0 | AO54: 0 | AP54: 0 | AQ54: 0 | AR54: 0 | AS54: 0 | AT54: 0 | AU54: 0 | AV54: 0 | AW54: 0 | AX54: 0 | AY54: 0 | AZ54: 0 | BA54: 0 | BB54: 0 | BC54: 0 | BD54: 0 | BE54: 0 | BF54: 0 | BG54: 0 | BH54: 0 | BI54: 0 | BJ54: 0 | BK54: 0 | BL54: 0 | BM54: 0 | BN54: 0 | BO54: 0 | BP54: 0 | BQ54: 0 | BR54: 0 | BS54: =+(IF($A54="","",IF($D54>MONTH(BS$18)-MONTH(InicioFuncion)+12*(YEAR(BS$18)-YEAR(InicioFuncion))+1,0,IF($E54<=(MONTH(BS$18)-MONTH(InicioFuncion)+12*(YEAR(BS$18)-YEAR(InicioFuncion)))-$D54,0,IF(BS$17>$B$9,0,IF((YEAR($B$8)-YEAR($B$7))*12+(MONTH($B$8)-MONTH($B$7))+$E$16<=BR$16,$C54))))*HLOOKUP(YEAR(BS$18),$E$3:$Y$5,3,0))) -> 0 | BT54: 0 | BU54: 0 | BV54: 0 | BW54: 0 | BX54: 0 | BY54: 0 | BZ54: 0 | CA54: 0 | CB54: 0 | CC54: 0 | CD54: 0 | CE54: 0 | CF54: 0 | CG54: 0 | CH54: 0 | CI54: 0 | CJ54: 0 | CK54: 0 | CL54: 0 | CM54: 0 | CN54: 0 | CO54: 0 | CP54: 0 | CQ54: 0 | CR54: 0 | CS54: 0 | CT54: 0 | CU54: 0 | CV54: 0 | CW54: 0 | CX54: 0 | CY54: 0 | CZ54: 0 | DA54: 0 | DB54: 0 | DC54: 0 | DD54: 0 | DE54: 0 | DF54: 0 | DG54: 0 | DH54: 0 | DI54: 0 | DJ54: 0 | DK54: 0 | DL54: 0 | DM54: 0 | DN54: 0 | DO54: 0 | DP54: 0 | DQ54: 0 | DR54: 0 | DS54: 0 | DT54: 0 | DU54: 0 | DV54: 0 | DW54: 0 | DX54: 0 | DY54: 0 | DZ54: 0 | EA54: 0 | EB54: 0 | EC54: 0 | ED54: 0 | EE54: =+(IF($A54="","",IF($D54>MONTH(EE$18)-MONTH(InicioFuncion)+12*(YEAR(EE$18)-YEAR(InicioFuncion))+1,0,IF($E54<=(MONTH(EE$18)-MONTH(InicioFuncion)+12*(YEAR(EE$18)-YEAR(InicioFuncion)))-$D54,0,IF(EE$17>$B$9,0,IF((YEAR($B$8)-YEAR($B$7))*12+(MONTH($B$8)-MONTH($B$7))+$E$16<=ED$16,$C54))))*HLOOKUP(YEAR(EE$18),$E$3:$Y$5,3,0))) -> 0 | EF54: 0 | EG54: 0 | EH54: 0 | EI54: 0 | EJ54: 0 | EK54: 0 | EL54: 0 | EM54: 0 | EN54: 0 | EO54: 0 | EP54: 0 | EQ54: 0 | ER54: 0 | ES54: 0 | ET54: 0 | EU54: 0 | EV54: 0 | EW54: 0 | EX54: 0 | EY54: 0 | EZ54: 0 | FA54: 0 | FB54: 0 | FC54: 0 | FD54: 0 | FE54: 0 | FF54: 0 | FG54: 0 | FH54: 0 | FI54: 0 | FJ54: 0 | FK54: 0 | FL54: 0 | FM54: 0 | FN54: 0 | FO54: 0 | FP54: 0 | FQ54: 0 | FR54: 0 | FS54: 0 | FT54: 0 | FU54: 0 | FV54: 0 | FW54: 0 | FX54: 0 | FY54: 0 | FZ54: 0 | GA54: 0 | GB54: 0 | GC54: 0 | GD54: 0 | GE54: 0 | GF54: 0 | GG54: 0 | GH54: 0 | GI54: 0 | GJ54: 0 | GK54: 0 | GL54: 0 | GM54: 0 | GN54: 0 | GO54: 0 | GP54: 0 | GQ54: =+(IF($A54="","",IF($D54>MONTH(GQ$18)-MONTH(InicioFuncion)+12*(YEAR(GQ$18)-YEAR(InicioFuncion))+1,0,IF($E54<=(MONTH(GQ$18)-MONTH(InicioFuncion)+12*(YEAR(GQ$18)-YEAR(InicioFuncion)))-$D54,0,IF(GQ$17>$B$9,0,IF((YEAR($B$8)-YEAR($B$7))*12+(MONTH($B$8)-MONTH($B$7))+$E$16<=GP$16,$C54))))*HLOOKUP(YEAR(GQ$18),$E$3:$Y$5,3,0))) -> 0 | GR54: 0 | GS54: 0 | GT54: 0 | GU54: 0 | GV54: 0 | GW54: 0 | GX54: 0 | GY54: 0 | GZ54: 0 | HA54: 0 | HB54: 0 | HC54: 0 | HD54: 0 | HE54: 0 | HF54: 0 | HG54: 0 | HH54: 0 | HI54: 0 | HJ54: 0 | HK54: 0 | HL54: 0 | HM54: 0 | HN54: 0 | HO54: 0 | HP54: 0 | HQ54: 0 | HR54: 0 | HS54: 0 | HT54: 0 | HU54: 0 | HV54: 0 | HW54: 0 | HX54: 0 | HY54: 0 | HZ54: 0 | IA54: 0 | IB54: 0 | IC54: 0 | ID54: 0 | IE54: 0 | IF54: 0 | IG54: 0 | IH54: 0 | II54: 0 | IJ54: 0 | IK54: 0 | IL54: 0 | IM54: OPEX
A55: Licencias MW MinTIC | C55: =+IF('Parametros tecnologicos'!C23="S",SUMIFS(ValoresMercado,Conceptos,A55)/12,0) -> 1571182.768 | E55: 60 | F55: =+(IF($A55="","",IF($D55>MONTH(F$18)-MONTH(InicioFuncion)+12*(YEAR(F$18)-YEAR(InicioFuncion))+1,0,IF($E55<=(MONTH(F$18)-MONTH(InicioFuncion)+12*(YEAR(F$18)-YEAR(InicioFuncion)))-$D55+IF($D55<>"",1,0),0,IF(F$17>$B$9+(12*(YEAR(InicioFuncion)-YEAR(InicioObra))+MONTH(InicioFuncion)-MONTH(InicioObra)),0,IF((YEAR($B$8)-YEAR($B$7))*12+(MONTH($B$8)-MONTH($B$7))+$E$16<=E$16,$C55))))*HLOOKUP(YEAR(F$18),$E$3:$Y$5,3,0))) -> 0 | G55: 0 | H55: 0 | I55: 0 | J55: 0 | K55: 0 | L55: 0 | M55: 0 | N55: 1618318.251 | O55: 1618318.251 | P55: 1618318.251 | Q55: 1618318.251 | R55: 1618318.251 | S55: 1618318.251 | T55: 1666867.799 | U55: 1666867.799 | V55: 1666867.799 | W55: 1666867.799 | X55: 1666867.799 | Y55: 1666867.799 | Z55: 1666867.799 | AA55: 1666867.799 | AB55: 1666867.799 | AC55: 1666867.799 | AD55: 1666867.799 | AE55: 1666867.799 | AF55: 1716873.833 | AG55: 1716873.833 | AH55: 1716873.833 | AI55: 1716873.833 | AJ55: 1716873.833 | AK55: 1716873.833 | AL55: 1716873.833 | AM55: 1716873.833 | AN55: 1716873.833 | AO55: 1716873.833 | AP55: 1716873.833 | AQ55: 1716873.833 | AR55: 1768380.047 | AS55: 1768380.047 | AT55: 1768380.047 | AU55: 1768380.047 | AV55: 1768380.047 | AW55: 1768380.047 | AX55: 1768380.047 | AY55: 1768380.047 | AZ55: 1768380.047 | BA55: 1768380.047 | BB55: 1768380.047 | BC55: 1768380.047 | BD55: 1821431.449 | BE55: 1821431.449 | BF55: 1821431.449 | BG55: 1821431.449 | BH55: 1821431.449 | BI55: 1821431.449 | BJ55: 1821431.449 | BK55: 1821431.449 | BL55: 1821431.449 | BM55: 1821431.449 | BN55: 1821431.449 | BO55: 1821431.449 | BP55: 1876074.392 | BQ55: 1876074.392 | BR55: =+(IF($A55="","",IF($D55>MONTH(BR$18)-MONTH(InicioFuncion)+12*(YEAR(BR$18)-YEAR(InicioFuncion))+1,0,IF($E55<=(MONTH(BR$18)-MONTH(InicioFuncion)+12*(YEAR(BR$18)-YEAR(InicioFuncion)))-$D55+IF($D55<>"",1,0),0,IF(BR$17>$B$9+(12*(YEAR(InicioFuncion)-YEAR(InicioObra))+MONTH(InicioFuncion)-MONTH(InicioObra)),0,IF((YEAR($B$8)-YEAR($B$7))*12+(MONTH($B$8)-MONTH($B$7))+$E$16<=BQ$16,$C55))))*HLOOKUP(YEAR(BR$18),$E$3:$Y$5,3,0))) -> 1876074.392 | BS55: 1876074.392 | BT55: 1876074.392 | BU55: 1876074.392 | BV55: 0 | BW55: 0 | BX55: 0 | BY55: 0 | BZ55: 0 | CA55: 0 | CB55: 0 | CC55: 0 | CD55: 0 | CE55: 0 | CF55: 0 | CG55: 0 | CH55: 0 | CI55: 0 | CJ55: 0 | CK55: 0 | CL55: 0 | CM55: 0 | CN55: 0 | CO55: 0 | CP55: 0 | CQ55: 0 | CR55: 0 | CS55: 0 | CT55: 0 | CU55: 0 | CV55: 0 | CW55: 0 | CX55: 0 | CY55: 0 | CZ55: 0 | DA55: 0 | DB55: 0 | DC55: 0 | DD55: 0 | DE55: 0 | DF55: 0 | DG55: 0 | DH55: 0 | DI55: 0 | DJ55: 0 | DK55: 0 | DL55: 0 | DM55: 0 | DN55: 0 | DO55: 0 | DP55: 0 | DQ55: 0 | DR55: 0 | DS55: 0 | DT55: 0 | DU55: 0 | DV55: 0 | DW55: 0 | DX55: 0 | DY55: 0 | DZ55: 0 | EA55: 0 | EB55: 0 | EC55: 0 | ED55: =+(IF($A55="","",IF($D55>MONTH(ED$18)-MONTH(InicioFuncion)+12*(YEAR(ED$18)-YEAR(InicioFuncion))+1,0,IF($E55<=(MONTH(ED$18)-MONTH(InicioFuncion)+12*(YEAR(ED$18)-YEAR(InicioFuncion)))-$D55+IF($D55<>"",1,0),0,IF(ED$17>$B$9+(12*(YEAR(InicioFuncion)-YEAR(InicioObra))+MONTH(InicioFuncion)-MONTH(InicioObra)),0,IF((YEAR($B$8)-YEAR($B$7))*12+(MONTH($B$8)-MONTH($B$7))+$E$16<=EC$16,$C55))))*HLOOKUP(YEAR(ED$18),$E$3:$Y$5,3,0))) -> 0 | EE55: 0 | EF55: 0 | EG55: 0 | EH55: 0 | EI55: 0 | EJ55: 0 | EK55: 0 | EL55: 0 | EM55: 0 | EN55: 0 | EO55: 0 | EP55: 0 | EQ55: 0 | ER55: 0 | ES55: 0 | ET55: 0 | EU55: 0 | EV55: 0 | EW55: 0 | EX55: 0 | EY55: 0 | EZ55: 0 | FA55: 0 | FB55: 0 | FC55: 0 | FD55: 0 | FE55: 0 | FF55: 0 | FG55: 0 | FH55: 0 | FI55: 0 | FJ55: 0 | FK55: 0 | FL55: 0 | FM55: 0 | FN55: 0 | FO55: 0 | FP55: 0 | FQ55: 0 | FR55: 0 | FS55: 0 | FT55: 0 | FU55: 0 | FV55: 0 | FW55: 0 | FX55: 0 | FY55: 0 | FZ55: 0 | GA55: 0 | GB55: 0 | GC55: 0 | GD55: 0 | GE55: 0 | GF55: 0 | GG55: 0 | GH55: 0 | GI55: 0 | GJ55: 0 | GK55: 0 | GL55: 0 | GM55: 0 | GN55: 0 | GO55: 0 | GP55: =+(IF($A55="","",IF($D55>MONTH(GP$18)-MONTH(InicioFuncion)+12*(YEAR(GP$18)-YEAR(InicioFuncion))+1,0,IF($E55<=(MONTH(GP$18)-MONTH(InicioFuncion)+12*(YEAR(GP$18)-YEAR(InicioFuncion)))-$D55+IF($D55<>"",1,0),0,IF(GP$17>$B$9+(12*(YEAR(InicioFuncion)-YEAR(InicioObra))+MONTH(InicioFuncion)-MONTH(InicioObra)),0,IF((YEAR($B$8)-YEAR($B$7))*12+(MONTH($B$8)-MONTH($B$7))+$E$16<=GO$16,$C55))))*HLOOKUP(YEAR(GP$18),$E$3:$Y$5,3,0))) -> 0 | GQ55: 0 | GR55: 0 | GS55: 0 | GT55: 0 | GU55: 0 | GV55: 0 | GW55: 0 | GX55: 0 | GY55: 0 | GZ55: 0 | HA55: 0 | HB55: 0 | HC55: 0 | HD55: 0 | HE55: 0 | HF55: 0 | HG55: 0 | HH55: 0 | HI55: 0 | HJ55: 0 | HK55: 0 | HL55: 0 | HM55: 0 | HN55: 0 | HO55: 0 | HP55: 0 | HQ55: 0 | HR55: 0 | HS55: 0 | HT55: 0 | HU55: 0 | HV55: 0 | HW55: 0 | HX55: 0 | HY55: 0 | HZ55: 0 | IA55: 0 | IB55: 0 | IC55: 0 | ID55: 0 | IE55: 0 | IF55: 0 | IG55: 0 | IH55: 0 | II55: 0 | IJ55: 0 | IK55: 0 | IL55: 0 | IM55: OPEX
A56: Combustible - (Periodo sin conexión a la red MT)/mes | C56: =+IF('Parametros tecnologicos'!C35="S",0,SUMIFS(ValoresMercado,Conceptos,A56)/3) -> 2905000 | E56: 3 | F56: =+(IF($A56="","",IF($D56>MONTH(F$18)-MONTH(InicioFuncion)+12*(YEAR(F$18)-YEAR(InicioFuncion))+1,0,IF($E56<=(MONTH(F$18)-MONTH(InicioFuncion)+12*(YEAR(F$18)-YEAR(InicioFuncion)))-$D56+IF($D56<>"",1,0),0,IF(F$17>$B$9+(12*(YEAR(InicioFuncion)-YEAR(InicioObra))+MONTH(InicioFuncion)-MONTH(InicioObra)),0,IF((YEAR($B$8)-YEAR($B$7))*12+(MONTH($B$8)-MONTH($B$7))+$E$16<=E$16,$C56))))*HLOOKUP(YEAR(F$18),$E$3:$Y$5,3,0))) -> 0 | G56: 0 | H56: 0 | I56: 0 | J56: 0 | K56: 0 | L56: 0 | M56: 0 | N56: 2992150 | O56: 2992150 | P56: 2992150 | Q56: 0 | R56: 0 | S56: 0 | T56: 0 | U56: 0 | V56: 0 | W56: 0 | X56: 0 | Y56: 0 | Z56: 0 | AA56: 0 | AB56: 0 | AC56: 0 | AD56: 0 | AE56: 0 | AF56: 0 | AG56: 0 | AH56: 0 | AI56: 0 | AJ56: 0 | AK56: 0 | AL56: 0 | AM56: 0 | AN56: 0 | AO56: 0 | AP56: 0 | AQ56: 0 | AR56: 0 | AS56: 0 | AT56: 0 | AU56: 0 | AV56: 0 | AW56: 0 | AX56: 0 | AY56: 0 | AZ56: 0 | BA56: 0 | BB56: 0 | BC56: 0 | BD56: 0 | BE56: 0 | BF56: 0 | BG56: 0 | BH56: 0 | BI56: 0 | BJ56: 0 | BK56: 0 | BL56: 0 | BM56: 0 | BN56: 0 | BO56: 0 | BP56: 0 | BQ56: 0 | BR56: =+(IF($A56="","",IF($D56>MONTH(BR$18)-MONTH(InicioFuncion)+12*(YEAR(BR$18)-YEAR(InicioFuncion))+1,0,IF($E56<=(MONTH(BR$18)-MONTH(InicioFuncion)+12*(YEAR(BR$18)-YEAR(InicioFuncion)))-$D56+IF($D56<>"",1,0),0,IF(BR$17>$B$9+(12*(YEAR(InicioFuncion)-YEAR(InicioObra))+MONTH(InicioFuncion)-MONTH(InicioObra)),0,IF((YEAR($B$8)-YEAR($B$7))*12+(MONTH($B$8)-MONTH($B$7))+$E$16<=BQ$16,$C56))))*HLOOKUP(YEAR(BR$18),$E$3:$Y$5,3,0))) -> 0 | BS56: 0 | BT56: 0 | BU56: 0 | BV56: 0 | BW56: 0 | BX56: 0 | BY56: 0 | BZ56: 0 | CA56: 0 | CB56: 0 | CC56: 0 | CD56: 0 | CE56: 0 | CF56: 0 | CG56: 0 | CH56: 0 | CI56: 0 | CJ56: 0 | CK56: 0 | CL56: 0 | CM56: 0 | CN56: 0 | CO56: 0 | CP56: 0 | CQ56: 0 | CR56: 0 | CS56: 0 | CT56: 0 | CU56: 0 | CV56: 0 | CW56: 0 | CX56: 0 | CY56: 0 | CZ56: 0 | DA56: 0 | DB56: 0 | DC56: 0 | DD56: 0 | DE56: 0 | DF56: 0 | DG56: 0 | DH56: 0 | DI56: 0 | DJ56: 0 | DK56: 0 | DL56: 0 | DM56: 0 | DN56: 0 | DO56: 0 | DP56: 0 | DQ56: 0 | DR56: 0 | DS56: 0 | DT56: 0 | DU56: 0 | DV56: 0 | DW56: 0 | DX56: 0 | DY56: 0 | DZ56: 0 | EA56: 0 | EB56: 0 | EC56: 0 | ED56: =+(IF($A56="","",IF($D56>MONTH(ED$18)-MONTH(InicioFuncion)+12*(YEAR(ED$18)-YEAR(InicioFuncion))+1,0,IF($E56<=(MONTH(ED$18)-MONTH(InicioFuncion)+12*(YEAR(ED$18)-YEAR(InicioFuncion)))-$D56+IF($D56<>"",1,0),0,IF(ED$17>$B$9+(12*(YEAR(InicioFuncion)-YEAR(InicioObra))+MONTH(InicioFuncion)-MONTH(InicioObra)),0,IF((YEAR($B$8)-YEAR($B$7))*12+(MONTH($B$8)-MONTH($B$7))+$E$16<=EC$16,$C56))))*HLOOKUP(YEAR(ED$18),$E$3:$Y$5,3,0))) -> 0 | EE56: 0 | EF56: 0 | EG56: 0 | EH56: 0 | EI56: 0 | EJ56: 0 | EK56: 0 | EL56: 0 | EM56: 0 | EN56: 0 | EO56: 0 | EP56: 0 | EQ56: 0 | ER56: 0 | ES56: 0 | ET56: 0 | EU56: 0 | EV56: 0 | EW56: 0 | EX56: 0 | EY56: 0 | EZ56: 0 | FA56: 0 | FB56: 0 | FC56: 0 | FD56: 0 | FE56: 0 | FF56: 0 | FG56: 0 | FH56: 0 | FI56: 0 | FJ56: 0 | FK56: 0 | FL56: 0 | FM56: 0 | FN56: 0 | FO56: 0 | FP56: 0 | FQ56: 0 | FR56: 0 | FS56: 0 | FT56: 0 | FU56: 0 | FV56: 0 | FW56: 0 | FX56: 0 | FY56: 0 | FZ56: 0 | GA56: 0 | GB56: 0 | GC56: 0 | GD56: 0 | GE56: 0 | GF56: 0 | GG56: 0 | GH56: 0 | GI56: 0 | GJ56: 0 | GK56: 0 | GL56: 0 | GM56: 0 | GN56: 0 | GO56: 0 | GP56: =+(IF($A56="","",IF($D56>MONTH(GP$18)-MONTH(InicioFuncion)+12*(YEAR(GP$18)-YEAR(InicioFuncion))+1,0,IF($E56<=(MONTH(GP$18)-MONTH(InicioFuncion)+12*(YEAR(GP$18)-YEAR(InicioFuncion)))-$D56+IF($D56<>"",1,0),0,IF(GP$17>$B$9+(12*(YEAR(InicioFuncion)-YEAR(InicioObra))+MONTH(InicioFuncion)-MONTH(InicioObra)),0,IF((YEAR($B$8)-YEAR($B$7))*12+(MONTH($B$8)-MONTH($B$7))+$E$16<=GO$16,$C56))))*HLOOKUP(YEAR(GP$18),$E$3:$Y$5,3,0))) -> 0 | GQ56: 0 | GR56: 0 | GS56: 0 | GT56: 0 | GU56: 0 | GV56: 0 | GW56: 0 | GX56: 0 | GY56: 0 | GZ56: 0 | HA56: 0 | HB56: 0 | HC56: 0 | HD56: 0 | HE56: 0 | HF56: 0 | HG56: 0 | HH56: 0 | HI56: 0 | HJ56: 0 | HK56: 0 | HL56: 0 | HM56: 0 | HN56: 0 | HO56: 0 | HP56: 0 | HQ56: 0 | HR56: 0 | HS56: 0 | HT56: 0 | HU56: 0 | HV56: 0 | HW56: 0 | HX56: 0 | HY56: 0 | HZ56: 0 | IA56: 0 | IB56: 0 | IC56: 0 | ID56: 0 | IE56: 0 | IF56: 0 | IG56: 0 | IH56: 0 | II56: 0 | IJ56: 0 | IK56: 0 | IL56: 0 | IM56: OPEX
A57: Seguros | C57: =+SUMIFS(ValoresMercado,Conceptos,A57) -> 5052.984 | E57: 60 | F57: =+(IF($A57="","",IF($D57>MONTH(F$18)-MONTH(InicioFuncion)+12*(YEAR(F$18)-YEAR(InicioFuncion))+1,0,IF($E57<=(MONTH(F$18)-MONTH(InicioFuncion)+12*(YEAR(F$18)-YEAR(InicioFuncion)))-$D57+IF($D57<>"",1,0),0,IF(F$17>$B$9+(12*(YEAR(InicioFuncion)-YEAR(InicioObra))+MONTH(InicioFuncion)-MONTH(InicioObra)),0,IF((YEAR($B$8)-YEAR($B$7))*12+(MONTH($B$8)-MONTH($B$7))+$E$16<=E$16,$C57))))*HLOOKUP(YEAR(F$18),$E$3:$Y$5,3,0))) -> 0 | G57: 0 | H57: 0 | I57: 0 | J57: 0 | K57: 0 | L57: 0 | M57: 0 | N57: 5204.57352 | O57: 5204.57352 | P57: 5204.57352 | Q57: 5204.57352 | R57: 5204.57352 | S57: 5204.57352 | T57: 5360.710726 | U57: 5360.710726 | V57: 5360.710726 | W57: 5360.710726 | X57: 5360.710726 | Y57: 5360.710726 | Z57: 5360.710726 | AA57: 5360.710726 | AB57: 5360.710726 | AC57: 5360.710726 | AD57: 5360.710726 | AE57: 5360.710726 | AF57: 5521.532047 | AG57: 5521.532047 | AH57: 5521.532047 | AI57: 5521.532047 | AJ57: 5521.532047 | AK57: 5521.532047 | AL57: 5521.532047 | AM57: 5521.532047 | AN57: 5521.532047 | AO57: 5521.532047 | AP57: 5521.532047 | AQ57: 5521.532047 | AR57: 5687.178009 | AS57: 5687.178009 | AT57: 5687.178009 | AU57: 5687.178009 | AV57: 5687.178009 | AW57: 5687.178009 | AX57: 5687.178009 | AY57: 5687.178009 | AZ57: 5687.178009 | BA57: 5687.178009 | BB57: 5687.178009 | BC57: 5687.178009 | BD57: 5857.793349 | BE57: 5857.793349 | BF57: 5857.793349 | BG57: 5857.793349 | BH57: 5857.793349 | BI57: 5857.793349 | BJ57: 5857.793349 | BK57: 5857.793349 | BL57: 5857.793349 | BM57: 5857.793349 | BN57: 5857.793349 | BO57: 5857.793349 | BP57: 6033.52715 | BQ57: 6033.52715 | BR57: =+(IF($A57="","",IF($D57>MONTH(BR$18)-MONTH(InicioFuncion)+12*(YEAR(BR$18)-YEAR(InicioFuncion))+1,0,IF($E57<=(MONTH(BR$18)-MONTH(InicioFuncion)+12*(YEAR(BR$18)-YEAR(InicioFuncion)))-$D57+IF($D57<>"",1,0),0,IF(BR$17>$B$9+(12*(YEAR(InicioFuncion)-YEAR(InicioObra))+MONTH(InicioFuncion)-MONTH(InicioObra)),0,IF((YEAR($B$8)-YEAR($B$7))*12+(MONTH($B$8)-MONTH($B$7))+$E$16<=BQ$16,$C57))))*HLOOKUP(YEAR(BR$18),$E$3:$Y$5,3,0))) -> 6033.52715 | BS57: 6033.52715 | BT57: 6033.52715 | BU57: 6033.52715 | BV57: 0 | BW57: 0 | BX57: 0 | BY57: 0 | BZ57: 0 | CA57: 0 | CB57: 0 | CC57: 0 | CD57: 0 | CE57: 0 | CF57: 0 | CG57: 0 | CH57: 0 | CI57: 0 | CJ57: 0 | CK57: 0 | CL57: 0 | CM57: 0 | CN57: 0 | CO57: 0 | CP57: 0 | CQ57: 0 | CR57: 0 | CS57: 0 | CT57: 0 | CU57: 0 | CV57: 0 | CW57: 0 | CX57: 0 | CY57: 0 | CZ57: 0 | DA57: 0 | DB57: 0 | DC57: 0 | DD57: 0 | DE57: 0 | DF57: 0 | DG57: 0 | DH57: 0 | DI57: 0 | DJ57: 0 | DK57: 0 | DL57: 0 | DM57: 0 | DN57: 0 | DO57: 0 | DP57: 0 | DQ57: 0 | DR57: 0 | DS57: 0 | DT57: 0 | DU57: 0 | DV57: 0 | DW57: 0 | DX57: 0 | DY57: 0 | DZ57: 0 | EA57: 0 | EB57: 0 | EC57: 0 | ED57: =+(IF($A57="","",IF($D57>MONTH(ED$18)-MONTH(InicioFuncion)+12*(YEAR(ED$18)-YEAR(InicioFuncion))+1,0,IF($E57<=(MONTH(ED$18)-MONTH(InicioFuncion)+12*(YEAR(ED$18)-YEAR(InicioFuncion)))-$D57+IF($D57<>"",1,0),0,IF(ED$17>$B$9+(12*(YEAR(InicioFuncion)-YEAR(InicioObra))+MONTH(InicioFuncion)-MONTH(InicioObra)),0,IF((YEAR($B$8)-YEAR($B$7))*12+(MONTH($B$8)-MONTH($B$7))+$E$16<=EC$16,$C57))))*HLOOKUP(YEAR(ED$18),$E$3:$Y$5,3,0))) -> 0 | EE57: 0 | EF57: 0 | EG57: 0 | EH57: 0 | EI57: 0 | EJ57: 0 | EK57: 0 | EL57: 0 | EM57: 0 | EN57: 0 | EO57: 0 | EP57: 0 | EQ57: 0 | ER57: 0 | ES57: 0 | ET57: 0 | EU57: 0 | EV57: 0 | EW57: 0 | EX57: 0 | EY57: 0 | EZ57: 0 | FA57: 0 | FB57: 0 | FC57: 0 | FD57: 0 | FE57: 0 | FF57: 0 | FG57: 0 | FH57: 0 | FI57: 0 | FJ57: 0 | FK57: 0 | FL57: 0 | FM57: 0 | FN57: 0 | FO57: 0 | FP57: 0 | FQ57: 0 | FR57: 0 | FS57: 0 | FT57: 0 | FU57: 0 | FV57: 0 | FW57: 0 | FX57: 0 | FY57: 0 | FZ57: 0 | GA57: 0 | GB57: 0 | GC57: 0 | GD57: 0 | GE57: 0 | GF57: 0 | GG57: 0 | GH57: 0 | GI57: 0 | GJ57: 0 | GK57: 0 | GL57: 0 | GM57: 0 | GN57: 0 | GO57: 0 | GP57: =+(IF($A57="","",IF($D57>MONTH(GP$18)-MONTH(InicioFuncion)+12*(YEAR(GP$18)-YEAR(InicioFuncion))+1,0,IF($E57<=(MONTH(GP$18)-MONTH(InicioFuncion)+12*(YEAR(GP$18)-YEAR(InicioFuncion)))-$D57+IF($D57<>"",1,0),0,IF(GP$17>$B$9+(12*(YEAR(InicioFuncion)-YEAR(InicioObra))+MONTH(InicioFuncion)-MONTH(InicioObra)),0,IF((YEAR($B$8)-YEAR($B$7))*12+(MONTH($B$8)-MONTH($B$7))+$E$16<=GO$16,$C57))))*HLOOKUP(YEAR(GP$18),$E$3:$Y$5,3,0))) -> 0 | GQ57: 0 | GR57: 0 | GS57: 0 | GT57: 0 | GU57: 0 | GV57: 0 | GW57: 0 | GX57: 0 | GY57: 0 | GZ57: 0 | HA57: 0 | HB57: 0 | HC57: 0 | HD57: 0 | HE57: 0 | HF57: 0 | HG57: 0 | HH57: 0 | HI57: 0 | HJ57: 0 | HK57: 0 | HL57: 0 | HM57: 0 | HN57: 0 | HO57: 0 | HP57: 0 | HQ57: 0 | HR57: 0 | HS57: 0 | HT57: 0 | HU57: 0 | HV57: 0 | HW57: 0 | HX57: 0 | HY57: 0 | HZ57: 0 | IA57: 0 | IB57: 0 | IC57: 0 | ID57: 0 | IE57: 0 | IF57: 0 | IG57: 0 | IH57: 0 | II57: 0 | IJ57: 0 | IK57: 0 | IL57: 0 | IM57: OPEX
A58: Monitoreo y Gestión | C58: =+SUMIFS(ValoresMercado,Conceptos,A58) -> 190000 | E58: 60 | F58: =+(IF($A58="","",IF($D58>MONTH(F$18)-MONTH(InicioFuncion)+12*(YEAR(F$18)-YEAR(InicioFuncion))+1,0,IF($E58<=(MONTH(F$18)-MONTH(InicioFuncion)+12*(YEAR(F$18)-YEAR(InicioFuncion)))-$D58+IF($D58<>"",1,0),0,IF(F$17>$B$9+(12*(YEAR(InicioFuncion)-YEAR(InicioObra))+MONTH(InicioFuncion)-MONTH(InicioObra)),0,IF((YEAR($B$8)-YEAR($B$7))*12+(MONTH($B$8)-MONTH($B$7))+$E$16<=E$16,$C58))))*HLOOKUP(YEAR(F$18),$E$3:$Y$5,3,0))) -> 0 | G58: 0 | H58: 0 | I58: 0 | J58: 0 | K58: 0 | L58: 0 | M58: 0 | N58: 195700 | O58: 195700 | P58: 195700 | Q58: 195700 | R58: 195700 | S58: 195700 | T58: 201571 | U58: 201571 | V58: 201571 | W58: 201571 | X58: 201571 | Y58: 201571 | Z58: 201571 | AA58: 201571 | AB58: 201571 | AC58: 201571 | AD58: 201571 | AE58: 201571 | AF58: 207618.13 | AG58: 207618.13 | AH58: 207618.13 | AI58: 207618.13 | AJ58: 207618.13 | AK58: 207618.13 | AL58: 207618.13 | AM58: 207618.13 | AN58: 207618.13 | AO58: 207618.13 | AP58: 207618.13 | AQ58: 207618.13 | AR58: 213846.6739 | AS58: 213846.6739 | AT58: 213846.6739 | AU58: 213846.6739 | AV58: 213846.6739 | AW58: 213846.6739 | AX58: 213846.6739 | AY58: 213846.6739 | AZ58: 213846.6739 | BA58: 213846.6739 | BB58: 213846.6739 | BC58: 213846.6739 | BD58: 220262.0741 | BE58: 220262.0741 | BF58: 220262.0741 | BG58: 220262.0741 | BH58: 220262.0741 | BI58: 220262.0741 | BJ58: 220262.0741 | BK58: 220262.0741 | BL58: 220262.0741 | BM58: 220262.0741 | BN58: 220262.0741 | BO58: 220262.0741 | BP58: 226869.9363 | BQ58: 226869.9363 | BR58: =+(IF($A58="","",IF($D58>MONTH(BR$18)-MONTH(InicioFuncion)+12*(YEAR(BR$18)-YEAR(InicioFuncion))+1,0,IF($E58<=(MONTH(BR$18)-MONTH(InicioFuncion)+12*(YEAR(BR$18)-YEAR(InicioFuncion)))-$D58+IF($D58<>"",1,0),0,IF(BR$17>$B$9+(12*(YEAR(InicioFuncion)-YEAR(InicioObra))+MONTH(InicioFuncion)-MONTH(InicioObra)),0,IF((YEAR($B$8)-YEAR($B$7))*12+(MONTH($B$8)-MONTH($B$7))+$E$16<=BQ$16,$C58))))*HLOOKUP(YEAR(BR$18),$E$3:$Y$5,3,0))) -> 226869.9363 | BS58: 226869.9363 | BT58: 226869.9363 | BU58: 226869.9363 | BV58: 0 | BW58: 0 | BX58: 0 | BY58: 0 | BZ58: 0 | CA58: 0 | CB58: 0 | CC58: 0 | CD58: 0 | CE58: 0 | CF58: 0 | CG58: 0 | CH58: 0 | CI58: 0 | CJ58: 0 | CK58: 0 | CL58: 0 | CM58: 0 | CN58: 0 | CO58: 0 | CP58: 0 | CQ58: 0 | CR58: 0 | CS58: 0 | CT58: 0 | CU58: 0 | CV58: 0 | CW58: 0 | CX58: 0 | CY58: 0 | CZ58: 0 | DA58: 0 | DB58: 0 | DC58: 0 | DD58: 0 | DE58: 0 | DF58: 0 | DG58: 0 | DH58: 0 | DI58: 0 | DJ58: 0 | DK58: 0 | DL58: 0 | DM58: 0 | DN58: 0 | DO58: 0 | DP58: 0 | DQ58: 0 | DR58: 0 | DS58: 0 | DT58: 0 | DU58: 0 | DV58: 0 | DW58: 0 | DX58: 0 | DY58: 0 | DZ58: 0 | EA58: 0 | EB58: 0 | EC58: 0 | ED58: =+(IF($A58="","",IF($D58>MONTH(ED$18)-MONTH(InicioFuncion)+12*(YEAR(ED$18)-YEAR(InicioFuncion))+1,0,IF($E58<=(MONTH(ED$18)-MONTH(InicioFuncion)+12*(YEAR(ED$18)-YEAR(InicioFuncion)))-$D58+IF($D58<>"",1,0),0,IF(ED$17>$B$9+(12*(YEAR(InicioFuncion)-YEAR(InicioObra))+MONTH(InicioFuncion)-MONTH(InicioObra)),0,IF((YEAR($B$8)-YEAR($B$7))*12+(MONTH($B$8)-MONTH($B$7))+$E$16<=EC$16,$C58))))*HLOOKUP(YEAR(ED$18),$E$3:$Y$5,3,0))) -> 0 | EE58: 0 | EF58: 0 | EG58: 0 | EH58: 0 | EI58: 0 | EJ58: 0 | EK58: 0 | EL58: 0 | EM58: 0 | EN58: 0 | EO58: 0 | EP58: 0 | EQ58: 0 | ER58: 0 | ES58: 0 | ET58: 0 | EU58: 0 | EV58: 0 | EW58: 0 | EX58: 0 | EY58: 0 | EZ58: 0 | FA58: 0 | FB58: 0 | FC58: 0 | FD58: 0 | FE58: 0 | FF58: 0 | FG58: 0 | FH58: 0 | FI58: 0 | FJ58: 0 | FK58: 0 | FL58: 0 | FM58: 0 | FN58: 0 | FO58: 0 | FP58: 0 | FQ58: 0 | FR58: 0 | FS58: 0 | FT58: 0 | FU58: 0 | FV58: 0 | FW58: 0 | FX58: 0 | FY58: 0 | FZ58: 0 | GA58: 0 | GB58: 0 | GC58: 0 | GD58: 0 | GE58: 0 | GF58: 0 | GG58: 0 | GH58: 0 | GI58: 0 | GJ58: 0 | GK58: 0 | GL58: 0 | GM58: 0 | GN58: 0 | GO58: 0 | GP58: =+(IF($A58="","",IF($D58>MONTH(GP$18)-MONTH(InicioFuncion)+12*(YEAR(GP$18)-YEAR(InicioFuncion))+1,0,IF($E58<=(MONTH(GP$18)-MONTH(InicioFuncion)+12*(YEAR(GP$18)-YEAR(InicioFuncion)))-$D58+IF($D58<>"",1,0),0,IF(GP$17>$B$9+(12*(YEAR(InicioFuncion)-YEAR(InicioObra))+MONTH(InicioFuncion)-MONTH(InicioObra)),0,IF((YEAR($B$8)-YEAR($B$7))*12+(MONTH($B$8)-MONTH($B$7))+$E$16<=GO$16,$C58))))*HLOOKUP(YEAR(GP$18),$E$3:$Y$5,3,0))) -> 0 | GQ58: 0 | GR58: 0 | GS58: 0 | GT58: 0 | GU58: 0 | GV58: 0 | GW58: 0 | GX58: 0 | GY58: 0 | GZ58: 0 | HA58: 0 | HB58: 0 | HC58: 0 | HD58: 0 | HE58: 0 | HF58: 0 | HG58: 0 | HH58: 0 | HI58: 0 | HJ58: 0 | HK58: 0 | HL58: 0 | HM58: 0 | HN58: 0 | HO58: 0 | HP58: 0 | HQ58: 0 | HR58: 0 | HS58: 0 | HT58: 0 | HU58: 0 | HV58: 0 | HW58: 0 | HX58: 0 | HY58: 0 | HZ58: 0 | IA58: 0 | IB58: 0 | IC58: 0 | ID58: 0 | IE58: 0 | IF58: 0 | IG58: 0 | IH58: 0 | II58: 0 | IJ58: 0 | IK58: 0 | IL58: 0 | IM58: OPEX
A59: Vigilancia y custodia | C59: =+IF(TipoEspecifico=3,SUMIFS(ValoresMercado,Conceptos,A59),0) -> 0 | E59: 60 | F59: =+(IF($A59="","",IF($D59>MONTH(F$18)-MONTH(InicioFuncion)+12*(YEAR(F$18)-YEAR(InicioFuncion))+1,0,IF($E59<=(MONTH(F$18)-MONTH(InicioFuncion)+12*(YEAR(F$18)-YEAR(InicioFuncion)))-$D59+IF($D59<>"",1,0),0,IF(F$17>$B$9+(12*(YEAR(InicioFuncion)-YEAR(InicioObra))+MONTH(InicioFuncion)-MONTH(InicioObra)),0,IF((YEAR($B$8)-YEAR($B$7))*12+(MONTH($B$8)-MONTH($B$7))+$E$16<=E$16,$C59))))*HLOOKUP(YEAR(F$18),$E$3:$Y$5,3,0))) -> 0 | G59: 0 | H59: 0 | I59: 0 | J59: 0 | K59: 0 | L59: 0 | M59: 0 | N59: 0 | O59: 0 | P59: 0 | Q59: 0 | R59: 0 | S59: 0 | T59: 0 | U59: 0 | V59: 0 | W59: 0 | X59: 0 | Y59: 0 | Z59: 0 | AA59: 0 | AB59: 0 | AC59: 0 | AD59: 0 | AE59: 0 | AF59: 0 | AG59: 0 | AH59: 0 | AI59: 0 | AJ59: 0 | AK59: 0 | AL59: 0 | AM59: 0 | AN59: 0 | AO59: 0 | AP59: 0 | AQ59: 0 | AR59: 0 | AS59: 0 | AT59: 0 | AU59: 0 | AV59: 0 | AW59: 0 | AX59: 0 | AY59: 0 | AZ59: 0 | BA59: 0 | BB59: 0 | BC59: 0 | BD59: 0 | BE59: 0 | BF59: 0 | BG59: 0 | BH59: 0 | BI59: 0 | BJ59: 0 | BK59: 0 | BL59: 0 | BM59: 0 | BN59: 0 | BO59: 0 | BP59: 0 | BQ59: 0 | BR59: =+(IF($A59="","",IF($D59>MONTH(BR$18)-MONTH(InicioFuncion)+12*(YEAR(BR$18)-YEAR(InicioFuncion))+1,0,IF($E59<=(MONTH(BR$18)-MONTH(InicioFuncion)+12*(YEAR(BR$18)-YEAR(InicioFuncion)))-$D59+IF($D59<>"",1,0),0,IF(BR$17>$B$9+(12*(YEAR(InicioFuncion)-YEAR(InicioObra))+MONTH(InicioFuncion)-MONTH(InicioObra)),0,IF((YEAR($B$8)-YEAR($B$7))*12+(MONTH($B$8)-MONTH($B$7))+$E$16<=BQ$16,$C59))))*HLOOKUP(YEAR(BR$18),$E$3:$Y$5,3,0))) -> 0 | BS59: 0 | BT59: 0 | BU59: 0 | BV59: 0 | BW59: 0 | BX59: 0 | BY59: 0 | BZ59: 0 | CA59: 0 | CB59: 0 | CC59: 0 | CD59: 0 | CE59: 0 | CF59: 0 | CG59: 0 | CH59: 0 | CI59: 0 | CJ59: 0 | CK59: 0 | CL59: 0 | CM59: 0 | CN59: 0 | CO59: 0 | CP59: 0 | CQ59: 0 | CR59: 0 | CS59: 0 | CT59: 0 | CU59: 0 | CV59: 0 | CW59: 0 | CX59: 0 | CY59: 0 | CZ59: 0 | DA59: 0 | DB59: 0 | DC59: 0 | DD59: 0 | DE59: 0 | DF59: 0 | DG59: 0 | DH59: 0 | DI59: 0 | DJ59: 0 | DK59: 0 | DL59: 0 | DM59: 0 | DN59: 0 | DO59: 0 | DP59: 0 | DQ59: 0 | DR59: 0 | DS59: 0 | DT59: 0 | DU59: 0 | DV59: 0 | DW59: 0 | DX59: 0 | DY59: 0 | DZ59: 0 | EA59: 0 | EB59: 0 | EC59: 0 | ED59: =+(IF($A59="","",IF($D59>MONTH(ED$18)-MONTH(InicioFuncion)+12*(YEAR(ED$18)-YEAR(InicioFuncion))+1,0,IF($E59<=(MONTH(ED$18)-MONTH(InicioFuncion)+12*(YEAR(ED$18)-YEAR(InicioFuncion)))-$D59+IF($D59<>"",1,0),0,IF(ED$17>$B$9+(12*(YEAR(InicioFuncion)-YEAR(InicioObra))+MONTH(InicioFuncion)-MONTH(InicioObra)),0,IF((YEAR($B$8)-YEAR($B$7))*12+(MONTH($B$8)-MONTH($B$7))+$E$16<=EC$16,$C59))))*HLOOKUP(YEAR(ED$18),$E$3:$Y$5,3,0))) -> 0 | EE59: 0 | EF59: 0 | EG59: 0 | EH59: 0 | EI59: 0 | EJ59: 0 | EK59: 0 | EL59: 0 | EM59: 0 | EN59: 0 | EO59: 0 | EP59: 0 | EQ59: 0 | ER59: 0 | ES59: 0 | ET59: 0 | EU59: 0 | EV59: 0 | EW59: 0 | EX59: 0 | EY59: 0 | EZ59: 0 | FA59: 0 | FB59: 0 | FC59: 0 | FD59: 0 | FE59: 0 | FF59: 0 | FG59: 0 | FH59: 0 | FI59: 0 | FJ59: 0 | FK59: 0 | FL59: 0 | FM59: 0 | FN59: 0 | FO59: 0 | FP59: 0 | FQ59: 0 | FR59: 0 | FS59: 0 | FT59: 0 | FU59: 0 | FV59: 0 | FW59: 0 | FX59: 0 | FY59: 0 | FZ59: 0 | GA59: 0 | GB59: 0 | GC59: 0 | GD59: 0 | GE59: 0 | GF59: 0 | GG59: 0 | GH59: 0 | GI59: 0 | GJ59: 0 | GK59: 0 | GL59: 0 | GM59: 0 | GN59: 0 | GO59: 0 | GP59: =+(IF($A59="","",IF($D59>MONTH(GP$18)-MONTH(InicioFuncion)+12*(YEAR(GP$18)-YEAR(InicioFuncion))+1,0,IF($E59<=(MONTH(GP$18)-MONTH(InicioFuncion)+12*(YEAR(GP$18)-YEAR(InicioFuncion)))-$D59+IF($D59<>"",1,0),0,IF(GP$17>$B$9+(12*(YEAR(InicioFuncion)-YEAR(InicioObra))+MONTH(InicioFuncion)-MONTH(InicioObra)),0,IF((YEAR($B$8)-YEAR($B$7))*12+(MONTH($B$8)-MONTH($B$7))+$E$16<=GO$16,$C59))))*HLOOKUP(YEAR(GP$18),$E$3:$Y$5,3,0))) -> 0 | GQ59: 0 | GR59: 0 | GS59: 0 | GT59: 0 | GU59: 0 | GV59: 0 | GW59: 0 | GX59: 0 | GY59: 0 | GZ59: 0 | HA59: 0 | HB59: 0 | HC59: 0 | HD59: 0 | HE59: 0 | HF59: 0 | HG59: 0 | HH59: 0 | HI59: 0 | HJ59: 0 | HK59: 0 | HL59: 0 | HM59: 0 | HN59: 0 | HO59: 0 | HP59: 0 | HQ59: 0 | HR59: 0 | HS59: 0 | HT59: 0 | HU59: 0 | HV59: 0 | HW59: 0 | HX59: 0 | HY59: 0 | HZ59: 0 | IA59: 0 | IB59: 0 | IC59: 0 | ID59: 0 | IE59: 0 | IF59: 0 | IG59: 0 | IH59: 0 | II59: 0 | IJ59: 0 | IK59: 0 | IL59: 0 | IM59: OPEX
A60: Arrendamiento infraestructura - costo metro cuadrado | C60: =+IF(ArrendamientoInfraestructura="N",0,SUMIFS(ValoresMercado,Conceptos,A60)) -> 0 | E60: 60 | F60: =+(IF($A60="","",IF($D60>MONTH(F$18)-MONTH(InicioFuncion)+12*(YEAR(F$18)-YEAR(InicioFuncion))+1,0,IF($E60<=(MONTH(F$18)-MONTH(InicioFuncion)+12*(YEAR(F$18)-YEAR(InicioFuncion)))-$D60+IF($D60<>"",1,0),0,IF(F$17>$B$9+(12*(YEAR(InicioFuncion)-YEAR(InicioObra))+MONTH(InicioFuncion)-MONTH(InicioObra)),0,IF((YEAR($B$8)-YEAR($B$7))*12+(MONTH($B$8)-MONTH($B$7))+$E$16<=E$16,$C60))))*HLOOKUP(YEAR(F$18),$E$3:$Y$5,3,0))) -> 0 | G60: 0 | H60: 0 | I60: 0 | J60: 0 | K60: 0 | L60: 0 | M60: 0 | N60: 0 | O60: 0 | P60: 0 | Q60: 0 | R60: 0 | S60: 0 | T60: 0 | U60: 0 | V60: 0 | W60: 0 | X60: 0 | Y60: 0 | Z60: 0 | AA60: 0 | AB60: 0 | AC60: 0 | AD60: 0 | AE60: 0 | AF60: 0 | AG60: 0 | AH60: 0 | AI60: 0 | AJ60: 0 | AK60: 0 | AL60: 0 | AM60: 0 | AN60: 0 | AO60: 0 | AP60: 0 | AQ60: 0 | AR60: 0 | AS60: 0 | AT60: 0 | AU60: 0 | AV60: 0 | AW60: 0 | AX60: 0 | AY60: 0 | AZ60: 0 | BA60: 0 | BB60: 0 | BC60: 0 | BD60: 0 | BE60: 0 | BF60: 0 | BG60: 0 | BH60: 0 | BI60: 0 | BJ60: 0 | BK60: 0 | BL60: 0 | BM60: 0 | BN60: 0 | BO60: 0 | BP60: 0 | BQ60: 0 | BR60: =+(IF($A60="","",IF($D60>MONTH(BR$18)-MONTH(InicioFuncion)+12*(YEAR(BR$18)-YEAR(InicioFuncion))+1,0,IF($E60<=(MONTH(BR$18)-MONTH(InicioFuncion)+12*(YEAR(BR$18)-YEAR(InicioFuncion)))-$D60+IF($D60<>"",1,0),0,IF(BR$17>$B$9+(12*(YEAR(InicioFuncion)-YEAR(InicioObra))+MONTH(InicioFuncion)-MONTH(InicioObra)),0,IF((YEAR($B$8)-YEAR($B$7))*12+(MONTH($B$8)-MONTH($B$7))+$E$16<=BQ$16,$C60))))*HLOOKUP(YEAR(BR$18),$E$3:$Y$5,3,0))) -> 0 | BS60: 0 | BT60: 0 | BU60: 0 | BV60: 0 | BW60: 0 | BX60: 0 | BY60: 0 | BZ60: 0 | CA60: 0 | CB60: 0 | CC60: 0 | CD60: 0 | CE60: 0 | CF60: 0 | CG60: 0 | CH60: 0 | CI60: 0 | CJ60: 0 | CK60: 0 | CL60: 0 | CM60: 0 | CN60: 0 | CO60: 0 | CP60: 0 | CQ60: 0 | CR60: 0 | CS60: 0 | CT60: 0 | CU60: 0 | CV60: 0 | CW60: 0 | CX60: 0 | CY60: 0 | CZ60: 0 | DA60: 0 | DB60: 0 | DC60: 0 | DD60: 0 | DE60: 0 | DF60: 0 | DG60: 0 | DH60: 0 | DI60: 0 | DJ60: 0 | DK60: 0 | DL60: 0 | DM60: 0 | DN60: 0 | DO60: 0 | DP60: 0 | DQ60: 0 | DR60: 0 | DS60: 0 | DT60: 0 | DU60: 0 | DV60: 0 | DW60: 0 | DX60: 0 | DY60: 0 | DZ60: 0 | EA60: 0 | EB60: 0 | EC60: 0 | ED60: =+(IF($A60="","",IF($D60>MONTH(ED$18)-MONTH(InicioFuncion)+12*(YEAR(ED$18)-YEAR(InicioFuncion))+1,0,IF($E60<=(MONTH(ED$18)-MONTH(InicioFuncion)+12*(YEAR(ED$18)-YEAR(InicioFuncion)))-$D60+IF($D60<>"",1,0),0,IF(ED$17>$B$9+(12*(YEAR(InicioFuncion)-YEAR(InicioObra))+MONTH(InicioFuncion)-MONTH(InicioObra)),0,IF((YEAR($B$8)-YEAR($B$7))*12+(MONTH($B$8)-MONTH($B$7))+$E$16<=EC$16,$C60))))*HLOOKUP(YEAR(ED$18),$E$3:$Y$5,3,0))) -> 0 | EE60: 0 | EF60: 0 | EG60: 0 | EH60: 0 | EI60: 0 | EJ60: 0 | EK60: 0 | EL60: 0 | EM60: 0 | EN60: 0 | EO60: 0 | EP60: 0 | EQ60: 0 | ER60: 0 | ES60: 0 | ET60: 0 | EU60: 0 | EV60: 0 | EW60: 0 | EX60: 0 | EY60: 0 | EZ60: 0 | FA60: 0 | FB60: 0 | FC60: 0 | FD60: 0 | FE60: 0 | FF60: 0 | FG60: 0 | FH60: 0 | FI60: 0 | FJ60: 0 | FK60: 0 | FL60: 0 | FM60: 0 | FN60: 0 | FO60: 0 | FP60: 0 | FQ60: 0 | FR60: 0 | FS60: 0 | FT60: 0 | FU60: 0 | FV60: 0 | FW60: 0 | FX60: 0 | FY60: 0 | FZ60: 0 | GA60: 0 | GB60: 0 | GC60: 0 | GD60: 0 | GE60: 0 | GF60: 0 | GG60: 0 | GH60: 0 | GI60: 0 | GJ60: 0 | GK60: 0 | GL60: 0 | GM60: 0 | GN60: 0 | GO60: 0 | GP60: =+(IF($A60="","",IF($D60>MONTH(GP$18)-MONTH(InicioFuncion)+12*(YEAR(GP$18)-YEAR(InicioFuncion))+1,0,IF($E60<=(MONTH(GP$18)-MONTH(InicioFuncion)+12*(YEAR(GP$18)-YEAR(InicioFuncion)))-$D60+IF($D60<>"",1,0),0,IF(GP$17>$B$9+(12*(YEAR(InicioFuncion)-YEAR(InicioObra))+MONTH(InicioFuncion)-MONTH(InicioObra)),0,IF((YEAR($B$8)-YEAR($B$7))*12+(MONTH($B$8)-MONTH($B$7))+$E$16<=GO$16,$C60))))*HLOOKUP(YEAR(GP$18),$E$3:$Y$5,3,0))) -> 0 | GQ60: 0 | GR60: 0 | GS60: 0 | GT60: 0 | GU60: 0 | GV60: 0 | GW60: 0 | GX60: 0 | GY60: 0 | GZ60: 0 | HA60: 0 | HB60: 0 | HC60: 0 | HD60: 0 | HE60: 0 | HF60: 0 | HG60: 0 | HH60: 0 | HI60: 0 | HJ60: 0 | HK60: 0 | HL60: 0 | HM60: 0 | HN60: 0 | HO60: 0 | HP60: 0 | HQ60: 0 | HR60: 0 | HS60: 0 | HT60: 0 | HU60: 0 | HV60: 0 | HW60: 0 | HX60: 0 | HY60: 0 | HZ60: 0 | IA60: 0 | IB60: 0 | IC60: 0 | ID60: 0 | IE60: 0 | IF60: 0 | IG60: 0 | IH60: 0 | II60: 0 | IJ60: 0 | IK60: 0 | IL60: 0 | IM60: OPEX
A61: Arrendamiento infraestructura - costo metro lineal | C61: =+IF(ArrendamientoInfraestructura="N",0,SUMIFS(ValoresMercado,Conceptos,A61)) -> 0 | E61: 60 | F61: =+(IF($A61="","",IF($D61>MONTH(F$18)-MONTH(InicioFuncion)+12*(YEAR(F$18)-YEAR(InicioFuncion))+1,0,IF($E61<=(MONTH(F$18)-MONTH(InicioFuncion)+12*(YEAR(F$18)-YEAR(InicioFuncion)))-$D61+IF($D61<>"",1,0),0,IF(F$17>$B$9+(12*(YEAR(InicioFuncion)-YEAR(InicioObra))+MONTH(InicioFuncion)-MONTH(InicioObra)),0,IF((YEAR($B$8)-YEAR($B$7))*12+(MONTH($B$8)-MONTH($B$7))+$E$16<=E$16,$C61))))*HLOOKUP(YEAR(F$18),$E$3:$Y$5,3,0))) -> 0 | G61: 0 | H61: 0 | I61: 0 | J61: 0 | K61: 0 | L61: 0 | M61: 0 | N61: 0 | O61: 0 | P61: 0 | Q61: 0 | R61: 0 | S61: 0 | T61: 0 | U61: 0 | V61: 0 | W61: 0 | X61: 0 | Y61: 0 | Z61: 0 | AA61: 0 | AB61: 0 | AC61: 0 | AD61: 0 | AE61: 0 | AF61: 0 | AG61: 0 | AH61: 0 | AI61: 0 | AJ61: 0 | AK61: 0 | AL61: 0 | AM61: 0 | AN61: 0 | AO61: 0 | AP61: 0 | AQ61: 0 | AR61: 0 | AS61: 0 | AT61: 0 | AU61: 0 | AV61: 0 | AW61: 0 | AX61: 0 | AY61: 0 | AZ61: 0 | BA61: 0 | BB61: 0 | BC61: 0 | BD61: 0 | BE61: 0 | BF61: 0 | BG61: 0 | BH61: 0 | BI61: 0 | BJ61: 0 | BK61: 0 | BL61: 0 | BM61: 0 | BN61: 0 | BO61: 0 | BP61: 0 | BQ61: 0 | BR61: =+(IF($A61="","",IF($D61>MONTH(BR$18)-MONTH(InicioFuncion)+12*(YEAR(BR$18)-YEAR(InicioFuncion))+1,0,IF($E61<=(MONTH(BR$18)-MONTH(InicioFuncion)+12*(YEAR(BR$18)-YEAR(InicioFuncion)))-$D61+IF($D61<>"",1,0),0,IF(BR$17>$B$9+(12*(YEAR(InicioFuncion)-YEAR(InicioObra))+MONTH(InicioFuncion)-MONTH(InicioObra)),0,IF((YEAR($B$8)-YEAR($B$7))*12+(MONTH($B$8)-MONTH($B$7))+$E$16<=BQ$16,$C61))))*HLOOKUP(YEAR(BR$18),$E$3:$Y$5,3,0))) -> 0 | BS61: 0 | BT61: 0 | BU61: 0 | BV61: 0 | BW61: 0 | BX61: 0 | BY61: 0 | BZ61: 0 | CA61: 0 | CB61: 0 | CC61: 0 | CD61: 0 | CE61: 0 | CF61: 0 | CG61: 0 | CH61: 0 | CI61: 0 | CJ61: 0 | CK61: 0 | CL61: 0 | CM61: 0 | CN61: 0 | CO61: 0 | CP61: 0 | CQ61: 0 | CR61: 0 | CS61: 0 | CT61: 0 | CU61: 0 | CV61: 0 | CW61: 0 | CX61: 0 | CY61: 0 | CZ61: 0 | DA61: 0 | DB61: 0 | DC61: 0 | DD61: 0 | DE61: 0 | DF61: 0 | DG61: 0 | DH61: 0 | DI61: 0 | DJ61: 0 | DK61: 0 | DL61: 0 | DM61: 0 | DN61: 0 | DO61: 0 | DP61: 0 | DQ61: 0 | DR61: 0 | DS61: 0 | DT61: 0 | DU61: 0 | DV61: 0 | DW61: 0 | DX61: 0 | DY61: 0 | DZ61: 0 | EA61: 0 | EB61: 0 | EC61: 0 | ED61: =+(IF($A61="","",IF($D61>MONTH(ED$18)-MONTH(InicioFuncion)+12*(YEAR(ED$18)-YEAR(InicioFuncion))+1,0,IF($E61<=(MONTH(ED$18)-MONTH(InicioFuncion)+12*(YEAR(ED$18)-YEAR(InicioFuncion)))-$D61+IF($D61<>"",1,0),0,IF(ED$17>$B$9+(12*(YEAR(InicioFuncion)-YEAR(InicioObra))+MONTH(InicioFuncion)-MONTH(InicioObra)),0,IF((YEAR($B$8)-YEAR($B$7))*12+(MONTH($B$8)-MONTH($B$7))+$E$16<=EC$16,$C61))))*HLOOKUP(YEAR(ED$18),$E$3:$Y$5,3,0))) -> 0 | EE61: 0 | EF61: 0 | EG61: 0 | EH61: 0 | EI61: 0 | EJ61: 0 | EK61: 0 | EL61: 0 | EM61: 0 | EN61: 0 | EO61: 0 | EP61: 0 | EQ61: 0 | ER61: 0 | ES61: 0 | ET61: 0 | EU61: 0 | EV61: 0 | EW61: 0 | EX61: 0 | EY61: 0 | EZ61: 0 | FA61: 0 | FB61: 0 | FC61: 0 | FD61: 0 | FE61: 0 | FF61: 0 | FG61: 0 | FH61: 0 | FI61: 0 | FJ61: 0 | FK61: 0 | FL61: 0 | FM61: 0 | FN61: 0 | FO61: 0 | FP61: 0 | FQ61: 0 | FR61: 0 | FS61: 0 | FT61: 0 | FU61: 0 | FV61: 0 | FW61: 0 | FX61: 0 | FY61: 0 | FZ61: 0 | GA61: 0 | GB61: 0 | GC61: 0 | GD61: 0 | GE61: 0 | GF61: 0 | GG61: 0 | GH61: 0 | GI61: 0 | GJ61: 0 | GK61: 0 | GL61: 0 | GM61: 0 | GN61: 0 | GO61: 0 | GP61: =+(IF($A61="","",IF($D61>MONTH(GP$18)-MONTH(InicioFuncion)+12*(YEAR(GP$18)-YEAR(InicioFuncion))+1,0,IF($E61<=(MONTH(GP$18)-MONTH(InicioFuncion)+12*(YEAR(GP$18)-YEAR(InicioFuncion)))-$D61+IF($D61<>"",1,0),0,IF(GP$17>$B$9+(12*(YEAR(InicioFuncion)-YEAR(InicioObra))+MONTH(InicioFuncion)-MONTH(InicioObra)),0,IF((YEAR($B$8)-YEAR($B$7))*12+(MONTH($B$8)-MONTH($B$7))+$E$16<=GO$16,$C61))))*HLOOKUP(YEAR(GP$18),$E$3:$Y$5,3,0))) -> 0 | GQ61: 0 | GR61: 0 | GS61: 0 | GT61: 0 | GU61: 0 | GV61: 0 | GW61: 0 | GX61: 0 | GY61: 0 | GZ61: 0 | HA61: 0 | HB61: 0 | HC61: 0 | HD61: 0 | HE61: 0 | HF61: 0 | HG61: 0 | HH61: 0 | HI61: 0 | HJ61: 0 | HK61: 0 | HL61: 0 | HM61: 0 | HN61: 0 | HO61: 0 | HP61: 0 | HQ61: 0 | HR61: 0 | HS61: 0 | HT61: 0 | HU61: 0 | HV61: 0 | HW61: 0 | HX61: 0 | HY61: 0 | HZ61: 0 | IA61: 0 | IB61: 0 | IC61: 0 | ID61: 0 | IE61: 0 | IF61: 0 | IG61: 0 | IH61: 0 | II61: 0 | IJ61: 0 | IK61: 0 | IL61: 0 | IM61: OPEX
A62: RED ENERGÍA | E62: 60 | F62: =+IF($A62="","",$B62+IF(MONTH($B$8)-MONTH($B$7)+$E$16=E$16,$C62,0)) -> 0 | G62: =+(IF($A62="","",IF($D62>MONTH(G$18)-MONTH(InicioFuncion)+12*(YEAR(G$18)-YEAR(InicioFuncion))+1,0,IF($E62<=(MONTH(G$18)-MONTH(InicioFuncion)+12*(YEAR(G$18)-YEAR(InicioFuncion)))-$D62,0,IF(G$17>$B$9,0,IF((YEAR($B$8)-YEAR($B$7))*12+(MONTH($B$8)-MONTH($B$7))+$E$16<=F$16,$C62))))*HLOOKUP(YEAR(G$18),$E$3:$Y$5,3,0))) -> 0 | H62: 0 | I62: 0 | J62: 0 | K62: 0 | L62: 0 | M62: 0 | N62: 0 | O62: 0 | P62: 0 | Q62: 0 | R62: 0 | S62: 0 | T62: 0 | U62: 0 | V62: 0 | W62: 0 | X62: 0 | Y62: 0 | Z62: 0 | AA62: 0 | AB62: 0 | AC62: 0 | AD62: 0 | AE62: 0 | AF62: 0 | AG62: 0 | AH62: 0 | AI62: 0 | AJ62: 0 | AK62: 0 | AL62: 0 | AM62: 0 | AN62: 0 | AO62: 0 | AP62: 0 | AQ62: 0 | AR62: 0 | AS62: 0 | AT62: 0 | AU62: 0 | AV62: 0 | AW62: 0 | AX62: 0 | AY62: 0 | AZ62: 0 | BA62: 0 | BB62: 0 | BC62: 0 | BD62: 0 | BE62: 0 | BF62: 0 | BG62: 0 | BH62: 0 | BI62: 0 | BJ62: 0 | BK62: 0 | BL62: 0 | BM62: 0 | BN62: 0 | BO62: 0 | BP62: 0 | BQ62: 0 | BR62: 0 | BS62: =+(IF($A62="","",IF($D62>MONTH(BS$18)-MONTH(InicioFuncion)+12*(YEAR(BS$18)-YEAR(InicioFuncion))+1,0,IF($E62<=(MONTH(BS$18)-MONTH(InicioFuncion)+12*(YEAR(BS$18)-YEAR(InicioFuncion)))-$D62,0,IF(BS$17>$B$9,0,IF((YEAR($B$8)-YEAR($B$7))*12+(MONTH($B$8)-MONTH($B$7))+$E$16<=BR$16,$C62))))*HLOOKUP(YEAR(BS$18),$E$3:$Y$5,3,0))) -> 0 | BT62: 0 | BU62: 0 | BV62: 0 | BW62: 0 | BX62: 0 | BY62: 0 | BZ62: 0 | CA62: 0 | CB62: 0 | CC62: 0 | CD62: 0 | CE62: 0 | CF62: 0 | CG62: 0 | CH62: 0 | CI62: 0 | CJ62: 0 | CK62: 0 | CL62: 0 | CM62: 0 | CN62: 0 | CO62: 0 | CP62: 0 | CQ62: 0 | CR62: 0 | CS62: 0 | CT62: 0 | CU62: 0 | CV62: 0 | CW62: 0 | CX62: 0 | CY62: 0 | CZ62: 0 | DA62: 0 | DB62: 0 | DC62: 0 | DD62: 0 | DE62: 0 | DF62: 0 | DG62: 0 | DH62: 0 | DI62: 0 | DJ62: 0 | DK62: 0 | DL62: 0 | DM62: 0 | DN62: 0 | DO62: 0 | DP62: 0 | DQ62: 0 | DR62: 0 | DS62: 0 | DT62: 0 | DU62: 0 | DV62: 0 | DW62: 0 | DX62: 0 | DY62: 0 | DZ62: 0 | EA62: 0 | EB62: 0 | EC62: 0 | ED62: 0 | EE62: =+(IF($A62="","",IF($D62>MONTH(EE$18)-MONTH(InicioFuncion)+12*(YEAR(EE$18)-YEAR(InicioFuncion))+1,0,IF($E62<=(MONTH(EE$18)-MONTH(InicioFuncion)+12*(YEAR(EE$18)-YEAR(InicioFuncion)))-$D62,0,IF(EE$17>$B$9,0,IF((YEAR($B$8)-YEAR($B$7))*12+(MONTH($B$8)-MONTH($B$7))+$E$16<=ED$16,$C62))))*HLOOKUP(YEAR(EE$18),$E$3:$Y$5,3,0))) -> 0 | EF62: 0 | EG62: 0 | EH62: 0 | EI62: 0 | EJ62: 0 | EK62: 0 | EL62: 0 | EM62: 0 | EN62: 0 | EO62: 0 | EP62: 0 | EQ62: 0 | ER62: 0 | ES62: 0 | ET62: 0 | EU62: 0 | EV62: 0 | EW62: 0 | EX62: 0 | EY62: 0 | EZ62: 0 | FA62: 0 | FB62: 0 | FC62: 0 | FD62: 0 | FE62: 0 | FF62: 0 | FG62: 0 | FH62: 0 | FI62: 0 | FJ62: 0 | FK62: 0 | FL62: 0 | FM62: 0 | FN62: 0 | FO62: 0 | FP62: 0 | FQ62: 0 | FR62: 0 | FS62: 0 | FT62: 0 | FU62: 0 | FV62: 0 | FW62: 0 | FX62: 0 | FY62: 0 | FZ62: 0 | GA62: 0 | GB62: 0 | GC62: 0 | GD62: 0 | GE62: 0 | GF62: 0 | GG62: 0 | GH62: 0 | GI62: 0 | GJ62: 0 | GK62: 0 | GL62: 0 | GM62: 0 | GN62: 0 | GO62: 0 | GP62: 0 | GQ62: =+(IF($A62="","",IF($D62>MONTH(GQ$18)-MONTH(InicioFuncion)+12*(YEAR(GQ$18)-YEAR(InicioFuncion))+1,0,IF($E62<=(MONTH(GQ$18)-MONTH(InicioFuncion)+12*(YEAR(GQ$18)-YEAR(InicioFuncion)))-$D62,0,IF(GQ$17>$B$9,0,IF((YEAR($B$8)-YEAR($B$7))*12+(MONTH($B$8)-MONTH($B$7))+$E$16<=GP$16,$C62))))*HLOOKUP(YEAR(GQ$18),$E$3:$Y$5,3,0))) -> 0 | GR62: 0 | GS62: 0 | GT62: 0 | GU62: 0 | GV62: 0 | GW62: 0 | GX62: 0 | GY62: 0 | GZ62: 0 | HA62: 0 | HB62: 0 | HC62: 0 | HD62: 0 | HE62: 0 | HF62: 0 | HG62: 0 | HH62: 0 | HI62: 0 | HJ62: 0 | HK62: 0 | HL62: 0 | HM62: 0 | HN62: 0 | HO62: 0 | HP62: 0 | HQ62: 0 | HR62: 0 | HS62: 0 | HT62: 0 | HU62: 0 | HV62: 0 | HW62: 0 | HX62: 0 | HY62: 0 | HZ62: 0 | IA62: 0 | IB62: 0 | IC62: 0 | ID62: 0 | IE62: 0 | IF62: 0 | IG62: 0 | IH62: 0 | II62: 0 | IJ62: 0 | IK62: 0 | IL62: 0 | IM62: OPEX
A63: ="Terreno "&Tipo_Terreno&" - "&"Trasiegos" -> Terreno Plano - Trasiegos | B63: =+IF(ArrendamientoInfraestructura="S",0,IF(Tipologia_Campo="FTTH",0,SUMIFS(ValoresMercado,Conceptos,A63,Relacion,DistanciaEnergiaSTD,Tipo,TipoEspecifico,Terreno_Energia,Tipo_Terreno,KW_Energia,KW_EnergiaValor))) -> 1674532.333 | E63: 60 | F63: =+IF($A63="","",IF($D63=F$17,$B63+IF(MONTH($B$8)-MONTH($B$7)+$E$16=E$16,$C63,0),0)) -> 1674532.333 | G63: 0 | H63: 0 | I63: 0 | J63: 0 | K63: 0 | L63: 0 | M63: 0 | N63: 0 | O63: 0 | P63: 0 | Q63: 0 | R63: 0 | S63: 0 | T63: 0 | U63: 0 | V63: 0 | W63: 0 | X63: 0 | Y63: 0 | Z63: 0 | AA63: 0 | AB63: 0 | AC63: 0 | AD63: 0 | AE63: 0 | AF63: 0 | AG63: 0 | AH63: 0 | AI63: 0 | AJ63: 0 | AK63: 0 | AL63: =+IF($A63="","",IF($D63=AL$17,$B63+IF(MONTH($B$8)-MONTH($B$7)+$E$16=AK$16,$C63,0),0)) -> 0 | AM63: 0 | AN63: 0 | AO63: 0 | AP63: 0 | AQ63: 0 | AR63: 0 | AS63: 0 | AT63: 0 | AU63: 0 | AV63: 0 | AW63: 0 | AX63: 0 | AY63: 0 | AZ63: 0 | BA63: 0 | BB63: 0 | BC63: 0 | BD63: 0 | BE63: 0 | BF63: 0 | BG63: 0 | BH63: 0 | BI63: 0 | BJ63: 0 | BK63: 0 | BL63: 0 | BM63: 0 | BN63: 0 | BO63: 0 | BP63: 0 | BQ63: 0 | BR63: =+IF($A63="","",IF($D63=BR$17,$B63+IF(MONTH($B$8)-MONTH($B$7)+$E$16=BQ$16,$C63,0),0)) -> 0 | BS63: 0 | BT63: 0 | BU63: 0 | BV63: 0 | BW63: 0 | BX63: 0 | BY63: 0 | BZ63: 0 | CA63: 0 | CB63: 0 | CC63: 0 | CD63: 0 | CE63: 0 | CF63: 0 | CG63: 0 | CH63: 0 | CI63: 0 | CJ63: 0 | CK63: 0 | CL63: 0 | CM63: 0 | CN63: 0 | CO63: 0 | CP63: 0 | CQ63: 0 | CR63: 0 | CS63: 0 | CT63: 0 | CU63: 0 | CV63: 0 | CW63: 0 | CX63: =+IF($A63="","",IF($D63=CX$17,$B63+IF(MONTH($B$8)-MONTH($B$7)+$E$16=CW$16,$C63,0),0)) -> 0 | CY63: 0 | CZ63: 0 | DA63: 0 | DB63: 0 | DC63: 0 | DD63: 0 | DE63: 0 | DF63: 0 | DG63: 0 | DH63: 0 | DI63: 0 | DJ63: 0 | DK63: 0 | DL63: 0 | DM63: 0 | DN63: 0 | DO63: 0 | DP63: 0 | DQ63: 0 | DR63: 0 | DS63: 0 | DT63: 0 | DU63: 0 | DV63: =+IF($A63="","",IF($D63=DV$17,$B63+IF(MONTH($B$8)-MONTH($B$7)+$E$16=DU$16,$C63,0),0)) -> 0 | DW63: 0 | DX63: 0 | DY63: 0 | DZ63: 0 | EA63: 0 | EB63: 0 | EC63: 0 | ED63: 0 | EE63: 0 | EF63: 0 | EG63: 0 | EH63: 0 | EI63: 0 | EJ63: 0 | EK63: 0 | EL63: 0 | EM63: 0 | EN63: 0 | EO63: 0 | EP63: 0 | EQ63: 0 | ER63: 0 | ES63: 0 | ET63: 0 | EU63: 0 | EV63: 0 | EW63: 0 | EX63: 0 | EY63: 0 | EZ63: 0 | FA63: 0 | FB63: =+IF($A63="","",IF($D63=FB$17,$B63+IF(MONTH($B$8)-MONTH($B$7)+$E$16=FA$16,$C63,0),0)) -> 0 | FC63: 0 | FD63: 0 | FE63: 0 | FF63: 0 | FG63: 0 | FH63: 0 | FI63: 0 | FJ63: 0 | FK63: 0 | FL63: 0 | FM63: 0 | FN63: 0 | FO63: 0 | FP63: 0 | FQ63: 0 | FR63: 0 | FS63: 0 | FT63: 0 | FU63: 0 | FV63: 0 | FW63: 0 | FX63: 0 | FY63: 0 | FZ63: 0 | GA63: 0 | GB63: 0 | GC63: 0 | GD63: 0 | GE63: 0 | GF63: 0 | GG63: 0 | GH63: =+IF($A63="","",IF($D63=GH$17,$B63+IF(MONTH($B$8)-MONTH($B$7)+$E$16=GG$16,$C63,0),0)) -> 0 | GI63: 0 | GJ63: 0 | GK63: 0 | GL63: 0 | GM63: 0 | GN63: 0 | GO63: 0 | GP63: 0 | GQ63: 0 | GR63: 0 | GS63: 0 | GT63: 0 | GU63: 0 | GV63: 0 | GW63: 0 | GX63: 0 | GY63: 0 | GZ63: 0 | HA63: 0 | HB63: 0 | HC63: 0 | HD63: 0 | HE63: 0 | HF63: 0 | HG63: 0 | HH63: 0 | HI63: 0 | HJ63: 0 | HK63: 0 | HL63: 0 | HM63: 0 | HN63: =+IF($A63="","",IF($D63=HN$17,$B63+IF(MONTH($B$8)-MONTH($B$7)+$E$16=HM$16,$C63,0),0)) -> 0 | HO63: 0 | HP63: 0 | HQ63: 0 | HR63: 0 | HS63: 0 | HT63: 0 | HU63: 0 | HV63: 0 | HW63: 0 | HX63: 0 | HY63: 0 | HZ63: 0 | IA63: 0 | IB63: 0 | IC63: 0 | ID63: 0 | IE63: 0 | IF63: 0 | IG63: 0 | IH63: 0 | II63: 0 | IJ63: 0 | IK63: 0 | IL63: 0 | IM63: CAPEX
A64: ="Terreno "&Tipo_Terreno&" - "&"Cableados Mt" -> Terreno Plano - Cableados Mt | B64: =+IF(ArrendamientoInfraestructura="S",0,IF(Tipologia_Campo="FTTH",0,SUMIFS(ValoresMercado,Conceptos,A64,Relacion,DistanciaEnergiaSTD,Tipo,TipoEspecifico,Terreno_Energia,Tipo_Terreno,KW_Energia,KW_EnergiaValor))) -> 10160752.26 | E64: 60 | F64: =+IF($A64="","",IF($D64=F$17,$B64+IF(MONTH($B$8)-MONTH($B$7)+$E$16=E$16,$C64,0),0)) -> 10160752.26 | G64: 0 | H64: 0 | I64: 0 | J64: 0 | K64: 0 | L64: 0 | M64: 0 | N64: 0 | O64: 0 | P64: 0 | Q64: 0 | R64: 0 | S64: 0 | T64: 0 | U64: 0 | V64: 0 | W64: 0 | X64: 0 | Y64: 0 | Z64: 0 | AA64: 0 | AB64: 0 | AC64: 0 | AD64: 0 | AE64: 0 | AF64: 0 | AG64: 0 | AH64: 0 | AI64: 0 | AJ64: 0 | AK64: 0 | AL64: =+IF($A64="","",IF($D64=AL$17,$B64+IF(MONTH($B$8)-MONTH($B$7)+$E$16=AK$16,$C64,0),0)) -> 0 | AM64: 0 | AN64: 0 | AO64: 0 | AP64: 0 | AQ64: 0 | AR64: 0 | AS64: 0 | AT64: 0 | AU64: 0 | AV64: 0 | AW64: 0 | AX64: 0 | AY64: 0 | AZ64: 0 | BA64: 0 | BB64: 0 | BC64: 0 | BD64: 0 | BE64: 0 | BF64: 0 | BG64: 0 | BH64: 0 | BI64: 0 | BJ64: 0 | BK64: 0 | BL64: 0 | BM64: 0 | BN64: 0 | BO64: 0 | BP64: 0 | BQ64: 0 | BR64: =+IF($A64="","",IF($D64=BR$17,$B64+IF(MONTH($B$8)-MONTH($B$7)+$E$16=BQ$16,$C64,0),0)) -> 0 | BS64: 0 | BT64: 0 | BU64: 0 | BV64: 0 | BW64: 0 | BX64: 0 | BY64: 0 | BZ64: 0 | CA64: 0 | CB64: 0 | CC64: 0 | CD64: 0 | CE64: 0 | CF64: 0 | CG64: 0 | CH64: 0 | CI64: 0 | CJ64: 0 | CK64: 0 | CL64: 0 | CM64: 0 | CN64: 0 | CO64: 0 | CP64: 0 | CQ64: 0 | CR64: 0 | CS64: 0 | CT64: 0 | CU64: 0 | CV64: 0 | CW64: 0 | CX64: =+IF($A64="","",IF($D64=CX$17,$B64+IF(MONTH($B$8)-MONTH($B$7)+$E$16=CW$16,$C64,0),0)) -> 0 | CY64: 0 | CZ64: 0 | DA64: 0 | DB64: 0 | DC64: 0 | DD64: 0 | DE64: 0 | DF64: 0 | DG64: 0 | DH64: 0 | DI64: 0 | DJ64: 0 | DK64: 0 | DL64: 0 | DM64: 0 | DN64: 0 | DO64: 0 | DP64: 0 | DQ64: 0 | DR64: 0 | DS64: 0 | DT64: 0 | DU64: 0 | DV64: =+IF($A64="","",IF($D64=DV$17,$B64+IF(MONTH($B$8)-MONTH($B$7)+$E$16=DU$16,$C64,0),0)) -> 0 | DW64: 0 | DX64: 0 | DY64: 0 | DZ64: 0 | EA64: 0 | EB64: 0 | EC64: 0 | ED64: 0 | EE64: 0 | EF64: 0 | EG64: 0 | EH64: 0 | EI64: 0 | EJ64: 0 | EK64: 0 | EL64: 0 | EM64: 0 | EN64: 0 | EO64: 0 | EP64: 0 | EQ64: 0 | ER64: 0 | ES64: 0 | ET64: 0 | EU64: 0 | EV64: 0 | EW64: 0 | EX64: 0 | EY64: 0 | EZ64: 0 | FA64: 0 | FB64: =+IF($A64="","",IF($D64=FB$17,$B64+IF(MONTH($B$8)-MONTH($B$7)+$E$16=FA$16,$C64,0),0)) -> 0 | FC64: 0 | FD64: 0 | FE64: 0 | FF64: 0 | FG64: 0 | FH64: 0 | FI64: 0 | FJ64: 0 | FK64: 0 | FL64: 0 | FM64: 0 | FN64: 0 | FO64: 0 | FP64: 0 | FQ64: 0 | FR64: 0 | FS64: 0 | FT64: 0 | FU64: 0 | FV64: 0 | FW64: 0 | FX64: 0 | FY64: 0 | FZ64: 0 | GA64: 0 | GB64: 0 | GC64: 0 | GD64: 0 | GE64: 0 | GF64: 0 | GG64: 0 | GH64: =+IF($A64="","",IF($D64=GH$17,$B64+IF(MONTH($B$8)-MONTH($B$7)+$E$16=GG$16,$C64,0),0)) -> 0 | GI64: 0 | GJ64: 0 | GK64: 0 | GL64: 0 | GM64: 0 | GN64: 0 | GO64: 0 | GP64: 0 | GQ64: 0 | GR64: 0 | GS64: 0 | GT64: 0 | GU64: 0 | GV64: 0 | GW64: 0 | GX64: 0 | GY64: 0 | GZ64: 0 | HA64: 0 | HB64: 0 | HC64: 0 | HD64: 0 | HE64: 0 | HF64: 0 | HG64: 0 | HH64: 0 | HI64: 0 | HJ64: 0 | HK64: 0 | HL64: 0 | HM64: 0 | HN64: =+IF($A64="","",IF($D64=HN$17,$B64+IF(MONTH($B$8)-MONTH($B$7)+$E$16=HM$16,$C64,0),0)) -> 0 | HO64: 0 | HP64: 0 | HQ64: 0 | HR64: 0 | HS64: 0 | HT64: 0 | HU64: 0 | HV64: 0 | HW64: 0 | HX64: 0 | HY64: 0 | HZ64: 0 | IA64: 0 | IB64: 0 | IC64: 0 | ID64: 0 | IE64: 0 | IF64: 0 | IG64: 0 | IH64: 0 | II64: 0 | IJ64: 0 | IK64: 0 | IL64: 0 | IM64: CAPEX
A65: =+"Terreno "&Tipo_Terreno&" - "&"Diseños, Planos" -> Terreno Plano - Diseños, Planos | B65: =+IF(ArrendamientoInfraestructura="S",0,IF(Tipologia_Campo="FTTH",0,SUMIFS(ValoresMercado,Conceptos,A65,Relacion,DistanciaEnergiaSTD,Tipo,TipoEspecifico,Terreno_Energia,Tipo_Terreno,KW_Energia,KW_EnergiaValor))) -> 2183551.228 | E65: 60 | F65: =+IF($A65="","",IF($D65=F$17,$B65+IF(MONTH($B$8)-MONTH($B$7)+$E$16=E$16,$C65,0),0)) -> 2183551.228 | G65: 0 | H65: 0 | I65: 0 | J65: 0 | K65: 0 | L65: 0 | M65: 0 | N65: 0 | O65: 0 | P65: 0 | Q65: 0 | R65: 0 | S65: 0 | T65: 0 | U65: 0 | V65: 0 | W65: 0 | X65: 0 | Y65: 0 | Z65: 0 | AA65: 0 | AB65: 0 | AC65: 0 | AD65: 0 | AE65: 0 | AF65: 0 | AG65: 0 | AH65: 0 | AI65: 0 | AJ65: 0 | AK65: 0 | AL65: =+IF($A65="","",IF($D65=AL$17,$B65+IF(MONTH($B$8)-MONTH($B$7)+$E$16=AK$16,$C65,0),0)) -> 0 | AM65: 0 | AN65: 0 | AO65: 0 | AP65: 0 | AQ65: 0 | AR65: 0 | AS65: 0 | AT65: 0 | AU65: 0 | AV65: 0 | AW65: 0 | AX65: 0 | AY65: 0 | AZ65: 0 | BA65: 0 | BB65: 0 | BC65: 0 | BD65: 0 | BE65: 0 | BF65: 0 | BG65: 0 | BH65: 0 | BI65: 0 | BJ65: 0 | BK65: 0 | BL65: 0 | BM65: 0 | BN65: 0 | BO65: 0 | BP65: 0 | BQ65: 0 | BR65: =+IF($A65="","",IF($D65=BR$17,$B65+IF(MONTH($B$8)-MONTH($B$7)+$E$16=BQ$16,$C65,0),0)) -> 0 | BS65: 0 | BT65: 0 | BU65: 0 | BV65: 0 | BW65: 0 | BX65: 0 | BY65: 0 | BZ65: 0 | CA65: 0 | CB65: 0 | CC65: 0 | CD65: 0 | CE65: 0 | CF65: 0 | CG65: 0 | CH65: 0 | CI65: 0 | CJ65: 0 | CK65: 0 | CL65: 0 | CM65: 0 | CN65: 0 | CO65: 0 | CP65: 0 | CQ65: 0 | CR65: 0 | CS65: 0 | CT65: 0 | CU65: 0 | CV65: 0 | CW65: 0 | CX65: =+IF($A65="","",IF($D65=CX$17,$B65+IF(MONTH($B$8)-MONTH($B$7)+$E$16=CW$16,$C65,0),0)) -> 0 | CY65: 0 | CZ65: 0 | DA65: 0 | DB65: 0 | DC65: 0 | DD65: 0 | DE65: 0 | DF65: 0 | DG65: 0 | DH65: 0 | DI65: 0 | DJ65: 0 | DK65: 0 | DL65: 0 | DM65: 0 | DN65: 0 | DO65: 0 | DP65: 0 | DQ65: 0 | DR65: 0 | DS65: 0 | DT65: 0 | DU65: 0 | DV65: =+IF($A65="","",IF($D65=DV$17,$B65+IF(MONTH($B$8)-MONTH($B$7)+$E$16=DU$16,$C65,0),0)) -> 0 | DW65: 0 | DX65: 0 | DY65: 0 | DZ65: 0 | EA65: 0 | EB65: 0 | EC65: 0 | ED65: 0 | EE65: 0 | EF65: 0 | EG65: 0 | EH65: 0 | EI65: 0 | EJ65: 0 | EK65: 0 | EL65: 0 | EM65: 0 | EN65: 0 | EO65: 0 | EP65: 0 | EQ65: 0 | ER65: 0 | ES65: 0 | ET65: 0 | EU65: 0 | EV65: 0 | EW65: 0 | EX65: 0 | EY65: 0 | EZ65: 0 | FA65: 0 | FB65: =+IF($A65="","",IF($D65=FB$17,$B65+IF(MONTH($B$8)-MONTH($B$7)+$E$16=FA$16,$C65,0),0)) -> 0 | FC65: 0 | FD65: 0 | FE65: 0 | FF65: 0 | FG65: 0 | FH65: 0 | FI65: 0 | FJ65: 0 | FK65: 0 | FL65: 0 | FM65: 0 | FN65: 0 | FO65: 0 | FP65: 0 | FQ65: 0 | FR65: 0 | FS65: 0 | FT65: 0 | FU65: 0 | FV65: 0 | FW65: 0 | FX65: 0 | FY65: 0 | FZ65: 0 | GA65: 0 | GB65: 0 | GC65: 0 | GD65: 0 | GE65: 0 | GF65: 0 | GG65: 0 | GH65: =+IF($A65="","",IF($D65=GH$17,$B65+IF(MONTH($B$8)-MONTH($B$7)+$E$16=GG$16,$C65,0),0)) -> 0 | GI65: 0 | GJ65: 0 | GK65: 0 | GL65: 0 | GM65: 0 | GN65: 0 | GO65: 0 | GP65: 0 | GQ65: 0 | GR65: 0 | GS65: 0 | GT65: 0 | GU65: 0 | GV65: 0 | GW65: 0 | GX65: 0 | GY65: 0 | GZ65: 0 | HA65: 0 | HB65: 0 | HC65: 0 | HD65: 0 | HE65: 0 | HF65: 0 | HG65: 0 | HH65: 0 | HI65: 0 | HJ65: 0 | HK65: 0 | HL65: 0 | HM65: 0 | HN65: =+IF($A65="","",IF($D65=HN$17,$B65+IF(MONTH($B$8)-MONTH($B$7)+$E$16=HM$16,$C65,0),0)) -> 0 | HO65: 0 | HP65: 0 | HQ65: 0 | HR65: 0 | HS65: 0 | HT65: 0 | HU65: 0 | HV65: 0 | HW65: 0 | HX65: 0 | HY65: 0 | HZ65: 0 | IA65: 0 | IB65: 0 | IC65: 0 | ID65: 0 | IE65: 0 | IF65: 0 | IG65: 0 | IH65: 0 | II65: 0 | IJ65: 0 | IK65: 0 | IL65: 0 | IM65: CAPEX
A66: Mto Pararrayos, Tierra | C66: =+IF(Tipologia_Campo="FTTH",0,SUMIFS(ValoresMercado,Conceptos,A66,Relacion,DistanciaEnergiaSTD,Tipo,TipoEspecifico,KW_Energia,KW_EnergiaValor)/12) -> 34200.625 | E66: 60 | F66: =+(IF($A66="","",IF(F$17>=12+(12*(YEAR(InicioFuncion)-YEAR(InicioObra))+MONTH(InicioFuncion)-MONTH(InicioObra)),IF($D66>MONTH(F$18)-MONTH(InicioFuncion)+12*(YEAR(F$18)-YEAR(InicioFuncion))+1,0,IF($E66<=(MONTH(F$18)-MONTH(InicioFuncion)+12*(YEAR(F$18)-YEAR(InicioFuncion)))-$D66+IF($D66<>"",1,0),0,IF(F$17>$B$9+(12*(YEAR(InicioFuncion)-YEAR(InicioObra))+MONTH(InicioFuncion)-MONTH(InicioObra)),0,IF((YEAR($B$8)-YEAR($B$7))*12+(MONTH($B$8)-MONTH($B$7))+$E$16<=E$16,$C66))))*HLOOKUP(YEAR(F$18),$E$3:$Y$5,3,0),0))) -> 0 | G66: 0 | H66: 0 | I66: 0 | J66: 0 | K66: 0 | L66: 0 | M66: 0 | N66: 0 | O66: 0 | P66: 0 | Q66: 0 | R66: 0 | S66: 0 | T66: 0 | U66: 0 | V66: 0 | W66: 0 | X66: 0 | Y66: 0 | Z66: 36283.44306 | AA66: 36283.44306 | AB66: 36283.44306 | AC66: 36283.44306 | AD66: 36283.44306 | AE66: 36283.44306 | AF66: 37371.94635 | AG66: 37371.94635 | AH66: 37371.94635 | AI66: 37371.94635 | AJ66: 37371.94635 | AK66: 37371.94635 | AL66: 37371.94635 | AM66: 37371.94635 | AN66: 37371.94635 | AO66: 37371.94635 | AP66: 37371.94635 | AQ66: 37371.94635 | AR66: 38493.10475 | AS66: 38493.10475 | AT66: 38493.10475 | AU66: 38493.10475 | AV66: 38493.10475 | AW66: 38493.10475 | AX66: 38493.10475 | AY66: 38493.10475 | AZ66: 38493.10475 | BA66: 38493.10475 | BB66: 38493.10475 | BC66: 38493.10475 | BD66: 39647.89789 | BE66: 39647.89789 | BF66: 39647.89789 | BG66: 39647.89789 | BH66: 39647.89789 | BI66: 39647.89789 | BJ66: 39647.89789 | BK66: 39647.89789 | BL66: 39647.89789 | BM66: 39647.89789 | BN66: 39647.89789 | BO66: 39647.89789 | BP66: 40837.33482 | BQ66: 40837.33482 | BR66: =+(IF($A66="","",IF(BR$17>=12+(12*(YEAR(InicioFuncion)-YEAR(InicioObra))+MONTH(InicioFuncion)-MONTH(InicioObra)),IF($D66>MONTH(BR$18)-MONTH(InicioFuncion)+12*(YEAR(BR$18)-YEAR(InicioFuncion))+1,0,IF($E66<=(MONTH(BR$18)-MONTH(InicioFuncion)+12*(YEAR(BR$18)-YEAR(InicioFuncion)))-$D66+IF($D66<>"",1,0),0,IF(BR$17>$B$9+(12*(YEAR(InicioFuncion)-YEAR(InicioObra))+MONTH(InicioFuncion)-MONTH(InicioObra)),0,IF((YEAR($B$8)-YEAR($B$7))*12+(MONTH($B$8)-MONTH($B$7))+$E$16<=BQ$16,$C66))))*HLOOKUP(YEAR(BR$18),$E$3:$Y$5,3,0),0))) -> 40837.33482 | BS66: 40837.33482 | BT66: 40837.33482 | BU66: 40837.33482 | BV66: 0 | BW66: 0 | BX66: 0 | BY66: 0 | BZ66: 0 | CA66: 0 | CB66: 0 | CC66: 0 | CD66: 0 | CE66: 0 | CF66: 0 | CG66: 0 | CH66: 0 | CI66: 0 | CJ66: 0 | CK66: 0 | CL66: 0 | CM66: 0 | CN66: 0 | CO66: 0 | CP66: 0 | CQ66: 0 | CR66: 0 | CS66: 0 | CT66: 0 | CU66: 0 | CV66: 0 | CW66: 0 | CX66: 0 | CY66: 0 | CZ66: 0 | DA66: 0 | DB66: 0 | DC66: 0 | DD66: 0 | DE66: 0 | DF66: 0 | DG66: 0 | DH66: 0 | DI66: 0 | DJ66: 0 | DK66: 0 | DL66: 0 | DM66: 0 | DN66: 0 | DO66: 0 | DP66: 0 | DQ66: 0 | DR66: 0 | DS66: 0 | DT66: 0 | DU66: 0 | DV66: 0 | DW66: 0 | DX66: 0 | DY66: 0 | DZ66: 0 | EA66: 0 | EB66: 0 | EC66: 0 | ED66: =+(IF($A66="","",IF(ED$17>=12+(12*(YEAR(InicioFuncion)-YEAR(InicioObra))+MONTH(InicioFuncion)-MONTH(InicioObra)),IF($D66>MONTH(ED$18)-MONTH(InicioFuncion)+12*(YEAR(ED$18)-YEAR(InicioFuncion))+1,0,IF($E66<=(MONTH(ED$18)-MONTH(InicioFuncion)+12*(YEAR(ED$18)-YEAR(InicioFuncion)))-$D66+IF($D66<>"",1,0),0,IF(ED$17>$B$9+(12*(YEAR(InicioFuncion)-YEAR(InicioObra))+MONTH(InicioFuncion)-MONTH(InicioObra)),0,IF((YEAR($B$8)-YEAR($B$7))*12+(MONTH($B$8)-MONTH($B$7))+$E$16<=EC$16,$C66))))*HLOOKUP(YEAR(ED$18),$E$3:$Y$5,3,0),0))) -> 0 | EE66: 0 | EF66: 0 | EG66: 0 | EH66: 0 | EI66: 0 | EJ66: 0 | EK66: 0 | EL66: 0 | EM66: 0 | EN66: 0 | EO66: 0 | EP66: 0 | EQ66: 0 | ER66: 0 | ES66: 0 | ET66: 0 | EU66: 0 | EV66: 0 | EW66: 0 | EX66: 0 | EY66: 0 | EZ66: 0 | FA66: 0 | FB66: 0 | FC66: 0 | FD66: 0 | FE66: 0 | FF66: 0 | FG66: 0 | FH66: 0 | FI66: 0 | FJ66: 0 | FK66: 0 | FL66: 0 | FM66: 0 | FN66: 0 | FO66: 0 | FP66: 0 | FQ66: 0 | FR66: 0 | FS66: 0 | FT66: 0 | FU66: 0 | FV66: 0 | FW66: 0 | FX66: 0 | FY66: 0 | FZ66: 0 | GA66: 0 | GB66: 0 | GC66: 0 | GD66: 0 | GE66: 0 | GF66: 0 | GG66: 0 | GH66: 0 | GI66: 0 | GJ66: 0 | GK66: 0 | GL66: 0 | GM66: 0 | GN66: 0 | GO66: 0 | GP66: =+(IF($A66="","",IF(GP$17>=12+(12*(YEAR(InicioFuncion)-YEAR(InicioObra))+MONTH(InicioFuncion)-MONTH(InicioObra)),IF($D66>MONTH(GP$18)-MONTH(InicioFuncion)+12*(YEAR(GP$18)-YEAR(InicioFuncion))+1,0,IF($E66<=(MONTH(GP$18)-MONTH(InicioFuncion)+12*(YEAR(GP$18)-YEAR(InicioFuncion)))-$D66+IF($D66<>"",1,0),0,IF(GP$17>$B$9+(12*(YEAR(InicioFuncion)-YEAR(InicioObra))+MONTH(InicioFuncion)-MONTH(InicioObra)),0,IF((YEAR($B$8)-YEAR($B$7))*12+(MONTH($B$8)-MONTH($B$7))+$E$16<=GO$16,$C66))))*HLOOKUP(YEAR(GP$18),$E$3:$Y$5,3,0),0))) -> 0 | GQ66: 0 | GR66: 0 | GS66: 0 | GT66: 0 | GU66: 0 | GV66: 0 | GW66: 0 | GX66: 0 | GY66: 0 | GZ66: 0 | HA66: 0 | HB66: 0 | HC66: 0 | HD66: 0 | HE66: 0 | HF66: 0 | HG66: 0 | HH66: 0 | HI66: 0 | HJ66: 0 | HK66: 0 | HL66: 0 | HM66: 0 | HN66: 0 | HO66: 0 | HP66: 0 | HQ66: 0 | HR66: 0 | HS66: 0 | HT66: 0 | HU66: 0 | HV66: 0 | HW66: 0 | HX66: 0 | HY66: 0 | HZ66: 0 | IA66: 0 | IB66: 0 | IC66: 0 | ID66: 0 | IE66: 0 | IF66: 0 | IG66: 0 | IH66: 0 | II66: 0 | IJ66: 0 | IK66: 0 | IL66: 0 | IM66: OPEX
A67: Mto Podas | C67: =+IF(Tipologia_Campo="FTTH",0,SUMIFS(ValoresMercado,Conceptos,A67,Relacion,DistanciaEnergiaSTD,Tipo,TipoEspecifico,KW_Energia,KW_EnergiaValor)/12) -> 198158.7917 | E67: 60 | F67: =+(IF($A67="","",IF(F$17>=12+(12*(YEAR(InicioFuncion)-YEAR(InicioObra))+MONTH(InicioFuncion)-MONTH(InicioObra)),IF($D67>MONTH(F$18)-MONTH(InicioFuncion)+12*(YEAR(F$18)-YEAR(InicioFuncion))+1,0,IF($E67<=(MONTH(F$18)-MONTH(InicioFuncion)+12*(YEAR(F$18)-YEAR(InicioFuncion)))-$D67+IF($D67<>"",1,0),0,IF(F$17>$B$9+(12*(YEAR(InicioFuncion)-YEAR(InicioObra))+MONTH(InicioFuncion)-MONTH(InicioObra)),0,IF((YEAR($B$8)-YEAR($B$7))*12+(MONTH($B$8)-MONTH($B$7))+$E$16<=E$16,$C67))))*HLOOKUP(YEAR(F$18),$E$3:$Y$5,3,0),0))) -> 0 | G67: 0 | H67: 0 | I67: 0 | J67: 0 | K67: 0 | L67: 0 | M67: 0 | N67: 0 | O67: 0 | P67: 0 | Q67: 0 | R67: 0 | S67: 0 | T67: 0 | U67: 0 | V67: 0 | W67: 0 | X67: 0 | Y67: 0 | Z67: 210226.6621 | AA67: 210226.6621 | AB67: 210226.6621 | AC67: 210226.6621 | AD67: 210226.6621 | AE67: 210226.6621 | AF67: 216533.4619 | AG67: 216533.4619 | AH67: 216533.4619 | AI67: 216533.4619 | AJ67: 216533.4619 | AK67: 216533.4619 | AL67: 216533.4619 | AM67: 216533.4619 | AN67: 216533.4619 | AO67: 216533.4619 | AP67: 216533.4619 | AQ67: 216533.4619 | AR67: 223029.4658 | AS67: 223029.4658 | AT67: 223029.4658 | AU67: 223029.4658 | AV67: 223029.4658 | AW67: 223029.4658 | AX67: 223029.4658 | AY67: 223029.4658 | AZ67: 223029.4658 | BA67: 223029.4658 | BB67: 223029.4658 | BC67: 223029.4658 | BD67: 229720.3498 | BE67: 229720.3498 | BF67: 229720.3498 | BG67: 229720.3498 | BH67: 229720.3498 | BI67: 229720.3498 | BJ67: 229720.3498 | BK67: 229720.3498 | BL67: 229720.3498 | BM67: 229720.3498 | BN67: 229720.3498 | BO67: 229720.3498 | BP67: 236611.9603 | BQ67: 236611.9603 | BR67: =+(IF($A67="","",IF(BR$17>=12+(12*(YEAR(InicioFuncion)-YEAR(InicioObra))+MONTH(InicioFuncion)-MONTH(InicioObra)),IF($D67>MONTH(BR$18)-MONTH(InicioFuncion)+12*(YEAR(BR$18)-YEAR(InicioFuncion))+1,0,IF($E67<=(MONTH(BR$18)-MONTH(InicioFuncion)+12*(YEAR(BR$18)-YEAR(InicioFuncion)))-$D67+IF($D67<>"",1,0),0,IF(BR$17>$B$9+(12*(YEAR(InicioFuncion)-YEAR(InicioObra))+MONTH(InicioFuncion)-MONTH(InicioObra)),0,IF((YEAR($B$8)-YEAR($B$7))*12+(MONTH($B$8)-MONTH($B$7))+$E$16<=BQ$16,$C67))))*HLOOKUP(YEAR(BR$18),$E$3:$Y$5,3,0),0))) -> 236611.9603 | BS67: 236611.9603 | BT67: 236611.9603 | BU67: 236611.9603 | BV67: 0 | BW67: 0 | BX67: 0 | BY67: 0 | BZ67: 0 | CA67: 0 | CB67: 0 | CC67: 0 | CD67: 0 | CE67: 0 | CF67: 0 | CG67: 0 | CH67: 0 | CI67: 0 | CJ67: 0 | CK67: 0 | CL67: 0 | CM67: 0 | CN67: 0 | CO67: 0 | CP67: 0 | CQ67: 0 | CR67: 0 | CS67: 0 | CT67: 0 | CU67: 0 | CV67: 0 | CW67: 0 | CX67: 0 | CY67: 0 | CZ67: 0 | DA67: 0 | DB67: 0 | DC67: 0 | DD67: 0 | DE67: 0 | DF67: 0 | DG67: 0 | DH67: 0 | DI67: 0 | DJ67: 0 | DK67: 0 | DL67: 0 | DM67: 0 | DN67: 0 | DO67: 0 | DP67: 0 | DQ67: 0 | DR67: 0 | DS67: 0 | DT67: 0 | DU67: 0 | DV67: 0 | DW67: 0 | DX67: 0 | DY67: 0 | DZ67: 0 | EA67: 0 | EB67: 0 | EC67: 0 | ED67: =+(IF($A67="","",IF(ED$17>=12+(12*(YEAR(InicioFuncion)-YEAR(InicioObra))+MONTH(InicioFuncion)-MONTH(InicioObra)),IF($D67>MONTH(ED$18)-MONTH(InicioFuncion)+12*(YEAR(ED$18)-YEAR(InicioFuncion))+1,0,IF($E67<=(MONTH(ED$18)-MONTH(InicioFuncion)+12*(YEAR(ED$18)-YEAR(InicioFuncion)))-$D67+IF($D67<>"",1,0),0,IF(ED$17>$B$9+(12*(YEAR(InicioFuncion)-YEAR(InicioObra))+MONTH(InicioFuncion)-MONTH(InicioObra)),0,IF((YEAR($B$8)-YEAR($B$7))*12+(MONTH($B$8)-MONTH($B$7))+$E$16<=EC$16,$C67))))*HLOOKUP(YEAR(ED$18),$E$3:$Y$5,3,0),0))) -> 0 | EE67: 0 | EF67: 0 | EG67: 0 | EH67: 0 | EI67: 0 | EJ67: 0 | EK67: 0 | EL67: 0 | EM67: 0 | EN67: 0 | EO67: 0 | EP67: 0 | EQ67: 0 | ER67: 0 | ES67: 0 | ET67: 0 | EU67: 0 | EV67: 0 | EW67: 0 | EX67: 0 | EY67: 0 | EZ67: 0 | FA67: 0 | FB67: 0 | FC67: 0 | FD67: 0 | FE67: 0 | FF67: 0 | FG67: 0 | FH67: 0 | FI67: 0 | FJ67: 0 | FK67: 0 | FL67: 0 | FM67: 0 | FN67: 0 | FO67: 0 | FP67: 0 | FQ67: 0 | FR67: 0 | FS67: 0 | FT67: 0 | FU67: 0 | FV67: 0 | FW67: 0 | FX67: 0 | FY67: 0 | FZ67: 0 | GA67: 0 | GB67: 0 | GC67: 0 | GD67: 0 | GE67: 0 | GF67: 0 | GG67: 0 | GH67: 0 | GI67: 0 | GJ67: 0 | GK67: 0 | GL67: 0 | GM67: 0 | GN67: 0 | GO67: 0 | GP67: =+(IF($A67="","",IF(GP$17>=12+(12*(YEAR(InicioFuncion)-YEAR(InicioObra))+MONTH(InicioFuncion)-MONTH(InicioObra)),IF($D67>MONTH(GP$18)-MONTH(InicioFuncion)+12*(YEAR(GP$18)-YEAR(InicioFuncion))+1,0,IF($E67<=(MONTH(GP$18)-MONTH(InicioFuncion)+12*(YEAR(GP$18)-YEAR(InicioFuncion)))-$D67+IF($D67<>"",1,0),0,IF(GP$17>$B$9+(12*(YEAR(InicioFuncion)-YEAR(InicioObra))+MONTH(InicioFuncion)-MONTH(InicioObra)),0,IF((YEAR($B$8)-YEAR($B$7))*12+(MONTH($B$8)-MONTH($B$7))+$E$16<=GO$16,$C67))))*HLOOKUP(YEAR(GP$18),$E$3:$Y$5,3,0),0))) -> 0 | GQ67: 0 | GR67: 0 | GS67: 0 | GT67: 0 | GU67: 0 | GV67: 0 | GW67: 0 | GX67: 0 | GY67: 0 | GZ67: 0 | HA67: 0 | HB67: 0 | HC67: 0 | HD67: 0 | HE67: 0 | HF67: 0 | HG67: 0 | HH67: 0 | HI67: 0 | HJ67: 0 | HK67: 0 | HL67: 0 | HM67: 0 | HN67: 0 | HO67: 0 | HP67: 0 | HQ67: 0 | HR67: 0 | HS67: 0 | HT67: 0 | HU67: 0 | HV67: 0 | HW67: 0 | HX67: 0 | HY67: 0 | HZ67: 0 | IA67: 0 | IB67: 0 | IC67: 0 | ID67: 0 | IE67: 0 | IF67: 0 | IG67: 0 | IH67: 0 | II67: 0 | IJ67: 0 | IK67: 0 | IL67: 0 | IM67: OPEX
A68: Mto Red De Mt (Postes, Lar) | C68: =+IF(Tipologia_Campo="FTTH",0,SUMIFS(ValoresMercado,Conceptos,A68,Relacion,DistanciaEnergiaSTD,Tipo,TipoEspecifico,KW_Energia,KW_EnergiaValor)/12) -> 54166.66667 | E68: 60 | F68: =+(IF($A68="","",IF(F$17>=12+(12*(YEAR(InicioFuncion)-YEAR(InicioObra))+MONTH(InicioFuncion)-MONTH(InicioObra)),IF($D68>MONTH(F$18)-MONTH(InicioFuncion)+12*(YEAR(F$18)-YEAR(InicioFuncion))+1,0,IF($E68<=(MONTH(F$18)-MONTH(InicioFuncion)+12*(YEAR(F$18)-YEAR(InicioFuncion)))-$D68+IF($D68<>"",1,0),0,IF(F$17>$B$9+(12*(YEAR(InicioFuncion)-YEAR(InicioObra))+MONTH(InicioFuncion)-MONTH(InicioObra)),0,IF((YEAR($B$8)-YEAR($B$7))*12+(MONTH($B$8)-MONTH($B$7))+$E$16<=E$16,$C68))))*HLOOKUP(YEAR(F$18),$E$3:$Y$5,3,0),0))) -> 0 | G68: 0 | H68: 0 | I68: 0 | J68: 0 | K68: 0 | L68: 0 | M68: 0 | N68: 0 | O68: 0 | P68: 0 | Q68: 0 | R68: 0 | S68: 0 | T68: 0 | U68: 0 | V68: 0 | W68: 0 | X68: 0 | Y68: 0 | Z68: 57465.41667 | AA68: 57465.41667 | AB68: 57465.41667 | AC68: 57465.41667 | AD68: 57465.41667 | AE68: 57465.41667 | AF68: 59189.37917 | AG68: 59189.37917 | AH68: 59189.37917 | AI68: 59189.37917 | AJ68: 59189.37917 | AK68: 59189.37917 | AL68: 59189.37917 | AM68: 59189.37917 | AN68: 59189.37917 | AO68: 59189.37917 | AP68: 59189.37917 | AQ68: 59189.37917 | AR68: 60965.06054 | AS68: 60965.06054 | AT68: 60965.06054 | AU68: 60965.06054 | AV68: 60965.06054 | AW68: 60965.06054 | AX68: 60965.06054 | AY68: 60965.06054 | AZ68: 60965.06054 | BA68: 60965.06054 | BB68: 60965.06054 | BC68: 60965.06054 | BD68: 62794.01236 | BE68: 62794.01236 | BF68: 62794.01236 | BG68: 62794.01236 | BH68: 62794.01236 | BI68: 62794.01236 | BJ68: 62794.01236 | BK68: 62794.01236 | BL68: 62794.01236 | BM68: 62794.01236 | BN68: 62794.01236 | BO68: 62794.01236 | BP68: 64677.83273 | BQ68: 64677.83273 | BR68: =+(IF($A68="","",IF(BR$17>=12+(12*(YEAR(InicioFuncion)-YEAR(InicioObra))+MONTH(InicioFuncion)-MONTH(InicioObra)),IF($D68>MONTH(BR$18)-MONTH(InicioFuncion)+12*(YEAR(BR$18)-YEAR(InicioFuncion))+1,0,IF($E68<=(MONTH(BR$18)-MONTH(InicioFuncion)+12*(YEAR(BR$18)-YEAR(InicioFuncion)))-$D68+IF($D68<>"",1,0),0,IF(BR$17>$B$9+(12*(YEAR(InicioFuncion)-YEAR(InicioObra))+MONTH(InicioFuncion)-MONTH(InicioObra)),0,IF((YEAR($B$8)-YEAR($B$7))*12+(MONTH($B$8)-MONTH($B$7))+$E$16<=BQ$16,$C68))))*HLOOKUP(YEAR(BR$18),$E$3:$Y$5,3,0),0))) -> 64677.83273 | BS68: 64677.83273 | BT68: 64677.83273 | BU68: 64677.83273 | BV68: 0 | BW68: 0 | BX68: 0 | BY68: 0 | BZ68: 0 | CA68: 0 | CB68: 0 | CC68: 0 | CD68: 0 | CE68: 0 | CF68: 0 | CG68: 0 | CH68: 0 | CI68: 0 | CJ68: 0 | CK68: 0 | CL68: 0 | CM68: 0 | CN68: 0 | CO68: 0 | CP68: 0 | CQ68: 0 | CR68: 0 | CS68: 0 | CT68: 0 | CU68: 0 | CV68: 0 | CW68: 0 | CX68: 0 | CY68: 0 | CZ68: 0 | DA68: 0 | DB68: 0 | DC68: 0 | DD68: 0 | DE68: 0 | DF68: 0 | DG68: 0 | DH68: 0 | DI68: 0 | DJ68: 0 | DK68: 0 | DL68: 0 | DM68: 0 | DN68: 0 | DO68: 0 | DP68: 0 | DQ68: 0 | DR68: 0 | DS68: 0 | DT68: 0 | DU68: 0 | DV68: 0 | DW68: 0 | DX68: 0 | DY68: 0 | DZ68: 0 | EA68: 0 | EB68: 0 | EC68: 0 | ED68: =+(IF($A68="","",IF(ED$17>=12+(12*(YEAR(InicioFuncion)-YEAR(InicioObra))+MONTH(InicioFuncion)-MONTH(InicioObra)),IF($D68>MONTH(ED$18)-MONTH(InicioFuncion)+12*(YEAR(ED$18)-YEAR(InicioFuncion))+1,0,IF($E68<=(MONTH(ED$18)-MONTH(InicioFuncion)+12*(YEAR(ED$18)-YEAR(InicioFuncion)))-$D68+IF($D68<>"",1,0),0,IF(ED$17>$B$9+(12*(YEAR(InicioFuncion)-YEAR(InicioObra))+MONTH(InicioFuncion)-MONTH(InicioObra)),0,IF((YEAR($B$8)-YEAR($B$7))*12+(MONTH($B$8)-MONTH($B$7))+$E$16<=EC$16,$C68))))*HLOOKUP(YEAR(ED$18),$E$3:$Y$5,3,0),0))) -> 0 | EE68: 0 | EF68: 0 | EG68: 0 | EH68: 0 | EI68: 0 | EJ68: 0 | EK68: 0 | EL68: 0 | EM68: 0 | EN68: 0 | EO68: 0 | EP68: 0 | EQ68: 0 | ER68: 0 | ES68: 0 | ET68: 0 | EU68: 0 | EV68: 0 | EW68: 0 | EX68: 0 | EY68: 0 | EZ68: 0 | FA68: 0 | FB68: 0 | FC68: 0 | FD68: 0 | FE68: 0 | FF68: 0 | FG68: 0 | FH68: 0 | FI68: 0 | FJ68: 0 | FK68: 0 | FL68: 0 | FM68: 0 | FN68: 0 | FO68: 0 | FP68: 0 | FQ68: 0 | FR68: 0 | FS68: 0 | FT68: 0 | FU68: 0 | FV68: 0 | FW68: 0 | FX68: 0 | FY68: 0 | FZ68: 0 | GA68: 0 | GB68: 0 | GC68: 0 | GD68: 0 | GE68: 0 | GF68: 0 | GG68: 0 | GH68: 0 | GI68: 0 | GJ68: 0 | GK68: 0 | GL68: 0 | GM68: 0 | GN68: 0 | GO68: 0 | GP68: =+(IF($A68="","",IF(GP$17>=12+(12*(YEAR(InicioFuncion)-YEAR(InicioObra))+MONTH(InicioFuncion)-MONTH(InicioObra)),IF($D68>MONTH(GP$18)-MONTH(InicioFuncion)+12*(YEAR(GP$18)-YEAR(InicioFuncion))+1,0,IF($E68<=(MONTH(GP$18)-MONTH(InicioFuncion)+12*(YEAR(GP$18)-YEAR(InicioFuncion)))-$D68+IF($D68<>"",1,0),0,IF(GP$17>$B$9+(12*(YEAR(InicioFuncion)-YEAR(InicioObra))+MONTH(InicioFuncion)-MONTH(InicioObra)),0,IF((YEAR($B$8)-YEAR($B$7))*12+(MONTH($B$8)-MONTH($B$7))+$E$16<=GO$16,$C68))))*HLOOKUP(YEAR(GP$18),$E$3:$Y$5,3,0),0))) -> 0 | GQ68: 0 | GR68: 0 | GS68: 0 | GT68: 0 | GU68: 0 | GV68: 0 | GW68: 0 | GX68: 0 | GY68: 0 | GZ68: 0 | HA68: 0 | HB68: 0 | HC68: 0 | HD68: 0 | HE68: 0 | HF68: 0 | HG68: 0 | HH68: 0 | HI68: 0 | HJ68: 0 | HK68: 0 | HL68: 0 | HM68: 0 | HN68: 0 | HO68: 0 | HP68: 0 | HQ68: 0 | HR68: 0 | HS68: 0 | HT68: 0 | HU68: 0 | HV68: 0 | HW68: 0 | HX68: 0 | HY68: 0 | HZ68: 0 | IA68: 0 | IB68: 0 | IC68: 0 | ID68: 0 | IE68: 0 | IF68: 0 | IG68: 0 | IH68: 0 | II68: 0 | IJ68: 0 | IK68: 0 | IL68: 0 | IM68: OPEX
A69: Mto Transformador | C69: =+IF(Tipologia_Campo="FTTH",0,SUMIFS(ValoresMercado,Conceptos,A69,Relacion,DistanciaEnergiaSTD,Tipo,TipoEspecifico,KW_Energia,KW_EnergiaValor)/12) -> 188796.8333 | E69: 60 | F69: =+(IF($A69="","",IF(F$17>=12+(12*(YEAR(InicioFuncion)-YEAR(InicioObra))+MONTH(InicioFuncion)-MONTH(InicioObra)),IF($D69>MONTH(F$18)-MONTH(InicioFuncion)+12*(YEAR(F$18)-YEAR(InicioFuncion))+1,0,IF($E69<=(MONTH(F$18)-MONTH(InicioFuncion)+12*(YEAR(F$18)-YEAR(InicioFuncion)))-$D69+IF($D69<>"",1,0),0,IF(F$17>$B$9+(12*(YEAR(InicioFuncion)-YEAR(InicioObra))+MONTH(InicioFuncion)-MONTH(InicioObra)),0,IF((YEAR($B$8)-YEAR($B$7))*12+(MONTH($B$8)-MONTH($B$7))+$E$16<=E$16,$C69))))*HLOOKUP(YEAR(F$18),$E$3:$Y$5,3,0),0))) -> 0 | G69: 0 | H69: 0 | I69: 0 | J69: 0 | K69: 0 | L69: 0 | M69: 0 | N69: 0 | O69: 0 | P69: 0 | Q69: 0 | R69: 0 | S69: 0 | T69: 0 | U69: 0 | V69: 0 | W69: 0 | X69: 0 | Y69: 0 | Z69: 200294.5605 | AA69: 200294.5605 | AB69: 200294.5605 | AC69: 200294.5605 | AD69: 200294.5605 | AE69: 200294.5605 | AF69: 206303.3973 | AG69: 206303.3973 | AH69: 206303.3973 | AI69: 206303.3973 | AJ69: 206303.3973 | AK69: 206303.3973 | AL69: 206303.3973 | AM69: 206303.3973 | AN69: 206303.3973 | AO69: 206303.3973 | AP69: 206303.3973 | AQ69: 206303.3973 | AR69: 212492.4992 | AS69: 212492.4992 | AT69: 212492.4992 | AU69: 212492.4992 | AV69: 212492.4992 | AW69: 212492.4992 | AX69: 212492.4992 | AY69: 212492.4992 | AZ69: 212492.4992 | BA69: 212492.4992 | BB69: 212492.4992 | BC69: 212492.4992 | BD69: 218867.2742 | BE69: 218867.2742 | BF69: 218867.2742 | BG69: 218867.2742 | BH69: 218867.2742 | BI69: 218867.2742 | BJ69: 218867.2742 | BK69: 218867.2742 | BL69: 218867.2742 | BM69: 218867.2742 | BN69: 218867.2742 | BO69: 218867.2742 | BP69: 225433.2924 | BQ69: 225433.2924 | BR69: =+(IF($A69="","",IF(BR$17>=12+(12*(YEAR(InicioFuncion)-YEAR(InicioObra))+MONTH(InicioFuncion)-MONTH(InicioObra)),IF($D69>MONTH(BR$18)-MONTH(InicioFuncion)+12*(YEAR(BR$18)-YEAR(InicioFuncion))+1,0,IF($E69<=(MONTH(BR$18)-MONTH(InicioFuncion)+12*(YEAR(BR$18)-YEAR(InicioFuncion)))-$D69+IF($D69<>"",1,0),0,IF(BR$17>$B$9+(12*(YEAR(InicioFuncion)-YEAR(InicioObra))+MONTH(InicioFuncion)-MONTH(InicioObra)),0,IF((YEAR($B$8)-YEAR($B$7))*12+(MONTH($B$8)-MONTH($B$7))+$E$16<=BQ$16,$C69))))*HLOOKUP(YEAR(BR$18),$E$3:$Y$5,3,0),0))) -> 225433.2924 | BS69: 225433.2924 | BT69: 225433.2924 | BU69: 225433.2924 | BV69: 0 | BW69: 0 | BX69: 0 | BY69: 0 | BZ69: 0 | CA69: 0 | CB69: 0 | CC69: 0 | CD69: 0 | CE69: 0 | CF69: 0 | CG69: 0 | CH69: 0 | CI69: 0 | CJ69: 0 | CK69: 0 | CL69: 0 | CM69: 0 | CN69: 0 | CO69: 0 | CP69: 0 | CQ69: 0 | CR69: 0 | CS69: 0 | CT69: 0 | CU69: 0 | CV69: 0 | CW69: 0 | CX69: 0 | CY69: 0 | CZ69: 0 | DA69: 0 | DB69: 0 | DC69: 0 | DD69: 0 | DE69: 0 | DF69: 0 | DG69: 0 | DH69: 0 | DI69: 0 | DJ69: 0 | DK69: 0 | DL69: 0 | DM69: 0 | DN69: 0 | DO69: 0 | DP69: 0 | DQ69: 0 | DR69: 0 | DS69: 0 | DT69: 0 | DU69: 0 | DV69: 0 | DW69: 0 | DX69: 0 | DY69: 0 | DZ69: 0 | EA69: 0 | EB69: 0 | EC69: 0 | ED69: =+(IF($A69="","",IF(ED$17>=12+(12*(YEAR(InicioFuncion)-YEAR(InicioObra))+MONTH(InicioFuncion)-MONTH(InicioObra)),IF($D69>MONTH(ED$18)-MONTH(InicioFuncion)+12*(YEAR(ED$18)-YEAR(InicioFuncion))+1,0,IF($E69<=(MONTH(ED$18)-MONTH(InicioFuncion)+12*(YEAR(ED$18)-YEAR(InicioFuncion)))-$D69+IF($D69<>"",1,0),0,IF(ED$17>$B$9+(12*(YEAR(InicioFuncion)-YEAR(InicioObra))+MONTH(InicioFuncion)-MONTH(InicioObra)),0,IF((YEAR($B$8)-YEAR($B$7))*12+(MONTH($B$8)-MONTH($B$7))+$E$16<=EC$16,$C69))))*HLOOKUP(YEAR(ED$18),$E$3:$Y$5,3,0),0))) -> 0 | EE69: 0 | EF69: 0 | EG69: 0 | EH69: 0 | EI69: 0 | EJ69: 0 | EK69: 0 | EL69: 0 | EM69: 0 | EN69: 0 | EO69: 0 | EP69: 0 | EQ69: 0 | ER69: 0 | ES69: 0 | ET69: 0 | EU69: 0 | EV69: 0 | EW69: 0 | EX69: 0 | EY69: 0 | EZ69: 0 | FA69: 0 | FB69: 0 | FC69: 0 | FD69: 0 | FE69: 0 | FF69: 0 | FG69: 0 | FH69: 0 | FI69: 0 | FJ69: 0 | FK69: 0 | FL69: 0 | FM69: 0 | FN69: 0 | FO69: 0 | FP69: 0 | FQ69: 0 | FR69: 0 | FS69: 0 | FT69: 0 | FU69: 0 | FV69: 0 | FW69: 0 | FX69: 0 | FY69: 0 | FZ69: 0 | GA69: 0 | GB69: 0 | GC69: 0 | GD69: 0 | GE69: 0 | GF69: 0 | GG69: 0 | GH69: 0 | GI69: 0 | GJ69: 0 | GK69: 0 | GL69: 0 | GM69: 0 | GN69: 0 | GO69: 0 | GP69: =+(IF($A69="","",IF(GP$17>=12+(12*(YEAR(InicioFuncion)-YEAR(InicioObra))+MONTH(InicioFuncion)-MONTH(InicioObra)),IF($D69>MONTH(GP$18)-MONTH(InicioFuncion)+12*(YEAR(GP$18)-YEAR(InicioFuncion))+1,0,IF($E69<=(MONTH(GP$18)-MONTH(InicioFuncion)+12*(YEAR(GP$18)-YEAR(InicioFuncion)))-$D69+IF($D69<>"",1,0),0,IF(GP$17>$B$9+(12*(YEAR(InicioFuncion)-YEAR(InicioObra))+MONTH(InicioFuncion)-MONTH(InicioObra)),0,IF((YEAR($B$8)-YEAR($B$7))*12+(MONTH($B$8)-MONTH($B$7))+$E$16<=GO$16,$C69))))*HLOOKUP(YEAR(GP$18),$E$3:$Y$5,3,0),0))) -> 0 | GQ69: 0 | GR69: 0 | GS69: 0 | GT69: 0 | GU69: 0 | GV69: 0 | GW69: 0 | GX69: 0 | GY69: 0 | GZ69: 0 | HA69: 0 | HB69: 0 | HC69: 0 | HD69: 0 | HE69: 0 | HF69: 0 | HG69: 0 | HH69: 0 | HI69: 0 | HJ69: 0 | HK69: 0 | HL69: 0 | HM69: 0 | HN69: 0 | HO69: 0 | HP69: 0 | HQ69: 0 | HR69: 0 | HS69: 0 | HT69: 0 | HU69: 0 | HV69: 0 | HW69: 0 | HX69: 0 | HY69: 0 | HZ69: 0 | IA69: 0 | IB69: 0 | IC69: 0 | ID69: 0 | IE69: 0 | IF69: 0 | IG69: 0 | IH69: 0 | II69: 0 | IJ69: 0 | IK69: 0 | IL69: 0 | IM69: OPEX
A70: =+"Terreno "&Tipo_Terreno&" - "&"Tramite conexión y permisos" -> Terreno Plano - Tramite conexión y permisos | B70: =+IF(ArrendamientoInfraestructura="S",0,IF(Tipologia_Campo="FTTH",0,SUMIFS(ValoresMercado,Conceptos,A70,Relacion,DistanciaEnergiaSTD,Tipo,TipoEspecifico,Terreno_Energia,Tipo_Terreno,KW_Energia,KW_EnergiaValor))) -> 1223235.042 | E70: 60 | F70: =+IF($A70="","",IF($D70=F$17,$B70+IF(MONTH($B$8)-MONTH($B$7)+$E$16=E$16,$C70,0),0)) -> 1223235.042 | G70: 0 | H70: 0 | I70: 0 | J70: 0 | K70: 0 | L70: 0 | M70: 0 | N70: 0 | O70: 0 | P70: 0 | Q70: 0 | R70: 0 | S70: 0 | T70: 0 | U70: 0 | V70: 0 | W70: 0 | X70: 0 | Y70: 0 | Z70: 0 | AA70: 0 | AB70: 0 | AC70: 0 | AD70: 0 | AE70: 0 | AF70: 0 | AG70: 0 | AH70: 0 | AI70: 0 | AJ70: 0 | AK70: 0 | AL70: =+IF($A70="","",IF($D70=AL$17,$B70+IF(MONTH($B$8)-MONTH($B$7)+$E$16=AK$16,$C70,0),0)) -> 0 | AM70: 0 | AN70: 0 | AO70: 0 | AP70: 0 | AQ70: 0 | AR70: 0 | AS70: 0 | AT70: 0 | AU70: 0 | AV70: 0 | AW70: 0 | AX70: 0 | AY70: 0 | AZ70: 0 | BA70: 0 | BB70: 0 | BC70: 0 | BD70: 0 | BE70: 0 | BF70: 0 | BG70: 0 | BH70: 0 | BI70: 0 | BJ70: 0 | BK70: 0 | BL70: 0 | BM70: 0 | BN70: 0 | BO70: 0 | BP70: 0 | BQ70: 0 | BR70: =+IF($A70="","",IF($D70=BR$17,$B70+IF(MONTH($B$8)-MONTH($B$7)+$E$16=BQ$16,$C70,0),0)) -> 0 | BS70: 0 | BT70: 0 | BU70: 0 | BV70: 0 | BW70: 0 | BX70: 0 | BY70: 0 | BZ70: 0 | CA70: 0 | CB70: 0 | CC70: 0 | CD70: 0 | CE70: 0 | CF70: 0 | CG70: 0 | CH70: 0 | CI70: 0 | CJ70: 0 | CK70: 0 | CL70: 0 | CM70: 0 | CN70: 0 | CO70: 0 | CP70: 0 | CQ70: 0 | CR70: 0 | CS70: 0 | CT70: 0 | CU70: 0 | CV70: 0 | CW70: 0 | CX70: =+IF($A70="","",IF($D70=CX$17,$B70+IF(MONTH($B$8)-MONTH($B$7)+$E$16=CW$16,$C70,0),0)) -> 0 | CY70: 0 | CZ70: 0 | DA70: 0 | DB70: 0 | DC70: 0 | DD70: 0 | DE70: 0 | DF70: 0 | DG70: 0 | DH70: 0 | DI70: 0 | DJ70: 0 | DK70: 0 | DL70: 0 | DM70: 0 | DN70: 0 | DO70: 0 | DP70: 0 | DQ70: 0 | DR70: 0 | DS70: 0 | DT70: 0 | DU70: 0 | DV70: =+IF($A70="","",IF($D70=DV$17,$B70+IF(MONTH($B$8)-MONTH($B$7)+$E$16=DU$16,$C70,0),0)) -> 0 | DW70: =+IF($A70="","",IF($D70=DW$17,$B70+IF(MONTH($B$8)-MONTH($B$7)+$E$16=DV$16,$C70,0),0)) -> 0 | DX70: =+IF($A70="","",IF($D70=DX$17,$B70+IF(MONTH($B$8)-MONTH($B$7)+$E$16=DW$16,$C70,0),0)) -> 0 | DY70: =+IF($A70="","",IF($D70=DY$17,$B70+IF(MONTH($B$8)-MONTH($B$7)+$E$16=DX$16,$C70,0),0)) -> 0 | DZ70: =+IF($A70="","",IF($D70=DZ$17,$B70+IF(MONTH($B$8)-MONTH($B$7)+$E$16=DY$16,$C70,0),0)) -> 0 | EA70: =+IF($A70="","",IF($D70=EA$17,$B70+IF(MONTH($B$8)-MONTH($B$7)+$E$16=DZ$16,$C70,0),0)) -> 0 | EB70: =+IF($A70="","",IF($D70=EB$17,$B70+IF(MONTH($B$8)-MONTH($B$7)+$E$16=EA$16,$C70,0),0)) -> 0 | EC70: =+IF($A70="","",IF($D70=EC$17,$B70+IF(MONTH($B$8)-MONTH($B$7)+$E$16=EB$16,$C70,0),0)) -> 0 | ED70: =+IF($A70="","",IF($D70=ED$17,$B70+IF(MONTH($B$8)-MONTH($B$7)+$E$16=EC$16,$C70,0),0)) -> 0 | EE70: =+IF($A70="","",IF($D70=EE$17,$B70+IF(MONTH($B$8)-MONTH($B$7)+$E$16=ED$16,$C70,0),0)) -> 0 | EF70: =+IF($A70="","",IF($D70=EF$17,$B70+IF(MONTH($B$8)-MONTH($B$7)+$E$16=EE$16,$C70,0),0)) -> 0 | EG70: =+IF($A70="","",IF($D70=EG$17,$B70+IF(MONTH($B$8)-MONTH($B$7)+$E$16=EF$16,$C70,0),0)) -> 0 | EH70: =+IF($A70="","",IF($D70=EH$17,$B70+IF(MONTH($B$8)-MONTH($B$7)+$E$16=EG$16,$C70,0),0)) -> 0 | EI70: =+IF($A70="","",IF($D70=EI$17,$B70+IF(MONTH($B$8)-MONTH($B$7)+$E$16=EH$16,$C70,0),0)) -> 0 | EJ70: =+IF($A70="","",IF($D70=EJ$17,$B70+IF(MONTH($B$8)-MONTH($B$7)+$E$16=EI$16,$C70,0),0)) -> 0 | EK70: =+IF($A70="","",IF($D70=EK$17,$B70+IF(MONTH($B$8)-MONTH($B$7)+$E$16=EJ$16,$C70,0),0)) -> 0 | EL70: =+IF($A70="","",IF($D70=EL$17,$B70+IF(MONTH($B$8)-MONTH($B$7)+$E$16=EK$16,$C70,0),0)) -> 0 | EM70: =+IF($A70="","",IF($D70=EM$17,$B70+IF(MONTH($B$8)-MONTH($B$7)+$E$16=EL$16,$C70,0),0)) -> 0 | EN70: =+IF($A70="","",IF($D70=EN$17,$B70+IF(MONTH($B$8)-MONTH($B$7)+$E$16=EM$16,$C70,0),0)) -> 0 | EO70: =+IF($A70="","",IF($D70=EO$17,$B70+IF(MONTH($B$8)-MONTH($B$7)+$E$16=EN$16,$C70,0),0)) -> 0 | EP70: =+IF($A70="","",IF($D70=EP$17,$B70+IF(MONTH($B$8)-MONTH($B$7)+$E$16=EO$16,$C70,0),0)) -> 0 | EQ70: =+IF($A70="","",IF($D70=EQ$17,$B70+IF(MONTH($B$8)-MONTH($B$7)+$E$16=EP$16,$C70,0),0)) -> 0 | ER70: =+IF($A70="","",IF($D70=ER$17,$B70+IF(MONTH($B$8)-MONTH($B$7)+$E$16=EQ$16,$C70,0),0)) -> 0 | ES70: =+IF($A70="","",IF($D70=ES$17,$B70+IF(MONTH($B$8)-MONTH($B$7)+$E$16=ER$16,$C70,0),0)) -> 0 | ET70: =+IF($A70="","",IF($D70=ET$17,$B70+IF(MONTH($B$8)-MONTH($B$7)+$E$16=ES$16,$C70,0),0)) -> 0 | EU70: =+IF($A70="","",IF($D70=EU$17,$B70+IF(MONTH($B$8)-MONTH($B$7)+$E$16=ET$16,$C70,0),0)) -> 0 | EV70: =+IF($A70="","",IF($D70=EV$17,$B70+IF(MONTH($B$8)-MONTH($B$7)+$E$16=EU$16,$C70,0),0)) -> 0 | EW70: =+IF($A70="","",IF($D70=EW$17,$B70+IF(MONTH($B$8)-MONTH($B$7)+$E$16=EV$16,$C70,0),0)) -> 0 | EX70: =+IF($A70="","",IF($D70=EX$17,$B70+IF(MONTH($B$8)-MONTH($B$7)+$E$16=EW$16,$C70,0),0)) -> 0 | EY70: =+IF($A70="","",IF($D70=EY$17,$B70+IF(MONTH($B$8)-MONTH($B$7)+$E$16=EX$16,$C70,0),0)) -> 0 | EZ70: =+IF($A70="","",IF($D70=EZ$17,$B70+IF(MONTH($B$8)-MONTH($B$7)+$E$16=EY$16,$C70,0),0)) -> 0 | FA70: =+IF($A70="","",IF($D70=FA$17,$B70+IF(MONTH($B$8)-MONTH($B$7)+$E$16=EZ$16,$C70,0),0)) -> 0 | FB70: =+IF($A70="","",IF($D70=FB$17,$B70+IF(MONTH($B$8)-MONTH($B$7)+$E$16=FA$16,$C70,0),0)) -> 0 | FC70: =+IF($A70="","",IF($D70=FC$17,$B70+IF(MONTH($B$8)-MONTH($B$7)+$E$16=FB$16,$C70,0),0)) -> 0 | FD70: =+IF($A70="","",IF($D70=FD$17,$B70+IF(MONTH($B$8)-MONTH($B$7)+$E$16=FC$16,$C70,0),0)) -> 0 | FE70: =+IF($A70="","",IF($D70=FE$17,$B70+IF(MONTH($B$8)-MONTH($B$7)+$E$16=FD$16,$C70,0),0)) -> 0 | FF70: =+IF($A70="","",IF($D70=FF$17,$B70+IF(MONTH($B$8)-MONTH($B$7)+$E$16=FE$16,$C70,0),0)) -> 0 | FG70: =+IF($A70="","",IF($D70=FG$17,$B70+IF(MONTH($B$8)-MONTH($B$7)+$E$16=FF$16,$C70,0),0)) -> 0 | FH70: =+IF($A70="","",IF($D70=FH$17,$B70+IF(MONTH($B$8)-MONTH($B$7)+$E$16=FG$16,$C70,0),0)) -> 0 | FI70: =+IF($A70="","",IF($D70=FI$17,$B70+IF(MONTH($B$8)-MONTH($B$7)+$E$16=FH$16,$C70,0),0)) -> 0 | FJ70: =+IF($A70="","",IF($D70=FJ$17,$B70+IF(MONTH($B$8)-MONTH($B$7)+$E$16=FI$16,$C70,0),0)) -> 0 | FK70: =+IF($A70="","",IF($D70=FK$17,$B70+IF(MONTH($B$8)-MONTH($B$7)+$E$16=FJ$16,$C70,0),0)) -> 0 | FL70: =+IF($A70="","",IF($D70=FL$17,$B70+IF(MONTH($B$8)-MONTH($B$7)+$E$16=FK$16,$C70,0),0)) -> 0 | FM70: =+IF($A70="","",IF($D70=FM$17,$B70+IF(MONTH($B$8)-MONTH($B$7)+$E$16=FL$16,$C70,0),0)) -> 0 | FN70: =+IF($A70="","",IF($D70=FN$17,$B70+IF(MONTH($B$8)-MONTH($B$7)+$E$16=FM$16,$C70,0),0)) -> 0 | FO70: =+IF($A70="","",IF($D70=FO$17,$B70+IF(MONTH($B$8)-MONTH($B$7)+$E$16=FN$16,$C70,0),0)) -> 0 | FP70: =+IF($A70="","",IF($D70=FP$17,$B70+IF(MONTH($B$8)-MONTH($B$7)+$E$16=FO$16,$C70,0),0)) -> 0 | FQ70: =+IF($A70="","",IF($D70=FQ$17,$B70+IF(MONTH($B$8)-MONTH($B$7)+$E$16=FP$16,$C70,0),0)) -> 0 | FR70: =+IF($A70="","",IF($D70=FR$17,$B70+IF(MONTH($B$8)-MONTH($B$7)+$E$16=FQ$16,$C70,0),0)) -> 0 | FS70: =+IF($A70="","",IF($D70=FS$17,$B70+IF(MONTH($B$8)-MONTH($B$7)+$E$16=FR$16,$C70,0),0)) -> 0 | FT70: =+IF($A70="","",IF($D70=FT$17,$B70+IF(MONTH($B$8)-MONTH($B$7)+$E$16=FS$16,$C70,0),0)) -> 0 | FU70: =+IF($A70="","",IF($D70=FU$17,$B70+IF(MONTH($B$8)-MONTH($B$7)+$E$16=FT$16,$C70,0),0)) -> 0 | FV70: =+IF($A70="","",IF($D70=FV$17,$B70+IF(MONTH($B$8)-MONTH($B$7)+$E$16=FU$16,$C70,0),0)) -> 0 | FW70: =+IF($A70="","",IF($D70=FW$17,$B70+IF(MONTH($B$8)-MONTH($B$7)+$E$16=FV$16,$C70,0),0)) -> 0 | FX70: =+IF($A70="","",IF($D70=FX$17,$B70+IF(MONTH($B$8)-MONTH($B$7)+$E$16=FW$16,$C70,0),0)) -> 0 | FY70: =+IF($A70="","",IF($D70=FY$17,$B70+IF(MONTH($B$8)-MONTH($B$7)+$E$16=FX$16,$C70,0),0)) -> 0 | FZ70: =+IF($A70="","",IF($D70=FZ$17,$B70+IF(MONTH($B$8)-MONTH($B$7)+$E$16=FY$16,$C70,0),0)) -> 0 | GA70: =+IF($A70="","",IF($D70=GA$17,$B70+IF(MONTH($B$8)-MONTH($B$7)+$E$16=FZ$16,$C70,0),0)) -> 0 | GB70: =+IF($A70="","",IF($D70=GB$17,$B70+IF(MONTH($B$8)-MONTH($B$7)+$E$16=GA$16,$C70,0),0)) -> 0 | GC70: =+IF($A70="","",IF($D70=GC$17,$B70+IF(MONTH($B$8)-MONTH($B$7)+$E$16=GB$16,$C70,0),0)) -> 0 | GD70: =+IF($A70="","",IF($D70=GD$17,$B70+IF(MONTH($B$8)-MONTH($B$7)+$E$16=GC$16,$C70,0),0)) -> 0 | GE70: =+IF($A70="","",IF($D70=GE$17,$B70+IF(MONTH($B$8)-MONTH($B$7)+$E$16=GD$16,$C70,0),0)) -> 0 | GF70: =+IF($A70="","",IF($D70=GF$17,$B70+IF(MONTH($B$8)-MONTH($B$7)+$E$16=GE$16,$C70,0),0)) -> 0 | GG70: =+IF($A70="","",IF($D70=GG$17,$B70+IF(MONTH($B$8)-MONTH($B$7)+$E$16=GF$16,$C70,0),0)) -> 0 | GH70: =+IF($A70="","",IF($D70=GH$17,$B70+IF(MONTH($B$8)-MONTH($B$7)+$E$16=GG$16,$C70,0),0)) -> 0 | GI70: =+IF($A70="","",IF($D70=GI$17,$B70+IF(MONTH($B$8)-MONTH($B$7)+$E$16=GH$16,$C70,0),0)) -> 0 | GJ70: =+IF($A70="","",IF($D70=GJ$17,$B70+IF(MONTH($B$8)-MONTH($B$7)+$E$16=GI$16,$C70,0),0)) -> 0 | GK70: =+IF($A70="","",IF($D70=GK$17,$B70+IF(MONTH($B$8)-MONTH($B$7)+$E$16=GJ$16,$C70,0),0)) -> 0 | GL70: =+IF($A70="","",IF($D70=GL$17,$B70+IF(MONTH($B$8)-MONTH($B$7)+$E$16=GK$16,$C70,0),0)) -> 0 | GM70: =+IF($A70="","",IF($D70=GM$17,$B70+IF(MONTH($B$8)-MONTH($B$7)+$E$16=GL$16,$C70,0),0)) -> 0 | GN70: =+IF($A70="","",IF($D70=GN$17,$B70+IF(MONTH($B$8)-MONTH($B$7)+$E$16=GM$16,$C70,0),0)) -> 0 | GO70: =+IF($A70="","",IF($D70=GO$17,$B70+IF(MONTH($B$8)-MONTH($B$7)+$E$16=GN$16,$C70,0),0)) -> 0 | GP70: =+IF($A70="","",IF($D70=GP$17,$B70+IF(MONTH($B$8)-MONTH($B$7)+$E$16=GO$16,$C70,0),0)) -> 0 | GQ70: =+IF($A70="","",IF($D70=GQ$17,$B70+IF(MONTH($B$8)-MONTH($B$7)+$E$16=GP$16,$C70,0),0)) -> 0 | GR70: =+IF($A70="","",IF($D70=GR$17,$B70+IF(MONTH($B$8)-MONTH($B$7)+$E$16=GQ$16,$C70,0),0)) -> 0 | GS70: =+IF($A70="","",IF($D70=GS$17,$B70+IF(MONTH($B$8)-MONTH($B$7)+$E$16=GR$16,$C70,0),0)) -> 0 | GT70: =+IF($A70="","",IF($D70=GT$17,$B70+IF(MONTH($B$8)-MONTH($B$7)+$E$16=GS$16,$C70,0),0)) -> 0 | GU70: =+IF($A70="","",IF($D70=GU$17,$B70+IF(MONTH($B$8)-MONTH($B$7)+$E$16=GT$16,$C70,0),0)) -> 0 | GV70: =+IF($A70="","",IF($D70=GV$17,$B70+IF(MONTH($B$8)-MONTH($B$7)+$E$16=GU$16,$C70,0),0)) -> 0 | GW70: =+IF($A70="","",IF($D70=GW$17,$B70+IF(MONTH($B$8)-MONTH($B$7)+$E$16=GV$16,$C70,0),0)) -> 0 | GX70: =+IF($A70="","",IF($D70=GX$17,$B70+IF(MONTH($B$8)-MONTH($B$7)+$E$16=GW$16,$C70,0),0)) -> 0 | GY70: =+IF($A70="","",IF($D70=GY$17,$B70+IF(MONTH($B$8)-MONTH($B$7)+$E$16=GX$16,$C70,0),0)) -> 0 | GZ70: =+IF($A70="","",IF($D70=GZ$17,$B70+IF(MONTH($B$8)-MONTH($B$7)+$E$16=GY$16,$C70,0),0)) -> 0 | HA70: =+IF($A70="","",IF($D70=HA$17,$B70+IF(MONTH($B$8)-MONTH($B$7)+$E$16=GZ$16,$C70,0),0)) -> 0 | HB70: =+IF($A70="","",IF($D70=HB$17,$B70+IF(MONTH($B$8)-MONTH($B$7)+$E$16=HA$16,$C70,0),0)) -> 0 | HC70: =+IF($A70="","",IF($D70=HC$17,$B70+IF(MONTH($B$8)-MONTH($B$7)+$E$16=HB$16,$C70,0),0)) -> 0 | HD70: =+IF($A70="","",IF($D70=HD$17,$B70+IF(MONTH($B$8)-MONTH($B$7)+$E$16=HC$16,$C70,0),0)) -> 0 | HE70: =+IF($A70="","",IF($D70=HE$17,$B70+IF(MONTH($B$8)-MONTH($B$7)+$E$16=HD$16,$C70,0),0)) -> 0 | HF70: =+IF($A70="","",IF($D70=HF$17,$B70+IF(MONTH($B$8)-MONTH($B$7)+$E$16=HE$16,$C70,0),0)) -> 0 | HG70: =+IF($A70="","",IF($D70=HG$17,$B70+IF(MONTH($B$8)-MONTH($B$7)+$E$16=HF$16,$C70,0),0)) -> 0 | HH70: =+IF($A70="","",IF($D70=HH$17,$B70+IF(MONTH($B$8)-MONTH($B$7)+$E$16=HG$16,$C70,0),0)) -> 0 | HI70: =+IF($A70="","",IF($D70=HI$17,$B70+IF(MONTH($B$8)-MONTH($B$7)+$E$16=HH$16,$C70,0),0)) -> 0 | HJ70: =+IF($A70="","",IF($D70=HJ$17,$B70+IF(MONTH($B$8)-MONTH($B$7)+$E$16=HI$16,$C70,0),0)) -> 0 | HK70: =+IF($A70="","",IF($D70=HK$17,$B70+IF(MONTH($B$8)-MONTH($B$7)+$E$16=HJ$16,$C70,0),0)) -> 0 | HL70: =+IF($A70="","",IF($D70=HL$17,$B70+IF(MONTH($B$8)-MONTH($B$7)+$E$16=HK$16,$C70,0),0)) -> 0 | HM70: =+IF($A70="","",IF($D70=HM$17,$B70+IF(MONTH($B$8)-MONTH($B$7)+$E$16=HL$16,$C70,0),0)) -> 0 | HN70: =+IF($A70="","",IF($D70=HN$17,$B70+IF(MONTH($B$8)-MONTH($B$7)+$E$16=HM$16,$C70,0),0)) -> 0 | HO70: =+IF($A70="","",IF($D70=HO$17,$B70+IF(MONTH($B$8)-MONTH($B$7)+$E$16=HN$16,$C70,0),0)) -> 0 | HP70: =+IF($A70="","",IF($D70=HP$17,$B70+IF(MONTH($B$8)-MONTH($B$7)+$E$16=HO$16,$C70,0),0)) -> 0 | HQ70: =+IF($A70="","",IF($D70=HQ$17,$B70+IF(MONTH($B$8)-MONTH($B$7)+$E$16=HP$16,$C70,0),0)) -> 0 | HR70: =+IF($A70="","",IF($D70=HR$17,$B70+IF(MONTH($B$8)-MONTH($B$7)+$E$16=HQ$16,$C70,0),0)) -> 0 | HS70: =+IF($A70="","",IF($D70=HS$17,$B70+IF(MONTH($B$8)-MONTH($B$7)+$E$16=HR$16,$C70,0),0)) -> 0 | HT70: =+IF($A70="","",IF($D70=HT$17,$B70+IF(MONTH($B$8)-MONTH($B$7)+$E$16=HS$16,$C70,0),0)) -> 0 | HU70: =+IF($A70="","",IF($D70=HU$17,$B70+IF(MONTH($B$8)-MONTH($B$7)+$E$16=HT$16,$C70,0),0)) -> 0 | HV70: =+IF($A70="","",IF($D70=HV$17,$B70+IF(MONTH($B$8)-MONTH($B$7)+$E$16=HU$16,$C70,0),0)) -> 0 | HW70: =+IF($A70="","",IF($D70=HW$17,$B70+IF(MONTH($B$8)-MONTH($B$7)+$E$16=HV$16,$C70,0),0)) -> 0 | HX70: =+IF($A70="","",IF($D70=HX$17,$B70+IF(MONTH($B$8)-MONTH($B$7)+$E$16=HW$16,$C70,0),0)) -> 0 | HY70: =+IF($A70="","",IF($D70=HY$17,$B70+IF(MONTH($B$8)-MONTH($B$7)+$E$16=HX$16,$C70,0),0)) -> 0 | HZ70: =+IF($A70="","",IF($D70=HZ$17,$B70+IF(MONTH($B$8)-MONTH($B$7)+$E$16=HY$16,$C70,0),0)) -> 0 | IA70: =+IF($A70="","",IF($D70=IA$17,$B70+IF(MONTH($B$8)-MONTH($B$7)+$E$16=HZ$16,$C70,0),0)) -> 0 | IB70: =+IF($A70="","",IF($D70=IB$17,$B70+IF(MONTH($B$8)-MONTH($B$7)+$E$16=IA$16,$C70,0),0)) -> 0 | IC70: =+IF($A70="","",IF($D70=IC$17,$B70+IF(MONTH($B$8)-MONTH($B$7)+$E$16=IB$16,$C70,0),0)) -> 0 | ID70: =+IF($A70="","",IF($D70=ID$17,$B70+IF(MONTH($B$8)-MONTH($B$7)+$E$16=IC$16,$C70,0),0)) -> 0 | IE70: =+IF($A70="","",IF($D70=IE$17,$B70+IF(MONTH($B$8)-MONTH($B$7)+$E$16=ID$16,$C70,0),0)) -> 0 | IF70: =+IF($A70="","",IF($D70=IF$17,$B70+IF(MONTH($B$8)-MONTH($B$7)+$E$16=IE$16,$C70,0),0)) -> 0 | IG70: =+IF($A70="","",IF($D70=IG$17,$B70+IF(MONTH($B$8)-MONTH($B$7)+$E$16=IF$16,$C70,0),0)) -> 0 | IH70: =+IF($A70="","",IF($D70=IH$17,$B70+IF(MONTH($B$8)-MONTH($B$7)+$E$16=IG$16,$C70,0),0)) -> 0 | II70: =+IF($A70="","",IF($D70=II$17,$B70+IF(MONTH($B$8)-MONTH($B$7)+$E$16=IH$16,$C70,0),0)) -> 0 | IJ70: =+IF($A70="","",IF($D70=IJ$17,$B70+IF(MONTH($B$8)-MONTH($B$7)+$E$16=II$16,$C70,0),0)) -> 0 | IK70: =+IF($A70="","",IF($D70=IK$17,$B70+IF(MONTH($B$8)-MONTH($B$7)+$E$16=IJ$16,$C70,0),0)) -> 0 | IL70: =+IF($A70="","",IF($D70=IL$17,$B70+IF(MONTH($B$8)-MONTH($B$7)+$E$16=IK$16,$C70,0),0)) -> 0 | IM70: CAPEX
A71: =+"Terreno "&Tipo_Terreno&" - "&"Asesoria y Certificacion RETIE" -> Terreno Plano - Asesoria y Certificacion RETIE | B71: 2761791.298 | E71: 60 | F71: =+IF($A71="","",IF($D71=F$17,$B71+IF(MONTH($B$8)-MONTH($B$7)+$E$16=E$16,$C71,0),0)) -> 2761791.298 | G71: 0 | H71: 0 | I71: 0 | J71: 0 | K71: 0 | L71: 0 | M71: 0 | N71: 0 | O71: 0 | P71: 0 | Q71: 0 | R71: 0 | S71: 0 | T71: 0 | U71: 0 | V71: 0 | W71: 0 | X71: 0 | Y71: 0 | Z71: 0 | AA71: 0 | AB71: 0 | AC71: 0 | AD71: 0 | AE71: 0 | AF71: 0 | AG71: 0 | AH71: 0 | AI71: 0 | AJ71: 0 | AK71: 0 | AL71: =+IF($A71="","",IF($D71=AL$17,$B71+IF(MONTH($B$8)-MONTH($B$7)+$E$16=AK$16,$C71,0),0)) -> 0 | AM71: 0 | AN71: 0 | AO71: 0 | AP71: 0 | AQ71: 0 | AR71: 0 | AS71: 0 | AT71: 0 | AU71: 0 | AV71: 0 | AW71: 0 | AX71: 0 | AY71: 0 | AZ71: 0 | BA71: 0 | BB71: 0 | BC71: 0 | BD71: 0 | BE71: 0 | BF71: 0 | BG71: 0 | BH71: 0 | BI71: 0 | BJ71: 0 | BK71: 0 | BL71: 0 | BM71: 0 | BN71: 0 | BO71: 0 | BP71: 0 | BQ71: 0 | BR71: =+IF($A71="","",IF($D71=BR$17,$B71+IF(MONTH($B$8)-MONTH($B$7)+$E$16=BQ$16,$C71,0),0)) -> 0 | BS71: 0 | BT71: 0 | BU71: 0 | BV71: 0 | BW71: 0 | BX71: 0 | BY71: 0 | BZ71: 0 | CA71: 0 | CB71: 0 | CC71: 0 | CD71: 0 | CE71: 0 | CF71: 0 | CG71: 0 | CH71: 0 | CI71: 0 | CJ71: 0 | CK71: 0 | CL71: 0 | CM71: 0 | CN71: 0 | CO71: 0 | CP71: 0 | CQ71: 0 | CR71: 0 | CS71: 0 | CT71: 0 | CU71: 0 | CV71: 0 | CW71: 0 | CX71: =+IF($A71="","",IF($D71=CX$17,$B71+IF(MONTH($B$8)-MONTH($B$7)+$E$16=CW$16,$C71,0),0)) -> 0 | CY71: 0 | CZ71: 0 | DA71: 0 | DB71: 0 | DC71: 0 | DD71: 0 | DE71: 0 | DF71: 0 | DG71: 0 | DH71: 0 | DI71: 0 | DJ71: 0 | DK71: 0 | DL71: 0 | DM71: 0 | DN71: 0 | DO71: 0 | DP71: 0 | DQ71: 0 | DR71: 0 | DS71: 0 | DT71: 0 | DU71: 0 | DV71: 0 | DW71: 0 | DX71: 0 | DY71: 0 | DZ71: 0 | EA71: 0 | EB71: 0 | EC71: 0 | ED71: 0 | EE71: 0 | EF71: 0 | EG71: 0 | EH71: 0 | EI71: 0 | EJ71: 0 | EK71: 0 | EL71: 0 | EM71: 0 | EN71: 0 | EO71: 0 | EP71: 0 | EQ71: 0 | ER71: 0 | ES71: 0 | ET71: 0 | EU71: 0 | EV71: 0 | EW71: 0 | EX71: 0 | EY71: 0 | EZ71: 0 | FA71: 0 | FB71: 0 | FC71: 0 | FD71: 0 | FE71: 0 | FF71: 0 | FG71: 0 | FH71: 0 | FI71: 0 | FJ71: 0 | FK71: 0 | FL71: 0 | FM71: 0 | FN71: 0 | FO71: 0 | FP71: 0 | FQ71: 0 | FR71: 0 | FS71: 0 | FT71: 0 | FU71: 0 | FV71: 0 | FW71: 0 | FX71: 0 | FY71: 0 | FZ71: 0 | GA71: 0 | GB71: 0 | GC71: 0 | GD71: 0 | GE71: 0 | GF71: 0 | GG71: 0 | GH71: 0 | GI71: 0 | GJ71: 0 | GK71: 0 | GL71: 0 | GM71: 0 | GN71: 0 | GO71: 0 | GP71: 0 | GQ71: 0 | GR71: 0 | GS71: 0 | GT71: 0 | GU71: 0 | GV71: 0 | GW71: 0 | GX71: 0 | GY71: 0 | GZ71: 0 | HA71: 0 | HB71: 0 | HC71: 0 | HD71: 0 | HE71: 0 | HF71: 0 | HG71: 0 | HH71: 0 | HI71: 0 | HJ71: 0 | HK71: 0 | HL71: 0 | HM71: 0 | HN71: 0 | HO71: 0 | HP71: 0 | HQ71: 0 | HR71: 0 | HS71: 0 | HT71: 0 | HU71: 0 | HV71: 0 | HW71: 0 | HX71: 0 | HY71: 0 | HZ71: 0 | IA71: 0 | IB71: 0 | IC71: 0 | ID71: 0 | IE71: 0 | IF71: 0 | IG71: 0 | IH71: 0 | II71: 0 | IJ71: 0 | IK71: 0 | IL71: 0 | IM71: CAPEX
A72: =+"Terreno "&Tipo_Terreno&" - "&"Transformador Kw" -> Terreno Plano - Transformador Kw | B72: 8106274.597 | E72: 60 | F72: =+IF($A72="","",IF($D72=F$17,$B72+IF(MONTH($B$8)-MONTH($B$7)+$E$16=E$16,$C72,0),0)) -> 8106274.597 | G72: 0 | H72: 0 | I72: 0 | J72: 0 | K72: 0 | L72: 0 | M72: 0 | N72: 0 | O72: 0 | P72: 0 | Q72: 0 | R72: 0 | S72: 0 | T72: 0 | U72: 0 | V72: 0 | W72: 0 | X72: 0 | Y72: 0 | Z72: 0 | AA72: 0 | AB72: 0 | AC72: 0 | AD72: 0 | AE72: 0 | AF72: 0 | AG72: 0 | AH72: 0 | AI72: 0 | AJ72: 0 | AK72: 0 | AL72: =+IF($A72="","",IF($D72=AL$17,$B72+IF(MONTH($B$8)-MONTH($B$7)+$E$16=AK$16,$C72,0),0)) -> 0 | AM72: 0 | AN72: 0 | AO72: 0 | AP72: 0 | AQ72: 0 | AR72: 0 | AS72: 0 | AT72: 0 | AU72: 0 | AV72: 0 | AW72: 0 | AX72: 0 | AY72: 0 | AZ72: 0 | BA72: 0 | BB72: 0 | BC72: 0 | BD72: 0 | BE72: 0 | BF72: 0 | BG72: 0 | BH72: 0 | BI72: 0 | BJ72: 0 | BK72: 0 | BL72: 0 | BM72: 0 | BN72: 0 | BO72: 0 | BP72: 0 | BQ72: 0 | BR72: =+IF($A72="","",IF($D72=BR$17,$B72+IF(MONTH($B$8)-MONTH($B$7)+$E$16=BQ$16,$C72,0),0)) -> 0 | BS72: 0 | BT72: 0 | BU72: 0 | BV72: 0 | BW72: 0 | BX72: 0 | BY72: 0 | BZ72: 0 | CA72: 0 | CB72: 0 | CC72: 0 | CD72: 0 | CE72: 0 | CF72: 0 | CG72: 0 | CH72: 0 | CI72: 0 | CJ72: 0 | CK72: 0 | CL72: 0 | CM72: 0 | CN72: 0 | CO72: 0 | CP72: 0 | CQ72: 0 | CR72: 0 | CS72: 0 | CT72: 0 | CU72: 0 | CV72: 0 | CW72: 0 | CX72: =+IF($A72="","",IF($D72=CX$17,$B72+IF(MONTH($B$8)-MONTH($B$7)+$E$16=CW$16,$C72,0),0)) -> 0 | CY72: 0 | CZ72: 0 | DA72: 0 | DB72: 0 | DC72: 0 | DD72: 0 | DE72: 0 | DF72: 0 | DG72: 0 | DH72: 0 | DI72: 0 | DJ72: 0 | DK72: 0 | DL72: 0 | DM72: 0 | DN72: 0 | DO72: 0 | DP72: 0 | DQ72: 0 | DR72: 0 | DS72: 0 | DT72: 0 | DU72: 0 | DV72: 0 | DW72: 0 | DX72: 0 | DY72: 0 | DZ72: 0 | EA72: 0 | EB72: 0 | EC72: 0 | ED72: 0 | EE72: 0 | EF72: 0 | EG72: 0 | EH72: 0 | EI72: 0 | EJ72: 0 | EK72: 0 | EL72: 0 | EM72: 0 | EN72: 0 | EO72: 0 | EP72: 0 | EQ72: 0 | ER72: 0 | ES72: 0 | ET72: 0 | EU72: 0 | EV72: 0 | EW72: 0 | EX72: 0 | EY72: 0 | EZ72: 0 | FA72: 0 | FB72: 0 | FC72: 0 | FD72: 0 | FE72: 0 | FF72: 0 | FG72: 0 | FH72: 0 | FI72: 0 | FJ72: 0 | FK72: 0 | FL72: 0 | FM72: 0 | FN72: 0 | FO72: 0 | FP72: 0 | FQ72: 0 | FR72: 0 | FS72: 0 | FT72: 0 | FU72: 0 | FV72: 0 | FW72: 0 | FX72: 0 | FY72: 0 | FZ72: 0 | GA72: 0 | GB72: 0 | GC72: 0 | GD72: 0 | GE72: 0 | GF72: 0 | GG72: 0 | GH72: 0 | GI72: 0 | GJ72: 0 | GK72: 0 | GL72: 0 | GM72: 0 | GN72: 0 | GO72: 0 | GP72: 0 | GQ72: 0 | GR72: 0 | GS72: 0 | GT72: 0 | GU72: 0 | GV72: 0 | GW72: 0 | GX72: 0 | GY72: 0 | GZ72: 0 | HA72: 0 | HB72: 0 | HC72: 0 | HD72: 0 | HE72: 0 | HF72: 0 | HG72: 0 | HH72: 0 | HI72: 0 | HJ72: 0 | HK72: 0 | HL72: 0 | HM72: 0 | HN72: 0 | HO72: 0 | HP72: 0 | HQ72: 0 | HR72: 0 | HS72: 0 | HT72: 0 | HU72: 0 | HV72: 0 | HW72: 0 | HX72: 0 | HY72: 0 | HZ72: 0 | IA72: 0 | IB72: 0 | IC72: 0 | ID72: 0 | IE72: 0 | IF72: 0 | IG72: 0 | IH72: 0 | II72: 0 | IJ72: 0 | IK72: 0 | IL72: 0 | IM72: CAPEX
A73: =+"Terreno "&Tipo_Terreno&" - "&"Derechos de conexión" -> Terreno Plano - Derechos de conexión | B73: 1011169.896 | E73: 60 | F73: =+IF($A73="","",IF($D73=F$17,$B73+IF(MONTH($B$8)-MONTH($B$7)+$E$16=E$16,$C73,0),0)) -> 1011169.896 | G73: 0 | H73: 0 | I73: 0 | J73: 0 | K73: 0 | L73: 0 | M73: 0 | N73: 0 | O73: 0 | P73: 0 | Q73: 0 | R73: 0 | S73: 0 | T73: 0 | U73: 0 | V73: 0 | W73: 0 | X73: 0 | Y73: 0 | Z73: 0 | AA73: 0 | AB73: 0 | AC73: 0 | AD73: 0 | AE73: 0 | AF73: 0 | AG73: 0 | AH73: 0 | AI73: 0 | AJ73: 0 | AK73: 0 | AL73: =+IF($A73="","",IF($D73=AL$17,$B73+IF(MONTH($B$8)-MONTH($B$7)+$E$16=AK$16,$C73,0),0)) -> 0 | AM73: 0 | AN73: 0 | AO73: 0 | AP73: 0 | AQ73: 0 | AR73: 0 | AS73: 0 | AT73: 0 | AU73: 0 | AV73: 0 | AW73: 0 | AX73: 0 | AY73: 0 | AZ73: 0 | BA73: 0 | BB73: 0 | BC73: 0 | BD73: 0 | BE73: 0 | BF73: 0 | BG73: 0 | BH73: 0 | BI73: 0 | BJ73: 0 | BK73: 0 | BL73: 0 | BM73: 0 | BN73: 0 | BO73: 0 | BP73: 0 | BQ73: 0 | BR73: =+IF($A73="","",IF($D73=BR$17,$B73+IF(MONTH($B$8)-MONTH($B$7)+$E$16=BQ$16,$C73,0),0)) -> 0 | BS73: 0 | BT73: 0 | BU73: 0 | BV73: 0 | BW73: 0 | BX73: 0 | BY73: 0 | BZ73: 0 | CA73: 0 | CB73: 0 | CC73: 0 | CD73: 0 | CE73: 0 | CF73: 0 | CG73: 0 | CH73: 0 | CI73: 0 | CJ73: 0 | CK73: 0 | CL73: 0 | CM73: 0 | CN73: 0 | CO73: 0 | CP73: 0 | CQ73: 0 | CR73: 0 | CS73: 0 | CT73: 0 | CU73: 0 | CV73: 0 | CW73: 0 | CX73: =+IF($A73="","",IF($D73=CX$17,$B73+IF(MONTH($B$8)-MONTH($B$7)+$E$16=CW$16,$C73,0),0)) -> 0 | CY73: 0 | CZ73: 0 | DA73: 0 | DB73: 0 | DC73: 0 | DD73: 0 | DE73: 0 | DF73: 0 | DG73: 0 | DH73: 0 | DI73: 0 | DJ73: 0 | DK73: 0 | DL73: 0 | DM73: 0 | DN73: 0 | DO73: 0 | DP73: 0 | DQ73: 0 | DR73: 0 | DS73: 0 | DT73: 0 | DU73: 0 | DV73: 0 | DW73: 0 | DX73: 0 | DY73: 0 | DZ73: 0 | EA73: 0 | EB73: 0 | EC73: 0 | ED73: 0 | EE73: 0 | EF73: 0 | EG73: 0 | EH73: 0 | EI73: 0 | EJ73: 0 | EK73: 0 | EL73: 0 | EM73: 0 | EN73: 0 | EO73: 0 | EP73: 0 | EQ73: 0 | ER73: 0 | ES73: 0 | ET73: 0 | EU73: 0 | EV73: 0 | EW73: 0 | EX73: 0 | EY73: 0 | EZ73: 0 | FA73: 0 | FB73: 0 | FC73: 0 | FD73: 0 | FE73: 0 | FF73: 0 | FG73: 0 | FH73: 0 | FI73: 0 | FJ73: 0 | FK73: 0 | FL73: 0 | FM73: 0 | FN73: 0 | FO73: 0 | FP73: 0 | FQ73: 0 | FR73: 0 | FS73: 0 | FT73: 0 | FU73: 0 | FV73: 0 | FW73: 0 | FX73: 0 | FY73: 0 | FZ73: 0 | GA73: 0 | GB73: 0 | GC73: 0 | GD73: 0 | GE73: 0 | GF73: 0 | GG73: 0 | GH73: 0 | GI73: 0 | GJ73: 0 | GK73: 0 | GL73: 0 | GM73: 0 | GN73: 0 | GO73: 0 | GP73: 0 | GQ73: 0 | GR73: 0 | GS73: 0 | GT73: 0 | GU73: 0 | GV73: 0 | GW73: 0 | GX73: 0 | GY73: 0 | GZ73: 0 | HA73: 0 | HB73: 0 | HC73: 0 | HD73: 0 | HE73: 0 | HF73: 0 | HG73: 0 | HH73: 0 | HI73: 0 | HJ73: 0 | HK73: 0 | HL73: 0 | HM73: 0 | HN73: 0 | HO73: 0 | HP73: 0 | HQ73: 0 | HR73: 0 | HS73: 0 | HT73: 0 | HU73: 0 | HV73: 0 | HW73: 0 | HX73: 0 | HY73: 0 | HZ73: 0 | IA73: 0 | IB73: 0 | IC73: 0 | ID73: 0 | IE73: 0 | IF73: 0 | IG73: 0 | IH73: 0 | II73: 0 | IJ73: 0 | IK73: 0 | IL73: 0 | IM73: CAPEX
A74: =+"Terreno "&Tipo_Terreno&" - "&"Maniobras en conexión" -> Terreno Plano - Maniobras en conexión | B74: 1815951.996 | E74: 60 | F74: =+IF($A74="","",IF($D74=F$17,$B74+IF(MONTH($B$8)-MONTH($B$7)+$E$16=E$16,$C74,0),0)) -> 1815951.996 | G74: 0 | H74: 0 | I74: 0 | J74: 0 | K74: 0 | L74: 0 | M74: 0 | N74: 0 | O74: 0 | P74: 0 | Q74: 0 | R74: 0 | S74: 0 | T74: 0 | U74: 0 | V74: 0 | W74: 0 | X74: 0 | Y74: 0 | Z74: 0 | AA74: 0 | AB74: 0 | AC74: 0 | AD74: 0 | AE74: 0 | AF74: 0 | AG74: 0 | AH74: 0 | AI74: 0 | AJ74: 0 | AK74: 0 | AL74: =+IF($A74="","",IF($D74=AL$17,$B74+IF(MONTH($B$8)-MONTH($B$7)+$E$16=AK$16,$C74,0),0)) -> 0 | AM74: 0 | AN74: 0 | AO74: 0 | AP74: 0 | AQ74: 0 | AR74: 0 | AS74: 0 | AT74: 0 | AU74: 0 | AV74: 0 | AW74: 0 | AX74: 0 | AY74: 0 | AZ74: 0 | BA74: 0 | BB74: 0 | BC74: 0 | BD74: 0 | BE74: 0 | BF74: 0 | BG74: 0 | BH74: 0 | BI74: 0 | BJ74: 0 | BK74: 0 | BL74: 0 | BM74: 0 | BN74: 0 | BO74: 0 | BP74: 0 | BQ74: 0 | BR74: =+IF($A74="","",IF($D74=BR$17,$B74+IF(MONTH($B$8)-MONTH($B$7)+$E$16=BQ$16,$C74,0),0)) -> 0 | BS74: 0 | BT74: 0 | BU74: 0 | BV74: 0 | BW74: 0 | BX74: 0 | BY74: 0 | BZ74: 0 | CA74: 0 | CB74: 0 | CC74: 0 | CD74: 0 | CE74: 0 | CF74: 0 | CG74: 0 | CH74: 0 | CI74: 0 | CJ74: 0 | CK74: 0 | CL74: 0 | CM74: 0 | CN74: 0 | CO74: 0 | CP74: 0 | CQ74: 0 | CR74: 0 | CS74: 0 | CT74: 0 | CU74: 0 | CV74: 0 | CW74: 0 | CX74: =+IF($A74="","",IF($D74=CX$17,$B74+IF(MONTH($B$8)-MONTH($B$7)+$E$16=CW$16,$C74,0),0)) -> 0 | CY74: 0 | CZ74: 0 | DA74: 0 | DB74: 0 | DC74: 0 | DD74: 0 | DE74: 0 | DF74: 0 | DG74: 0 | DH74: 0 | DI74: 0 | DJ74: 0 | DK74: 0 | DL74: 0 | DM74: 0 | DN74: 0 | DO74: 0 | DP74: 0 | DQ74: 0 | DR74: 0 | DS74: 0 | DT74: 0 | DU74: 0 | DV74: 0 | DW74: 0 | DX74: 0 | DY74: 0 | DZ74: 0 | EA74: 0 | EB74: 0 | EC74: 0 | ED74: 0 | EE74: 0 | EF74: 0 | EG74: 0 | EH74: 0 | EI74: 0 | EJ74: 0 | EK74: 0 | EL74: 0 | EM74: 0 | EN74: 0 | EO74: 0 | EP74: 0 | EQ74: 0 | ER74: 0 | ES74: 0 | ET74: 0 | EU74: 0 | EV74: 0 | EW74: 0 | EX74: 0 | EY74: 0 | EZ74: 0 | FA74: 0 | FB74: 0 | FC74: 0 | FD74: 0 | FE74: 0 | FF74: 0 | FG74: 0 | FH74: 0 | FI74: 0 | FJ74: 0 | FK74: 0 | FL74: 0 | FM74: 0 | FN74: 0 | FO74: 0 | FP74: 0 | FQ74: 0 | FR74: 0 | FS74: 0 | FT74: 0 | FU74: 0 | FV74: 0 | FW74: 0 | FX74: 0 | FY74: 0 | FZ74: 0 | GA74: 0 | GB74: 0 | GC74: 0 | GD74: 0 | GE74: 0 | GF74: 0 | GG74: 0 | GH74: 0 | GI74: 0 | GJ74: 0 | GK74: 0 | GL74: 0 | GM74: 0 | GN74: 0 | GO74: 0 | GP74: 0 | GQ74: 0 | GR74: 0 | GS74: 0 | GT74: 0 | GU74: 0 | GV74: 0 | GW74: 0 | GX74: 0 | GY74: 0 | GZ74: 0 | HA74: 0 | HB74: 0 | HC74: 0 | HD74: 0 | HE74: 0 | HF74: 0 | HG74: 0 | HH74: 0 | HI74: 0 | HJ74: 0 | HK74: 0 | HL74: 0 | HM74: 0 | HN74: 0 | HO74: 0 | HP74: 0 | HQ74: 0 | HR74: 0 | HS74: 0 | HT74: 0 | HU74: 0 | HV74: 0 | HW74: 0 | HX74: 0 | HY74: 0 | HZ74: 0 | IA74: 0 | IB74: 0 | IC74: 0 | ID74: 0 | IE74: 0 | IF74: 0 | IG74: 0 | IH74: 0 | II74: 0 | IJ74: 0 | IK74: 0 | IL74: 0 | IM74: CAPEX
A75: =+"Terreno "&Tipo_Terreno&" - "&"Parrarayos, Malla" -> Terreno Plano - Parrarayos, Malla | B75: 6006740.93 | E75: 60 | F75: =+IF($A75="","",IF($D75=F$17,$B75+IF(MONTH($B$8)-MONTH($B$7)+$E$16=E$16,$C75,0),0)) -> 6006740.93 | G75: 0 | H75: 0 | I75: 0 | J75: 0 | K75: 0 | L75: 0 | M75: 0 | N75: 0 | O75: 0 | P75: 0 | Q75: 0 | R75: 0 | S75: 0 | T75: 0 | U75: 0 | V75: 0 | W75: 0 | X75: 0 | Y75: 0 | Z75: 0 | AA75: 0 | AB75: 0 | AC75: 0 | AD75: 0 | AE75: 0 | AF75: 0 | AG75: 0 | AH75: 0 | AI75: 0 | AJ75: 0 | AK75: 0 | AL75: =+IF($A75="","",IF($D75=AL$17,$B75+IF(MONTH($B$8)-MONTH($B$7)+$E$16=AK$16,$C75,0),0)) -> 0 | AM75: 0 | AN75: 0 | AO75: 0 | AP75: 0 | AQ75: 0 | AR75: 0 | AS75: 0 | AT75: 0 | AU75: 0 | AV75: 0 | AW75: 0 | AX75: 0 | AY75: 0 | AZ75: 0 | BA75: 0 | BB75: 0 | BC75: 0 | BD75: 0 | BE75: 0 | BF75: 0 | BG75: 0 | BH75: 0 | BI75: 0 | BJ75: 0 | BK75: 0 | BL75: 0 | BM75: 0 | BN75: 0 | BO75: 0 | BP75: 0 | BQ75: 0 | BR75: =+IF($A75="","",IF($D75=BR$17,$B75+IF(MONTH($B$8)-MONTH($B$7)+$E$16=BQ$16,$C75,0),0)) -> 0 | BS75: 0 | BT75: 0 | BU75: 0 | BV75: 0 | BW75: 0 | BX75: 0 | BY75: 0 | BZ75: 0 | CA75: 0 | CB75: 0 | CC75: 0 | CD75: 0 | CE75: 0 | CF75: 0 | CG75: 0 | CH75: 0 | CI75: 0 | CJ75: 0 | CK75: 0 | CL75: 0 | CM75: 0 | CN75: 0 | CO75: 0 | CP75: 0 | CQ75: 0 | CR75: 0 | CS75: 0 | CT75: 0 | CU75: 0 | CV75: 0 | CW75: 0 | CX75: =+IF($A75="","",IF($D75=CX$17,$B75+IF(MONTH($B$8)-MONTH($B$7)+$E$16=CW$16,$C75,0),0)) -> 0 | CY75: 0 | CZ75: 0 | DA75: 0 | DB75: 0 | DC75: 0 | DD75: 0 | DE75: 0 | DF75: 0 | DG75: 0 | DH75: 0 | DI75: 0 | DJ75: 0 | DK75: 0 | DL75: 0 | DM75: 0 | DN75: 0 | DO75: 0 | DP75: 0 | DQ75: 0 | DR75: 0 | DS75: 0 | DT75: 0 | DU75: 0 | DV75: 0 | DW75: 0 | DX75: 0 | DY75: 0 | DZ75: 0 | EA75: 0 | EB75: 0 | EC75: 0 | ED75: 0 | EE75: 0 | EF75: 0 | EG75: 0 | EH75: 0 | EI75: 0 | EJ75: 0 | EK75: 0 | EL75: 0 | EM75: 0 | EN75: 0 | EO75: 0 | EP75: 0 | EQ75: 0 | ER75: 0 | ES75: 0 | ET75: 0 | EU75: 0 | EV75: 0 | EW75: 0 | EX75: 0 | EY75: 0 | EZ75: 0 | FA75: 0 | FB75: 0 | FC75: 0 | FD75: 0 | FE75: 0 | FF75: 0 | FG75: 0 | FH75: 0 | FI75: 0 | FJ75: 0 | FK75: 0 | FL75: 0 | FM75: 0 | FN75: 0 | FO75: 0 | FP75: 0 | FQ75: 0 | FR75: 0 | FS75: 0 | FT75: 0 | FU75: 0 | FV75: 0 | FW75: 0 | FX75: 0 | FY75: 0 | FZ75: 0 | GA75: 0 | GB75: 0 | GC75: 0 | GD75: 0 | GE75: 0 | GF75: 0 | GG75: 0 | GH75: 0 | GI75: 0 | GJ75: 0 | GK75: 0 | GL75: 0 | GM75: 0 | GN75: 0 | GO75: 0 | GP75: 0 | GQ75: 0 | GR75: 0 | GS75: 0 | GT75: 0 | GU75: 0 | GV75: 0 | GW75: 0 | GX75: 0 | GY75: 0 | GZ75: 0 | HA75: 0 | HB75: 0 | HC75: 0 | HD75: 0 | HE75: 0 | HF75: 0 | HG75: 0 | HH75: 0 | HI75: 0 | HJ75: 0 | HK75: 0 | HL75: 0 | HM75: 0 | HN75: 0 | HO75: 0 | HP75: 0 | HQ75: 0 | HR75: 0 | HS75: 0 | HT75: 0 | HU75: 0 | HV75: 0 | HW75: 0 | HX75: 0 | HY75: 0 | HZ75: 0 | IA75: 0 | IB75: 0 | IC75: 0 | ID75: 0 | IE75: 0 | IF75: 0 | IG75: 0 | IH75: 0 | II75: 0 | IJ75: 0 | IK75: 0 | IL75: 0 | IM75: CAPEX
A76: =+"Terreno "&Tipo_Terreno&" - "&"Paso Cruceta Lar" -> Terreno Plano - Paso Cruceta Lar | B76: 6468003.763 | E76: 60 | F76: =+IF($A76="","",IF($D76=F$17,$B76+IF(MONTH($B$8)-MONTH($B$7)+$E$16=E$16,$C76,0),0)) -> 6468003.763 | G76: 0 | H76: 0 | I76: 0 | J76: 0 | K76: 0 | L76: 0 | M76: 0 | N76: 0 | O76: 0 | P76: 0 | Q76: 0 | R76: 0 | S76: 0 | T76: 0 | U76: 0 | V76: 0 | W76: 0 | X76: 0 | Y76: 0 | Z76: 0 | AA76: 0 | AB76: 0 | AC76: 0 | AD76: 0 | AE76: 0 | AF76: 0 | AG76: 0 | AH76: 0 | AI76: 0 | AJ76: 0 | AK76: 0 | AL76: =+IF($A76="","",IF($D76=AL$17,$B76+IF(MONTH($B$8)-MONTH($B$7)+$E$16=AK$16,$C76,0),0)) -> 0 | AM76: 0 | AN76: 0 | AO76: 0 | AP76: 0 | AQ76: 0 | AR76: 0 | AS76: 0 | AT76: 0 | AU76: 0 | AV76: 0 | AW76: 0 | AX76: 0 | AY76: 0 | AZ76: 0 | BA76: 0 | BB76: 0 | BC76: 0 | BD76: 0 | BE76: 0 | BF76: 0 | BG76: 0 | BH76: 0 | BI76: 0 | BJ76: 0 | BK76: 0 | BL76: 0 | BM76: 0 | BN76: 0 | BO76: 0 | BP76: 0 | BQ76: 0 | BR76: =+IF($A76="","",IF($D76=BR$17,$B76+IF(MONTH($B$8)-MONTH($B$7)+$E$16=BQ$16,$C76,0),0)) -> 0 | BS76: 0 | BT76: 0 | BU76: 0 | BV76: 0 | BW76: 0 | BX76: 0 | BY76: 0 | BZ76: 0 | CA76: 0 | CB76: 0 | CC76: 0 | CD76: 0 | CE76: 0 | CF76: 0 | CG76: 0 | CH76: 0 | CI76: 0 | CJ76: 0 | CK76: 0 | CL76: 0 | CM76: 0 | CN76: 0 | CO76: 0 | CP76: 0 | CQ76: 0 | CR76: 0 | CS76: 0 | CT76: 0 | CU76: 0 | CV76: 0 | CW76: 0 | CX76: =+IF($A76="","",IF($D76=CX$17,$B76+IF(MONTH($B$8)-MONTH($B$7)+$E$16=CW$16,$C76,0),0)) -> 0 | CY76: 0 | CZ76: 0 | DA76: 0 | DB76: 0 | DC76: 0 | DD76: 0 | DE76: 0 | DF76: 0 | DG76: 0 | DH76: 0 | DI76: 0 | DJ76: 0 | DK76: 0 | DL76: 0 | DM76: 0 | DN76: 0 | DO76: 0 | DP76: 0 | DQ76: 0 | DR76: 0 | DS76: 0 | DT76: 0 | DU76: 0 | DV76: 0 | DW76: 0 | DX76: 0 | DY76: 0 | DZ76: 0 | EA76: 0 | EB76: 0 | EC76: 0 | ED76: 0 | EE76: 0 | EF76: 0 | EG76: 0 | EH76: 0 | EI76: 0 | EJ76: 0 | EK76: 0 | EL76: 0 | EM76: 0 | EN76: 0 | EO76: 0 | EP76: 0 | EQ76: 0 | ER76: 0 | ES76: 0 | ET76: 0 | EU76: 0 | EV76: 0 | EW76: 0 | EX76: 0 | EY76: 0 | EZ76: 0 | FA76: 0 | FB76: 0 | FC76: 0 | FD76: 0 | FE76: 0 | FF76: 0 | FG76: 0 | FH76: 0 | FI76: 0 | FJ76: 0 | FK76: 0 | FL76: 0 | FM76: 0 | FN76: 0 | FO76: 0 | FP76: 0 | FQ76: 0 | FR76: 0 | FS76: 0 | FT76: 0 | FU76: 0 | FV76: 0 | FW76: 0 | FX76: 0 | FY76: 0 | FZ76: 0 | GA76: 0 | GB76: 0 | GC76: 0 | GD76: 0 | GE76: 0 | GF76: 0 | GG76: 0 | GH76: 0 | GI76: 0 | GJ76: 0 | GK76: 0 | GL76: 0 | GM76: 0 | GN76: 0 | GO76: 0 | GP76: 0 | GQ76: 0 | GR76: 0 | GS76: 0 | GT76: 0 | GU76: 0 | GV76: 0 | GW76: 0 | GX76: 0 | GY76: 0 | GZ76: 0 | HA76: 0 | HB76: 0 | HC76: 0 | HD76: 0 | HE76: 0 | HF76: 0 | HG76: 0 | HH76: 0 | HI76: 0 | HJ76: 0 | HK76: 0 | HL76: 0 | HM76: 0 | HN76: 0 | HO76: 0 | HP76: 0 | HQ76: 0 | HR76: 0 | HS76: 0 | HT76: 0 | HU76: 0 | HV76: 0 | HW76: 0 | HX76: 0 | HY76: 0 | HZ76: 0 | IA76: 0 | IB76: 0 | IC76: 0 | ID76: 0 | IE76: 0 | IF76: 0 | IG76: 0 | IH76: 0 | II76: 0 | IJ76: 0 | IK76: 0 | IL76: 0 | IM76: CAPEX
A77: =+"Terreno "&Tipo_Terreno&" - "&"Servidumbres" -> Terreno Plano - Servidumbres | B77: 1442447 | E77: 60 | F77: =+IF($A77="","",IF($D77=F$17,$B77+IF(MONTH($B$8)-MONTH($B$7)+$E$16=E$16,$C77,0),0)) -> 1442447 | G77: 0 | H77: 0 | I77: 0 | J77: 0 | K77: 0 | L77: 0 | M77: 0 | N77: 0 | O77: 0 | P77: 0 | Q77: 0 | R77: 0 | S77: 0 | T77: 0 | U77: 0 | V77: 0 | W77: 0 | X77: 0 | Y77: 0 | Z77: 0 | AA77: 0 | AB77: 0 | AC77: 0 | AD77: 0 | AE77: 0 | AF77: 0 | AG77: 0 | AH77: 0 | AI77: 0 | AJ77: 0 | AK77: 0 | AL77: =+IF($A77="","",IF($D77=AL$17,$B77+IF(MONTH($B$8)-MONTH($B$7)+$E$16=AK$16,$C77,0),0)) -> 0 | AM77: 0 | AN77: 0 | AO77: 0 | AP77: 0 | AQ77: 0 | AR77: 0 | AS77: 0 | AT77: 0 | AU77: 0 | AV77: 0 | AW77: 0 | AX77: 0 | AY77: 0 | AZ77: 0 | BA77: 0 | BB77: 0 | BC77: 0 | BD77: 0 | BE77: 0 | BF77: 0 | BG77: 0 | BH77: 0 | BI77: 0 | BJ77: 0 | BK77: 0 | BL77: 0 | BM77: 0 | BN77: 0 | BO77: 0 | BP77: 0 | BQ77: 0 | BR77: =+IF($A77="","",IF($D77=BR$17,$B77+IF(MONTH($B$8)-MONTH($B$7)+$E$16=BQ$16,$C77,0),0)) -> 0 | BS77: 0 | BT77: 0 | BU77: 0 | BV77: 0 | BW77: 0 | BX77: 0 | BY77: 0 | BZ77: 0 | CA77: 0 | CB77: 0 | CC77: 0 | CD77: 0 | CE77: 0 | CF77: 0 | CG77: 0 | CH77: 0 | CI77: 0 | CJ77: 0 | CK77: 0 | CL77: 0 | CM77: 0 | CN77: 0 | CO77: 0 | CP77: 0 | CQ77: 0 | CR77: 0 | CS77: 0 | CT77: 0 | CU77: 0 | CV77: 0 | CW77: 0 | CX77: =+IF($A77="","",IF($D77=CX$17,$B77+IF(MONTH($B$8)-MONTH($B$7)+$E$16=CW$16,$C77,0),0)) -> 0 | CY77: 0 | CZ77: 0 | DA77: 0 | DB77: 0 | DC77: 0 | DD77: 0 | DE77: 0 | DF77: 0 | DG77: 0 | DH77: 0 | DI77: 0 | DJ77: 0 | DK77: 0 | DL77: 0 | DM77: 0 | DN77: 0 | DO77: 0 | DP77: 0 | DQ77: 0 | DR77: 0 | DS77: 0 | DT77: 0 | DU77: 0 | DV77: 0 | DW77: 0 | DX77: 0 | DY77: 0 | DZ77: 0 | EA77: 0 | EB77: 0 | EC77: 0 | ED77: 0 | EE77: 0 | EF77: 0 | EG77: 0 | EH77: 0 | EI77: 0 | EJ77: 0 | EK77: 0 | EL77: 0 | EM77: 0 | EN77: 0 | EO77: 0 | EP77: 0 | EQ77: 0 | ER77: 0 | ES77: 0 | ET77: 0 | EU77: 0 | EV77: 0 | EW77: 0 | EX77: 0 | EY77: 0 | EZ77: 0 | FA77: 0 | FB77: 0 | FC77: 0 | FD77: 0 | FE77: 0 | FF77: 0 | FG77: 0 | FH77: 0 | FI77: 0 | FJ77: 0 | FK77: 0 | FL77: 0 | FM77: 0 | FN77: 0 | FO77: 0 | FP77: 0 | FQ77: 0 | FR77: 0 | FS77: 0 | FT77: 0 | FU77: 0 | FV77: 0 | FW77: 0 | FX77: 0 | FY77: 0 | FZ77: 0 | GA77: 0 | GB77: 0 | GC77: 0 | GD77: 0 | GE77: 0 | GF77: 0 | GG77: 0 | GH77: 0 | GI77: 0 | GJ77: 0 | GK77: 0 | GL77: 0 | GM77: 0 | GN77: 0 | GO77: 0 | GP77: 0 | GQ77: 0 | GR77: 0 | GS77: 0 | GT77: 0 | GU77: 0 | GV77: 0 | GW77: 0 | GX77: 0 | GY77: 0 | GZ77: 0 | HA77: 0 | HB77: 0 | HC77: 0 | HD77: 0 | HE77: 0 | HF77: 0 | HG77: 0 | HH77: 0 | HI77: 0 | HJ77: 0 | HK77: 0 | HL77: 0 | HM77: 0 | HN77: 0 | HO77: 0 | HP77: 0 | HQ77: 0 | HR77: 0 | HS77: 0 | HT77: 0 | HU77: 0 | HV77: 0 | HW77: 0 | HX77: 0 | HY77: 0 | HZ77: 0 | IA77: 0 | IB77: 0 | IC77: 0 | ID77: 0 | IE77: 0 | IF77: 0 | IG77: 0 | IH77: 0 | II77: 0 | IJ77: 0 | IK77: 0 | IL77: 0 | IM77: CAPEX
A78: =+"Terreno "&Tipo_Terreno&" - "&"Soportes (Postes)" -> Terreno Plano - Soportes (Postes) | B78: 8424308.198 | E78: 60 | F78: =+IF($A78="","",IF($D78=F$17,$B78+IF(MONTH($B$8)-MONTH($B$7)+$E$16=E$16,$C78,0),0)) -> 8424308.198 | G78: 0 | H78: 0 | I78: 0 | J78: 0 | K78: 0 | L78: 0 | M78: 0 | N78: 0 | O78: 0 | P78: 0 | Q78: 0 | R78: 0 | S78: 0 | T78: 0 | U78: 0 | V78: 0 | W78: 0 | X78: 0 | Y78: 0 | Z78: 0 | AA78: 0 | AB78: 0 | AC78: 0 | AD78: 0 | AE78: 0 | AF78: 0 | AG78: 0 | AH78: 0 | AI78: 0 | AJ78: 0 | AK78: 0 | AL78: =+IF($A78="","",IF($D78=AL$17,$B78+IF(MONTH($B$8)-MONTH($B$7)+$E$16=AK$16,$C78,0),0)) -> 0 | AM78: 0 | AN78: 0 | AO78: 0 | AP78: 0 | AQ78: 0 | AR78: 0 | AS78: 0 | AT78: 0 | AU78: 0 | AV78: 0 | AW78: 0 | AX78: 0 | AY78: 0 | AZ78: 0 | BA78: 0 | BB78: 0 | BC78: 0 | BD78: 0 | BE78: 0 | BF78: 0 | BG78: 0 | BH78: 0 | BI78: 0 | BJ78: 0 | BK78: 0 | BL78: 0 | BM78: 0 | BN78: 0 | BO78: 0 | BP78: 0 | BQ78: 0 | BR78: =+IF($A78="","",IF($D78=BR$17,$B78+IF(MONTH($B$8)-MONTH($B$7)+$E$16=BQ$16,$C78,0),0)) -> 0 | BS78: 0 | BT78: 0 | BU78: 0 | BV78: 0 | BW78: 0 | BX78: 0 | BY78: 0 | BZ78: 0 | CA78: 0 | CB78: 0 | CC78: 0 | CD78: 0 | CE78: 0 | CF78: 0 | CG78: 0 | CH78: 0 | CI78: 0 | CJ78: 0 | CK78: 0 | CL78: 0 | CM78: 0 | CN78: 0 | CO78: 0 | CP78: 0 | CQ78: 0 | CR78: 0 | CS78: 0 | CT78: 0 | CU78: 0 | CV78: 0 | CW78: 0 | CX78: =+IF($A78="","",IF($D78=CX$17,$B78+IF(MONTH($B$8)-MONTH($B$7)+$E$16=CW$16,$C78,0),0)) -> 0 | CY78: 0 | CZ78: 0 | DA78: 0 | DB78: 0 | DC78: 0 | DD78: 0 | DE78: 0 | DF78: 0 | DG78: 0 | DH78: 0 | DI78: 0 | DJ78: 0 | DK78: 0 | DL78: 0 | DM78: 0 | DN78: 0 | DO78: 0 | DP78: 0 | DQ78: 0 | DR78: 0 | DS78: 0 | DT78: 0 | DU78: 0 | DV78: 0 | DW78: 0 | DX78: 0 | DY78: 0 | DZ78: 0 | EA78: 0 | EB78: 0 | EC78: 0 | ED78: 0 | EE78: 0 | EF78: 0 | EG78: 0 | EH78: 0 | EI78: 0 | EJ78: 0 | EK78: 0 | EL78: 0 | EM78: 0 | EN78: 0 | EO78: 0 | EP78: 0 | EQ78: 0 | ER78: 0 | ES78: 0 | ET78: 0 | EU78: 0 | EV78: 0 | EW78: 0 | EX78: 0 | EY78: 0 | EZ78: 0 | FA78: 0 | FB78: 0 | FC78: 0 | FD78: 0 | FE78: 0 | FF78: 0 | FG78: 0 | FH78: 0 | FI78: 0 | FJ78: 0 | FK78: 0 | FL78: 0 | FM78: 0 | FN78: 0 | FO78: 0 | FP78: 0 | FQ78: 0 | FR78: 0 | FS78: 0 | FT78: 0 | FU78: 0 | FV78: 0 | FW78: 0 | FX78: 0 | FY78: 0 | FZ78: 0 | GA78: 0 | GB78: 0 | GC78: 0 | GD78: 0 | GE78: 0 | GF78: 0 | GG78: 0 | GH78: 0 | GI78: 0 | GJ78: 0 | GK78: 0 | GL78: 0 | GM78: 0 | GN78: 0 | GO78: 0 | GP78: 0 | GQ78: 0 | GR78: 0 | GS78: 0 | GT78: 0 | GU78: 0 | GV78: 0 | GW78: 0 | GX78: 0 | GY78: 0 | GZ78: 0 | HA78: 0 | HB78: 0 | HC78: 0 | HD78: 0 | HE78: 0 | HF78: 0 | HG78: 0 | HH78: 0 | HI78: 0 | HJ78: 0 | HK78: 0 | HL78: 0 | HM78: 0 | HN78: 0 | HO78: 0 | HP78: 0 | HQ78: 0 | HR78: 0 | HS78: 0 | HT78: 0 | HU78: 0 | HV78: 0 | HW78: 0 | HX78: 0 | HY78: 0 | HZ78: 0 | IA78: 0 | IB78: 0 | IC78: 0 | ID78: 0 | IE78: 0 | IF78: 0 | IG78: 0 | IH78: 0 | II78: 0 | IJ78: 0 | IK78: 0 | IL78: 0 | IM78: CAPEX
A79: Energia Solar - TMC | B79: =+IF(ArrendamientoInfraestructura="S",0,IF(Tipologia_Campo="Repetidora",0,IF('Parametros tecnologicos'!C17="N",0,SUMIFS(ValoresMercado,Conceptos,A79)))) -> 0 | E79: 60 | F79: =+IF($A79="","",IF($D79=F$17,$B79+IF(MONTH($B$8)-MONTH($B$7)+$E$16=E$16,$C79,0),0)) -> 0 | G79: 0 | H79: 0 | I79: 0 | J79: 0 | K79: 0 | L79: 0 | M79: 0 | N79: 0 | O79: 0 | P79: 0 | Q79: 0 | R79: 0 | S79: 0 | T79: 0 | U79: 0 | V79: 0 | W79: 0 | X79: 0 | Y79: 0 | Z79: 0 | AA79: 0 | AB79: 0 | AC79: 0 | AD79: 0 | AE79: 0 | AF79: 0 | AG79: 0 | AH79: 0 | AI79: 0 | AJ79: 0 | AK79: 0 | AL79: =+IF($A79="","",IF($D79=AL$17,$B79+IF(MONTH($B$8)-MONTH($B$7)+$E$16=AK$16,$C79,0),0)) -> 0 | AM79: 0 | AN79: 0 | AO79: 0 | AP79: 0 | AQ79: 0 | AR79: 0 | AS79: 0 | AT79: 0 | AU79: 0 | AV79: 0 | AW79: 0 | AX79: 0 | AY79: 0 | AZ79: 0 | BA79: 0 | BB79: 0 | BC79: 0 | BD79: 0 | BE79: 0 | BF79: 0 | BG79: 0 | BH79: 0 | BI79: 0 | BJ79: 0 | BK79: 0 | BL79: 0 | BM79: 0 | BN79: 0 | BO79: 0 | BP79: 0 | BQ79: 0 | BR79: =+IF($A79="","",IF($D79=BR$17,$B79+IF(MONTH($B$8)-MONTH($B$7)+$E$16=BQ$16,$C79,0),0)) -> 0 | BS79: 0 | BT79: 0 | BU79: 0 | BV79: 0 | BW79: 0 | BX79: 0 | BY79: 0 | BZ79: 0 | CA79: 0 | CB79: 0 | CC79: 0 | CD79: 0 | CE79: 0 | CF79: 0 | CG79: 0 | CH79: 0 | CI79: 0 | CJ79: 0 | CK79: 0 | CL79: 0 | CM79: 0 | CN79: 0 | CO79: 0 | CP79: 0 | CQ79: 0 | CR79: 0 | CS79: 0 | CT79: 0 | CU79: 0 | CV79: 0 | CW79: 0 | CX79: =+IF($A79="","",IF($D79=CX$17,$B79+IF(MONTH($B$8)-MONTH($B$7)+$E$16=CW$16,$C79,0),0)) -> 0 | CY79: 0 | CZ79: 0 | DA79: 0 | DB79: 0 | DC79: 0 | DD79: 0 | DE79: 0 | DF79: 0 | DG79: 0 | DH79: 0 | DI79: 0 | DJ79: 0 | DK79: 0 | DL79: 0 | DM79: 0 | DN79: 0 | DO79: 0 | DP79: 0 | DQ79: 0 | DR79: 0 | DS79: 0 | DT79: 0 | DU79: 0 | DV79: 0 | DW79: 0 | DX79: 0 | DY79: 0 | DZ79: 0 | EA79: 0 | EB79: 0 | EC79: 0 | ED79: 0 | EE79: 0 | EF79: 0 | EG79: 0 | EH79: 0 | EI79: 0 | EJ79: 0 | EK79: 0 | EL79: 0 | EM79: 0 | EN79: 0 | EO79: 0 | EP79: 0 | EQ79: 0 | ER79: 0 | ES79: 0 | ET79: 0 | EU79: 0 | EV79: 0 | EW79: 0 | EX79: 0 | EY79: 0 | EZ79: 0 | FA79: 0 | FB79: 0 | FC79: 0 | FD79: 0 | FE79: 0 | FF79: 0 | FG79: 0 | FH79: 0 | FI79: 0 | FJ79: 0 | FK79: 0 | FL79: 0 | FM79: 0 | FN79: 0 | FO79: 0 | FP79: 0 | FQ79: 0 | FR79: 0 | FS79: 0 | FT79: 0 | FU79: 0 | FV79: 0 | FW79: 0 | FX79: 0 | FY79: 0 | FZ79: 0 | GA79: 0 | GB79: 0 | GC79: 0 | GD79: 0 | GE79: 0 | GF79: 0 | GG79: 0 | GH79: 0 | GI79: 0 | GJ79: 0 | GK79: 0 | GL79: 0 | GM79: 0 | GN79: 0 | GO79: 0 | GP79: 0 | GQ79: 0 | GR79: 0 | GS79: 0 | GT79: 0 | GU79: 0 | GV79: 0 | GW79: 0 | GX79: 0 | GY79: 0 | GZ79: 0 | HA79: 0 | HB79: 0 | HC79: 0 | HD79: 0 | HE79: 0 | HF79: 0 | HG79: 0 | HH79: 0 | HI79: 0 | HJ79: 0 | HK79: 0 | HL79: 0 | HM79: 0 | HN79: 0 | HO79: 0 | HP79: 0 | HQ79: 0 | HR79: 0 | HS79: 0 | HT79: 0 | HU79: 0 | HV79: 0 | HW79: 0 | HX79: 0 | HY79: 0 | HZ79: 0 | IA79: 0 | IB79: 0 | IC79: 0 | ID79: 0 | IE79: 0 | IF79: 0 | IG79: 0 | IH79: 0 | II79: 0 | IJ79: 0 | IK79: 0 | IL79: 0 | IM79: CAPEX
